Workbook

Sheet START
A1: =muni -> LIM351 Blouberg

Sheet Instructions
D2: 2020
X4: Yes
X5: No
W7: Type of Entities Range: | X7: Parent Municipality
X8: Consolidated Information
W10: Date linked | X10: 11
W11: Date | X11: =VLOOKUP(X10,W39:X55,2) -> M11 May | Y11: 2013-08-01
W19: MTREF Range: | X19: 2008
X20: 2009
X21: 2010
X22: 2011
X23: 2012
X24: 2013
X25: 2014
X26: 2015
X27: 2016
X28: 2017
X29: 2018
X30: 2019
X31: 2020
X32: 2021
X33: 2022
W34: MTREF Linked:
W35: MTREF: | X35: 12
X36: =INDEX(X19:X33,X35,1) -> 2019
W37: Fin Year:
X38: =MTREF&"/"&RIGHT(MTREF,2)+1 -> 2019/20
V39: Date/type of report | W39: 1 | X39: M01 July
W40: 2 | X40: M02 August
W41: 3 | X41: M03 September
W42: 4 | X42: M04 October
W43: 5 | X43: M05 November
W44: 6 | X44: M06 December
W45: 7 | X45: M07 January
W46: 8 | X46: M08 February
W47: 9 | X47: M09 March
W48: 10 | X48: M10 April
W49: 11 | X49: M11 May
W50: 12 | X50: M12 June
W51: 13 | X51: Q1 First Quarter
W52: 14 | X52: Q2 Second Quarter
W53: 15 | X53: Q3 Third Quarter
W54: 16 | X54: Q4 Fourth Quarter
W55: 17 | X55: Mid-Year Assessment

Sheet Template names (hidden)
A1: Common sheet headings
A2: Head1 | B2: =HLOOKUP(MTREF,Headings,2) -> 2018/19 | C2: Prior year -1
A3: Head2 | B3: =HLOOKUP(MTREF,Headings,5) -> Budget Year 2019/20 | C3: Year of approved budget
A4: Head2A | B4: =HLOOKUP(MTREF,Headings,4) -> 2019/20 | C4: Approved budget year
A5: Head3 | B5: =HLOOKUP(MTREF,Headings,3) -> 2019/20 Medium Term Revenue & Expenditure Framework | C5: MTREF header name
A6: Head5 | B6: Audited Outcome
A7: Head5A | B7: Outcome
A8: Head5B | B8: Pre-audit outcome
A9: Head6 | B9: Original Budget
A10: Head7 | B10: Adjusted Budget
A11: Head8 | B11: Full Year Forecast
A12: Head9 | B12: =HLOOKUP(MTREF,Headings,5) -> Budget Year 2019/20 | C12: 1st year of MTREF | D12: Year1
A13: Head10 | B13: =HLOOKUP(MTREF,Headings,6) -> Budget Year +1 2020/21 | C13: 2nd year of MTREF | D13: Year2
A14: Head11 | B14: =HLOOKUP(MTREF,Headings,7) -> Budget Year +2 2021/22 | C14: 3rd year of MTREF | D14: Year3
A15: Head12 | B15: Forecast 2010/11 | D15: Year4
A16: Head13 | B16: Forecast 2011/12 | D16: Year5
A17: Head14 | B17: Forecast 2012/13 | D17: Year6
A18: Head15 | B18: Forecast 2013/14 | D18: Year7
A19: Head16 | B19: Forecast 2014/15 | D19: Year8
A20: Head17 | B20: Forecast 2015/16 | D20: Year9
A21: Head18 | B21: Forecast 2016/17 | D21: Year10
A22: Head19 | B22: Forecast 2017/18 | D22: Year11
A23: Head20 | B23: Forecast 2018/19 | D23: Year12
A24: Head21 | B24: Forecast 2019/20 | D24: Year13
A25: Head22 | B25: Forecast 2020/21 | D25: Year14
A26: Head23 | B26: Forecast 2021/22 | D26: Year15
A27: Head24 | B27: Description | D27: Desc
A28: Head25 | B28: Schedule of funding diligence | D28: fdil
A29: Head26 | B29: Vote Description | D29: VDesc
A30: Head27 | B30: Ref
A31: Head27a | B31: References
A32: Head28 | B32: Surplus/ (Deficit) for the year | D32: Result
A33: Head29 | B33: Annual target 2007/08
A34: Head30 | B34: Revised target 2007/08
A35: Head31 | B35: Quarter ended 30 September
A36: Head32 | B36: Quarter ended 31 December
A37: Head33 | B37: Quarter ended 31 March
A38: Head34 | B38: Quarter ended 30 June
A39: Head35 | B39: Variance explanation
A40: Head36 | B40: YTD Actual 31 Dec
A41: Head37 | B41: YTD Budget 31 Dec
A42: Head38 | B42: Monthly actual
A43: Head39 | B43: YearTD actual
A44: Head40 | B44: YearTD budget
A45: Head41 | B45: YTD variance
A46: Head42 | B46: Surplus/ (Deficit) for the yr/period
A47: Head43 | B47: =Head3&" Summary" -> 2019/20 Medium Term Revenue & Expenditure Framework Summary
A48: Head44 | B48: 1996 Census
A49: Head45 | B49: 2001 Census
A50: Head46 | B50: - Adjustments Budget - Month YYYY
A51: Head47 | B51: Previous target year to complete
A52: Head48 | B52: Present value
A53: Head49 | B53: Virement
A54: Head50 | B54: Other Adjusts.
A55: Head51 | B55: Accum. Funds
A56: Head52 | B56: Multi-year capital
A57: Head53 | B57: Unfore. Unavoid.
A58: Head54 | B58: Prior Adjusted
A59: Head55 | B59: Nat. or Prov. Govt
A60: Head56 | B60: Total Adjusts.
A61: Head57 | B61: =date -> M11 May
A62: Head58 | B62: Parent muni.
A63: Head59 | B63: Downward adjusts
A64: Head60 | B64: Month | C64: Report header part name | D64: =MONTH(date) -> 
A65: SFPerf1 | B65: Budgeted Financial Performance
A66: SFPerf2 | B66: Forecast Financial Performance
A67: SFPos1 | B67: Budgeted Financial Position
A68: SFPos2 | B68: Forecast Financial Position
A69: Cash1 | B69: Budget Cash Flow
A70: Cash2 | B70: Forecast Cash Flow
A71: RandM | B71: Expenditure includes repairs & maintenance of R'000
A72: Standard nomenclature
A73: Muni | B73: ='Lookup and lists'!B27 -> LIM351 Blouberg
A74: Municipal Entities | B74: 2 | C74: Type of report: | D74: 1
A75: =IF((MuniEntities=1)*(MuniType=2),"YES","NO") -> NO | B75: Does this municipality have entities (consolidated budget and entity budgets required)? YES/NO
A76: s71 (Monthly Mayor report) schedules and charts
A77: S71sum | B77: =IF(Consolques="YES",E77,F77) -> Table C1 Monthly Budget Statement Summary | D77: Table C1 | E77: =D77&"Consolidated Monthly Budget Statement Summary" -> Table C1 Consolidated Monthly Budget Statement Summary | F77: =D77&"Monthly Budget Statement Summary" -> Table C1 Monthly Budget Statement Summary
A78: S71C | B78: Table C3 Monthly Budget Statement - Financial Performance (revenue and expenditure by municipal vote) | D78: Table C3 | E78: =D78&"Consolidated Monthly Budget Statement - Financial Performance (revenue and expenditure by municipal vote) " -> Table C3 Consolidated Monthly Budget Statement - Financial Performance (revenue and expenditure by municipal vote) | F78: =D78&"Monthly Budget Statement - Financial Performance (revenue and expenditure by municipal vote)" -> Table C3 Monthly Budget Statement - Financial Performance (revenue and expenditure by municipal vote)
A79: S71A | B79: =IF(Consolques="YES",E79,F79) -> Table C2 Monthly Budget Statement - Financial Performance (functional classification) | D79: Table C2 | E79: =D79&"Consolidated Monthly Budget Statement - Financial Performance (functional classification) " -> Table C2 Consolidated Monthly Budget Statement - Financial Performance (functional classification) | F79: =D79&"Monthly Budget Statement - Financial Performance (functional classification)" -> Table C2 Monthly Budget Statement - Financial Performance (functional classification)
A80: S71B | B80: =IF(Consolques="YES",E80,F80) -> Table C4 Monthly Budget Statement - Financial Performance (revenue and expenditure) | D80: Table C4 | E80: =D80&"Consolidated Monthly Budget Statement - Financial Performance (revenue and expenditure) " -> Table C4 Consolidated Monthly Budget Statement - Financial Performance (revenue and expenditure) | F80: =D80&"Monthly Budget Statement - Financial Performance (revenue and expenditure)" -> Table C4 Monthly Budget Statement - Financial Performance (revenue and expenditure)
A81: S71D | B81: =IF(Consolques="YES",E81,F81) -> Table C5 Monthly Budget Statement - Capital Expenditure (municipal vote, functional classification and funding) | D81: Table C5 | E81: =D81&"Consolidated Monthly Budget Statement - Capital Expenditure (municipal vote, functional classification and funding " -> Table C5 Consolidated Monthly Budget Statement - Capital Expenditure (municipal vote, functional classification and funding | F81: =D81&"Monthly Budget Statement - Capital Expenditure (municipal vote, functional classification and funding)" -> Table C5 Monthly Budget Statement - Capital Expenditure (municipal vote, functional classification and funding)
A82: S71E | B82: Table C6 Monthly Budget Statement - Financial Position | D82: Table C6 | E82: =D82&"Consolidated Monthly Budget Statement - Financial Position " -> Table C6 Consolidated Monthly Budget Statement - Financial Position | F82: =D82&"Monthly Budget Statement - Financial Position" -> Table C6 Monthly Budget Statement - Financial Position
A83: S71F | B83: Table C7 Monthly Budget Statement - Cash Flow | D83: Table C7 | E83: =D83&"Consolidated Monthly Budget Statement - Cash Flow " -> Table C7 Consolidated Monthly Budget Statement - Cash Flow | F83: =D83&"Monthly Budget Statement - Cash Flow " -> Table C7 Monthly Budget Statement - Cash Flow
A84: S71G | B84: =D84&"Material variance explanations " -> Supporting Table SC1 Material variance explanations | D84: Supporting Table SC1
A85: S71H | B85: =D85&"Monthly Budget Statement - performance indicators " -> Supporting Table SC2 Monthly Budget Statement - performance indicators | D85: Supporting Table SC2
A86: S71I | B86: =D86&"Monthly Budget Statement - aged debtors" -> Supporting Table SC3 Monthly Budget Statement - aged debtors | D86: Supporting Table SC3
A87: S71J | B87: =D87&"Monthly Budget Statement - aged creditors " -> Supporting Table SC4 Monthly Budget Statement - aged creditors | D87: Supporting Table SC4
A88: S71K | B88: =D88&"Monthly Budget Statement - investment portfolio " -> Supporting Table SC5 Monthly Budget Statement - investment portfolio | D88: Supporting Table SC5
A89: S71L | B89: =D89&"Monthly Budget Statement - transfers and grant receipts " -> Supporting Table SC6 Monthly Budget Statement - transfers and grant receipts | D89: Supporting Table SC6
A90: S71M | B90: =D90&" Monthly Budget Statement - transfers and grant expenditure " -> Supporting Table SC7(1) Monthly Budget Statement - transfers and grant expenditure | D90: Supporting Table SC7(1)
A91: S71N | B91: =D91&"Monthly Budget Statement - councillor and staff benefits " -> Supporting Table SC8 Monthly Budget Statement - councillor and staff benefits | D91: Supporting Table SC8
A92: S71O | B92: =D92&"Monthly Budget Statement - actuals and revised targets for cash receipts" -> Supporting Table SC9 Monthly Budget Statement - actuals and revised targets for cash receipts | D92: Supporting Table SC9
A93: S71P | B93: =IF(Consolques="YES",E93,F93) -> NOT REQUIRED - municipality does not have entities or this is the parent municipality's budget | D93: Supporting Table SC10 | E93: =D93&"Monthly Budget Statement - Parent Municipality Financial Performance (revenue and expenditure) " -> Supporting Table SC10 Monthly Budget Statement - Parent Municipality Financial Performance (revenue and expenditure) | F93: NOT REQUIRED - municipality does not have entities or this is the parent municipality's budget
A94: S71Q | B94: NOT REQUIRED - municipality does not have entities or this is the parent municipality's budget | D94: Supporting Table SC11 | E94: =D94&"Monthly Budget Statement - summary of municipal entities" -> Supporting Table SC11 Monthly Budget Statement - summary of municipal entities | F94: NOT REQUIRED - municipality does not have entities or this is the parent municipality's budget
A95: S71R | B95: Supporting Table SC12 Monthly Budget Statement - capital expenditure trend | D95: Supporting Table SC12 | E95: =D95&"Consolidated Monthly Budget Statement - capital expenditure trend " -> Supporting Table SC12 Consolidated Monthly Budget Statement - capital expenditure trend | F95: =D95&"Monthly Budget Statement - capital expenditure trend" -> Supporting Table SC12 Monthly Budget Statement - capital expenditure trend
A96: S71Sa | B96: Supporting Table SC13a Monthly Budget Statement - capital expenditure on new assets by asset class | D96: Supporting Table SC13a | E96: =D96&"Consolidated Monthly Budget Statement - capital expenditure on new assets by asset class" -> Supporting Table SC13a Consolidated Monthly Budget Statement - capital expenditure on new assets by asset class | F96: =D96&"Monthly Budget Statement - capital expenditure on new assets by asset class" -> Supporting Table SC13a Monthly Budget Statement - capital expenditure on new assets by asset class
A97: S71Sb | B97: Supporting Table SC13b Monthly Budget Statement - capital expenditure on renewal of existing assets by asset class | D97: Supporting Table SC13b | E97: =D97&"Consolidated Monthly Budget Statement - capital expenditure on renewal of existing assets by asset class" -> Supporting Table SC13b Consolidated Monthly Budget Statement - capital expenditure on renewal of existing assets by asset class | F97: =D97&"Monthly Budget Statement - capital expenditure on renewal of existing assets by asset class" -> Supporting Table SC13b Monthly Budget Statement - capital expenditure on renewal of existing assets by asset class
A98: S71Sc | B98: Supporting Table SC13c Monthly Budget Statement - expenditure on repairs and maintenance by asset class | D98: Supporting Table SC13c | E98: =D98&"Consolidated Monthly Budget Statement - expenditure on repairs and maintenance by asset class" -> Supporting Table SC13c Consolidated Monthly Budget Statement - expenditure on repairs and maintenance by asset class | F98: =D98&"Monthly Budget Statement - expenditure on repairs and maintenance by asset class" -> Supporting Table SC13c Monthly Budget Statement - expenditure on repairs and maintenance by asset class
A99: S71Sd | B99: Supporting Table SC13d Monthly Budget Statement - depreciation by asset class | D99: Supporting Table SC13d | E99: =D99&"Consolidated Monthly Budget Statement - depreciation by asset class" -> Supporting Table SC13d Consolidated Monthly Budget Statement - depreciation by asset class | F99: =D99&"Monthly Budget Statement - depreciation by asset class" -> Supporting Table SC13d Monthly Budget Statement - depreciation by asset class
A100: S71Se | B100: =IF(Consolques="YES",E100,F100) -> Supporting Table SC13e Monthly Budget Statement - capital expenditure on upgrading of existing assets by asset class | D100: Supporting Table SC13e | E100: =D100&"Consolidated Monthly Budget Statement - capital expenditure on upgrading of existing assets by asset class" -> Supporting Table SC13e Consolidated Monthly Budget Statement - capital expenditure on upgrading of existing assets by asset class | F100: =D100&"Monthly Budget Statement - capital expenditure on upgrading of existing assets by asset class" -> Supporting Table SC13e Monthly Budget Statement - capital expenditure on upgrading of existing assets by asset class
B101: s71 charts listing
B102: =D102&Head2A&" Capital Expenditure Monthly Trend: actual v target" -> Chart C1 2019/20 Capital Expenditure Monthly Trend: actual v target | D102: Chart C1
B103: =D103&Head2A&" Capital Expenditure: YTD actual v YTD target" -> Chart C2 2019/20 Capital Expenditure: YTD actual v YTD target | D103: Chart C2
B104: =D104&"Aged Consumer Debtors Analysis" -> Chart C3 Aged Consumer Debtors Analysis | D104: Chart C3
B105: =D105&"Consumer Debtors (total by Debtor Customer Category)" -> Chart C4 Consumer Debtors (total by Debtor Customer Category) | D105: Chart C4
B106: =D106&"Aged Creditors Analysis" -> Chart C5 Aged Creditors Analysis | D106: Chart C5
A107: S71T | B107: =D107&" Monthly Budget Statement - Expenditure against approved rollovers" -> Supporting Table SC7(2) Monthly Budget Statement - Expenditure against approved rollovers | D107: Supporting Table SC7(2)

Sheet Lookup and lists (hidden)
A1: Description | B1: 2007 | C1: 2008 | D1: 2009 | E1: 2010 | F1: 2011 | G1: 2012 | H1: 2013 | I1: 2014 | J1: 2015 | K1: 2016 | L1: 2017 | M1: 2018 | N1: 2019 | O1: 2020 | Q1: Grants: | R1: National - opex | S1: Provincial - opex | T1: National - capex | U1: Provincial - capex | V1: YESNO
A2: ='Template names'!C2 -> Prior year -1 | B2: 2006/07 | C2: 2007/08 | D2: 2008/09 | E2: =E1-1&"/"&RIGHT(E1,2)-0 -> 2009/10 | F2: =F1-1&"/"&RIGHT(F1,2)-0 -> 2010/11 | G2: 2011/12 | H2: 2012/13 | I2: 2013/14 | J2: 2014/15 | K2: 2015/16 | L2: 2016/17 | M2: 2017/18 | N2: 2018/19 | O2: 2019/20 | R2: Local Government Equitable Share | S2: Health subsidy | T2: Municipal Infrastructure Grant (MIG) | U2: Agriculture | V2: Yes
A3: ='Template names'!C5 -> MTREF header name | B3: 2007/08 Medium Term Revenue & Expenditure Framework | C3: 2008/09 Medium Term Revenue & Expenditure Framework | D3: 2009/10 Medium Term Revenue & Expenditure Framework | E3: =E1&"/"&RIGHT(E1,2)+1&" Medium Term Revenue & Expenditure Framework" -> 2010/11 Medium Term Revenue & Expenditure Framework | F3: =F1&"/"&RIGHT(F1,2)+1&" Medium Term Revenue & Expenditure Framework" -> 2011/12 Medium Term Revenue & Expenditure Framework | G3: 2012/13 Medium Term Revenue & Expenditure Framework | H3: 2013/14 Medium Term Revenue & Expenditure Framework | I3: 2014/15 Medium Term Revenue & Expenditure Framework | J3: 2015/16 Medium Term Revenue & Expenditure Framework | K3: 2016/17 Medium Term Revenue & Expenditure Framework | L3: 2017/18 Medium Term Revenue & Expenditure Framework | M3: 2018/19 Medium Term Revenue & Expenditure Framework | N3: 2019/20 Medium Term Revenue & Expenditure Framework | O3: 2020/21 Medium Term Revenue & Expenditure Framework | R3: RSC Levy Replacement | S3: Ambulance subsidy | T3: Public Transport and Systems | U3: Education | V3: No
A4: ='Template names'!C4 -> Approved budget year | B4: 2007/08 | C4: 2008/09 | D4: 2009/10 | E4: =E1&"/"&RIGHT(E1,2)+1 -> 2010/11 | F4: =F1&"/"&RIGHT(F1,2)+1 -> 2011/12 | G4: 2012/13 | H4: 2013/14 | I4: 2014/15 | J4: 2015/16 | K4: 2016/17 | L4: 2017/18 | M4: 2018/19 | N4: 2019/20 | O4: 2020/21 | R4: Finance Management | S4: Housing | T4: Rural Transport Services and Infrastructure | U4: Health
A5: ='Template names'!C12 -> 1st year of MTREF | B5: Budget Year 2007/08 | C5: Budget Year 2008/09 | D5: Budget Year 2009/10 | E5: ="Budget Year "&E1&"/"&RIGHT(E1,2)+1 -> Budget Year 2010/11 | F5: ="Budget Year "&F1&"/"&RIGHT(F1,2)+1 -> Budget Year 2011/12 | G5: Budget Year 2012/13 | H5: Budget Year 2013/14 | I5: Budget Year 2014/15 | J5: Budget Year 2015/16 | K5: Budget Year 2016/17 | L5: Budget Year 2017/18 | M5: Budget Year 2018/19 | N5: Budget Year 2019/20 | O5: Budget Year 2020/21 | R5: Municipal Systems Improvement | S5: Sport and Recreation | T5: Regional Bulk Infrastructure | U5: Housing and Local Government
A6: ='Template names'!C13 -> 2nd year of MTREF | B6: Budget Year +1 2008/09 | C6: Budget Year +1 2009/10 | D6: Budget Year +1 2010/11 | E6: ="Budget Year +1 "&E1+1&"/"&RIGHT(E1,2)+2 -> Budget Year +1 2011/12 | F6: ="Budget Year +1 "&F1+1&"/"&RIGHT(F1,2)+2 -> Budget Year +1 2012/13 | G6: Budget Year +1 2013/14 | H6: Budget Year +1 2014/15 | I6: Budget Year +1 2015/16 | J6: Budget Year +1 2016/17 | K6: Budget Year +1 2017/18 | L6: Budget Year +1 2018/19 | M6: Budget Year +1 2019/20 | N6: Budget Year +1 2020/21 | O6: Budget Year +1 2021/22 | R6: Water Services Operating Subsidy | T6: Rural Households Infrastructure | U6: Other Departments
A7: ='Template names'!C14 -> 3rd year of MTREF | B7: Budget Year +2 2009/10 | C7: Budget Year +2 2010/11 | D7: Budget Year +2 2011/12 | E7: ="Budget Year +2 "&E1+2&"/"&RIGHT(E1,2)+3 -> Budget Year +2 2012/13 | F7: ="Budget Year +2 "&F1+2&"/"&RIGHT(F1,2)+3 -> Budget Year +2 2013/14 | G7: Budget Year +2 2014/15 | H7: Budget Year +2 2015/16 | I7: Budget Year +2 2016/17 | J7: Budget Year +2 2017/18 | K7: Budget Year +2 2018/19 | L7: Budget Year +2 2019/20 | M7: Budget Year +2 2020/21 | N7: Budget Year +2 2021/22 | O7: Budget Year +2 2022/23 | R7: Energy Efficiency and Demand Management | T7: Neighbourhood Development Partnership | U7: Public Works, Roads, Transport
A8: NOTE: This sheet should not be directly amended - select headings from sheet 'S' | R8: Integrated National Electrification Programme | T8: 2010 FIFA World Cup Stadiums Development | U8: Sport and Recreation
R9: Municipal Drought Relief
R10: 2010 FIFA World Cup Operating
R11: Electricity Demand Side Management
R12: EPWP Incentive
A26: Name link | B26: 140
A27: Name of Muni | B27: =INDEX(B28:B311,B26,1) -> LIM351 Blouberg
B28: Choose name from list | C28: Set name on 'Instructions' sheet
B29: BUF Buffalo City | C29: EC EASTERN CAPE
B30: NMA Nelson Mandela Bay | C30: EC EASTERN CAPE
B31: EC101 Dr Beyers Naude | C31: EC EASTERN CAPE
B32: EC102 Blue Crane Route | C32: EC EASTERN CAPE
B33: EC104 Makana | C33: EC EASTERN CAPE
B34: EC105 Ndlambe | C34: EC EASTERN CAPE
B35: EC106 Sundays River Valley | C35: EC EASTERN CAPE
B36: EC108 Kouga | C36: EC EASTERN CAPE
B37: EC109 Kou-Kamma | C37: EC EASTERN CAPE
B38: DC10 Sarah Baartman | C38: EC EASTERN CAPE
B39: EC121 Mbhashe | C39: EC EASTERN CAPE
B40: EC122 Mnquma | C40: EC EASTERN CAPE
B41: EC123 Great Kei | C41: EC EASTERN CAPE
B42: EC124 Amahlathi | C42: EC EASTERN CAPE
B43: EC126 Ngqushwa | C43: EC EASTERN CAPE
B44: EC129 Raymond Mhlaba | C44: EC EASTERN CAPE
B45: DC12 Amathole | C45: EC EASTERN CAPE
B46: EC131 Inxuba Yethemba | C46: EC EASTERN CAPE
B47: EC135 Intsika Yethu | C47: EC EASTERN CAPE
B48: EC136 Emalahleni (Ec) | C48: EC EASTERN CAPE
B49: EC137 Engcobo | C49: EC EASTERN CAPE
B50: EC138 Sakhisizwe | C50: EC EASTERN CAPE
B51: EC139 Enoch Mgijima | C51: EC EASTERN CAPE
B52: DC13 Chris Hani | C52: EC EASTERN CAPE
B53: EC141 Elundini | C53: EC EASTERN CAPE
B54: EC142 Senqu | C54: EC EASTERN CAPE
B55: EC145 Walter Sisulu | C55: EC EASTERN CAPE
B56: DC14 Joe Gqabi | C56: EC EASTERN CAPE
B57: EC153 Ngquza Hills | C57: EC EASTERN CAPE
B58: EC154 Port St Johns | C58: EC EASTERN CAPE
B59: EC155 Nyandeni | C59: EC EASTERN CAPE
B60: EC156 Mhlontlo | C60: EC EASTERN CAPE
B61: EC157 King Sabata Dalindyebo | C61: EC EASTERN CAPE
B62: DC15 O .R. Tambo | C62: EC EASTERN CAPE
B63: EC441 Matatiele | C63: EC EASTERN CAPE
B64: EC442 Umzimvubu | C64: EC EASTERN CAPE
B65: EC443 Mbizana | C65: EC EASTERN CAPE
B66: EC444 Ntabankulu | C66: EC EASTERN CAPE
B67: DC44 Alfred Nzo | C67: EC EASTERN CAPE
B68: MAN Mangaung | C68: FS FREE STATE
B69: FS161 Letsemeng | C69: FS FREE STATE
B70: FS162 Kopanong | C70: FS FREE STATE
B71: FS163 Mohokare | C71: FS FREE STATE
B72: DC16 Xhariep | C72: FS FREE STATE
B73: FS181 Masilonyana | C73: FS FREE STATE
B74: FS182 Tokologo | C74: FS FREE STATE
B75: FS183 Tswelopele | C75: FS FREE STATE
B76: FS184 Matjhabeng | C76: FS FREE STATE
B77: FS185 Nala | C77: FS FREE STATE
B78: DC18 Lejweleputswa | C78: FS FREE STATE
B79: FS191 Setsoto | C79: FS FREE STATE
B80: FS192 Dihlabeng | C80: FS FREE STATE
B81: FS193 Nketoana | C81: FS FREE STATE
B82: FS194 Maluti-a-Phofung | C82: FS FREE STATE
B83: FS195 Phumelela | C83: FS FREE STATE
B84: FS196 Mantsopa | C84: FS FREE STATE
B85: DC19 Thabo Mofutsanyana | C85: FS FREE STATE
B86: FS201 Moqhaka | C86: FS FREE STATE
B87: FS203 Ngwathe | C87: FS FREE STATE
B88: FS204 Metsimaholo | C88: FS FREE STATE
B89: FS205 Mafube | C89: FS FREE STATE
B90: DC20 Fezile Dabi | C90: FS FREE STATE
B91: EKU City of Ekurhuleni | C91: GT GAUTENG
B92: JHB City Of Johannesburg | C92: GT GAUTENG
B93: TSH City Of Tshwane | C93: GT GAUTENG
B94: GT421 Emfuleni | C94: GT GAUTENG
B95: GT422 Midvaal | C95: GT GAUTENG
B96: GT423 Lesedi | C96: GT GAUTENG
B97: DC42 Sedibeng | C97: GT GAUTENG
B98: GT481 Mogale City | C98: GT GAUTENG
B99: GT484 Merafong City | C99: GT GAUTENG
B100: GT485 Rand West City | C100: GT GAUTENG
B101: DC48 West Rand | C101: GT GAUTENG
B102: ETH eThekwini | C102: KZN KWAZULU-NATAL
B103: KZN212 Umdoni | C103: KZN KWAZULU-NATAL
B104: KZN213 Umzumbe | C104: KZN KWAZULU-NATAL
B105: KZN214 uMuziwabantu | C105: KZN KWAZULU-NATAL
B106: KZN216 Ray Nkonyeni | C106: KZN KWAZULU-NATAL
B107: DC21 Ugu | C107: KZN KWAZULU-NATAL
B108: KZN221 uMshwathi | C108: KZN KWAZULU-NATAL
B109: KZN222 uMngeni | C109: KZN KWAZULU-NATAL
B110: KZN223 Mpofana | C110: KZN KWAZULU-NATAL
B111: KZN224 Impendle | C111: KZN KWAZULU-NATAL
B112: KZN225 Msunduzi | C112: KZN KWAZULU-NATAL
B113: KZN226 Mkhambathini | C113: KZN KWAZULU-NATAL
B114: KZN227 Richmond | C114: KZN KWAZULU-NATAL
B115: DC22 uMgungundlovu | C115: KZN KWAZULU-NATAL
B116: KZN235 Okhahlamba | C116: KZN KWAZULU-NATAL
B117: KZN237 Inkosi Langalibalele | C117: KZN KWAZULU-NATAL
B118: KZN238 Alfred Duma | C118: KZN KWAZULU-NATAL
B119: DC23 Uthukela | C119: KZN KWAZULU-NATAL
B120: KZN241 Endumeni | C120: KZN KWAZULU-NATAL
B121: KZN242 Nquthu | C121: KZN KWAZULU-NATAL
B122: KZN244 Msinga | C122: KZN KWAZULU-NATAL
B123: KZN245 Umvoti | C123: KZN KWAZULU-NATAL
B124: DC24 Umzinyathi | C124: KZN KWAZULU-NATAL
B125: KZN252 Newcastle | C125: KZN KWAZULU-NATAL
B126: KZN253 Emadlangeni | C126: KZN KWAZULU-NATAL
B127: KZN254 Dannhauser | C127: KZN KWAZULU-NATAL
B128: DC25 Amajuba | C128: KZN KWAZULU-NATAL
B129: KZN261 eDumbe | C129: KZN KWAZULU-NATAL
B130: KZN262 uPhongolo | C130: KZN KWAZULU-NATAL
B131: KZN263 Abaqulusi | C131: KZN KWAZULU-NATAL
B132: KZN265 Nongoma | C132: KZN KWAZULU-NATAL
B133: KZN266 Ulundi | C133: KZN KWAZULU-NATAL
B134: DC26 Zululand | C134: KZN KWAZULU-NATAL
B135: KZN271 Umhlabuyalingana | C135: KZN KWAZULU-NATAL
B136: KZN272 Jozini | C136: KZN KWAZULU-NATAL
B137: KZN275 Mtubatuba | C137: KZN KWAZULU-NATAL
B138: KZN276 Hlabisa Big Five | C138: KZN KWAZULU-NATAL
B139: DC27 Umkhanyakude | C139: KZN KWAZULU-NATAL
B140: KZN281 Mfolozi | C140: KZN KWAZULU-NATAL
B141: KZN282 uMhlathuze | C141: KZN KWAZULU-NATAL
B142: KZN284 uMlalazi | C142: KZN KWAZULU-NATAL
B143: KZN285 Mthonjaneni | C143: KZN KWAZULU-NATAL
B144: KZN286 Nkandla | C144: KZN KWAZULU-NATAL
B145: DC28 King Cetshwayo | C145: KZN KWAZULU-NATAL
B146: KZN291 Mandeni | C146: KZN KWAZULU-NATAL
B147: KZN292 KwaDukuza | C147: KZN KWAZULU-NATAL
B148: KZN293 Ndwedwe | C148: KZN KWAZULU-NATAL
B149: KZN294 Maphumulo | C149: KZN KWAZULU-NATAL
B150: DC29 iLembe | C150: KZN KWAZULU-NATAL
B151: KZN433 Greater Kokstad | C151: KZN KWAZULU-NATAL
B152: KZN434 Ubuhlebezwe | C152: KZN KWAZULU-NATAL
B153: KZN435 Umzimkhulu | C153: KZN KWAZULU-NATAL
B154: KZN436 Dr Nkosazana Dlamini Zuma | C154: KZN KWAZULU-NATAL
B155: DC43 Harry Gwala | C155: KZN KWAZULU-NATAL
B156: LIM331 Greater Giyani | C156: LIM LIMPOPO
B157: LIM332 Greater Letaba | C157: LIM LIMPOPO
B158: LIM333 Greater Tzaneen | C158: LIM LIMPOPO
B159: LIM334 Ba-Phalaborwa | C159: LIM LIMPOPO
B160: LIM335 Maruleng | C160: LIM LIMPOPO
B161: DC33 Mopani | C161: LIM LIMPOPO
B162: LIM341 Musina | C162: LIM LIMPOPO
B163: LIM343 Thulamela | C163: LIM LIMPOPO
B164: LIM344 Makhado | C164: LIM LIMPOPO
B165: LIM345 Collins Chabane | C165: LIM LIMPOPO
B166: DC34 Vhembe | C166: LIM LIMPOPO
B167: LIM351 Blouberg | C167: LIM LIMPOPO
B168: LIM353 Molemole | C168: LIM LIMPOPO
B169: LIM354 Polokwane | C169: LIM LIMPOPO
B170: LIM355 Lepelle-Nkumpi | C170: LIM LIMPOPO
B171: DC35 Capricorn | C171: LIM LIMPOPO
B172: LIM361 Thabazimbi | C172: LIM LIMPOPO
B173: LIM362 Lephalale | C173: LIM LIMPOPO
B174: LIM366 Bela Bela | C174: LIM LIMPOPO
B175: LIM367 Mogalakwena | C175: LIM LIMPOPO
B176: LIM368 Modimolle-Mookgopong | C176: LIM LIMPOPO
B177: DC36 Waterberg | C177: LIM LIMPOPO
B178: LIM471 Ephraim Mogale | C178: LIM LIMPOPO
B179: LIM472 Elias Motsoaledi | C179: LIM LIMPOPO
B180: LIM473 Makhuduthamaga | C180: LIM LIMPOPO
B181: LIM476 Tubatse Fetakgomo | C181: LIM LIMPOPO
B182: DC47 Sekhukhune | C182: LIM LIMPOPO
B183: MP301 Albert Luthuli | C183: MP MPUMALANGA
B184: MP302 Msukaligwa | C184: MP MPUMALANGA
B185: MP303 Mkhondo | C185: MP MPUMALANGA
B186: MP304 Pixley Ka Seme (MP) | C186: MP MPUMALANGA
B187: MP305 Lekwa | C187: MP MPUMALANGA
B188: MP306 Dipaleseng | C188: MP MPUMALANGA
B189: MP307 Govan Mbeki | C189: MP MPUMALANGA
B190: DC30 Gert Sibande | C190: MP MPUMALANGA
B191: MP311 Victor Khanye | C191: MP MPUMALANGA
B192: MP312 Emalahleni (Mp) | C192: MP MPUMALANGA
B193: MP313 Steve Tshwete | C193: MP MPUMALANGA
B194: MP314 Emakhazeni | C194: MP MPUMALANGA
B195: MP315 Thembisile Hani | C195: MP MPUMALANGA
B196: MP316 Dr J.S. Moroka | C196: MP MPUMALANGA
B197: DC31 Nkangala | C197: MP MPUMALANGA
B198: MP321 Thaba Chweu | C198: MP MPUMALANGA
B199: MP324 Nkomazi | C199: MP MPUMALANGA
B200: MP325 Bushbuckridge | C200: MP MPUMALANGA
B201: MP326 City of Mbombela | C201: MP MPUMALANGA
B202: DC32 Ehlanzeni | C202: MP MPUMALANGA
B203: NC451 Joe Morolong | C203: NC NORTHERN CAPE
B204: NC452 Ga-Segonyana | C204: NC NORTHERN CAPE
B205: NC453 Gamagara | C205: NC NORTHERN CAPE
B206: DC45 John Taolo Gaetsewe | C206: NC NORTHERN CAPE
B207: NC061 Richtersveld | C207: NC NORTHERN CAPE
B208: NC062 Nama Khoi | C208: NC NORTHERN CAPE
B209: NC064 Kamiesberg | C209: NC NORTHERN CAPE
B210: NC065 Hantam | C210: NC NORTHERN CAPE
B211: NC066 Karoo Hoogland | C211: NC NORTHERN CAPE
B212: NC067 Khai-Ma | C212: NC NORTHERN CAPE
B213: DC6 Namakwa | C213: NC NORTHERN CAPE
... 73 more rows

Sheet Org structure
A1: Organisational Structure Votes | C1: Organisational Structure Sub-Votes | E1: Display Sub-Votes
A2: =B2&" - "&C2 -> Vote 01 - Executive & Council | B2: Vote 01 | C2: Executive & Council
A3: =B4&" - "&C4 -> Vote 02 - Finance And Administration | B3: 01.1 | C3: Council General | D3: =CONCATENATE(B3, " - ", C3) -> 01.1 - Council General | E3: 01.1 - Council General
A4: =B6&" - "&C6 -> Vote 03 - Community Service | B4: Vote 02 | C4: Finance And Administration
A5: =B8&" - "&C8 -> Vote 04 - Public And Safety | B5: 02.1 | C5: Municipal Manager | D5: =CONCATENATE(B5, " - ", C5) -> 02.1 - Municipal Manager | E5: 02.1 - Municipal Manager
A6: =B10&" - "&C10 -> Vote 05 - Waste Management | B6: Vote 03 | C6: Community Service
A7: =B18&" - "&C18 -> Vote 06 - Roads Services | B7: 03.1 | C7: Finance Services Administration | D7: =CONCATENATE(B7, " - ", C7) -> 03.1 - Finance Services Administration | E7: 03.1 - Finance Services Administration
A8: =B33&" - "&C33 -> Vote 07 - Econominc Development And Planning | B8: Vote 04 | C8: Public And Safety
A9: =B35&" - "&C35 -> Vote 08 - | B9: 04.1 | C9: Corporate Services Administration | D9: =CONCATENATE(B9, " - ", C9) -> 04.1 - Corporate Services Administration | E9: 04.1 - Corporate Services Administration
A10: Vote 09 - | B10: Vote 05 | C10: Waste Management
A11: Vote 10 - | B11: 05.1 | C11: Technical Services Administration | D11: =CONCATENATE(B11, " - ", C11) -> 05.1 - Technical Services Administration | E11: 05.1 - Technical Services Administration
A12: Vote 11 - | B12: 05.2 | C12: Electrical Services | D12: 05.2 - Electrical Services | E12: 05.2 - Electrical Services
A13: Vote 12 - | B13: 05.3 | C13: Water Services | D13: 05.3 - Water Services | E13: 05.3 - Water Services
A14: Vote 13 - | B14: 05.4 | C14: Sanitation Services | D14: 05.4 - Sanitation Services | E14: 05.4 - Sanitation Services
A15: Vote 14 - | B15: 05.5 | C15: Roads Services | D15: 05.5 - Roads Services | E15: 05.5 - Roads Services
A16: Vote 15 - Other | B16: 05.6 | C16: Storm Water Services | D16: 05.6 - Storm Water Services | E16: 05.6 - Storm Water Services
B17: 05.7 | C17: Water Reporting Function | D17: 05.7 - Water Reporting Function | E17: 05.7 - Water Reporting Function
B18: Vote 06 | C18: Roads Services
B19: 06.1 | C19: Community Services Administration | D19: =CONCATENATE(B19, " - ", C19) -> 06.1 - Community Services Administration | E19: 06.1 - Community Services Administration
B20: 06.2 | C20: Traffic Services | D20: 06.2 - Traffic Services | E20: 06.2 - Traffic Services
B21: 06.3 | C21: Traffic Services | D21: 06.3 - Traffic Services | E21: 06.3 - Traffic Services
B22: 06.4 | C22: Libraries | D22: 06.4 - Libraries | E22: 06.4 - Libraries
B23: 06.5 | C23: Sport | D23: 06.5 - Sport | E23: 06.5 - Sport
B24: 06.6 | C24: Cemetery | D24: 06.6 - Cemetery | E24: 06.6 - Cemetery
B25: 06.7 | C25: Refuse | D25: 06.7 - Refuse | E25: 06.7 - Refuse
B26: 06.8 | C26: Pound Services | D26: 06.8 - Pound Services | E26: 06.8 - Pound Services
B27: 06.9 | C27: Pound Services | D27: 06.9 - Pound Services | E27: 06.9 - Pound Services
B28: 06.10 | C28: Satellite Offices | D28: 06.10 - Satellite Offices | E28: 06.10 - Satellite Offices
B29: 06.11 | C29: Alldays Offices | D29: 06.11 - Alldays Offices | E29: 06.11 - Alldays Offices
B30: 06.12 | C30: Eldorado Offices | D30: 06.12 - Eldorado Offices | E30: 06.12 - Eldorado Offices
B31: 06.13 | C31: Tolwe Offices | D31: 06.13 - Tolwe Offices | E31: 06.13 - Tolwe Offices
B32: 06.14 | C32: Senwabarwarna Offices | D32: 06.14 - Senwabarwarna Offices | E32: 06.14 - Senwabarwarna Offices
B33: Vote 07 | C33: Econominc Development And Planning
B34: 07.1 | C34: Economic Development And Planning | D34: =CONCATENATE(B34, " - ", C34) -> 07.1 - Economic Development And Planning | E34: 07.1 - Economic Development And Planning
B35: Vote 08
B36: Vote 09
B37: Vote 10
B38: Vote 11
B39: Vote 12
B40: Vote 13
B41: Vote 14
B42: Vote 15 | C42: Other

Sheet Contacts
A1: =muni&" - "&" Contact Information" -> LIM351 Blouberg - Contact Information
A3: A. GENERAL INFORMATION
A4: Municipality | B4: =muni -> LIM351 Blouberg | C4: Set name on 'Instructions' sheet
A6: Grade | B6: 3 | C6: 1 Grade in terms of the Remuneration of Public Office Bearers Act.
A8: Province | B8: =IF(B4>" ",VLOOKUP(B4,'Lookup and lists'!B28:C311,2, FALSE)," ") -> LIM LIMPOPO
A10: Web Address | B10: www.blouberg.gov.za
A12: e-mail Address | B12: blou@blouberg.gov.za
A14: B. CONTACT INFORMATION
A15: Postal address:
A16: P.O. Box | B16: Box 1593
A17: City / Town | B17: Senwabarwana
A18: Postal Code | B18: 0790
A20: Street address
A21: Building | B21: 2nd Building
A22: Street No. & Name | B22: Senwabarwana/Dendron Road
A23: City / Town | B23: Senwabarwana
A24: Postal Code | B24: 0790
A26: General Contacts
A27: Telephone number | B27: 015 505 7100
A28: Fax number | B28: 015 505 0296
A30: C. POLITICAL LEADERSHIP
A31: Speaker: | C31: Secretary/PA to the Speaker:
A32: ID Number | C32: ID Number
A33: Title | B33: Mrs | C33: Title | D33: Mrs
A34: Name | B34: THAMAGA MN | C34: Name | D34: MALATJI PJ
A35: Telephone number | B35: 015 505 7117 | C35: Telephone number | D35: 015 505 7189
A36: Cell number | B36: 071 234 4190 | C36: Cell number | D36: 076 654 3873
A37: Fax number | B37: 015 505 0296 | C37: Fax number | D37: 105 505 0296
A38: E-mail address | B38: mariankholane@gmail.com | C38: E-mail address | D38: Malatjip@blouberg.gov.za
A40: Mayor/Executive Mayor: | C40: Secretary/PA to the Mayor/Executive Mayor:
A41: ID Number | C41: ID Number
A42: Title | B42: Mr | C42: Title | D42: Ms
A43: Name | B43: PHEEDI S | C43: Name | D43: MATLAPU M
A44: Telephone number | B44: 015 505 7191 | C44: Telephone number | D44: 015 505 7191
A45: Cell number | B45: 082 515 7596 | C45: Cell number | D45: 082 515 7596
A46: Fax number | B46: 015 505 0296 | C46: Fax number | D46: 015 505 0296
A47: E-mail address | B47: Masekapheedi3@gmail.com | C47: E-mail address | D47: matlapum@blouberg.gov.za
A49: Deputy Mayor/Executive Mayor: | C49: Secretary/PA to the Deputy Mayor/Executive Mayor:
A50: ID Number | C50: ID Number
A51: Title | C51: Title
A52: Name | C52: Name
A53: Telephone number | C53: Telephone number
A54: Cell number | C54: Cell number
A55: Fax number | C55: Fax number
A56: E-mail address | C56: E-mail address
A58: D. MANAGEMENT LEADERSHIP
A59: Municipal Manager: | C59: Secretary/PA to the Municipal Manager:
A60: ID Number | C60: ID Number | D60: 8402021376082
A61: Title | B61: Mr | C61: Title | D61: Mrs
A62: Name | B62: MACHABA M.J | C62: Name | D62: RAMOLOMO MS
A63: Telephone number | B63: 015 505 7163 | C63: Telephone number | D63: 015 505 7100/21
A64: Cell number | B64: 0825234435 | C64: Cell number | D64: 0786875828
A65: Fax number | B65: 015 505 0296 | C65: Fax number | D65: 015 505 0296
A66: E-mail address | B66: 825234435 | C66: E-mail address | D66: RamolomoM@blouberg.gov.za
A68: Chief Financial Officer | C68: Secretary/PA to the Chief Financial Officer
A69: ID Number | C69: ID Number
A70: Title | B70: Mr | C70: Title | D70: Mr
A71: Name | B71: Mabote N.J | C71: Name | D71: MAHARE M
A72: Telephone number | B72: 015 505 7147 | C72: Telephone number | D72: 015 505 7151
A73: Cell number | B73: 082 818 0008 | C73: Cell number
A74: Fax number | B74: 015 505 0296 | C74: Fax number | D74: 015 505 0296
A75: E-mail address | B75: Mabotej@blouberg.gov.za | C75: E-mail address | D75: Maharet@blouberg.gov.za
A77: Official responsible for submitting financial information | C77: Official responsible for submitting financial information
A78: ID Number | B78: 8107260490086 | C78: ID Number
A79: Title | B79: Ms | C79: Title
A80: Name | B80: Riba M | C80: Name
A81: Telephone number | B81: 015 505 7156 | C81: Telephone number
A82: Cell number | B82: 083 561 9472 | C82: Cell number
A83: Fax number | B83: 015 505 0296 | C83: Fax number
A84: E-mail address | B84: Ribam@blouberg.gov.za | C84: E-mail address
A85: Official responsible for submitting financial information | C85: Official responsible for submitting financial information
A86: ID Number | C86: ID Number
A87: Title | C87: Title
A88: Name | C88: Name
A89: Telephone number | C89: Telephone number
A90: Cell number | C90: Cell number
A91: Fax number | C91: Fax number
A92: E-mail address | C92: E-mail address
A93: Official responsible for submitting financial information | C93: Official responsible for submitting financial information
A94: ID Number | C94: ID Number
A95: Title | C95: Title
A96: Name | C96: Name
A97: Telephone number | C97: Telephone number
A98: Cell number | C98: Cell number
A99: Fax number | C99: Fax number
A100: E-mail address | C100: E-mail address
A101: Official responsible for submitting financial information | C101: Official responsible for submitting financial information
A102: ID Number | C102: ID Number
A103: Title | C103: Title
A104: Name | C104: Name
A105: Telephone number | C105: Telephone number
A106: Cell number | C106: Cell number
A107: Fax number | C107: Fax number
A108: E-mail address | C108: E-mail address
A109: Official responsible for submitting financial information | C109: Official responsible for submitting financial information
A110: ID Number | C110: ID Number
A111: Title | C111: Title
A112: Name | C112: Name
A113: Telephone number | C113: Telephone number
A114: Cell number | C114: Cell number
A115: Fax number | C115: Fax number
A116: E-mail address | C116: E-mail address
A117: Official responsible for submitting financial information | C117: Official responsible for submitting financial information
A118: ID Number | C118: ID Number
A119: Title | C119: Title
A120: Name | C120: Name
A121: Telephone number | C121: Telephone number
A122: Cell number | C122: Cell number
A123: Fax number | C123: Fax number
A124: E-mail address | C124: E-mail address
A125: Official responsible for submitting financial information | C125: Official responsible for submitting financial information
A126: ID Number | C126: ID Number
A127: Title | C127: Title
A128: Name | C128: Name
A129: Telephone number | C129: Telephone number
A130: Cell number | C130: Cell number
A131: Fax number | C131: Fax number
A132: E-mail address | C132: E-mail address
A133: Official responsible for submitting financial information
A134: ID Number
A135: Title
A136: Name
A137: Telephone number
A138: Cell number
A139: Fax number
A140: E-mail address

Sheet C1-Sum
A1: =muni& " - "&s71sum& " - "&date -> LIM351 Blouberg - Table C1 Monthly Budget Statement Summary - M11 May
A2: =desc -> Description | B2: =Head1 -> 2018/19 | C2: =Head2 -> Budget Year 2019/20
B3: =Head5 -> Audited Outcome | C3: =Head6 -> Original Budget | D3: =Head7 -> Adjusted Budget | E3: =Head38 -> Monthly actual | F3: =Head39 -> YearTD actual | G3: =Head40 -> YearTD budget | H3: =Head41 -> YTD variance | I3: =Head41 -> YTD variance | J3: =Head8 -> Full Year Forecast
A4: R thousands | I4: %
A5: Financial Performance
A6: Property rates | B6: =SUM('C4-FinPerf RE'!C6:C6) -> 24056426.6 | C6: =SUM('C4-FinPerf RE'!D6:D6) -> 28090001 | D6: =SUM('C4-FinPerf RE'!E6:E6) -> 28090001 | E6: =SUM('C4-FinPerf RE'!F6:F6) -> 316159.98 | F6: =SUM('C4-FinPerf RE'!G6:G6) -> 25251250.8 | G6: =SUM('C4-FinPerf RE'!H6:H6) -> 25749141 | H6: =F6-G6 -> -497890.2 | I6: =IF(H6=0,"",H6/G6) -> -0.01933618679 | J6: =SUM('C4-FinPerf RE'!K6:K6) -> 28090001
A7: Service charges | B7: =SUM('C4-FinPerf RE'!C7:C10) -> 22984084.94 | C7: =SUM('C4-FinPerf RE'!D7:D10) -> 32836400 | D7: =SUM('C4-FinPerf RE'!E7:E10) -> 33086400 | E7: =SUM('C4-FinPerf RE'!F7:F10) -> 2757256.83 | F7: =SUM('C4-FinPerf RE'!G7:G10) -> 31065064.58 | G7: =SUM('C4-FinPerf RE'!H7:H10) -> 30300004 | H7: =F7-G7 -> 765060.58 | I7: =IF(H7=0,"",H7/G7) -> 0.02524952076 | J7: =SUM('C4-FinPerf RE'!K7:K10) -> 33086400
A8: Investment revenue | B8: ='C4-FinPerf RE'!C13 -> 1307930.57 | C8: ='C4-FinPerf RE'!D13 -> 1700000 | D8: ='C4-FinPerf RE'!E13 -> 1700000 | E8: ='C4-FinPerf RE'!F13 -> 30961.57 | F8: ='C4-FinPerf RE'!G13 -> 836943.4 | G8: ='C4-FinPerf RE'!H13 -> 1558326 | H8: =F8-G8 -> -721382.6 | I8: =IF(H8=0,"",H8/G8) -> -0.462921494 | J8: ='C4-FinPerf RE'!K13 -> 1700000
A9: Transfers and subsidies | B9: ='C4-FinPerf RE'!C19 -> 182423931.8 | C9: ='C4-FinPerf RE'!D19 -> 210915000 | D9: ='C4-FinPerf RE'!E19 -> 193273000 | E9: ='C4-FinPerf RE'!F19 -> -2150000 | F9: ='C4-FinPerf RE'!G19 -> 191084478.3 | G9: ='C4-FinPerf RE'!H19 -> 178817739 | H9: =F9-G9 -> 12266739.26 | I9: =IF(H9=0,"",H9/G9) -> 0.06859911846 | J9: ='C4-FinPerf RE'!K19 -> 193273000
A10: Other own revenue | B10: ='C4-FinPerf RE'!C12+'C4-FinPerf RE'!C14+'C4-FinPerf RE'!C15+'C4-FinPerf RE'!C16+'C4-FinPerf RE'!C17+'C4-FinPerf RE'!C18+'C4-FinPerf RE'!C20+'C4-FinPerf RE'!C21 -> 8473424.91 | C10: ='C4-FinPerf RE'!D12+'C4-FinPerf RE'!D14+'C4-FinPerf RE'!D15+'C4-FinPerf RE'!D16+'C4-FinPerf RE'!D17+'C4-FinPerf RE'!D18+'C4-FinPerf RE'!D20+'C4-FinPerf RE'!D21 -> 15226035 | D10: ='C4-FinPerf RE'!E12+'C4-FinPerf RE'!E14+'C4-FinPerf RE'!E15+'C4-FinPerf RE'!E16+'C4-FinPerf RE'!E17+'C4-FinPerf RE'!E18+'C4-FinPerf RE'!E20+'C4-FinPerf RE'!E21 -> 11926035 | E10: ='C4-FinPerf RE'!F12+'C4-FinPerf RE'!F14+'C4-FinPerf RE'!F15+'C4-FinPerf RE'!F16+'C4-FinPerf RE'!F17+'C4-FinPerf RE'!F18+'C4-FinPerf RE'!F20+'C4-FinPerf RE'!F21 -> -1388652.95 | F10: ='C4-FinPerf RE'!G12+'C4-FinPerf RE'!G14+'C4-FinPerf RE'!G15+'C4-FinPerf RE'!G16+'C4-FinPerf RE'!G17+'C4-FinPerf RE'!G18+'C4-FinPerf RE'!G20+'C4-FinPerf RE'!G21 -> 5946966.14 | G10: ='C4-FinPerf RE'!H12+'C4-FinPerf RE'!H14+'C4-FinPerf RE'!H15+'C4-FinPerf RE'!H16+'C4-FinPerf RE'!H17+'C4-FinPerf RE'!H18+'C4-FinPerf RE'!H20+'C4-FinPerf RE'!H21 -> 12217097 | H10: =F10-G10 -> -6270130.86 | I10: =IF(H10=0,"",H10/G10) -> -0.513225921 | J10: ='C4-FinPerf RE'!K12+'C4-FinPerf RE'!K14+'C4-FinPerf RE'!K15+'C4-FinPerf RE'!K16+'C4-FinPerf RE'!K17+'C4-FinPerf RE'!K18+'C4-FinPerf RE'!K20+'C4-FinPerf RE'!K21 -> 11926035
A11: Total Revenue (excluding capital transfers and contributions) | B11: =SUM(B6:B10) -> 239245798.8 | C11: 288767436 | D11: 268075436 | E11: -434274.57 | F11: 254184703.2 | G11: 248642307 | H11: =F11-G11 -> 5542396.18 | I11: =IF(H11=0,"",H11/G11) -> 0.0222906401 | J11: 268075436
A12: Employee costs | B12: ='C4-FinPerf RE'!C25 -> 103612611.1 | C12: ='C4-FinPerf RE'!D25 -> 123855157 | D12: ='C4-FinPerf RE'!E25 -> 120627836 | E12: ='C4-FinPerf RE'!F25 -> 8826939.72 | F12: ='C4-FinPerf RE'!G25 -> 98876723.37 | G12: ='C4-FinPerf RE'!H25 -> 110952839.2 | H12: -12076115.83 | I12: -0.1088400794 | J12: ='C4-FinPerf RE'!K25 -> 120627836
A13: Remuneration of Councillors | B13: ='C4-FinPerf RE'!C26 -> 16186992.01 | C13: ='C4-FinPerf RE'!D26 -> 15433577 | D13: ='C4-FinPerf RE'!E26 -> 17090931 | E13: ='C4-FinPerf RE'!F26 -> 1405597.33 | F13: ='C4-FinPerf RE'!G26 -> 15101971.37 | G13: ='C4-FinPerf RE'!H26 -> 15473423.2 | H13: -371451.83 | I13: -0.0240057953 | J13: ='C4-FinPerf RE'!K26 -> 17090931
A14: Depreciation & asset impairment | B14: ='C4-FinPerf RE'!C28 -> 35256654.26 | C14: ='C4-FinPerf RE'!D28 -> 41673731 | D14: ='C4-FinPerf RE'!E28 -> 41117719 | E14: ='C4-FinPerf RE'!F28 -> 0 | F14: ='C4-FinPerf RE'!G28 -> 0 | G14: ='C4-FinPerf RE'!H28 -> 37756144.4 | H14: -37756144.4 | I14: -1 | J14: ='C4-FinPerf RE'!K28 -> 41117719
A15: Finance charges | B15: ='C4-FinPerf RE'!C29 -> 0 | C15: ='C4-FinPerf RE'!D29 -> 0 | D15: ='C4-FinPerf RE'!E29 -> 0 | E15: ='C4-FinPerf RE'!F29 -> 0 | F15: ='C4-FinPerf RE'!G29 -> 0 | G15: ='C4-FinPerf RE'!H29 -> 0 | H15: 0 | J15: ='C4-FinPerf RE'!K29 -> 0
A16: Materials and bulk purchases | B16: =SUM('C4-FinPerf RE'!C30:C31) -> 31570319.46 | C16: =SUM('C4-FinPerf RE'!D30:D31) -> 33615000 | D16: =SUM('C4-FinPerf RE'!E30:E31) -> 36695450 | E16: =SUM('C4-FinPerf RE'!F30:F31) -> 305823.96 | F16: =SUM('C4-FinPerf RE'!G30:G31) -> 30555422.83 | G16: =SUM('C4-FinPerf RE'!H30:H31) -> 33586871 | H16: -3031448.17 | I16: -0.09025693909 | J16: =SUM('C4-FinPerf RE'!K30:K31) -> 36695450
A17: Transfers and subsidies | B17: ='C4-FinPerf RE'!C33 -> 73220 | C17: ='C4-FinPerf RE'!D33 -> 0 | D17: ='C4-FinPerf RE'!E33 -> 0 | E17: ='C4-FinPerf RE'!F33 -> 0 | F17: ='C4-FinPerf RE'!G33 -> 0 | G17: ='C4-FinPerf RE'!H33 -> 0 | H17: 0 | J17: ='C4-FinPerf RE'!K33 -> 0
A18: Other expenditure | B18: ='C4-FinPerf RE'!C36-SUM('C1-Sum'!B12:B17) -> 88934362.46 | C18: ='C4-FinPerf RE'!D36-SUM('C1-Sum'!C12:C17) -> 97835777 | D18: ='C4-FinPerf RE'!E36-SUM('C1-Sum'!D12:D17) -> 99064830 | E18: ='C4-FinPerf RE'!F36-SUM('C1-Sum'!E12:E17) -> 5183803.75 | F18: ='C4-FinPerf RE'!G36-SUM('C1-Sum'!F12:F17) -> 67364333.21 | G18: ='C4-FinPerf RE'!H36-SUM('C1-Sum'!G12:G17) -> 90034438.93 | H18: -22670105.72 | I18: -0.2517937135 | J18: ='C4-FinPerf RE'!K36-SUM('C1-Sum'!J12:J17) -> 99064830
A19: Total Expenditure | B19: =SUM(B12:B18) -> 275634159.3 | C19: 312413242 | D19: 314596766 | E19: 15722164.76 | F19: 211898450.8 | G19: 287803716.7 | H19: -75905265.95 | I19: -0.2637397001 | J19: =SUM(J12:J18) -> 314596766
A20: Surplus/(Deficit) | B20: =B11-B19 -> -36388360.47 | C20: -23645806 | D20: -46521330 | E20: -16156439.33 | F20: 42286252.4 | G20: -39161409.73 | H20: 81447662.13 | I20: -2.079793927 | J20: =J11-J19 -> -46521330
A21: ='C4-FinPerf RE'!A39 -> Transfers and subsidies - capital (monetary allocations) (National / Provincial and District) | B21: ='C4-FinPerf RE'!C39 -> 51875091.49 | C21: ='C4-FinPerf RE'!D39 -> 44350000 | D21: ='C4-FinPerf RE'!E39 -> 62078170 | E21: ='C4-FinPerf RE'!F39 -> 2000000 | F21: ='C4-FinPerf RE'!G39 -> 61350000 | G21: ='C4-FinPerf RE'!H39 -> 54018248 | H21: 7331752 | I21: 0.1357273194 | J21: ='C4-FinPerf RE'!K39 -> 62078170
A22: ='C4-FinPerf RE'!A40&" & "&'C4-FinPerf RE'!A41 -> Transfers and subsidies - capital (monetary allocations) (National / Provincial Departmental Agencies, Households, Non-profit Institutions, Private Enterprises, Public Corporatons, Higher Educational Institutions) & Transfers and subsidies - capital (in-kind - all) | B22: =SUM('C4-FinPerf RE'!C40:C41) -> 0 | C22: =SUM('C4-FinPerf RE'!D40:D41) -> 0 | D22: =SUM('C4-FinPerf RE'!E40:E41) -> 0 | E22: =SUM('C4-FinPerf RE'!F40:F41) -> 0 | F22: =SUM('C4-FinPerf RE'!G40:G41) -> 0 | G22: =SUM('C4-FinPerf RE'!H40:H41) -> 0 | H22: 0 | J22: =SUM('C4-FinPerf RE'!K40:K41) -> 0
A23: Surplus/(Deficit) after capital transfers & contributions | B23: =B20+B21+B22 -> 15486731.02 | C23: 20704194 | D23: 15556840 | E23: -14156439.33 | F23: 103636252.4 | G23: 14856838.27 | H23: 88779414.13 | I23: 5.975659997 | J23: =J20+J21+J22 -> 15556840
A24: Share of surplus/ (deficit) of associate | B24: ='C4-FinPerf RE'!C47 -> 0 | C24: ='C4-FinPerf RE'!D47 -> 0 | D24: ='C4-FinPerf RE'!E47 -> 0 | E24: ='C4-FinPerf RE'!F47 -> 0 | F24: ='C4-FinPerf RE'!G47 -> 0 | G24: ='C4-FinPerf RE'!H47 -> 0 | H24: 0 | J24: ='C4-FinPerf RE'!K47 -> 0
A25: Surplus/ (Deficit) for the year | B25: =B23+B24 -> 15486731.02 | C25: 20704194 | D25: 15556840 | E25: -14156439.33 | F25: 103636252.4 | G25: 14856838.27 | H25: 88779414.13 | I25: 5.975659997 | J25: =J23+J24 -> 15556840
A27: Capital expenditure & funds sources
A28: Capital expenditure | B28: ='C5-Capex'!C40 -> 2241908.92 | C28: ='C5-Capex'!D40 -> 69532500 | D28: ='C5-Capex'!E40 -> 64385147 | E28: ='C5-Capex'!F40 -> 3741612.3 | F28: ='C5-Capex'!G40 -> 38169047.07 | G28: ='C5-Capex'!H40 -> 59620369.6 | H28: =F28-G28 -> -21451322.53 | I28: =IF(H28=0,"",H28/G28) -> -0.35979855 | J28: ='C5-Capex'!K40 -> 64385147
A29: Capital transfers recognised | B29: ='C5-Capex'!C70 -> 0 | C29: ='C5-Capex'!D70 -> 63482500 | D29: ='C5-Capex'!E70 -> 60130671 | E29: ='C5-Capex'!F70 -> 3611735.37 | F29: ='C5-Capex'!G70 -> 36250820.48 | G29: ='C5-Capex'!H70 -> 55510885.8 | H29: -19260065.32 | I29: -0.346960151 | J29: ='C5-Capex'!K70 -> 60130671
A31: Borrowing | B31: ='C5-Capex'!C72 -> 0 | C31: ='C5-Capex'!D72 -> 200000 | D31: ='C5-Capex'!E72 -> 78634 | E31: ='C5-Capex'!F72 -> 0 | F31: ='C5-Capex'!G72 -> 0 | G31: ='C5-Capex'!H72 -> 86244.2 | H31: -86244.2 | I31: -1 | J31: ='C5-Capex'!K72 -> 78634
A32: Internally generated funds | B32: ='C5-Capex'!C73 -> 957161.79 | C32: ='C5-Capex'!D73 -> 5850000 | D32: ='C5-Capex'!E73 -> 4175842 | E32: ='C5-Capex'!F73 -> 129876.93 | F32: ='C5-Capex'!G73 -> 1918226.59 | G32: ='C5-Capex'!H73 -> 4023239.6 | H32: -2105013.01 | I32: -0.5232134348 | J32: ='C5-Capex'!K73 -> 4175842
A33: Total sources of capital funds | B33: =+B29+B31+B32 -> 957161.79 | C33: 69532500 | D33: 64385147 | E33: 3741612.3 | F33: 38169047.07 | G33: 59620369.6 | H33: -21451322.53 | I33: -0.35979855 | J33: =+J29+J31+J32 -> 64385147
A35: Financial position
A36: Total current assets | B36: ='C6-FinPos'!C13 -> 128829914.6 | C36: ='C6-FinPos'!D13 -> 71157205 | D36: ='C6-FinPos'!E13 -> 146054984 | F36: ='C6-FinPos'!F13 -> 182710026.9 | J36: ='C6-FinPos'!G13 -> 146054984
A37: Total non current assets | B37: ='C6-FinPos'!C25 -> 919636612.3 | C37: ='C6-FinPos'!D25 -> 328377852 | D37: ='C6-FinPos'!E25 -> 942348030 | F37: ='C6-FinPos'!F25 -> 957805659.3 | J37: ='C6-FinPos'!G25 -> 942348030
A38: Total current liabilities | B38: ='C6-FinPos'!C35 -> 60183821.31 | C38: ='C6-FinPos'!D35 -> -3114879 | D38: ='C6-FinPos'!E35 -> 61930222 | F38: ='C6-FinPos'!F35 -> 48605578.27 | J38: ='C6-FinPos'!G35 -> 61930222
A39: Total non current liabilities | B39: ='C6-FinPos'!C40 -> 17576324.92 | C39: ='C6-FinPos'!D40 -> 0 | D39: ='C6-FinPos'!E40 -> 19276325 | F39: ='C6-FinPos'!F40 -> 17576324.92 | J39: ='C6-FinPos'!G40 -> 19276325
A40: Community wealth/Equity | B40: ='C6-FinPos'!C48 -> 1025693077 | C40: ='C6-FinPos'!D48 -> 366947379 | D40: ='C6-FinPos'!E48 -> 976641264 | F40: ='C6-FinPos'!F48 -> 1058285247 | J40: ='C6-FinPos'!G48 -> 976641264
A42: Cash flows
A43: Net cash from (used) operating | B43: ='C7-CFlow'!C18 -> 28114763.77 | C43: ='C7-CFlow'!D18 -> 63208770.84 | D43: ='C7-CFlow'!E18 -> 1888281413 | E43: ='C7-CFlow'!F18 -> 17195935.36 | F43: ='C7-CFlow'!G18 -> 787348794.2 | G43: ='C7-CFlow'!H18 -> 276295257.5 | H43: =G43-F43 -> -511053536.7 | I43: =IF(H43=0,"",H43/G43) -> -1.849664527 | J43: ='C7-CFlow'!K18 -> 265148640
A44: Net cash from (used) investing | B44: ='C7-CFlow'!C28 -> 0 | C44: ='C7-CFlow'!D28 -> 0 | D44: ='C7-CFlow'!E28 -> 0 | E44: ='C7-CFlow'!F28 -> 0 | F44: ='C7-CFlow'!G28 -> 0 | G44: ='C7-CFlow'!H28 -> 0 | H44: =G44-F44 -> 0 | I44: =IF(H44=0,"",H44/G44) ->  | J44: ='C7-CFlow'!K28 -> 0
A45: Net cash from (used) financing | B45: ='C7-CFlow'!C37 -> 0 | C45: ='C7-CFlow'!D37 -> -8680.44 | D45: ='C7-CFlow'!E37 -> 0 | E45: ='C7-CFlow'!F37 -> 0 | F45: ='C7-CFlow'!G37 -> 8680.44 | G45: ='C7-CFlow'!H37 -> 0 | H45: =G45-F45 -> -8680.44 | I45: =IF(H45=0,"",H45/G45) ->  | J45: ='C7-CFlow'!K37 -> 0
A46: Cash/cash equivalents at the month/year end | B46: ='C7-CFlow'!C41 -> 46787066.24 | C46: ='C7-CFlow'!D41 -> 117889123.4 | D46: ='C7-CFlow'!E41 -> 1900900404 | E46: ='C7-CFlow'!F41 -> 0 | F46: ='C7-CFlow'!G41 -> 798010051.2 | G46: ='C7-CFlow'!H41 -> 276295257.5 | H46: =G46-F46 -> -521714793.8 | I46: =IF(H46=0,"",H46/G46) -> -1.888250991 | J46: ='C7-CFlow'!K41 -> 265148640
A48: Debtors & creditors analysis | B48: ='SC3'!C3 -> 0-30 Days | C48: ='SC3'!D3 -> 31-60 Days | D48: ='SC3'!E3 -> 61-90 Days | E48: ='SC3'!F3 -> 91-120 Days | F48: ='SC3'!G3 -> 121-150 Dys | G48: ='SC3'!H3 -> 151-180 Dys | H48: ='SC3'!I3 -> 181 Dys-1 Yr | I48: ='SC3'!J3 -> Over 1Yr | J48: Total
A49: =LEFT('SC3'!A4,20) -> Debtors Age Analysis
A50: ='SC3'!A14 -> Total By Income Source | B50: ='SC3'!C14 -> 3865962.12 | C50: ='SC3'!D14 -> 1173592.84 | D50: ='SC3'!E14 -> 1955635.6 | E50: ='SC3'!F14 -> 3338199.88 | F50: ='SC3'!G14 -> 1084193.96 | G50: ='SC3'!H14 -> 1104067.45 | H50: ='SC3'!I14 -> 24970712.29 | I50: ='SC3'!J14 -> 111956073.3 | J50: ='SC3'!K14 -> 149448437.5
A51: =LEFT('SC4'!A5,22) -> Creditors Age Analysis
A52: Total Creditors | B52: ='SC4'!C15 -> 0 | C52: ='SC4'!D15 -> 0 | D52: ='SC4'!E15 -> 0 | E52: ='SC4'!F15 -> 0 | F52: ='SC4'!G15 -> 0 | G52: ='SC4'!H15 -> 0 | H52: ='SC4'!I15 -> 0 | I52: ='SC4'!J15 -> 0 | J52: ='SC4'!K15 -> 0

Sheet C2-FinPerf SC
A1: =muni& " - "&S71A& " - "&date -> LIM351 Blouberg - Table C2 Monthly Budget Statement - Financial Performance (functional classification) - M11 May
A2: =desc -> Description | B2: =head27 -> Ref | C2: =Head1 -> 2018/19 | D2: =Head2 -> Budget Year 2019/20
C3: =Head5 -> Audited Outcome | D3: =Head6 -> Original Budget | E3: =Head7 -> Adjusted Budget | F3: =Head38 -> Monthly actual | G3: =Head39 -> YearTD actual | H3: =Head40 -> YearTD budget | I3: =Head41 -> YTD variance | J3: =Head41 -> YTD variance | K3: =Head8 -> Full Year Forecast
A4: R thousands | B4: 1 | J4: %
A5: Revenue - Functional
A6: Governance and administration | C6: =SUM(C7:C9) -> 206339616.3 | D6: 220450821 | E6: 221887735 | F6: 480218 | G6: 217328391.4 | H6: 203121987.2 | I6: =G6-H6 -> 14206404.25 | J6: =IF(I6=0,"",I6/H6) -> 0.06994025829 | K6: =SUM(K7:K9) -> 221887735
A7: Executive and council | C7: ='C2C'!C7 -> 6783826.47 | D7: ='C2C'!D7 -> 0 | E7: ='C2C'!E7 -> 0 | F7: ='C2C'!F7 -> 0 | G7: ='C2C'!G7 -> 0 | H7: ='C2C'!H7 -> 0 | I7: 0 | J7: =IF(I7=0,"",I7/H7) ->  | K7: ='C2C'!K7 -> 0
A8: Finance and administration | C8: ='C2C'!C10 -> 199555789.9 | D8: ='C2C'!D10 -> 220450821 | E8: ='C2C'!E10 -> 221887735 | F8: ='C2C'!F10 -> 480218 | G8: ='C2C'!G10 -> 217328391.4 | H8: ='C2C'!H10 -> 203121987.2 | I8: 14206404.25 | J8: 0.06994025829 | K8: ='C2C'!K10 -> 221887735
A9: Internal audit | C9: ='C2C'!C24 -> 0 | D9: ='C2C'!D24 -> 0 | E9: ='C2C'!E24 -> 0 | F9: ='C2C'!F24 -> 0 | G9: ='C2C'!G24 -> 0 | H9: ='C2C'!H24 -> 0 | I9: 0 | K9: ='C2C'!K24 -> 0
A10: Community and public safety | C10: =SUM(C11:C15) -> 4690691.95 | D10: 7350000 | E10: 6211086 | F10: -87612 | G10: 2145290.82 | H10: 5826346.8 | I10: -3681055.98 | J10: -0.6317948633 | K10: =SUM(K11:K15) -> 6211086
A11: Community and social services | C11: ='C2C'!C27 -> 0 | D11: ='C2C'!D27 -> 0 | E11: ='C2C'!E27 -> 0 | F11: ='C2C'!F27 -> 0 | G11: ='C2C'!G27 -> 0 | H11: ='C2C'!H27 -> 0 | I11: 0 | K11: ='C2C'!K27 -> 0
A12: Sport and recreation | C12: ='C2C'!C49 -> 0 | D12: ='C2C'!D49 -> 0 | E12: ='C2C'!E49 -> 0 | F12: ='C2C'!F49 -> 0 | G12: ='C2C'!G49 -> 0 | H12: ='C2C'!H49 -> 0 | I12: 0 | K12: ='C2C'!K49 -> 0
A13: Public safety | C13: ='C2C'!C55 -> 4690691.95 | D13: ='C2C'!D55 -> 7350000 | E13: ='C2C'!E55 -> 6211086 | F13: ='C2C'!F55 -> -87612 | G13: ='C2C'!G55 -> 2145290.82 | H13: ='C2C'!H55 -> 5826346.8 | I13: -3681055.98 | J13: -0.6317948633 | K13: ='C2C'!K55 -> 6211086
A14: Housing | C14: ='C2C'!C64 -> 0 | D14: ='C2C'!D64 -> 0 | E14: ='C2C'!E64 -> 0 | F14: ='C2C'!F64 -> 0 | G14: ='C2C'!G64 -> 0 | H14: ='C2C'!H64 -> 0 | I14: =G14-H14 -> 0 | J14: =IF(I14=0,"",I14/H14) ->  | K14: ='C2C'!K64 -> 0
A15: Health | C15: ='C2C'!C67 -> 0 | D15: ='C2C'!D67 -> 0 | E15: ='C2C'!E67 -> 0 | F15: ='C2C'!F67 -> 0 | G15: ='C2C'!G67 -> 0 | H15: ='C2C'!H67 -> 0 | I15: 0 | K15: ='C2C'!K67 -> 0
A16: Economic and environmental services | C16: =SUM(C17:C19) -> 44149887.75 | D16: 2362872 | E16: 2372872 | F16: 2594.78 | G16: 542144.72 | H16: 2173933 | I16: -1631788.28 | J16: -0.7506157181 | K16: =SUM(K17:K19) -> 2372872
A17: Planning and development | C17: ='C2C'!C76 -> 658887.75 | D17: ='C2C'!D76 -> 2362872 | E17: ='C2C'!E76 -> 2372872 | F17: ='C2C'!F76 -> 2594.78 | G17: ='C2C'!G76 -> 542144.72 | H17: ='C2C'!H76 -> 2173933 | I17: -1631788.28 | J17: -0.7506157181 | K17: ='C2C'!K76 -> 2372872
A18: Road transport | C18: ='C2C'!C87 -> 43491000 | D18: ='C2C'!D87 -> 0 | E18: ='C2C'!E87 -> 0 | F18: ='C2C'!F87 -> 0 | G18: ='C2C'!G87 -> 0 | H18: ='C2C'!H87 -> 0 | I18: 0 | K18: ='C2C'!K87 -> 0
A19: Environmental protection | C19: ='C2C'!C92 -> 0 | D19: ='C2C'!D92 -> 0 | E19: ='C2C'!E92 -> 0 | F19: ='C2C'!F92 -> 0 | G19: ='C2C'!G92 -> 0 | H19: ='C2C'!H92 -> 0 | I19: 0 | K19: ='C2C'!K92 -> 0
A20: Trading services | C20: =SUM(C21:C24) -> 35940694.28 | D20: =SUM(D21:D24) -> 102953743 | E20: 99681913 | F20: 1170524.65 | G20: 95518876.19 | H20: 91538288 | I20: 3980588.19 | J20: 0.04348549964 | K20: =SUM(K21:K24) -> 99681913
A21: Energy sources | C21: ='C2C'!C100 -> 31067556.43 | D21: ='C2C'!D100 -> 97842743 | E21: ='C2C'!E100 -> 94570913 | F21: ='C2C'!F100 -> 2332885.56 | G21: ='C2C'!G100 -> 86723681.82 | H21: ='C2C'!H100 -> 86853223 | I21: =G21-H21 -> -129541.18 | J21: -0.00149149537 | K21: ='C2C'!K100 -> 94570913
A22: Water management | C22: ='C2C'!C104 -> 0 | D22: ='C2C'!D104 -> 0 | E22: ='C2C'!E104 -> 0 | F22: ='C2C'!F104 -> 299771.75 | G22: ='C2C'!G104 -> 4403267.41 | H22: ='C2C'!H104 -> 0 | I22: =G22-H22 -> 4403267.41 | K22: ='C2C'!K104 -> 0
A23: Waste water management | C23: ='C2C'!C108 -> 0 | D23: ='C2C'!D108 -> 0 | E23: ='C2C'!E108 -> 0 | F23: ='C2C'!F108 -> 67108.05 | G23: ='C2C'!G108 -> 718632.43 | H23: ='C2C'!H108 -> 0 | I23: =G23-H23 -> 718632.43 | K23: ='C2C'!K108 -> 0
A24: Waste management | C24: ='C2C'!C113 -> 4873137.85 | D24: ='C2C'!D113 -> 5111000 | E24: ='C2C'!E113 -> 5111000 | F24: ='C2C'!F113 -> -1529240.71 | G24: ='C2C'!G113 -> 3673294.53 | H24: ='C2C'!H113 -> 4685065 | I24: =G24-H24 -> -1011770.47 | J24: -0.2159565492 | K24: ='C2C'!K113 -> 5111000
A25: Other | B25: 4 | C25: ='C2C'!C118 -> 0 | D25: ='C2C'!D118 -> 0 | E25: ='C2C'!E118 -> 0 | F25: ='C2C'!F118 -> 0 | G25: ='C2C'!G118 -> 0 | H25: ='C2C'!H118 -> 0 | I25: =G25-H25 -> 0 | K25: ='C2C'!K118 -> 0
A26: Total Revenue - Functional | B26: 2 | C26: =C6+C10+C16+C20+C25 -> 291120890.3 | D26: =D6+D10+D16+D20+D25 -> 333117436 | E26: 330153606 | F26: 1565725.43 | G26: 315534703.2 | H26: 302660555 | I26: 12874148.18 | J26: 0.0425365908 | K26: =K6+K10+K16+K20+K25 -> 330153606
A28: Expenditure - Functional
A29: Governance and administration | C29: =SUM(C30:C32) -> 150166559.5 | D29: 166623982 | E29: 167592452 | F29: 10371154.92 | G29: 123861866.5 | H29: 152729593.9 | I29: =G29-H29 -> -28867727.38 | J29: =IF(I29=0,"",I29/H29) -> -0.189012009 | K29: =SUM(K30:K32) -> 167592452
A30: Executive and council | C30: ='C2C'!C129 -> 63171190.82 | D30: ='C2C'!D129 -> 58180779 | E30: ='C2C'!E129 -> 59652338 | F30: ='C2C'!F129 -> 4478008.33 | G30: ='C2C'!G129 -> 53209732.24 | H30: ='C2C'!H129 -> 54158273.1 | I30: -948540.86 | J30: =IF(I30=0,"",I30/H30) -> -0.01751423754 | K30: ='C2C'!K129 -> 59652338
A31: Finance and administration | C31: ='C2C'!C132 -> 86995368.65 | D31: ='C2C'!D132 -> 108443203 | E31: ='C2C'!E132 -> 107940114 | F31: ='C2C'!F132 -> 5893146.59 | G31: ='C2C'!G132 -> 70652134.28 | H31: ='C2C'!H132 -> 98571320.8 | I31: -27919186.52 | J31: -0.2832384338 | K31: ='C2C'!K132 -> 107940114
A32: Internal audit | C32: ='C2C'!C146 -> 0 | D32: ='C2C'!D146 -> 0 | E32: ='C2C'!E146 -> 0 | F32: ='C2C'!F146 -> 0 | G32: ='C2C'!G146 -> 0 | H32: ='C2C'!H146 -> 0 | I32: 0 | K32: ='C2C'!K146 -> 0
A33: Community and public safety | C33: =SUM(C34:C38) -> 14889814.97 | D33: 15543805 | E33: 15283866 | F33: 1427962.94 | G33: 16432539.94 | H33: 13865279.43 | I33: 2567260.51 | J33: 0.1851575024 | K33: =SUM(K34:K38) -> 15283866
A34: Community and social services | C34: ='C2C'!C149 -> 0 | D34: ='C2C'!D149 -> 0 | E34: ='C2C'!E149 -> 0 | F34: ='C2C'!F149 -> 0 | G34: ='C2C'!G149 -> 0 | H34: ='C2C'!H149 -> 0 | I34: 0 | K34: ='C2C'!K149 -> 0
A35: Sport and recreation | C35: ='C2C'!C171 -> 0 | D35: ='C2C'!D171 -> 0 | E35: ='C2C'!E171 -> 0 | F35: ='C2C'!F171 -> 0 | G35: ='C2C'!G171 -> 0 | H35: ='C2C'!H171 -> 0 | I35: 0 | K35: ='C2C'!K171 -> 0
A36: Public safety | C36: ='C2C'!C177 -> 14889814.97 | D36: ='C2C'!D177 -> 15543805 | E36: ='C2C'!E177 -> 15283866 | F36: ='C2C'!F177 -> 1427962.94 | G36: ='C2C'!G177 -> 16432539.94 | H36: ='C2C'!H177 -> 13865279.43 | I36: 2567260.51 | J36: 0.1851575024 | K36: ='C2C'!K177 -> 15283866
A37: Housing | C37: ='C2C'!C186 -> 0 | D37: ='C2C'!D186 -> 0 | E37: ='C2C'!E186 -> 0 | F37: ='C2C'!F186 -> 0 | G37: ='C2C'!G186 -> 0 | H37: ='C2C'!H186 -> 0 | I37: 0 | K37: ='C2C'!K186 -> 0
A38: Health | C38: ='C2C'!C189 -> 0 | D38: ='C2C'!D189 -> 0 | E38: ='C2C'!E189 -> 0 | F38: ='C2C'!F189 -> 0 | G38: ='C2C'!G189 -> 0 | H38: ='C2C'!H189 -> 0 | I38: 0 | K38: ='C2C'!K189 -> 0
A39: Economic and environmental services | C39: =SUM(C40:C42) -> 31357966.14 | D39: 49836685 | E39: 48938679 | F39: 3637577.46 | G39: 20537538.9 | H39: 45177302.2 | I39: -24639763.3 | J39: -0.5454013874 | K39: =SUM(K40:K42) -> 48938679
A40: Planning and development | C40: ='C2C'!C198 -> 9851544.11 | D40: ='C2C'!D198 -> 12065788 | E40: ='C2C'!E198 -> 11401323 | F40: ='C2C'!F198 -> 742591.24 | G40: ='C2C'!G198 -> 9915749.43 | H40: ='C2C'!H198 -> 10590711 | I40: -674961.57 | J40: -0.06373146902 | K40: ='C2C'!K198 -> 11401323
A41: Road transport | C41: ='C2C'!C209 -> 21506422.03 | D41: ='C2C'!D209 -> 37770897 | E41: ='C2C'!E209 -> 37537356 | F41: ='C2C'!F209 -> 2894986.22 | G41: ='C2C'!G209 -> 10621789.47 | H41: ='C2C'!H209 -> 34586591.2 | I41: -23964801.73 | J41: -0.6928928495 | K41: ='C2C'!K209 -> 37537356
A42: Environmental protection | C42: ='C2C'!C214 -> 0 | D42: ='C2C'!D214 -> 0 | E42: ='C2C'!E214 -> 0 | F42: ='C2C'!F214 -> 0 | G42: ='C2C'!G214 -> 0 | H42: ='C2C'!H214 -> 0 | I42: 0 | K42: ='C2C'!K214 -> 0
A43: Trading services | C43: =SUM(C44:C47) -> 79219818.71 | D43: =SUM(D44:D47) -> 80408770 | E43: 82781769 | F43: 285469.44 | G43: 51066505.42 | H43: 76031541.2 | I43: -24965035.78 | J43: -0.328351042 | K43: =SUM(K44:K47) -> 82781769
A44: Energy sources | C44: ='C2C'!C222 -> 59140520.55 | D44: ='C2C'!D222 -> 57910727 | E44: ='C2C'!E222 -> 61519284 | F44: ='C2C'!F222 -> -1052319.65 | G44: ='C2C'!G222 -> 37118429.56 | H44: ='C2C'!H222 -> 55986877.6 | I44: -18868448.04 | J44: -0.3370155445 | K44: ='C2C'!K222 -> 61519284
A45: Water management | C45: ='C2C'!C226 -> 0 | D45: ='C2C'!D226 -> 0 | E45: ='C2C'!E226 -> 0 | F45: ='C2C'!F226 -> 0 | G45: ='C2C'!G226 -> 0 | H45: ='C2C'!H226 -> 0 | I45: 0 | K45: ='C2C'!K226 -> 0
A46: Waste water management | C46: ='C2C'!C230 -> 0 | D46: ='C2C'!D230 -> 0 | E46: ='C2C'!E230 -> 0 | F46: ='C2C'!F230 -> 0 | G46: ='C2C'!G230 -> 0 | H46: ='C2C'!H230 -> 0 | I46: 0 | K46: ='C2C'!K230 -> 0
A47: Waste management | C47: ='C2C'!C235 -> 20079298.16 | D47: ='C2C'!D235 -> 22498043 | E47: ='C2C'!E235 -> 21262485 | F47: ='C2C'!F235 -> 1337789.09 | G47: ='C2C'!G235 -> 13948075.86 | H47: ='C2C'!H235 -> 20044663.6 | I47: -6096587.74 | J47: -0.3041501649 | K47: ='C2C'!K235 -> 21262485
A48: Other | C48: ='C2C'!C240 -> 0 | D48: ='C2C'!D240 -> 0 | E48: ='C2C'!E240 -> 0 | F48: ='C2C'!F240 -> 0 | G48: ='C2C'!G240 -> 0 | H48: ='C2C'!H240 -> 0 | I48: 0 | K48: ='C2C'!K240 -> 0
A49: Total Expenditure - Functional | B49: 3 | C49: =C29+C33+C39+C43+C48 -> 275634159.3 | D49: =D29+D33+D39+D43+D48 -> 312413242 | E49: 314596766 | F49: 15722164.76 | G49: 211898450.8 | H49: 287803716.7 | I49: -75905265.95 | J49: -0.2637397001 | K49: =K29+K33+K39+K43+K48 -> 314596766
A50: Surplus/ (Deficit) for the year | C50: =C26-C49 -> 15486731.02 | D50: 20704194 | E50: 15556840 | F50: -14156439.33 | G50: 103636252.4 | H50: 14856838.27 | I50: =I26-I49 -> 88779414.13 | J50: =IF(I50=0,"",I50/H50) -> 5.975659997 | K50: =K26-K49 -> 15556840
A51: =head27a -> References
A52: 1. Government Finance Statistics Functions and Sub-functions are standardised to assist the compilation of national and international accounts for comparison purposes
A53: 2. Total Revenue by functional classification must reconcile to Total Operating Revenue shown in the Financial Performance Statement
A54: 3. Total Expenditure by functional classification must reconcile to total operating expenditure shown in 'Financial Performance Statement'
A55: 4. All amounts must be classified under a functional classification (modified GFS). The GFS function 'Other' is only for Abbatoirs, Air Transport, Licensing and Regulation, Markets and Tourism - and if used must be supported by footnotes. Nothing else may be placed under 'Other'. Assign associate share to relevant classification

Sheet C2C
A1: =muni& " - "&S71A& " - "&date -> LIM351 Blouberg - Table C2 Monthly Budget Statement - Financial Performance (functional classification) - M11 May
A2: =desc -> Description | B2: =head27 -> Ref | C2: =Head1 -> 2018/19 | D2: =Head2 -> Budget Year 2019/20
C3: =Head5 -> Audited Outcome | D3: =Head6 -> Original Budget | E3: =Head7 -> Adjusted Budget | F3: =Head38 -> Monthly actual | G3: =Head39 -> YearTD actual | H3: =Head40 -> YearTD budget | I3: =Head41 -> YTD variance | J3: =Head41 -> YTD variance | K3: =Head8 -> Full Year Forecast
A4: R thousands | B4: 1 | J4: %
A5: Revenue - Functional
A6: Municipal governance and administration | C6: =C7+C10+C24 -> 206339616.3 | D6: 220450821 | E6: 221887735 | F6: 480218 | G6: 217328391.4 | H6: 203121987.2 | I6: =G6-H6 -> 14206404.25 | J6: =IF(I6=0,"",I6/H6) -> 0.06994025829 | K6: =K7+K10+K24 -> 221887735
A7: Executive and council | C7: =SUM(C8:C9) -> 6783826.47 | D7: =SUM(D8:D9) -> 0 | E7: 0 | F7: 0 | G7: 0 | H7: 0 | I7: =G7-H7 -> 0 | J7: =IF(I7=0,"",I7/H7) ->  | K7: 0
A8: Mayor and Council | C8: 0 | D8: 0 | E8: 0 | F8: 0 | G8: 0 | H8: 0 | I8: 0 | K8: 0
A9: Municipal Manager, Town Secretary and Chief Executive | C9: 6783826.47 | D9: 0 | E9: 0 | F9: 0 | G9: 0 | H9: 0 | I9: 0 | K9: 0
A10: Finance and administration | C10: =SUM(C11:C23) -> 199555789.9 | D10: 220450821 | E10: 221887735 | F10: 480218 | G10: 217328391.4 | H10: 203121987.2 | I10: =G10-H10 -> 14206404.25 | J10: =IF(I10=0,"",I10/H10) -> 0.06994025829 | K10: =SUM(K11:K23) -> 221887735
A11: Administrative and Corporate Support | C11: 55476.72 | D11: 151000 | E11: 564000 | F11: 0 | G11: 50921.92 | H11: 361402 | I11: -310480.08 | J11: -0.8590989535 | K11: 564000
A12: Asset Management | I12: 0
A13: Finance | C13: 199500313.1 | D13: 220299821 | E13: 221323735 | F13: 480218 | G13: 217277469.5 | H13: 202760585.2 | I13: 14516884.33 | J13: 0.07159618481 | K13: 221323735
A14: Fleet Management | I14: 0
A15: Human Resources | I15: 0
A16: Information Technology | I16: =G16-H16 -> 0 | J16: =IF(I16=0,"",I16/H16) -> 
A17: Legal Services | I17: 0
A18: Marketing, Customer Relations, Publicity and Media Co-ordination | I18: 0
A19: Property Services | I19: 0
A20: Risk Management | I20: 0
A21: Security Services | I21: 0
A22: Supply Chain Management | I22: 0
A23: Valuation Service | I23: 0
A24: Internal audit | C24: =SUM(C25:C25) -> 0 | D24: 0 | E24: 0 | F24: 0 | G24: 0 | H24: 0 | I24: 0 | K24: =SUM(K25:K25) -> 0
A25: Governance Function | I25: 0
A26: Community and public safety | C26: =C27+C49+C55+C64+C67 -> 4690691.95 | D26: =D27+D49+D55+D64+D67 -> 7350000 | E26: 6211086 | F26: -87612 | G26: 2145290.82 | H26: 5826346.8 | I26: -3681055.98 | J26: -0.6317948633 | K26: 6211086
A27: Community and social services | C27: =SUM(C28:C48) -> 0 | D27: 0 | E27: 0 | F27: 0 | G27: 0 | H27: 0 | I27: 0 | K27: =SUM(K28:K48) -> 0
A28: Aged Care | I28: =G28-H28 -> 0 | J28: =IF(I28=0,"",I28/H28) -> 
A29: Agricultural | I29: 0
A30: Animal Care and Diseases | I30: 0
A31: Cemeteries, Funeral Parlours and Crematoriums | C31: 0 | D31: 0 | E31: 0 | F31: 0 | G31: 0 | H31: 0 | I31: 0 | K31: 0
A32: Child Care Facilities | I32: 0
A33: Community Halls and Facilities | I33: 0
A34: Consumer Protection | I34: 0
A35: Cultural Matters | I35: =G35-H35 -> 0 | J35: =IF(I35=0,"",I35/H35) -> 
A36: Disaster Management | I36: 0
A37: Education | I37: 0
A38: Indigenous and Customary Law | I38: 0
A39: Industrial Promotion | I39: 0
A40: Language Policy | I40: 0
A41: Libraries and Archives | I41: 0
A42: Literacy Programmes | I42: 0
A43: Media Services | I43: 0
A44: Museums and Art Galleries | I44: 0
A45: Population Development | I45: 0
A46: Provincial Cultural Matters | I46: 0
A47: Theatres | I47: 0
A48: Zoo's | I48: 0
A49: Sport and recreation | C49: =SUM(C50:C54) -> 0 | D49: =SUM(D50:D54) -> 0 | E49: 0 | F49: 0 | G49: 0 | H49: 0 | I49: =G49-H49 -> 0 | J49: =IF(I49=0,"",I49/H49) ->  | K49: 0
A50: Beaches and Jetties | I50: 0
A51: Casinos, Racing, Gambling, Wagering | I51: 0
A52: Community Parks (including Nurseries) | I52: 0
A53: Recreational Facilities | I53: 0
A54: Sports Grounds and Stadiums | I54: 0
A55: Public safety | C55: =SUM(C56:C63) -> 4690691.95 | D55: =SUM(D56:D63) -> 7350000 | E55: 6211086 | F55: -87612 | G55: 2145290.82 | H55: 5826346.8 | I55: -3681055.98 | J55: -0.6317948633 | K55: 6211086
A56: Civil Defence | I56: 0
A57: Cleansing | I57: 0
A58: Control of Public Nuisances | I58: =G58-H58 -> 0 | J58: =IF(I58=0,"",I58/H58) -> 
A59: Fencing and Fences | I59: 0
A60: Fire Fighting and Protection | I60: 0
A61: Licensing and Control of Animals | I61: =G61-H61 -> 0 | J61: =IF(I61=0,"",I61/H61) -> 
A62: Police Forces, Traffic and Street Parking Control | C62: 4690691.95 | D62: 7350000 | E62: 6211086 | F62: -87612 | G62: 2145290.82 | H62: 5826346.8 | I62: =G62-H62 -> -3681055.98 | J62: =IF(I62=0,"",I62/H62) -> -0.6317948633 | K62: 6211086
A63: Pounds | C63: 0 | D63: 0 | E63: 0 | F63: 0 | G63: 0 | H63: 0 | I63: 0 | K63: 0
A64: Housing | C64: =SUM(C65:C66) -> 0 | D64: 0 | E64: 0 | F64: 0 | G64: 0 | H64: 0 | I64: =G64-H64 -> 0 | J64: =IF(I64=0,"",I64/H64) ->  | K64: =SUM(K65:K66) -> 0
A65: Housing | I65: =G65-H65 -> 0 | J65: =IF(I65=0,"",I65/H65) -> 
A66: Informal Settlements | I66: =G66-H66 -> 0 | J66: =IF(I66=0,"",I66/H66) -> 
A67: Health | C67: =SUM(C68:C74) -> 0 | D67: 0 | E67: 0 | F67: 0 | G67: 0 | H67: 0 | I67: 0 | K67: =SUM(K68:K74) -> 0
A68: Ambulance | I68: 0
A69: Health Services | I69: 0
A70: Laboratory Services | I70: =G70-H70 -> 0 | J70: =IF(I70=0,"",I70/H70) -> 
A71: Food Control | I71: =G71-H71 -> 0 | J71: =IF(I71=0,"",I71/H71) -> 
A72: Health Surveillance and Prevention of Communicable Diseases including immunizations | I72: 0
A73: Vector Control | I73: 0
A74: Chemical Safety | I74: 0
A75: Economic and environmental services | C75: =C76+C87+C92 -> 44149887.75 | D75: 2362872 | E75: 2372872 | F75: 2594.78 | G75: 542144.72 | H75: 2173933 | I75: -1631788.28 | J75: -0.7506157181 | K75: =K76+K87+K92 -> 2372872
A76: Planning and development | C76: =SUM(C77:C86) -> 658887.75 | D76: 2362872 | E76: 2372872 | F76: 2594.78 | G76: 542144.72 | H76: 2173933 | I76: -1631788.28 | J76: -0.7506157181 | K76: =SUM(K77:K86) -> 2372872
A77: Billboards | I77: =G77-H77 -> 0 | J77: =IF(I77=0,"",I77/H77) -> 
A78: Corporate Wide Strategic Planning (IDPs, LEDs) | I78: 0
A79: Central City Improvement District | I79: 0
A80: Development Facilitation | I80: =G80-H80 -> 0 | J80: =IF(I80=0,"",I80/H80) -> 
A81: Economic Development/Planning | C81: 658887.75 | D81: 2362872 | E81: 2372872 | F81: 2594.78 | G81: 542144.72 | H81: 2173933 | I81: =G81-H81 -> -1631788.28 | J81: =IF(I81=0,"",I81/H81) -> -0.7506157181 | K81: 2372872
A82: Regional Planning and Development | I82: =G82-H82 -> 0 | J82: =IF(I82=0,"",I82/H82) -> 
A83: Town Planning, Building Regulations and Enforcement, and City Engineer | I83: =G83-H83 -> 0 | J83: =IF(I83=0,"",I83/H83) -> 
A84: Project Management Unit | I84: 0
A85: Provincial Planning | I85: 0
A86: Support to Local Municipalities | I86: 0
A87: Road transport | C87: =SUM(C88:C91) -> 43491000 | D87: 0 | E87: 0 | F87: 0 | G87: 0 | H87: 0 | I87: 0 | K87: =SUM(K88:K91) -> 0
A88: Public Transport | I88: 0
A89: Road and Traffic Regulation | I89: 0
A90: Roads | C90: 43491000 | D90: 0 | E90: 0 | F90: 0 | G90: 0 | H90: 0 | I90: 0 | K90: 0
A91: Taxi Ranks | I91: 0
A92: Environmental protection | C92: =SUM(C93:C98) -> 0 | D92: =SUM(D93:D98) -> 0 | E92: 0 | F92: 0 | G92: 0 | H92: 0 | I92: 0 | K92: 0
A93: Biodiversity and Landscape | I93: 0
A94: Coastal Protection | I94: 0
A95: Indigenous Forests | I95: =G95-H95 -> 0 | J95: =IF(I95=0,"",I95/H95) -> 
A96: Nature Conservation | I96: =G96-H96 -> 0 | J96: =IF(I96=0,"",I96/H96) -> 
A97: Pollution Control | I97: 0
A98: Soil Conservation | I98: 0
A99: Trading services | C99: =C100+C104+C108+C113 -> 35940694.28 | D99: =D100+D104+D108+D113 -> 102953743 | E99: 99681913 | F99: 1170524.65 | G99: 95518876.19 | H99: 91538288 | I99: 3980588.19 | J99: 0.04348549964 | K99: =K100+K104+K108+K113 -> 99681913
A100: Energy sources | C100: =SUM(C101:C103) -> 31067556.43 | D100: =SUM(D101:D103) -> 97842743 | E100: 94570913 | F100: 2332885.56 | G100: 86723681.82 | H100: 86853223 | I100: -129541.18 | J100: -0.00149149537 | K100: 94570913
A101: Electricity | C101: 31067556.43 | D101: 97842743 | E101: 94570913 | F101: 2332885.56 | G101: 86723681.82 | H101: 86853223 | I101: -129541.18 | J101: -0.00149149537 | K101: 94570913
A102: Street Lighting and Signal Systems | I102: =G102-H102 -> 0 | J102: =IF(I102=0,"",I102/H102) -> 
A103: Nonelectric Energy | I103: 0
A104: Water management | C104: =SUM(C105:C107) -> 0 | D104: =SUM(D105:D107) -> 0 | E104: 0 | F104: 299771.75 | G104: 4403267.41 | H104: 0 | I104: 4403267.41 | K104: 0
A105: Water Treatment | C105: 0 | D105: 0 | E105: 0 | F105: 299771.75 | G105: 4403267.41 | H105: 0 | I105: 4403267.41 | K105: 0
A106: Water Distribution | I106: =G106-H106 -> 0 | J106: =IF(I106=0,"",I106/H106) -> 
A107: Water Storage | I107: 0
A108: Waste water management | C108: =SUM(C109:C112) -> 0 | D108: =SUM(D109:D112) -> 0 | E108: 0 | F108: 67108.05 | G108: 718632.43 | H108: 0 | I108: 718632.43 | K108: 0
A109: Public Toilets | I109: 0
A110: Sewerage | I110: 0
A111: Storm Water Management | C111: 0 | D111: 0 | E111: 0 | F111: 0 | G111: 0 | H111: 0 | I111: =G111-H111 -> 0 | J111: =IF(I111=0,"",I111/H111) ->  | K111: 0
A112: Waste Water Treatment | C112: 0 | D112: 0 | E112: 0 | F112: 67108.05 | G112: 718632.43 | H112: 0 | I112: 718632.43 | K112: 0
A113: Waste management | C113: =SUM(C114:C117) -> 4873137.85 | D113: 5111000 | E113: 5111000 | F113: -1529240.71 | G113: 3673294.53 | H113: 4685065 | I113: -1011770.47 | J113: -0.2159565492 | K113: =SUM(K114:K117) -> 5111000
A114: Recycling | I114: =G114-H114 -> 0 | J114: =IF(I114=0,"",I114/H114) -> 
A115: Solid Waste Disposal (Landfill Sites) | C115: 4873137.85 | D115: 5111000 | E115: 5111000 | F115: -1529240.71 | G115: 3673294.53 | H115: 4685065 | I115: =G115-H115 -> -1011770.47 | J115: =IF(I115=0,"",I115/H115) -> -0.2159565492 | K115: 5111000
A116: Solid Waste Removal | I116: 0
A117: Street Cleaning | I117: =G117-H117 -> 0 | J117: =IF(I117=0,"",I117/H117) -> 
A118: Other | C118: =SUM(C119:C124) -> 0 | D118: =SUM(D119:D124) -> 0 | E118: 0 | F118: 0 | G118: 0 | H118: 0 | I118: 0 | K118: 0
A119: Abattoirs | I119: 0
A120: Air Transport | I120: 0
A121: Forestry | I121: =G121-H121 -> 0 | J121: =IF(I121=0,"",I121/H121) -> 
A122: Licensing and Regulation | I122: 0
A123: Markets | I123: 0
A124: Tourism | I124: =G124-H124 -> 0 | J124: =IF(I124=0,"",I124/H124) -> 
A125: ="Total "&A5 -> Total Revenue - Functional | B125: 2 | C125: =C6+C26+C75+C99+C118 -> 291120890.3 | D125: 333117436 | E125: 330153606 | F125: 1565725.43 | G125: 315534703.2 | H125: 302660555 | I125: =G125-H125 -> 12874148.18 | J125: =IF(I125=0,"",I125/H125) -> 0.0425365908 | K125: =K6+K26+K75+K99+K118 -> 330153606
A127: Expenditure - Functional
A128: =A6 -> Municipal governance and administration | C128: =C129+C132+C146 -> 150166559.5 | D128: 166623982 | E128: 167592452 | F128: 10371154.92 | G128: 123861866.5 | H128: 152729593.9 | I128: =G128-H128 -> -28867727.38 | J128: =IF(I128=0,"",I128/H128) -> -0.189012009 | K128: =K129+K132+K146 -> 167592452
A129: Executive and council | C129: =SUM(C130:C131) -> 63171190.82 | D129: 58180779 | E129: 59652338 | F129: 4478008.33 | G129: 53209732.24 | H129: 54158273.1 | I129: -948540.86 | J129: -0.01751423754 | K129: 59652338
A130: Mayor and Council | C130: 27014465.8 | D130: 18913577 | E130: 19166401 | F130: 1405597.33 | G130: 16691466.97 | H130: 17634103.5 | I130: -942636.53 | J130: -0.05345531345 | K130: 19166401
A131: Municipal Manager, Town Secretary and Chief Executive | C131: 36156725.02 | D131: 39267202 | E131: 40485937 | F131: 3072411 | G131: 36518265.27 | H131: 36524169.6 | I131: -5904.33 | J131: -0.0001616554206 | K131: 40485937
A132: Finance and administration | C132: =SUM(C133:C145) -> 86995368.65 | D132: 108443203 | E132: 107940114 | F132: 5893146.59 | G132: 70652134.28 | H132: 98571320.8 | I132: -27919186.52 | J132: -0.2832384338 | K132: =SUM(K133:K145) -> 107940114
A133: Administrative and Corporate Support | C133: 51121935.91 | D133: 69133510 | E133: 63520582 | F133: 3831915.63 | G133: 48158176.61 | H133: 59854885.6 | I133: -11696708.99 | J133: -0.1954177821 | K133: 63520582
A134: Asset Management | I134: 0
A135: Finance | C135: 35873432.74 | D135: 39309693 | E135: 44419532 | F135: 2061230.96 | G135: 22493957.67 | H135: 38716435.2 | I135: -16222477.53 | J135: -0.4190075209 | K135: 44419532
A136: Fleet Management | I136: 0
A137: Human Resources | I137: 0
A138: Information Technology | I138: 0
A139: Legal Services | I139: 0
A140: Marketing, Customer Relations, Publicity and Media Co-ordination | I140: 0
A141: Property Services | I141: 0
A142: Risk Management | I142: 0
A143: Security Services | I143: 0
A144: Supply Chain Management | I144: 0
A145: Valuation Service | I145: 0
A146: Internal audit | C146: =SUM(C147:C147) -> 0 | D146: 0 | E146: 0 | F146: 0 | G146: 0 | H146: 0 | I146: 0 | K146: =SUM(K147:K147) -> 0
A147: Governance Function | I147: 0
A148: Community and public safety | C148: =C149+C171+C177+C186+C189 -> 14889814.97 | D148: 15543805 | E148: 15283866 | F148: 1427962.94 | G148: 16432539.94 | H148: 13865279.43 | I148: 2567260.51 | J148: 0.1851575024 | K148: =K149+K171+K177+K186+K189 -> 15283866
A149: Community and social services | C149: =SUM(C150:C170) -> 0 | D149: 0 | E149: 0 | F149: 0 | G149: 0 | H149: 0 | I149: 0 | K149: =SUM(K150:K170) -> 0
A150: Aged Care | I150: 0
A151: Agricultural | I151: 0
A152: Animal Care and Diseases | I152: 0
A153: Cemeteries, Funeral Parlours and Crematoriums | C153: 0 | D153: 0 | E153: 0 | F153: 0 | G153: 0 | H153: 0 | I153: 0 | K153: 0
A154: Child Care Facilities | I154: 0
A155: Community Halls and Facilities | I155: 0
A156: Consumer Protection | I156: 0
A157: Cultural Matters | I157: =G157-H157 -> 0 | J157: =IF(I157=0,"",I157/H157) -> 
A158: Disaster Management | I158: =G158-H158 -> 0 | J158: =IF(I158=0,"",I158/H158) -> 
A159: Education | I159: =G159-H159 -> 0 | J159: =IF(I159=0,"",I159/H159) -> 
A160: =A38 -> Indigenous and Customary Law | I160: 0
A161: Industrial Promotion | I161: 0
A162: Language Policy | I162: 0
A163: Libraries and Archives | C163: 0 | D163: 0 | E163: 0 | F163: 0 | G163: 0 | H163: 0 | I163: 0 | K163: 0
A164: Literacy Programmes | I164: 0
A165: Media Services | I165: 0
A166: Museums and Art Galleries | I166: 0
A167: Population Development | I167: 0
A168: Provincial Cultural Matters | I168: 0
A169: Theatres | I169: 0
A170: Zoo's | I170: 0
A171: Sport and recreation | C171: =SUM(C172:C176) -> 0 | D171: 0 | E171: 0 | F171: 0 | G171: 0 | H171: 0 | I171: =G171-H171 -> 0 | J171: =IF(I171=0,"",I171/H171) ->  | K171: 0
A172: Beaches and Jetties | I172: 0
A173: Casinos, Racing, Gambling, Wagering | I173: 0
A174: Community Parks (including Nurseries) | I174: 0
A175: Recreational Facilities | C175: 0 | D175: 0 | E175: 0 | F175: 0 | G175: 0 | H175: 0 | I175: 0 | K175: 0
A176: Sports Grounds and Stadiums | I176: 0
A177: Public safety | C177: =SUM(C178:C185) -> 14889814.97 | D177: 15543805 | E177: 15283866 | F177: 1427962.94 | G177: 16432539.94 | H177: 13865279.43 | I177: 2567260.51 | J177: 0.1851575024 | K177: 15283866
A178: Civil Defence | I178: 0
A179: Cleansing | I179: 0
A180: Control of Public Nuisances | I180: =G180-H180 -> 0 | J180: =IF(I180=0,"",I180/H180) -> 
A181: Fencing and Fences | I181: 0
A182: Fire Fighting and Protection | I182: 0
A183: Licensing and Control of Animals | I183: =G183-H183 -> 0 | J183: =IF(I183=0,"",I183/H183) -> 
A184: Police Forces, Traffic and Street Parking Control | C184: 14889814.97 | D184: 15543805 | E184: 15283866 | F184: 1427962.94 | G184: 16432539.94 | H184: 13865279.43 | I184: =G184-H184 -> 2567260.51 | J184: =IF(I184=0,"",I184/H184) -> 0.1851575024 | K184: 15283866
A185: Pounds | C185: 0 | D185: 0 | E185: 0 | F185: 0 | G185: 0 | H185: 0 | I185: 0 | K185: 0
A186: Housing | C186: =SUM(C187:C188) -> 0 | D186: 0 | E186: 0 | F186: 0 | G186: 0 | H186: 0 | I186: =G186-H186 -> 0 | J186: =IF(I186=0,"",I186/H186) ->  | K186: =SUM(K187:K188) -> 0
A187: Housing | I187: =G187-H187 -> 0 | J187: =IF(I187=0,"",I187/H187) -> 
A188: Informal Settlements | I188: =G188-H188 -> 0 | J188: =IF(I188=0,"",I188/H188) -> 
A189: Health | C189: =SUM(C190:C196) -> 0 | D189: 0 | E189: 0 | F189: 0 | G189: 0 | H189: 0 | I189: 0 | K189: 0
A190: Ambulance | I190: 0
A191: Health Services | I191: 0
A192: =A70 -> Laboratory Services | I192: 0
A193: Food Control | I193: =G193-H193 -> 0 | J193: =IF(I193=0,"",I193/H193) -> 
A194: Health Surveillance and Prevention of Communicable Diseases including immunizations | I194: =G194-H194 -> 0 | J194: =IF(I194=0,"",I194/H194) -> 
A195: Vector Control | I195: 0
A196: Chemical Safety | I196: 0
A197: Economic and environmental services | C197: =C198+C209+C214 -> 31357966.14 | D197: 49836685 | E197: 48938679 | F197: 3637577.46 | G197: 20537538.9 | H197: 45177302.2 | I197: -24639763.3 | J197: -0.5454013874 | K197: =K198+K209+K214 -> 48938679
A198: Planning and development | C198: =SUM(C199:C208) -> 9851544.11 | D198: 12065788 | E198: 11401323 | F198: 742591.24 | G198: 9915749.43 | H198: 10590711 | I198: -674961.57 | J198: -0.06373146902 | K198: 11401323
A199: Billboards | I199: 0
A200: Corporate Wide Strategic Planning (IDPs, LEDs) | I200: 0
A201: Central City Improvement District | I201: 0
... 54 more rows

Sheet C3-FinPerf V
A1: =muni& " - "&S71C& " - "&date -> LIM351 Blouberg - Table C3 Monthly Budget Statement - Financial Performance (revenue and expenditure by municipal vote) - M11 May
A2: =Vdesc -> Vote Description | B2: =head27 -> Ref | C2: =Head1 -> 2018/19 | D2: =Head2 -> Budget Year 2019/20
C3: =Head5 -> Audited Outcome | D3: =Head6 -> Original Budget | E3: =Head7 -> Adjusted Budget | F3: =Head38 -> Monthly actual | G3: =Head39 -> YearTD actual | H3: =Head40 -> YearTD budget | I3: =Head41 -> YTD variance | J3: =Head41 -> YTD variance | K3: =Head8 -> Full Year Forecast
A4: R thousands | J4: %
A5: Revenue by Vote | B5: 1
A6: ='Org structure'!A2 -> Vote 01 - Executive & Council | C6: ='C3C'!C6 -> 0 | D6: ='C3C'!D6 -> 0 | E6: ='C3C'!E6 -> 0 | F6: ='C3C'!F6 -> 0 | G6: ='C3C'!G6 -> 0 | H6: ='C3C'!H6 -> 0 | I6: =G6-H6 -> 0 | J6: =IF(I6=0,"",I6/H6) ->  | K6: ='C3C'!K6 -> 0
A7: ='Org structure'!A3 -> Vote 02 - Finance And Administration | C7: ='C3C'!C8 -> 6783826.47 | D7: ='C3C'!D8 -> 0 | E7: ='C3C'!E8 -> 0 | F7: ='C3C'!F8 -> 0 | G7: ='C3C'!G8 -> 0 | H7: ='C3C'!H8 -> 0 | I7: 0 | K7: ='C3C'!K8 -> 0
A8: ='Org structure'!A4 -> Vote 03 - Community Service | C8: ='C3C'!C10 -> 199500313.1 | D8: ='C3C'!D10 -> 220299821 | E8: ='C3C'!E10 -> 221323735 | F8: ='C3C'!F10 -> 480218 | G8: ='C3C'!G10 -> 217277469.5 | H8: ='C3C'!H10 -> 202760585.2 | I8: 14516884.33 | J8: 0.07159618481 | K8: ='C3C'!K10 -> 221323735
A9: ='Org structure'!A5 -> Vote 04 - Public And Safety | C9: ='C3C'!C12 -> 55476.72 | D9: ='C3C'!D12 -> 151000 | E9: ='C3C'!E12 -> 564000 | F9: ='C3C'!F12 -> 0 | G9: ='C3C'!G12 -> 50921.92 | H9: ='C3C'!H12 -> 361402 | I9: -310480.08 | J9: -0.8590989535 | K9: ='C3C'!K12 -> 564000
A10: ='Org structure'!A6 -> Vote 05 - Waste Management | C10: ='C3C'!C14 -> 74558556.43 | D10: ='C3C'!D14 -> 97842743 | E10: ='C3C'!E14 -> 94570913 | F10: ='C3C'!F14 -> 2699765.36 | G10: ='C3C'!G14 -> 91845581.66 | H10: ='C3C'!H14 -> 86853223 | I10: 4992358.66 | J10: 0.05748040761 | K10: ='C3C'!K14 -> 94570913
A11: ='Org structure'!A7 -> Vote 06 - Roads Services | C11: ='C3C'!C22 -> 9563829.8 | D11: ='C3C'!D22 -> 12461000 | E11: ='C3C'!E22 -> 11322086 | F11: ='C3C'!F22 -> -1616852.71 | G11: ='C3C'!G22 -> 5818585.35 | H11: ='C3C'!H22 -> 10511411.8 | I11: -4692826.45 | J11: -0.4464506328 | K11: ='C3C'!K22 -> 11322086
A12: ='Org structure'!A8 -> Vote 07 - Econominc Development And Planning | C12: ='C3C'!C37 -> 658887.75 | D12: ='C3C'!D37 -> 2362872 | E12: ='C3C'!E37 -> 2372872 | F12: ='C3C'!F37 -> 2594.78 | G12: ='C3C'!G37 -> 542144.72 | H12: ='C3C'!H37 -> 2173933 | I12: -1631788.28 | J12: -0.7506157181 | K12: ='C3C'!K37 -> 2372872
A13: ='Org structure'!A9 -> Vote 08 - | C13: ='C3C'!C39 -> 0 | D13: ='C3C'!D39 -> 0 | E13: ='C3C'!E39 -> 0 | F13: ='C3C'!F39 -> 0 | G13: ='C3C'!G39 -> 0 | H13: ='C3C'!H39 -> 0 | I13: =G13-H13 -> 0 | J13: =IF(I13=0,"",I13/H13) ->  | K13: ='C3C'!K39 -> 0
A14: ='Org structure'!A10 -> Vote 09 - | C14: ='C3C'!C40 -> 0 | D14: ='C3C'!D40 -> 0 | E14: ='C3C'!E40 -> 0 | F14: ='C3C'!F40 -> 0 | G14: ='C3C'!G40 -> 0 | H14: ='C3C'!H40 -> 0 | I14: 0 | K14: ='C3C'!K40 -> 0
A15: ='Org structure'!A11 -> Vote 10 - | C15: ='C3C'!C41 -> 0 | D15: ='C3C'!D41 -> 0 | E15: ='C3C'!E41 -> 0 | F15: ='C3C'!F41 -> 0 | G15: ='C3C'!G41 -> 0 | H15: ='C3C'!H41 -> 0 | I15: 0 | K15: ='C3C'!K41 -> 0
A16: ='Org structure'!A12 -> Vote 11 - | C16: ='C3C'!C42 -> 0 | D16: ='C3C'!D42 -> 0 | E16: ='C3C'!E42 -> 0 | F16: ='C3C'!F42 -> 0 | G16: ='C3C'!G42 -> 0 | H16: ='C3C'!H42 -> 0 | I16: 0 | K16: ='C3C'!K42 -> 0
A17: ='Org structure'!A13 -> Vote 12 - | C17: ='C3C'!C43 -> 0 | D17: ='C3C'!D43 -> 0 | E17: ='C3C'!E43 -> 0 | F17: ='C3C'!F43 -> 0 | G17: ='C3C'!G43 -> 0 | H17: ='C3C'!H43 -> 0 | I17: 0 | K17: ='C3C'!K43 -> 0
A18: ='Org structure'!A14 -> Vote 13 - | C18: ='C3C'!C44 -> 0 | D18: ='C3C'!D44 -> 0 | E18: ='C3C'!E44 -> 0 | F18: ='C3C'!F44 -> 0 | G18: ='C3C'!G44 -> 0 | H18: ='C3C'!H44 -> 0 | I18: 0 | K18: ='C3C'!K44 -> 0
A19: ='Org structure'!A15 -> Vote 14 - | C19: ='C3C'!C45 -> 0 | D19: ='C3C'!D45 -> 0 | E19: ='C3C'!E45 -> 0 | F19: ='C3C'!F45 -> 0 | G19: ='C3C'!G45 -> 0 | H19: ='C3C'!H45 -> 0 | I19: 0 | K19: ='C3C'!K45 -> 0
A20: ='Org structure'!A16 -> Vote 15 - Other | C20: ='C3C'!C46 -> 0 | D20: ='C3C'!D46 -> 0 | E20: ='C3C'!E46 -> 0 | F20: ='C3C'!F46 -> 0 | G20: ='C3C'!G46 -> 0 | H20: ='C3C'!H46 -> 0 | I20: 0 | K20: ='C3C'!K46 -> 0
A21: Total Revenue by Vote | B21: 2 | C21: =SUM(C6:C20) -> 291120890.3 | D21: =SUM(D6:D20) -> 333117436 | E21: 330153606 | F21: 1565725.43 | G21: 315534703.2 | H21: 302660555 | I21: 12874148.18 | J21: 0.0425365908 | K21: =SUM(K6:K20) -> 330153606
A23: Expenditure by Vote | B23: 1
A24: ='Org structure'!A2 -> Vote 01 - Executive & Council | C24: ='C3C'!C50 -> 27014465.8 | D24: ='C3C'!D50 -> 18913577 | E24: ='C3C'!E50 -> 19166401 | F24: ='C3C'!F50 -> 1405597.33 | G24: ='C3C'!G50 -> 16691466.97 | H24: ='C3C'!H50 -> 17634103.5 | I24: =G24-H24 -> -942636.53 | J24: =IF(I24=0,"",I24/H24) -> -0.05345531345 | K24: ='C3C'!K50 -> 19166401
A25: ='Org structure'!A3 -> Vote 02 - Finance And Administration | C25: ='C3C'!C52 -> 36156725.02 | D25: ='C3C'!D52 -> 39267202 | E25: ='C3C'!E52 -> 40485937 | F25: ='C3C'!F52 -> 3072411 | G25: ='C3C'!G52 -> 36518265.27 | H25: ='C3C'!H52 -> 36524169.6 | I25: -5904.33 | J25: -0.0001616554206 | K25: ='C3C'!K52 -> 40485937
A26: ='Org structure'!A4 -> Vote 03 - Community Service | C26: ='C3C'!C54 -> 35873432.74 | D26: ='C3C'!D54 -> 39309693 | E26: ='C3C'!E54 -> 44419532 | F26: ='C3C'!F54 -> 2061230.96 | G26: ='C3C'!G54 -> 22493957.67 | H26: ='C3C'!H54 -> 38716435.2 | I26: -16222477.53 | J26: -0.4190075209 | K26: ='C3C'!K54 -> 44419532
A27: ='Org structure'!A5 -> Vote 04 - Public And Safety | C27: ='C3C'!C56 -> 51121935.91 | D27: ='C3C'!D56 -> 69133510 | E27: ='C3C'!E56 -> 63520582 | F27: ='C3C'!F56 -> 3831915.63 | G27: ='C3C'!G56 -> 48158176.61 | H27: ='C3C'!H56 -> 59854885.6 | I27: -11696708.99 | J27: -0.1954177821 | K27: ='C3C'!K56 -> 63520582
A28: ='Org structure'!A6 -> Vote 05 - Waste Management | C28: ='C3C'!C58 -> 80646942.58 | D28: ='C3C'!D58 -> 95681624 | E28: ='C3C'!E58 -> 99056640 | F28: ='C3C'!F58 -> 1842666.57 | G28: ='C3C'!G58 -> 47740219.03 | H28: ='C3C'!H58 -> 90573468.8 | I28: -42833249.77 | J28: -0.4729116632 | K28: ='C3C'!K58 -> 99056640
A29: ='Org structure'!A7 -> Vote 06 - Roads Services | C29: ='C3C'!C66 -> 34969113.13 | D29: ='C3C'!D66 -> 38041848 | E29: ='C3C'!E66 -> 36546351 | F29: ='C3C'!F66 -> 2765752.03 | G29: ='C3C'!G66 -> 30380615.8 | H29: ='C3C'!H66 -> 33909943.03 | I29: -3529327.23 | J29: -0.1040794208 | K29: ='C3C'!K66 -> 36546351
A30: ='Org structure'!A8 -> Vote 07 - Econominc Development And Planning | C30: ='C3C'!C81 -> 9851544.11 | D30: ='C3C'!D81 -> 12065788 | E30: ='C3C'!E81 -> 11401323 | F30: ='C3C'!F81 -> 742591.24 | G30: ='C3C'!G81 -> 9915749.43 | H30: ='C3C'!H81 -> 10590711 | I30: -674961.57 | J30: -0.06373146902 | K30: ='C3C'!K81 -> 11401323
A31: ='Org structure'!A9 -> Vote 08 - | C31: ='C3C'!C83 -> 0 | D31: ='C3C'!D83 -> 0 | E31: ='C3C'!E83 -> 0 | F31: ='C3C'!F83 -> 0 | G31: ='C3C'!G83 -> 0 | H31: ='C3C'!H83 -> 0 | I31: =G31-H31 -> 0 | J31: =IF(I31=0,"",I31/H31) ->  | K31: ='C3C'!K83 -> 0
A32: ='Org structure'!A10 -> Vote 09 - | C32: ='C3C'!C84 -> 0 | D32: ='C3C'!D84 -> 0 | E32: ='C3C'!E84 -> 0 | F32: ='C3C'!F84 -> 0 | G32: ='C3C'!G84 -> 0 | H32: ='C3C'!H84 -> 0 | I32: 0 | K32: ='C3C'!K84 -> 0
A33: ='Org structure'!A11 -> Vote 10 - | C33: ='C3C'!C85 -> 0 | D33: ='C3C'!D85 -> 0 | E33: ='C3C'!E85 -> 0 | F33: ='C3C'!F85 -> 0 | G33: ='C3C'!G85 -> 0 | H33: ='C3C'!H85 -> 0 | I33: 0 | J33: =IF(I33=0,"",I33/H33) ->  | K33: ='C3C'!K85 -> 0
A34: ='Org structure'!A12 -> Vote 11 - | C34: ='C3C'!C86 -> 0 | D34: ='C3C'!D86 -> 0 | E34: ='C3C'!E86 -> 0 | F34: ='C3C'!F86 -> 0 | G34: ='C3C'!G86 -> 0 | H34: ='C3C'!H86 -> 0 | I34: 0 | J34: =IF(I34=0,"",I34/H34) ->  | K34: ='C3C'!K86 -> 0
A35: ='Org structure'!A13 -> Vote 12 - | C35: ='C3C'!C87 -> 0 | D35: ='C3C'!D87 -> 0 | E35: ='C3C'!E87 -> 0 | F35: ='C3C'!F87 -> 0 | G35: ='C3C'!G87 -> 0 | H35: ='C3C'!H87 -> 0 | I35: 0 | J35: =IF(I35=0,"",I35/H35) ->  | K35: ='C3C'!K87 -> 0
A36: ='Org structure'!A14 -> Vote 13 - | C36: ='C3C'!C88 -> 0 | D36: ='C3C'!D88 -> 0 | E36: ='C3C'!E88 -> 0 | F36: ='C3C'!F88 -> 0 | G36: ='C3C'!G88 -> 0 | H36: ='C3C'!H88 -> 0 | I36: 0 | J36: =IF(I36=0,"",I36/H36) ->  | K36: ='C3C'!K88 -> 0
A37: ='Org structure'!A15 -> Vote 14 - | C37: ='C3C'!C89 -> 0 | D37: ='C3C'!D89 -> 0 | E37: ='C3C'!E89 -> 0 | F37: ='C3C'!F89 -> 0 | G37: ='C3C'!G89 -> 0 | H37: ='C3C'!H89 -> 0 | I37: 0 | J37: =IF(I37=0,"",I37/H37) ->  | K37: ='C3C'!K89 -> 0
A38: ='Org structure'!A16 -> Vote 15 - Other | C38: ='C3C'!C90 -> 0 | D38: ='C3C'!D90 -> 0 | E38: ='C3C'!E90 -> 0 | F38: ='C3C'!F90 -> 0 | G38: ='C3C'!G90 -> 0 | H38: ='C3C'!H90 -> 0 | I38: 0 | K38: ='C3C'!K90 -> 0
A39: Total Expenditure by Vote | B39: 2 | C39: =SUM(C24:C38) -> 275634159.3 | D39: =SUM(D24:D38) -> 312413242 | E39: 314596766 | F39: 15722164.76 | G39: 211898450.8 | H39: 287803716.7 | I39: -75905265.95 | J39: =IF(I39=0,"",I39/H39) -> -0.2637397001 | K39: =SUM(K24:K38) -> 314596766
A40: =result -> Surplus/ (Deficit) for the year | B40: 2 | C40: =C21-C39 -> 15486731.02 | D40: 20704194 | E40: 15556840 | F40: -14156439.33 | G40: 103636252.4 | H40: 14856838.27 | I40: =I21-I39 -> 88779414.13 | J40: =IF(I40=0,"",I40/H40) -> 5.975659997 | K40: =K21-K39 -> 15556840
A41: =head27a -> References
A42: 1. Insert 'Vote'; e.g. Department, if different to standard classification structure
A43: 2. Must reconcile to Monthly Budget Statement - Financial Performance Statement (standard classification)

Sheet C3C
A1: =muni& " - "&S71C& " - "&"A"& " - "&date -> LIM351 Blouberg - Table C3 Monthly Budget Statement - Financial Performance (revenue and expenditure by municipal vote) - A - M11 May
A2: =Vdesc -> Vote Description | B2: =head27 -> Ref | C2: =Head1 -> 2018/19 | D2: =Head2 -> Budget Year 2019/20 | L2: =Head4 -> 
A3: R thousand | C3: =Head5 -> Audited Outcome | D3: =Head6 -> Original Budget | E3: =Head7 -> Adjusted Budget | F3: =Head38 -> Monthly actual | G3: =Head39 -> YearTD actual | H3: =Head40 -> YearTD budget | I3: =Head41 -> YTD variance | J3: =Head41 -> YTD variance | K3: =Head8 -> Full Year Forecast | L3: =Head12 -> Forecast 2010/11 | M3: =Head13 -> Forecast 2011/12 | N3: =Head14 -> Forecast 2012/13 | O3: =Head15 -> Forecast 2013/14 | P3: =Head16 -> Forecast 2014/15 | Q3: =Head17 -> Forecast 2015/16 | R3: =Head18 -> Forecast 2016/17 | S3: =Head19 -> Forecast 2017/18 | T3: =Head20 -> Forecast 2018/19 | U3: =Head21 -> Forecast 2019/20 | V3: =Head22 -> Forecast 2020/21 | W3: =Head23 -> Forecast 2021/22
J4: %
A5: Revenue by Vote | B5: 1
A6: ='Org structure'!A2 -> Vote 01 - Executive & Council | C6: =SUM(C7:C7) -> 0 | D6: 0 | E6: 0 | F6: 0 | G6: 0 | H6: 0 | I6: =G6-H6 -> 0 | J6: =IF(I6=0,"",I6/H6) ->  | K6: =SUM(K7:K7) -> 0
A7: ='Org structure'!E3 -> 01.1 - Council General | C7: 0 | D7: 0 | E7: 0 | F7: 0 | G7: 0 | H7: 0 | I7: =G7-H7 -> 0 | J7: =IF(I7=0,"",I7/H7) ->  | K7: 0
A8: ='Org structure'!A3 -> Vote 02 - Finance And Administration | C8: =SUM(C9:C9) -> 6783826.47 | D8: 0 | E8: 0 | F8: 0 | G8: 0 | H8: 0 | I8: 0 | K8: =SUM(K9:K9) -> 0
A9: ='Org structure'!E5 -> 02.1 - Municipal Manager | C9: 6783826.47 | D9: 0 | E9: 0 | F9: 0 | G9: 0 | H9: 0 | I9: =G9-H9 -> 0 | J9: =IF(I9=0,"",I9/H9) ->  | K9: 0
A10: ='Org structure'!A4 -> Vote 03 - Community Service | C10: =SUM(C11:C11) -> 199500313.1 | D10: 220299821 | E10: 221323735 | F10: 480218 | G10: 217277469.5 | H10: 202760585.2 | I10: 14516884.33 | J10: 0.07159618481 | K10: =SUM(K11:K11) -> 221323735
A11: ='Org structure'!E7 -> 03.1 - Finance Services Administration | C11: 199500313.1 | D11: 220299821 | E11: 221323735 | F11: 480218 | G11: 217277469.5 | H11: 202760585.2 | I11: =G11-H11 -> 14516884.33 | J11: =IF(I11=0,"",I11/H11) -> 0.07159618481 | K11: 221323735
A12: ='Org structure'!A5 -> Vote 04 - Public And Safety | C12: =SUM(C13:C13) -> 55476.72 | D12: 151000 | E12: 564000 | F12: 0 | G12: 50921.92 | H12: 361402 | I12: -310480.08 | J12: -0.8590989535 | K12: =SUM(K13:K13) -> 564000
A13: ='Org structure'!E9 -> 04.1 - Corporate Services Administration | C13: 55476.72 | D13: 151000 | E13: 564000 | F13: 0 | G13: 50921.92 | H13: 361402 | I13: =G13-H13 -> -310480.08 | J13: =IF(I13=0,"",I13/H13) -> -0.8590989535 | K13: 564000
A14: ='Org structure'!A6 -> Vote 05 - Waste Management | C14: =SUM(C15:C21) -> 74558556.43 | D14: 97842743 | E14: 94570913 | F14: 2699765.36 | G14: 91845581.66 | H14: 86853223 | I14: 4992358.66 | J14: 0.05748040761 | K14: =SUM(K15:K21) -> 94570913
A15: ='Org structure'!E11 -> 05.1 - Technical Services Administration | C15: 0 | D15: 0 | E15: 0 | F15: 0 | G15: 0 | H15: 0 | I15: =G15-H15 -> 0 | J15: =IF(I15=0,"",I15/H15) ->  | K15: 0
A16: ='Org structure'!E12 -> 05.2 - Electrical Services | C16: 31067556.43 | D16: 97842743 | E16: 94570913 | F16: 2332885.56 | G16: 86723681.82 | H16: 86853223 | I16: -129541.18 | J16: -0.00149149537 | K16: 94570913
A17: ='Org structure'!E13 -> 05.3 - Water Services | C17: 0 | D17: 0 | E17: 0 | F17: 299771.75 | G17: 4403267.41 | H17: 0 | I17: 4403267.41 | K17: 0
A18: ='Org structure'!E14 -> 05.4 - Sanitation Services | C18: 0 | D18: 0 | E18: 0 | F18: 67108.05 | G18: 718632.43 | H18: 0 | I18: 718632.43 | K18: 0
A19: ='Org structure'!E15 -> 05.5 - Roads Services | C19: 43491000 | D19: 0 | E19: 0 | F19: 0 | G19: 0 | H19: 0 | I19: 0 | K19: 0
A20: ='Org structure'!E16 -> 05.6 - Storm Water Services | C20: 0 | D20: 0 | E20: 0 | F20: 0 | G20: 0 | H20: 0 | I20: 0 | K20: 0
A21: ='Org structure'!E17 -> 05.7 - Water Reporting Function | C21: 0 | D21: 0 | E21: 0 | F21: 0 | G21: 0 | H21: 0 | I21: 0 | K21: 0
A22: ='Org structure'!A7 -> Vote 06 - Roads Services | C22: =SUM(C23:C36) -> 9563829.8 | D22: 12461000 | E22: 11322086 | F22: -1616852.71 | G22: 5818585.35 | H22: 10511411.8 | I22: -4692826.45 | J22: -0.4464506328 | K22: =SUM(K23:K36) -> 11322086
A23: ='Org structure'!E19 -> 06.1 - Community Services Administration | C23: 4321105.33 | D23: 4487000 | E23: 4237000 | F23: -1650000 | G23: 2572000 | H23: 3913076 | I23: =G23-H23 -> -1341076 | J23: =IF(I23=0,"",I23/H23) -> -0.3427165739 | K23: 4237000
A24: ='Org structure'!E20 -> 06.2 - Traffic Services | C24: 2906211.95 | D24: 0 | E24: 0 | F24: 0 | G24: 0 | H24: 0 | I24: 0 | K24: 0
A25: ='Org structure'!E21 -> 06.3 - Traffic Services | C25: 1784480 | D25: 7350000 | E25: 6211086 | F25: -87612 | G25: 2145290.82 | H25: 5826346.8 | I25: -3681055.98 | J25: -0.6317948633 | K25: 6211086
A26: ='Org structure'!E22 -> 06.4 - Libraries | C26: 0 | D26: 0 | E26: 0 | F26: 0 | G26: 0 | H26: 0 | I26: 0 | K26: 0
A27: ='Org structure'!E23 -> 06.5 - Sport | C27: 0 | D27: 0 | E27: 0 | F27: 0 | G27: 0 | H27: 0 | I27: 0 | K27: 0
A28: ='Org structure'!E24 -> 06.6 - Cemetery | C28: 0 | D28: 0 | E28: 0 | F28: 0 | G28: 0 | H28: 0 | I28: 0 | K28: 0
A29: ='Org structure'!E25 -> 06.7 - Refuse | C29: 552032.52 | D29: 624000 | E29: 874000 | F29: 120759.29 | G29: 1101294.53 | H29: 771989 | I29: 329305.53 | J29: 0.4265676454 | K29: 874000
A30: ='Org structure'!E26 -> 06.8 - Pound Services | C30: 0 | D30: 0 | E30: 0 | F30: 0 | G30: 0 | H30: 0 | I30: 0 | K30: 0
A31: ='Org structure'!E27 -> 06.9 - Pound Services | C31: 0 | D31: 0 | E31: 0 | F31: 0 | G31: 0 | H31: 0 | I31: 0 | K31: 0
A32: ='Org structure'!E28 -> 06.10 - Satellite Offices | C32: 0 | D32: 0 | E32: 0 | F32: 0 | G32: 0 | H32: 0 | I32: 0 | K32: 0
A33: ='Org structure'!E29 -> 06.11 - Alldays Offices | C33: 0 | D33: 0 | E33: 0 | F33: 0 | G33: 0 | H33: 0 | I33: 0 | K33: 0
A34: ='Org structure'!E30 -> 06.12 - Eldorado Offices | C34: 0 | D34: 0 | E34: 0 | F34: 0 | G34: 0 | H34: 0 | I34: 0 | K34: 0
A35: ='Org structure'!E31 -> 06.13 - Tolwe Offices | C35: 0 | D35: 0 | E35: 0 | F35: 0 | G35: 0 | H35: 0 | I35: 0 | K35: 0
A36: ='Org structure'!E32 -> 06.14 - Senwabarwarna Offices | C36: 0 | D36: 0 | E36: 0 | F36: 0 | G36: 0 | H36: 0 | I36: 0 | K36: 0
A37: ='Org structure'!A8 -> Vote 07 - Econominc Development And Planning | C37: =SUM(C38:C38) -> 658887.75 | D37: 2362872 | E37: 2372872 | F37: 2594.78 | G37: 542144.72 | H37: 2173933 | I37: =G37-H37 -> -1631788.28 | J37: =IF(I37=0,"",I37/H37) -> -0.7506157181 | K37: =SUM(K38:K38) -> 2372872
A38: ='Org structure'!E34 -> 07.1 - Economic Development And Planning | C38: 658887.75 | D38: 2362872 | E38: 2372872 | F38: 2594.78 | G38: 542144.72 | H38: 2173933 | I38: =G38-H38 -> -1631788.28 | J38: =IF(I38=0,"",I38/H38) -> -0.7506157181 | K38: 2372872
A39: ='Org structure'!A9 -> Vote 08 - | C39: 0 | D39: 0 | E39: 0 | F39: 0 | G39: 0 | H39: 0 | I39: 0 | K39: 0
A40: ='Org structure'!A10 -> Vote 09 - | C40: 0 | D40: 0 | E40: 0 | F40: 0 | G40: 0 | H40: 0 | I40: 0 | K40: 0
A41: ='Org structure'!A11 -> Vote 10 - | C41: 0 | D41: 0 | E41: 0 | F41: 0 | G41: 0 | H41: 0 | I41: 0 | K41: 0
A42: ='Org structure'!A12 -> Vote 11 - | C42: 0 | D42: 0 | E42: 0 | F42: 0 | G42: 0 | H42: 0 | I42: 0 | K42: 0
A43: ='Org structure'!A13 -> Vote 12 - | C43: 0 | D43: 0 | E43: 0 | F43: 0 | G43: 0 | H43: 0 | I43: 0 | K43: 0
A44: ='Org structure'!A14 -> Vote 13 - | C44: 0 | D44: 0 | E44: 0 | F44: 0 | G44: 0 | H44: 0 | I44: =G44-H44 -> 0 | J44: =IF(I44=0,"",I44/H44) ->  | K44: 0
A45: ='Org structure'!A15 -> Vote 14 - | C45: 0 | D45: 0 | E45: 0 | F45: 0 | G45: 0 | H45: 0 | I45: 0 | K45: 0
A46: ='Org structure'!A16 -> Vote 15 - Other | C46: 0 | D46: 0 | E46: 0 | F46: 0 | G46: 0 | H46: 0 | I46: 0 | K46: 0
A47: Total Revenue by Vote | B47: 2 | C47: =C6+C8+C10+C12+C14+C22+C37+C39+C40+C41+C42+C43+C44+C45+C46 -> 291120890.3 | D47: 333117436 | E47: 330153606 | F47: 1565725.43 | G47: 315534703.2 | H47: 302660555 | I47: 12874148.18 | J47: 0.0425365908 | K47: =K6+K8+K10+K12+K14+K22+K37+K39+K40+K41+K42+K43+K44+K45+K46 -> 330153606
I48: 0
A49: Expenditure by Vote | B49: 1 | I49: 0
A50: ='Org structure'!A2 -> Vote 01 - Executive & Council | C50: =SUM(C51:C51) -> 27014465.8 | D50: 18913577 | E50: 19166401 | F50: 1405597.33 | G50: 16691466.97 | H50: 17634103.5 | I50: -942636.53 | J50: -0.05345531345 | K50: =SUM(K51:K51) -> 19166401
A51: ='Org structure'!E3 -> 01.1 - Council General | C51: 27014465.8 | D51: 18913577 | E51: 19166401 | F51: 1405597.33 | G51: 16691466.97 | H51: 17634103.5 | I51: =G51-H51 -> -942636.53 | J51: =IF(I51=0,"",I51/H51) -> -0.05345531345 | K51: 19166401
A52: ='Org structure'!A3 -> Vote 02 - Finance And Administration | C52: =SUM(C53:C53) -> 36156725.02 | D52: 39267202 | E52: 40485937 | F52: 3072411 | G52: 36518265.27 | H52: 36524169.6 | I52: -5904.33 | J52: -0.0001616554206 | K52: =SUM(K53:K53) -> 40485937
A53: ='Org structure'!E5 -> 02.1 - Municipal Manager | C53: 36156725.02 | D53: 39267202 | E53: 40485937 | F53: 3072411 | G53: 36518265.27 | H53: 36524169.6 | I53: =G53-H53 -> -5904.33 | J53: =IF(I53=0,"",I53/H53) -> -0.0001616554206 | K53: 40485937
A54: ='Org structure'!A4 -> Vote 03 - Community Service | C54: =SUM(C55:C55) -> 35873432.74 | D54: 39309693 | E54: 44419532 | F54: 2061230.96 | G54: 22493957.67 | H54: 38716435.2 | I54: -16222477.53 | J54: -0.4190075209 | K54: =SUM(K55:K55) -> 44419532
A55: ='Org structure'!E7 -> 03.1 - Finance Services Administration | C55: 35873432.74 | D55: 39309693 | E55: 44419532 | F55: 2061230.96 | G55: 22493957.67 | H55: 38716435.2 | I55: =G55-H55 -> -16222477.53 | J55: =IF(I55=0,"",I55/H55) -> -0.4190075209 | K55: 44419532
A56: ='Org structure'!A5 -> Vote 04 - Public And Safety | C56: =SUM(C57:C57) -> 51121935.91 | D56: 69133510 | E56: 63520582 | F56: 3831915.63 | G56: 48158176.61 | H56: 59854885.6 | I56: =G56-H56 -> -11696708.99 | J56: =IF(I56=0,"",I56/H56) -> -0.1954177821 | K56: =SUM(K57:K57) -> 63520582
A57: ='Org structure'!E9 -> 04.1 - Corporate Services Administration | C57: 51121935.91 | D57: 69133510 | E57: 63520582 | F57: 3831915.63 | G57: 48158176.61 | H57: 59854885.6 | I57: =G57-H57 -> -11696708.99 | J57: =IF(I57=0,"",I57/H57) -> -0.1954177821 | K57: 63520582
A58: ='Org structure'!A6 -> Vote 05 - Waste Management | C58: =SUM(C59:C65) -> 80646942.58 | D58: 95681624 | E58: 99056640 | F58: 1842666.57 | G58: 47740219.03 | H58: 90573468.8 | I58: -42833249.77 | J58: -0.4729116632 | K58: =SUM(K59:K65) -> 99056640
A59: ='Org structure'!E11 -> 05.1 - Technical Services Administration | C59: 2443709.76 | D59: 5473457 | E59: 5079793 | F59: -1671084.79 | G59: 793808.7 | H59: 4702520.8 | I59: =G59-H59 -> -3908712.1 | J59: =IF(I59=0,"",I59/H59) -> -0.8311950688 | K59: 5079793
A60: ='Org structure'!E12 -> 05.2 - Electrical Services | C60: 56696810.79 | D60: 52437270 | E60: 56439491 | F60: 618765.14 | G60: 36324620.86 | H60: 51284356.8 | I60: -14959735.94 | J60: -0.2917017366 | K60: 56439491
A61: ='Org structure'!E13 -> 05.3 - Water Services | C61: 0 | D61: 0 | E61: 0 | F61: 0 | G61: 0 | H61: 0 | I61: 0 | K61: 0
A62: ='Org structure'!E14 -> 05.4 - Sanitation Services | C62: 0 | D62: 0 | E62: 0 | F62: 0 | G62: 0 | H62: 0 | I62: 0 | K62: 0
A63: ='Org structure'!E15 -> 05.5 - Roads Services | C63: 21506422.03 | D63: 37770897 | E63: 37537356 | F63: 2894986.22 | G63: 10621789.47 | H63: 34586591.2 | I63: -23964801.73 | J63: -0.6928928495 | K63: 37537356
A64: ='Org structure'!E16 -> 05.6 - Storm Water Services | C64: 0 | D64: 0 | E64: 0 | F64: 0 | G64: 0 | H64: 0 | I64: 0 | K64: 0
A65: ='Org structure'!E17 -> 05.7 - Water Reporting Function | C65: 0 | D65: 0 | E65: 0 | F65: 0 | G65: 0 | H65: 0 | I65: 0 | K65: 0
A66: ='Org structure'!A7 -> Vote 06 - Roads Services | C66: =SUM(C67:C80) -> 34969113.13 | D66: 38041848 | E66: 36546351 | F66: 2765752.03 | G66: 30380615.8 | H66: 33909943.03 | I66: -3529327.23 | J66: -0.1040794208 | K66: =SUM(K67:K80) -> 36546351
A67: ='Org structure'!E19 -> 06.1 - Community Services Administration | C67: 19941623.93 | D67: 21873043 | E67: 21102035 | F67: 1324344.43 | G67: 13782314.95 | H67: 19723379.6 | I67: =G67-H67 -> -5941064.65 | J67: =IF(I67=0,"",I67/H67) -> -0.3012194041 | K67: 21102035
A68: ='Org structure'!E20 -> 06.2 - Traffic Services | C68: 175500 | D68: 0 | E68: 0 | F68: 0 | G68: 0 | H68: 0 | I68: 0 | K68: 0
A69: ='Org structure'!E21 -> 06.3 - Traffic Services | C69: 14714314.97 | D69: 15543805 | E69: 15283866 | F69: 1427962.94 | G69: 16432539.94 | H69: 13865279.43 | I69: 2567260.51 | J69: 0.1851575024 | K69: 15283866
A70: ='Org structure'!E22 -> 06.4 - Libraries | C70: 0 | D70: 0 | E70: 0 | F70: 0 | G70: 0 | H70: 0 | I70: 0 | K70: 0
A71: ='Org structure'!E23 -> 06.5 - Sport | C71: 0 | D71: 0 | E71: 0 | F71: 0 | G71: 0 | H71: 0 | I71: 0 | K71: 0
A72: ='Org structure'!E24 -> 06.6 - Cemetery | C72: 0 | D72: 0 | E72: 0 | F72: 0 | G72: 0 | H72: 0 | I72: 0 | K72: 0
A73: ='Org structure'!E25 -> 06.7 - Refuse | C73: 137674.23 | D73: 625000 | E73: 160450 | F73: 13444.66 | G73: 165760.91 | H73: 321284 | I73: -155523.09 | J73: -0.4840673361 | K73: 160450
A74: ='Org structure'!E26 -> 06.8 - Pound Services | C74: 0 | D74: 0 | E74: 0 | F74: 0 | G74: 0 | H74: 0 | I74: 0 | K74: 0
A75: ='Org structure'!E27 -> 06.9 - Pound Services | C75: 0 | D75: 0 | E75: 0 | F75: 0 | G75: 0 | H75: 0 | I75: 0 | K75: 0
A76: ='Org structure'!E28 -> 06.10 - Satellite Offices | C76: 0 | D76: 0 | E76: 0 | F76: 0 | G76: 0 | H76: 0 | I76: 0 | K76: 0
A77: ='Org structure'!E29 -> 06.11 - Alldays Offices | C77: 0 | D77: 0 | E77: 0 | F77: 0 | G77: 0 | H77: 0 | I77: 0 | K77: 0
A78: ='Org structure'!E30 -> 06.12 - Eldorado Offices | C78: 0 | D78: 0 | E78: 0 | F78: 0 | G78: 0 | H78: 0 | I78: 0 | K78: 0
A79: ='Org structure'!E31 -> 06.13 - Tolwe Offices | C79: 0 | D79: 0 | E79: 0 | F79: 0 | G79: 0 | H79: 0 | I79: 0 | K79: 0
A80: ='Org structure'!E32 -> 06.14 - Senwabarwarna Offices | C80: 0 | D80: 0 | E80: 0 | F80: 0 | G80: 0 | H80: 0 | I80: 0 | K80: 0
A81: ='Org structure'!A8 -> Vote 07 - Econominc Development And Planning | C81: =SUM(C82:C82) -> 9851544.11 | D81: 12065788 | E81: 11401323 | F81: 742591.24 | G81: 9915749.43 | H81: 10590711 | I81: -674961.57 | J81: -0.06373146902 | K81: =SUM(K82:K82) -> 11401323
A82: ='Org structure'!E34 -> 07.1 - Economic Development And Planning | C82: 9851544.11 | D82: 12065788 | E82: 11401323 | F82: 742591.24 | G82: 9915749.43 | H82: 10590711 | I82: =G82-H82 -> -674961.57 | J82: =IF(I82=0,"",I82/H82) -> -0.06373146902 | K82: 11401323
A83: ='Org structure'!A9 -> Vote 08 - | C83: 0 | D83: 0 | E83: 0 | F83: 0 | G83: 0 | H83: 0 | I83: 0 | K83: 0
A84: ='Org structure'!A10 -> Vote 09 - | C84: 0 | D84: 0 | E84: 0 | F84: 0 | G84: 0 | H84: 0 | I84: =G84-H84 -> 0 | J84: =IF(I84=0,"",I84/H84) ->  | K84: 0
A85: ='Org structure'!A11 -> Vote 10 - | C85: 0 | D85: 0 | E85: 0 | F85: 0 | G85: 0 | H85: 0 | I85: 0 | K85: 0
A86: ='Org structure'!A12 -> Vote 11 - | C86: 0 | D86: 0 | E86: 0 | F86: 0 | G86: 0 | H86: 0 | I86: 0 | K86: 0
A87: ='Org structure'!A13 -> Vote 12 - | C87: 0 | D87: 0 | E87: 0 | F87: 0 | G87: 0 | H87: 0 | I87: 0 | K87: 0
A88: ='Org structure'!A14 -> Vote 13 - | C88: 0 | D88: 0 | E88: 0 | F88: 0 | G88: 0 | H88: 0 | I88: 0 | K88: 0
A89: ='Org structure'!A15 -> Vote 14 - | C89: 0 | D89: 0 | E89: 0 | F89: 0 | G89: 0 | H89: 0 | I89: 0 | K89: 0
A90: ='Org structure'!A16 -> Vote 15 - Other | C90: 0 | D90: 0 | E90: 0 | F90: 0 | G90: 0 | H90: 0 | I90: =G90-H90 -> 0 | J90: =IF(I90=0,"",I90/H90) ->  | K90: 0
A91: Total Expenditure by Vote | B91: 2 | C91: =C50+C52+C54+C56+C58+C66+C81+C83+C84+C85+C86+C87+C88+C89+C90 -> 275634159.3 | D91: 312413242 | E91: 314596766 | F91: 15722164.76 | G91: 211898450.8 | H91: 287803716.7 | I91: -75905265.95 | J91: -0.2637397001 | K91: =K50+K52+K54+K56+K58+K66+K81+K83+K84+K85+K86+K87+K88+K89+K90 -> 314596766
I92: 0 | L92: =#REF!-#REF! ->  | M92: =#REF!-#REF! ->  | N92: =#REF!-#REF! ->  | O92: =#REF!-#REF! ->  | P92: =#REF!-#REF! ->  | Q92: =#REF!-#REF! ->  | R92: =#REF!-#REF! ->  | S92: =#REF!-#REF! ->  | T92: =#REF!-#REF! ->  | U92: =#REF!-#REF! ->  | V92: =#REF!-#REF! ->  | W92: =#REF!-#REF! -> 
A93: =result -> Surplus/ (Deficit) for the year | B93: 2 | C93: =C47-C91 -> 15486731.02 | D93: 20704194 | E93: 15556840 | F93: -14156439.33 | G93: 103636252.4 | H93: 14856838.27 | I93: 88779414.13 | J93: 5.975659997 | K93: =K47-K91 -> 15556840
A94: =head27a -> References
A95: 1. Insert 'Vote'; e.g. Department, if different to standard structure
A96: 2. Must reconcile to Financial Performance ('Revenue and Expenditure by Standard Classification' and 'Revenue and Expenditure')
A97: 3. Assign share in 'associate' to relevant Vote
A99: check revenue
A100: check expenditure

Sheet C4-FinPerf RE
A1: =muni& " - "&S71B& " - "&date -> LIM351 Blouberg - Table C4 Monthly Budget Statement - Financial Performance (revenue and expenditure) - M11 May
A2: =desc -> Description | B2: =head27 -> Ref | C2: =Head1 -> 2018/19 | D2: =Head2 -> Budget Year 2019/20
C3: =Head5 -> Audited Outcome | D3: =Head6 -> Original Budget | E3: =Head7 -> Adjusted Budget | F3: =Head38 -> Monthly actual | G3: =Head39 -> YearTD actual | H3: =Head40 -> YearTD budget | I3: =Head41 -> YTD variance | J3: =Head41 -> YTD variance | K3: =Head8 -> Full Year Forecast
A4: R thousands | J4: %
A5: Revenue By Source
A6: Property rates | C6: 24056426.6 | D6: 28090001 | E6: 28090001 | F6: 316159.98 | G6: 25251250.8 | H6: 25749141 | I6: =G6-H6 -> -497890.2 | J6: =IF(I6=0,"",I6/H6) -> -0.01933618679 | K6: 28090001
A7: Service charges - electricity revenue | C7: 22470453.13 | D7: 32302400 | E7: 32302400 | F7: 2300539.99 | G7: 25086446.4 | H7: 29610504 | I7: -4524057.6 | J7: -0.1527855656 | K7: 32302400
A8: Service charges - water revenue | C8: 0 | D8: 0 | E8: 0 | F8: 277524.7 | G8: 4241819.86 | H8: 0 | I8: 4241819.86 | K8: 0
A9: Service charges - sanitation revenue | C9: 0 | D9: 0 | E9: 0 | F9: 62371.6 | G9: 681764.26 | H9: 0 | I9: 681764.26 | K9: 0
A10: Service charges - refuse revenue | C10: 513631.81 | D10: 534000 | E10: 784000 | F10: 116820.54 | G10: 1055034.06 | H10: 689500 | I10: 365534.06 | J10: 0.5301436693 | K10: 784000
A12: Rental of facilities and equipment | C12: 0 | D12: 200000 | E12: 200000 | F12: 0 | G12: 0 | H12: 183326 | I12: -183326 | J12: -1 | K12: 200000
A13: Interest earned - external investments | C13: 1307930.57 | D13: 1700000 | E13: 1700000 | F13: 30961.57 | G13: 836943.4 | H13: 1558326 | I13: -721382.6 | J13: -0.462921494 | K13: 1700000
A14: Interest earned - outstanding debtors | C14: 1286914.29 | D14: 616820 | E14: 616820 | F14: 175744.26 | G14: 1919219.75 | H14: 565411 | I14: 1353808.75 | J14: 2.394379929 | K14: 616820
A15: Dividends received | I15: 0
A16: Fines, penalties and forfeits | C16: 1814775.66 | D16: 3390343 | E16: 3390343 | F16: 16150 | G16: 273907.18 | H16: 3107797 | I16: -2833889.82 | J16: -0.9118645201 | K16: 3390343
A17: Licences and permits | C17: 3699165.54 | D17: 4109269 | E17: 4109269 | F17: -103762 | G17: 2636814.35 | H17: 3766807 | I17: -1129992.65 | J17: -0.2999868722 | K17: 4109269
A18: Agency services | C18: 0 | D18: 3300000 | E18: 0 | F18: -1500000 | G18: 0 | H18: 1330000 | I18: -1330000 | J18: -1 | K18: 0
A19: Transfers and subsidies | C19: 182423931.8 | D19: 210915000 | E19: 193273000 | F19: -2150000 | G19: 191084478.3 | H19: 178817739 | I19: 12266739.26 | J19: 0.06859911846 | K19: 193273000
A20: Other revenue | C20: 1672569.42 | D20: 3609603 | E20: 3609603 | F20: 23214.79 | G20: 1117024.86 | H20: 3263756 | I20: -2146731.14 | J20: -0.6577486614 | K20: 3609603
A21: Gains | C21: 0 | D21: 0 | E21: 0 | F21: 0 | G21: 0 | H21: 0 | I21: 0 | K21: 0
A22: Total Revenue (excluding capital transfers and contributions) | C22: =SUM(C6:C10)+SUM(C12:C21) -> 239245798.8 | D22: 288767436 | E22: 268075436 | F22: -434274.57 | G22: 254184703.2 | H22: 248642307 | I22: 5542396.18 | J22: 0.0222906401 | K22: =SUM(K6:K10)+SUM(K12:K21) -> 268075436
A24: Expenditure By Type
A25: Employee related costs | C25: 103612611.1 | D25: 123855157 | E25: 120627836 | F25: 8826939.72 | G25: 98876723.37 | H25: 110952839.2 | I25: =G25-H25 -> -12076115.83 | J25: =IF(I25=0,"",I25/H25) -> -0.1088400794 | K25: 120627836
A26: Remuneration of councillors | C26: 16186992.01 | D26: 15433577 | E26: 17090931 | F26: 1405597.33 | G26: 15101971.37 | H26: 15473423.2 | I26: -371451.83 | J26: -0.0240057953 | K26: 17090931
A27: Debt impairment | C27: -2313301.99 | D27: 8330407 | E27: 8330407 | F27: 0 | G27: 0 | H27: 7636211 | I27: -7636211 | J27: -1 | K27: 8330407
A28: Depreciation & asset impairment | C28: 35256654.26 | D28: 41673731 | E28: 41117719 | F28: 0 | G28: 0 | H28: 37756144.4 | I28: -37756144.4 | J28: -1 | K28: 41117719
A29: Finance charges | I29: 0
A30: Bulk purchases | C30: 29686446.43 | D30: 31000000 | E30: 35000000 | F30: 99308.96 | G30: 29255211.05 | H30: 31616674 | I30: -2361462.95 | J30: -0.07469042917 | K30: 35000000
A31: Other materials | C31: 1883873.03 | D31: 2615000 | E31: 1695450 | F31: 206515 | G31: 1300211.78 | H31: 1970197 | I31: -669985.22 | J31: -0.3400600143 | K31: 1695450
A32: Contracted services | C32: 45322853.94 | D32: 40679970 | E32: 46659096 | F32: 2886252 | G32: 32569571.02 | H32: 40711287.84 | I32: -8141716.82 | J32: -0.1999867175 | K32: 46659096
A33: Transfers and subsidies | C33: 73220 | D33: 0 | E33: 0 | F33: 0 | G33: 0 | H33: 0 | I33: 0 | K33: 0
A34: Other expenditure | C34: 45805680.72 | D34: 48825400 | E34: 44075327 | F34: 2297551.75 | G34: 34794762.19 | H34: 41686940.09 | I34: -6892177.9 | J34: -0.1653318254 | K34: 44075327
A35: Losses | C35: 119129.79 | D35: 0 | E35: 0 | F35: 0 | G35: 0 | H35: 0 | I35: 0 | K35: 0
A36: Total Expenditure | C36: =SUM(C25:C35) -> 275634159.3 | D36: =SUM(D25:D35) -> 312413242 | E36: =SUM(E25:E35) -> 314596766 | F36: 15722164.76 | G36: 211898450.8 | H36: 287803716.7 | I36: -75905265.95 | J36: -0.2637397001 | K36: 314596766
A38: Surplus/(Deficit) | C38: =C22-C36 -> -36388360.47 | D38: -23645806 | E38: -46521330 | F38: -16156439.33 | G38: 42286252.4 | H38: -39161409.73 | I38: =I22-I36 -> 81447662.13 | J38: -2.079793927 | K38: =K22-K36 -> -46521330
A39: Transfers and subsidies - capital (monetary allocations) (National / Provincial and District) | C39: 51875091.49 | D39: 44350000 | E39: 62078170 | F39: 2000000 | G39: 61350000 | H39: 54018248 | I39: =G39-H39 -> 7331752 | J39: 0.1357273194 | K39: 62078170
A40: Transfers and subsidies - capital (monetary allocations) (National / Provincial Departmental Agencies, Households, Non-profit Institutions, Private Enterprises, Public Corporatons, Higher Educational Institutions) | I40: =G40-H40 -> 0
A41: Transfers and subsidies - capital (in-kind - all) | C41: 0 | D41: 0 | E41: 0 | F41: 0 | G41: 0 | H41: 0 | I41: =G41-H41 -> 0 | K41: 0
A42: Surplus/(Deficit) after capital transfers & contributions | C42: =C38+SUM(C39:C41) -> 15486731.02 | D42: 20704194 | E42: 15556840 | F42: -14156439.33 | G42: 103636252.4 | H42: 14856838.27 | K42: =K38+SUM(K39:K41) -> 15556840
A43: Taxation | I43: =G43-H43 -> 0 | J43: =IF(I43=0,"",I43/H43) -> 
A44: Surplus/(Deficit) after taxation | C44: =C42-C43 -> 15486731.02 | D44: 20704194 | E44: 15556840 | F44: -14156439.33 | G44: 103636252.4 | H44: 14856838.27 | K44: =K42-K43 -> 15556840
A45: Attributable to minorities
A46: Surplus/(Deficit) attributable to municipality | C46: =SUM(C44:C45) -> 15486731.02 | D46: 20704194 | E46: 15556840 | F46: -14156439.33 | G46: 103636252.4 | H46: 14856838.27 | K46: =SUM(K44:K45) -> 15556840
A47: Share of surplus/ (deficit) of associate
A48: Surplus/ (Deficit) for the year | C48: =C46+C47 -> 15486731.02 | D48: 20704194 | E48: 15556840 | F48: -14156439.33 | G48: 103636252.4 | H48: 14856838.27 | K48: =K46+K47 -> 15556840
A49: =head27a -> References
A50: 1. Material variances to be explained on Table SC1
A53: =A22&" including capital transfers/contributions etc" -> Total Revenue (excluding capital transfers and contributions) including capital transfers/contributions etc | C53: =C22+SUM(C39:C41) -> 291120890.3 | D53: 333117436 | E53: 330153606 | F53: 1565725.43 | G53: 315534703.2 | H53: 302660555 | K53: =K22+SUM(K39:K41) -> 330153606

Sheet C5-Capex
A1: =muni& " - "&S71D& " - "&date -> LIM351 Blouberg - Table C5 Monthly Budget Statement - Capital Expenditure (municipal vote, functional classification and funding) - M11 May
A2: =Vdesc -> Vote Description | B2: =head27 -> Ref | C2: =Head1 -> 2018/19 | D2: =Head2 -> Budget Year 2019/20
C3: =Head5 -> Audited Outcome | D3: =Head6 -> Original Budget | E3: =Head7 -> Adjusted Budget | F3: =Head38 -> Monthly actual | G3: =Head39 -> YearTD actual | H3: =Head40 -> YearTD budget | I3: =Head41 -> YTD variance | J3: =Head41 -> YTD variance | K3: =Head8 -> Full Year Forecast
A4: R thousands | B4: 1 | J4: %
A5: Multi-Year expenditure appropriation | B5: 2
A6: ='Org structure'!A2 -> Vote 01 - Executive & Council | C6: ='C5C'!C7 -> 0 | D6: ='C5C'!D7 -> 0 | E6: ='C5C'!E7 -> 0 | F6: ='C5C'!F7 -> 0 | G6: ='C5C'!G7 -> 0 | H6: ='C5C'!H7 -> 0 | I6: =G6-H6 -> 0 | J6: =IF(I6=0,"",I6/H6) ->  | K6: ='C5C'!K7 -> 0
A7: ='Org structure'!A3 -> Vote 02 - Finance And Administration | C7: ='C5C'!C9 -> 0 | D7: ='C5C'!D9 -> 100000 | E7: ='C5C'!E9 -> 56930 | F7: ='C5C'!F9 -> 0 | G7: ='C5C'!G9 -> 56930 | H7: ='C5C'!H9 -> 57218 | I7: -288 | J7: -0.005033381104 | K7: ='C5C'!K9 -> 56930
A8: ='Org structure'!A4 -> Vote 03 - Community Service | C8: ='C5C'!C11 -> 0 | D8: ='C5C'!D11 -> 0 | E8: ='C5C'!E11 -> 0 | F8: ='C5C'!F11 -> 0 | G8: ='C5C'!G11 -> 0 | H8: ='C5C'!H11 -> 0 | I8: 0 | K8: ='C5C'!K11 -> 0
A9: ='Org structure'!A5 -> Vote 04 - Public And Safety | C9: ='C5C'!C13 -> 0 | D9: ='C5C'!D13 -> 0 | E9: ='C5C'!E13 -> 0 | F9: ='C5C'!F13 -> 0 | G9: ='C5C'!G13 -> 0 | H9: ='C5C'!H13 -> 0 | I9: 0 | K9: ='C5C'!K13 -> 0
A10: ='Org structure'!A6 -> Vote 05 - Waste Management | C10: ='C5C'!C15 -> 0 | D10: ='C5C'!D15 -> 0 | E10: ='C5C'!E15 -> 0 | F10: ='C5C'!F15 -> 0 | G10: ='C5C'!G15 -> 0 | H10: ='C5C'!H15 -> 0 | I10: 0 | K10: ='C5C'!K15 -> 0
A11: ='Org structure'!A7 -> Vote 06 - Roads Services | C11: ='C5C'!C23 -> 0 | D11: ='C5C'!D23 -> 0 | E11: ='C5C'!E23 -> 0 | F11: ='C5C'!F23 -> 0 | G11: ='C5C'!G23 -> 0 | H11: ='C5C'!H23 -> 0 | I11: 0 | K11: ='C5C'!K23 -> 0
A12: ='Org structure'!A8 -> Vote 07 - Econominc Development And Planning | C12: ='C5C'!C38 -> 0 | D12: ='C5C'!D38 -> 0 | E12: ='C5C'!E38 -> 0 | F12: ='C5C'!F38 -> 0 | G12: ='C5C'!G38 -> 0 | H12: ='C5C'!H38 -> 0 | I12: 0 | K12: ='C5C'!K38 -> 0
A13: ='Org structure'!A9 -> Vote 08 - | C13: ='C5C'!C40 -> 0 | D13: ='C5C'!D40 -> 0 | E13: ='C5C'!E40 -> 0 | F13: ='C5C'!F40 -> 0 | G13: ='C5C'!G40 -> 0 | H13: ='C5C'!H40 -> 0 | I13: =G13-H13 -> 0 | J13: =IF(I13=0,"",I13/H13) ->  | K13: ='C5C'!K40 -> 0
A14: ='Org structure'!A10 -> Vote 09 - | C14: ='C5C'!C41 -> 0 | D14: ='C5C'!D41 -> 0 | E14: ='C5C'!E41 -> 0 | F14: ='C5C'!F41 -> 0 | G14: ='C5C'!G41 -> 0 | H14: ='C5C'!H41 -> 0 | I14: 0 | K14: ='C5C'!K41 -> 0
A15: ='Org structure'!A11 -> Vote 10 - | C15: ='C5C'!C42 -> 0 | D15: ='C5C'!D42 -> 0 | E15: ='C5C'!E42 -> 0 | F15: ='C5C'!F42 -> 0 | G15: ='C5C'!G42 -> 0 | H15: ='C5C'!H42 -> 0 | I15: 0 | K15: ='C5C'!K42 -> 0
A16: ='Org structure'!A12 -> Vote 11 - | C16: ='C5C'!C43 -> 0 | D16: ='C5C'!D43 -> 0 | E16: ='C5C'!E43 -> 0 | F16: ='C5C'!F43 -> 0 | G16: ='C5C'!G43 -> 0 | H16: ='C5C'!H43 -> 0 | I16: 0 | K16: ='C5C'!K43 -> 0
A17: ='Org structure'!A13 -> Vote 12 - | C17: ='C5C'!C44 -> 0 | D17: ='C5C'!D44 -> 0 | E17: ='C5C'!E44 -> 0 | F17: ='C5C'!F44 -> 0 | G17: ='C5C'!G44 -> 0 | H17: ='C5C'!H44 -> 0 | I17: 0 | K17: ='C5C'!K44 -> 0
A18: ='Org structure'!A14 -> Vote 13 - | C18: ='C5C'!C45 -> 0 | D18: ='C5C'!D45 -> 0 | E18: ='C5C'!E45 -> 0 | F18: ='C5C'!F45 -> 0 | G18: ='C5C'!G45 -> 0 | H18: ='C5C'!H45 -> 0 | I18: =G18-H18 -> 0 | J18: =IF(I18=0,"",I18/H18) ->  | K18: ='C5C'!K45 -> 0
A19: ='Org structure'!A15 -> Vote 14 - | C19: ='C5C'!C46 -> 0 | D19: ='C5C'!D46 -> 0 | E19: ='C5C'!E46 -> 0 | F19: ='C5C'!F46 -> 0 | G19: ='C5C'!G46 -> 0 | H19: ='C5C'!H46 -> 0 | I19: =G19-H19 -> 0 | J19: =IF(I19=0,"",I19/H19) ->  | K19: ='C5C'!K46 -> 0
A20: ='Org structure'!A16 -> Vote 15 - Other | C20: ='C5C'!C47 -> 0 | D20: ='C5C'!D47 -> 0 | E20: ='C5C'!E47 -> 0 | F20: ='C5C'!F47 -> 0 | G20: ='C5C'!G47 -> 0 | H20: ='C5C'!H47 -> 0 | I20: =G20-H20 -> 0 | J20: =IF(I20=0,"",I20/H20) ->  | K20: ='C5C'!K47 -> 0
A21: Total Capital Multi-year expenditure | B21: 4,7 | C21: =SUM(C6:C20) -> 0 | D21: =SUM(D6:D20) -> 100000 | E21: 56930 | F21: 0 | G21: 56930 | H21: 57218 | I21: -288 | J21: =IF(I21=0,"",I21/H21) -> -0.005033381104 | K21: =SUM(K6:K20) -> 56930
A23: Single Year expenditure appropriation | B23: 2
A24: ='C5C'!A52 -> Vote 01 - Executive & Council | C24: ='C5C'!C52 -> 0 | D24: ='C5C'!D52 -> 0 | E24: ='C5C'!E52 -> 0 | F24: ='C5C'!F52 -> 0 | G24: ='C5C'!G52 -> 0 | H24: ='C5C'!H52 -> 0 | I24: =G24-H24 -> 0 | J24: =IF(I24=0,"",I24/H24) ->  | K24: ='C5C'!K52 -> 0
A25: ='C5C'!A54 -> Vote 02 - Finance And Administration | C25: ='C5C'!C54 -> 0 | D25: ='C5C'!D54 -> 0 | E25: ='C5C'!E54 -> 0 | F25: ='C5C'!F54 -> 0 | G25: ='C5C'!G54 -> 0 | H25: ='C5C'!H54 -> 0 | I25: 0 | K25: ='C5C'!K54 -> 0
A26: ='C5C'!A56 -> Vote 03 - Community Service | C26: ='C5C'!C56 -> 1389839.35 | D26: ='C5C'!D56 -> 950000 | E26: ='C5C'!E56 -> 950000 | F26: ='C5C'!F56 -> 0 | G26: ='C5C'!G56 -> 523768.82 | H26: ='C5C'!H56 -> 870837 | I26: -347068.18 | J26: -0.3985455143 | K26: ='C5C'!K56 -> 950000
A27: ='C5C'!A58 -> Vote 04 - Public And Safety | C27: ='C5C'!C58 -> 0 | D27: ='C5C'!D58 -> 0 | E27: ='C5C'!E58 -> 0 | F27: ='C5C'!F58 -> 0 | G27: ='C5C'!G58 -> 0 | H27: ='C5C'!H58 -> 0 | I27: 0 | K27: ='C5C'!K58 -> 0
A28: ='C5C'!A60 -> Vote 05 - Waste Management | C28: ='C5C'!C60 -> 708928.26 | D28: ='C5C'!D60 -> 66127500 | E28: ='C5C'!E60 -> 62492617 | F28: ='C5C'!F60 -> 3507212.3 | G28: ='C5C'!G60 -> 36779775.46 | H28: ='C5C'!H60 -> 57709062.6 | I28: -20929287.14 | J28: -0.3626689847 | K28: ='C5C'!K60 -> 62492617
A29: ='C5C'!A68 -> Vote 06 - Roads Services | C29: ='C5C'!C68 -> 143141.31 | D29: ='C5C'!D68 -> 2355000 | E29: ='C5C'!E68 -> 885600 | F29: ='C5C'!F68 -> 234400 | G29: ='C5C'!G68 -> 808572.79 | H29: ='C5C'!H68 -> 983252 | I29: -174679.21 | J29: -0.1776545687 | K29: ='C5C'!K68 -> 885600
A30: ='C5C'!A83 -> Vote 07 - Econominc Development And Planning | C30: ='C5C'!C83 -> 0 | D30: ='C5C'!D83 -> 0 | E30: ='C5C'!E83 -> 0 | F30: ='C5C'!F83 -> 0 | G30: ='C5C'!G83 -> 0 | H30: ='C5C'!H83 -> 0 | I30: 0 | K30: ='C5C'!K83 -> 0
A31: ='Org structure'!A9 -> Vote 08 - | C31: ='C5C'!C85 -> 0 | D31: ='C5C'!D85 -> 0 | E31: ='C5C'!E85 -> 0 | F31: ='C5C'!F85 -> 0 | G31: ='C5C'!G85 -> 0 | H31: ='C5C'!H85 -> 0 | I31: ='C5C'!I85 -> 0 | J31: =IF(I31=0,"",I31/H31) ->  | K31: ='C5C'!K85 -> 0
A32: ='Org structure'!A10 -> Vote 09 - | C32: ='C5C'!C86 -> 0 | D32: ='C5C'!D86 -> 0 | E32: ='C5C'!E86 -> 0 | F32: ='C5C'!F86 -> 0 | G32: ='C5C'!G86 -> 0 | H32: ='C5C'!H86 -> 0 | I32: ='C5C'!I86 -> 0 | K32: ='C5C'!K86 -> 0
A33: ='Org structure'!A11 -> Vote 10 - | C33: ='C5C'!C87 -> 0 | D33: ='C5C'!D87 -> 0 | E33: ='C5C'!E87 -> 0 | F33: ='C5C'!F87 -> 0 | G33: ='C5C'!G87 -> 0 | H33: ='C5C'!H87 -> 0 | I33: ='C5C'!I87 -> 0 | K33: ='C5C'!K87 -> 0
A34: ='Org structure'!A12 -> Vote 11 - | C34: ='C5C'!C88 -> 0 | D34: ='C5C'!D88 -> 0 | E34: ='C5C'!E88 -> 0 | F34: ='C5C'!F88 -> 0 | G34: ='C5C'!G88 -> 0 | H34: ='C5C'!H88 -> 0 | I34: ='C5C'!I88 -> 0 | K34: ='C5C'!K88 -> 0
A35: ='Org structure'!A13 -> Vote 12 - | C35: ='C5C'!C89 -> 0 | D35: ='C5C'!D89 -> 0 | E35: ='C5C'!E89 -> 0 | F35: ='C5C'!F89 -> 0 | G35: ='C5C'!G89 -> 0 | H35: ='C5C'!H89 -> 0 | I35: ='C5C'!I89 -> 0 | K35: ='C5C'!K89 -> 0
A36: ='Org structure'!A14 -> Vote 13 - | C36: ='C5C'!C90 -> 0 | D36: ='C5C'!D90 -> 0 | E36: ='C5C'!E90 -> 0 | F36: ='C5C'!F90 -> 0 | G36: ='C5C'!G90 -> 0 | H36: ='C5C'!H90 -> 0 | I36: ='C5C'!I90 -> 0 | K36: ='C5C'!K90 -> 0
A37: ='Org structure'!A15 -> Vote 14 - | C37: ='C5C'!C91 -> 0 | D37: ='C5C'!D91 -> 0 | E37: ='C5C'!E91 -> 0 | F37: ='C5C'!F91 -> 0 | G37: ='C5C'!G91 -> 0 | H37: ='C5C'!H91 -> 0 | I37: ='C5C'!I91 -> 0 | K37: ='C5C'!K91 -> 0
A38: ='Org structure'!A16 -> Vote 15 - Other | C38: ='C5C'!C92 -> 0 | D38: ='C5C'!D92 -> 0 | E38: ='C5C'!E92 -> 0 | F38: ='C5C'!F92 -> 0 | G38: ='C5C'!G92 -> 0 | H38: ='C5C'!H92 -> 0 | I38: ='C5C'!I92 -> 0 | K38: ='C5C'!K92 -> 0
A39: Total Capital single-year expenditure | B39: 4 | C39: =SUM(C24:C38) -> 2241908.92 | D39: 69432500 | E39: 64328217 | F39: 3741612.3 | G39: 38112117.07 | H39: 59563151.6 | I39: -21451034.53 | J39: -0.3601393471 | K39: =SUM(K24:K38) -> 64328217
A40: Total Capital Expenditure | C40: =C39+C21 -> 2241908.92 | D40: 69532500 | E40: 64385147 | F40: 3741612.3 | G40: 38169047.07 | H40: 59620369.6 | I40: -21451322.53 | J40: =IF(I40=0,"",I40/H40) -> -0.35979855 | K40: =K39+K21 -> 64385147
A42: Capital Expenditure - Functional Classification
A43: Governance and administration | C43: =SUM(C44:C46) -> 1389839.35 | D43: 1050000 | E43: 1006930 | F43: 0 | G43: 580698.82 | H43: 928055 | I43: =G43-H43 -> -347356.18 | J43: =IF(I43=0,"",I43/H43) -> -0.3742840457 | K43: =SUM(K44:K46) -> 1006930
A44: Executive and council | C44: 0 | D44: 100000 | E44: 56930 | F44: 0 | G44: 56930 | H44: 57218 | I44: -288 | J44: =IF(I44=0,"",I44/H44) -> -0.005033381104 | K44: 56930
A45: Finance and administration | C45: 1389839.35 | D45: 950000 | E45: 950000 | F45: 0 | G45: 523768.82 | H45: 870837 | I45: -347068.18 | J45: -0.3985455143 | K45: 950000
A46: Internal audit | I46: 0
A47: Community and public safety | C47: =SUM(C48:C52) -> 143141.31 | D47: 1300000 | E47: 0 | F47: 0 | G47: 0 | H47: 151674 | I47: -151674 | J47: -1 | K47: =SUM(K48:K52) -> 0
A48: Community and social services | I48: 0
A49: Sport and recreation | I49: 0
A50: Public safety | C50: 143141.31 | D50: 1300000 | E50: 0 | F50: 0 | G50: 0 | H50: 151674 | I50: -151674 | J50: -1 | K50: 0
A51: Housing | I51: 0
A52: Health | I52: 0
A53: Economic and environmental services | C53: =SUM(C54:C56) -> 0 | D53: 2020000 | E53: 23931091 | F53: 1701411.4 | G53: 15875295.32 | H53: 21883991.93 | I53: -6008696.61 | J53: -0.2745704088 | K53: =SUM(K54:K56) -> 23931091
A54: Planning and development | C54: 0 | D54: 0 | E54: 0 | F54: 0 | G54: 0 | H54: 0 | I54: 0 | K54: 0
A55: Road transport | C55: 0 | D55: 2020000 | E55: 23931091 | F55: 1701411.4 | G55: 15875295.32 | H55: 21883991.93 | I55: -6008696.61 | J55: -0.2745704088 | K55: 23931091
A56: Environmental protection | I56: 0
A57: Trading services | C57: =SUM(C58:C61) -> 708928.26 | D57: 65162500 | E57: 39447126 | F57: 2040200.9 | G57: 21713052.93 | H57: 36656648.67 | I57: -14943595.74 | J57: -0.4076639923 | K57: =SUM(K58:K61) -> 39447126
A58: Energy sources | C58: 708928.26 | D58: 64107500 | E58: 38561526 | F58: 1805800.9 | G58: 20904480.14 | H58: 35825070.67 | I58: -14920590.53 | J58: -0.4164846084 | K58: 38561526
A59: Water management | I59: 0
A60: Waste water management | C60: 0 | D60: 0 | E60: 0 | F60: 0 | G60: 0 | H60: 0 | I60: 0 | K60: 0
A61: Waste management | C61: 0 | D61: 1055000 | E61: 885600 | F61: 234400 | G61: 808572.79 | H61: 831578 | I61: -23005.21 | J61: -0.02766452455 | K61: 885600
A62: Other | I62: 0
A63: Total Capital Expenditure - Functional Classification | B63: 3 | C63: =C43+C47+C53+C57+C62 -> 2241908.92 | D63: =D43+D47+D53+D57+D62 -> 69532500 | E63: 64385147 | F63: 3741612.3 | G63: 38169047.07 | H63: 59620369.6 | I63: -21451322.53 | J63: -0.35979855 | K63: =K43+K47+K53+K57+K62 -> 64385147
A65: Funded by:
A66: National Government | C66: 0 | D66: 57482500 | E66: 59402500 | F66: 4073805.56 | G66: 35287872.45 | H66: 53628376 | I66: =G66-H66 -> -18340503.55 | J66: =IF(I66=0,"",I66/H66) -> -0.3419925218 | K66: 59402500
A67: Provincial Government | I67: 0
A68: District Municipality | I68: 0
A69: ='C4-FinPerf RE'!A40 -> Transfers and subsidies - capital (monetary allocations) (National / Provincial Departmental Agencies, Households, Non-profit Institutions, Private Enterprises, Public Corporatons, Higher Educational Institutions) | C69: 0 | D69: 6000000 | E69: 728171 | F69: -462070.19 | G69: 962948.03 | H69: 1882509.8 | I69: -919561.77 | J69: -0.488476485 | K69: 728171
A70: Transfers recognised - capital | C70: =SUM(C66:C69) -> 0 | D70: 63482500 | E70: 60130671 | F70: 3611735.37 | G70: 36250820.48 | H70: 55510885.8 | I70: -19260065.32 | J70: -0.346960151 | K70: =SUM(K66:K69) -> 60130671
A72: Borrowing | B72: 6 | C72: 0 | D72: 200000 | E72: 78634 | F72: 0 | G72: 0 | H72: 86244.2 | I72: -86244.2 | J72: -1 | K72: 78634
A73: Internally generated funds | C73: 957161.79 | D73: 5850000 | E73: 4175842 | F73: 129876.93 | G73: 1918226.59 | H73: 4023239.6 | I73: -2105013.01 | J73: -0.5232134348 | K73: 4175842
A74: Total Capital Funding | C74: =+C70+C72+C73 -> 957161.79 | D74: 69532500 | E74: 64385147 | F74: 3741612.3 | G74: 38169047.07 | H74: 59620369.6 | I74: -21451322.53 | J74: -0.35979855 | K74: =+K70+K72+K73 -> 64385147
A75: =head27a -> References
A76: 1. Municipalities may choose to appropriate for capital expenditure for three years or for one year (if one year appropriation projected expenditure required for yr2 and yr3).
A77: 2. Include capital component of PPP unitary payment
A78: 3. Capital expenditure by functional classification must reconcile to the total of multi-year and single year appropriations
A79: 4. Include expenditure on investment property, intangible and biological assets
A81: 6. Include finance leases and PPP capital funding component of unitary payment - total borrowing/repayments to reconcile to changes in Table SA17
A86: check balance | C86: =C40-C74 -> 1284747.13 | D86: =D40-D74 -> 0 | E86: 0 | F86: 0 | G86: 0 | H86: 0 | K86: 0

Sheet C5C
A1: =muni& " - "&S71D& " - "&"A"& " - "&date -> LIM351 Blouberg - Table C5 Monthly Budget Statement - Capital Expenditure (municipal vote, functional classification and funding) - A - M11 May
A2: =Vdesc -> Vote Description | B2: =head27 -> Ref | C2: =Head1 -> 2018/19 | D2: =Head2 -> Budget Year 2019/20 | L2: =Head4 -> 
A3: R thousand | C3: =Head5 -> Audited Outcome | D3: =Head6 -> Original Budget | E3: =Head7 -> Adjusted Budget | F3: =Head38 -> Monthly actual | G3: =Head39 -> YearTD actual | H3: =Head40 -> YearTD budget | I3: =Head41 -> YTD variance | J3: =Head41 -> YTD variance | K3: =Head8 -> Full Year Forecast | L3: =Head12 -> Forecast 2010/11 | M3: =Head13 -> Forecast 2011/12 | N3: =Head14 -> Forecast 2012/13 | O3: =Head15 -> Forecast 2013/14 | P3: =Head16 -> Forecast 2014/15 | Q3: =Head17 -> Forecast 2015/16 | R3: =Head18 -> Forecast 2016/17 | S3: =Head19 -> Forecast 2017/18 | T3: =Head20 -> Forecast 2018/19 | U3: =Head21 -> Forecast 2019/20 | V3: =Head22 -> Forecast 2020/21 | W3: =Head23 -> Forecast 2021/22
J4: %
A5: Capital expenditure - Municipal Vote
A6: Expenditure of multi-year capital appropriation | B6: 1
A7: ='Org structure'!A2 -> Vote 01 - Executive & Council | C7: =SUM(C8:C8) -> 0 | D7: 0 | E7: 0 | F7: 0 | G7: 0 | H7: 0 | I7: =G7-H7 -> 0 | J7: =IF(I7=0,"",I7/H7) ->  | K7: =SUM(K8:K8) -> 0
A8: ='Org structure'!E3 -> 01.1 - Council General | I8: =G8-H8 -> 0 | J8: =IF(I8=0,"",I8/H8) ->  | K8: 0
A9: ='Org structure'!A3 -> Vote 02 - Finance And Administration | C9: =SUM(C10:C10) -> 0 | D9: 100000 | E9: 56930 | F9: 0 | G9: 56930 | H9: 57218 | I9: -288 | J9: -0.005033381104 | K9: =SUM(K10:K10) -> 56930
A10: ='Org structure'!E5 -> 02.1 - Municipal Manager | C10: 0 | D10: 100000 | E10: 56930 | F10: 0 | G10: 56930 | H10: 57218 | I10: =G10-H10 -> -288 | J10: =IF(I10=0,"",I10/H10) -> -0.005033381104 | K10: 56930
A11: ='Org structure'!A4 -> Vote 03 - Community Service | C11: =SUM(C12:C12) -> 0 | D11: 0 | E11: 0 | F11: 0 | G11: 0 | H11: 0 | I11: 0 | K11: =SUM(K12:K12) -> 0
A12: ='Org structure'!E7 -> 03.1 - Finance Services Administration | I12: =G12-H12 -> 0 | J12: =IF(I12=0,"",I12/H12) ->  | K12: 0
A13: ='Org structure'!A5 -> Vote 04 - Public And Safety | C13: =SUM(C14:C14) -> 0 | D13: 0 | E13: 0 | F13: 0 | G13: 0 | H13: 0 | I13: 0 | K13: =SUM(K14:K14) -> 0
A14: ='Org structure'!E9 -> 04.1 - Corporate Services Administration | I14: =G14-H14 -> 0 | J14: =IF(I14=0,"",I14/H14) ->  | K14: 0
A15: ='Org structure'!A6 -> Vote 05 - Waste Management | C15: =SUM(C16:C22) -> 0 | D15: 0 | E15: 0 | F15: 0 | G15: 0 | H15: 0 | I15: 0 | K15: =SUM(K16:K22) -> 0
A16: ='Org structure'!E11 -> 05.1 - Technical Services Administration | I16: =G16-H16 -> 0 | J16: =IF(I16=0,"",I16/H16) ->  | K16: 0
A17: ='Org structure'!E12 -> 05.2 - Electrical Services | I17: 0 | K17: 0
A18: ='Org structure'!E13 -> 05.3 - Water Services | I18: 0 | K18: 0
A19: ='Org structure'!E14 -> 05.4 - Sanitation Services | I19: 0 | K19: 0
A20: ='Org structure'!E15 -> 05.5 - Roads Services | I20: 0 | K20: 0
A21: ='Org structure'!E16 -> 05.6 - Storm Water Services | I21: 0 | K21: 0
A22: ='Org structure'!E17 -> 05.7 - Water Reporting Function | I22: 0 | K22: 0
A23: ='Org structure'!A7 -> Vote 06 - Roads Services | C23: =SUM(C24:C37) -> 0 | D23: 0 | E23: 0 | F23: 0 | G23: 0 | H23: 0 | I23: 0 | K23: =SUM(K24:K37) -> 0
A24: ='Org structure'!E19 -> 06.1 - Community Services Administration | I24: =G24-H24 -> 0 | J24: =IF(I24=0,"",I24/H24) ->  | K24: 0
A25: ='Org structure'!E20 -> 06.2 - Traffic Services | I25: 0 | K25: 0
A26: ='Org structure'!E21 -> 06.3 - Traffic Services | I26: 0 | K26: 0
A27: ='Org structure'!E22 -> 06.4 - Libraries | I27: 0 | K27: 0
A28: ='Org structure'!E23 -> 06.5 - Sport | I28: 0 | K28: 0
A29: ='Org structure'!E24 -> 06.6 - Cemetery | I29: 0 | K29: 0
A30: ='Org structure'!E25 -> 06.7 - Refuse | I30: 0 | K30: 0
A31: ='Org structure'!E26 -> 06.8 - Pound Services | I31: 0 | K31: 0
A32: ='Org structure'!E27 -> 06.9 - Pound Services | I32: 0 | K32: 0
A33: ='Org structure'!E28 -> 06.10 - Satellite Offices | I33: 0 | K33: 0
A34: ='Org structure'!E29 -> 06.11 - Alldays Offices | I34: 0 | K34: 0
A35: ='Org structure'!E30 -> 06.12 - Eldorado Offices | I35: 0 | K35: 0
A36: ='Org structure'!E31 -> 06.13 - Tolwe Offices | I36: 0 | K36: 0
A37: ='Org structure'!E32 -> 06.14 - Senwabarwarna Offices | I37: 0 | K37: 0
A38: ='Org structure'!A8 -> Vote 07 - Econominc Development And Planning | C38: =SUM(C39:C39) -> 0 | D38: 0 | E38: 0 | F38: 0 | G38: 0 | H38: 0 | I38: =G38-H38 -> 0 | J38: =IF(I38=0,"",I38/H38) ->  | K38: =SUM(K39:K39) -> 0
A39: ='Org structure'!E34 -> 07.1 - Economic Development And Planning | I39: =G39-H39 -> 0 | J39: =IF(I39=0,"",I39/H39) ->  | K39: 0
A40: ='Org structure'!A9 -> Vote 08 - | C40: 0 | D40: 0 | E40: 0 | F40: 0 | G40: 0 | H40: 0 | I40: 0 | K40: 0
A41: ='Org structure'!A10 -> Vote 09 - | C41: 0 | D41: 0 | E41: 0 | F41: 0 | G41: 0 | H41: 0 | I41: 0 | K41: 0
A42: ='Org structure'!A11 -> Vote 10 - | C42: 0 | D42: 0 | E42: 0 | F42: 0 | G42: 0 | H42: 0 | I42: 0 | K42: 0
A43: ='Org structure'!A12 -> Vote 11 - | C43: 0 | D43: 0 | E43: 0 | F43: 0 | G43: 0 | H43: 0 | I43: 0 | K43: 0
A44: ='Org structure'!A13 -> Vote 12 - | C44: 0 | D44: 0 | E44: 0 | F44: 0 | G44: 0 | H44: 0 | I44: 0 | K44: 0
A45: ='Org structure'!A14 -> Vote 13 - | C45: 0 | D45: 0 | E45: 0 | F45: 0 | G45: 0 | H45: 0 | I45: =G45-H45 -> 0 | J45: =IF(I45=0,"",I45/H45) ->  | K45: 0
A46: ='Org structure'!A15 -> Vote 14 - | C46: 0 | D46: 0 | E46: 0 | F46: 0 | G46: 0 | H46: 0 | I46: 0 | K46: 0
A47: ='Org structure'!A16 -> Vote 15 - Other | C47: 0 | D47: 0 | E47: 0 | F47: 0 | G47: 0 | H47: 0 | I47: 0 | K47: 0
A48: Total multi-year capital expenditure | C48: =C7+C9+C11+C13+C15+C23+C38+C40+C41+C42+C43+C44+C45+C46+C47 -> 0 | D48: 100000 | E48: 56930 | F48: 0 | G48: 56930 | H48: 57218 | I48: -288 | J48: -0.005033381104 | K48: =K7+K9+K11+K13+K15+K23+K38+K40+K41+K42+K43+K44+K45+K46+K47 -> 56930
I49: 0
A50: Capital expenditure - Municipal Vote
A51: Expenditue of single-year capital appropriation | B51: 1 | I51: 0
A52: ='Org structure'!A2 -> Vote 01 - Executive & Council | C52: =SUM(C53:C53) -> 0 | D52: 0 | E52: 0 | F52: 0 | G52: 0 | H52: 0 | I52: 0 | K52: =SUM(K53:K53) -> 0
A53: ='Org structure'!E3 -> 01.1 - Council General | C53: 0 | D53: 0 | E53: 0 | F53: 0 | G53: 0 | H53: 0 | I53: 0 | K53: 0
A54: ='Org structure'!A3 -> Vote 02 - Finance And Administration | C54: =SUM(C55:C55) -> 0 | D54: 0 | E54: 0 | F54: 0 | G54: 0 | H54: 0 | I54: 0 | K54: =SUM(K55:K55) -> 0
A55: ='Org structure'!E5 -> 02.1 - Municipal Manager | C55: 0 | D55: 0 | E55: 0 | F55: 0 | G55: 0 | H55: 0 | I55: 0 | K55: 0
A56: ='Org structure'!A4 -> Vote 03 - Community Service | C56: =SUM(C57:C57) -> 1389839.35 | D56: 950000 | E56: 950000 | F56: 0 | G56: 523768.82 | H56: 870837 | I56: -347068.18 | J56: -0.3985455143 | K56: =SUM(K57:K57) -> 950000
A57: ='Org structure'!E7 -> 03.1 - Finance Services Administration | C57: 1389839.35 | D57: 950000 | E57: 950000 | F57: 0 | G57: 523768.82 | H57: 870837 | I57: -347068.18 | J57: -0.3985455143 | K57: 950000
A58: ='Org structure'!A5 -> Vote 04 - Public And Safety | C58: =SUM(C59:C59) -> 0 | D58: 0 | E58: 0 | F58: 0 | G58: 0 | H58: 0 | I58: =G58-H58 -> 0 | J58: =IF(I58=0,"",I58/H58) ->  | K58: =SUM(K59:K59) -> 0
A59: ='Org structure'!E9 -> 04.1 - Corporate Services Administration | C59: 0 | D59: 0 | E59: 0 | F59: 0 | G59: 0 | H59: 0 | I59: 0 | K59: 0
A60: ='Org structure'!A6 -> Vote 05 - Waste Management | C60: =SUM(C61:C67) -> 708928.26 | D60: 66127500 | E60: 62492617 | F60: 3507212.3 | G60: 36779775.46 | H60: 57709062.6 | I60: -20929287.14 | J60: -0.3626689847 | K60: =SUM(K61:K67) -> 62492617
A61: ='Org structure'!E11 -> 05.1 - Technical Services Administration | C61: 0 | D61: 0 | E61: 0 | F61: 0 | G61: 0 | H61: 0 | I61: 0 | K61: 0
A62: ='Org structure'!E12 -> 05.2 - Electrical Services | C62: 708928.26 | D62: 64107500 | E62: 38561526 | F62: 1805800.9 | G62: 20904480.14 | H62: 35825070.67 | I62: -14920590.53 | J62: -0.4164846084 | K62: 38561526
A63: ='Org structure'!E13 -> 05.3 - Water Services | C63: 0 | D63: 0 | E63: 0 | F63: 0 | G63: 0 | H63: 0 | I63: 0 | K63: 0
A64: ='Org structure'!E14 -> 05.4 - Sanitation Services | C64: 0 | D64: 0 | E64: 0 | F64: 0 | G64: 0 | H64: 0 | I64: 0 | K64: 0
A65: ='Org structure'!E15 -> 05.5 - Roads Services | C65: 0 | D65: 2020000 | E65: 23931091 | F65: 1701411.4 | G65: 15875295.32 | H65: 21883991.93 | I65: -6008696.61 | J65: -0.2745704088 | K65: 23931091
A66: ='Org structure'!E16 -> 05.6 - Storm Water Services | C66: 0 | D66: 0 | E66: 0 | F66: 0 | G66: 0 | H66: 0 | I66: 0 | K66: 0
A67: ='Org structure'!E17 -> 05.7 - Water Reporting Function | C67: 0 | D67: 0 | E67: 0 | F67: 0 | G67: 0 | H67: 0 | I67: 0 | K67: 0
A68: ='Org structure'!A7 -> Vote 06 - Roads Services | C68: =SUM(C69:C82) -> 143141.31 | D68: 2355000 | E68: 885600 | F68: 234400 | G68: 808572.79 | H68: 983252 | I68: -174679.21 | J68: -0.1776545687 | K68: =SUM(K69:K82) -> 885600
A69: ='Org structure'!E19 -> 06.1 - Community Services Administration | C69: 0 | D69: 1055000 | E69: 885600 | F69: 234400 | G69: 808572.79 | H69: 831578 | I69: -23005.21 | J69: -0.02766452455 | K69: 885600
A70: ='Org structure'!E20 -> 06.2 - Traffic Services | C70: 0 | D70: 0 | E70: 0 | F70: 0 | G70: 0 | H70: 0 | I70: 0 | K70: 0
A71: ='Org structure'!E21 -> 06.3 - Traffic Services | C71: 143141.31 | D71: 1300000 | E71: 0 | F71: 0 | G71: 0 | H71: 151674 | I71: -151674 | J71: -1 | K71: 0
A72: ='Org structure'!E22 -> 06.4 - Libraries | C72: 0 | D72: 0 | E72: 0 | F72: 0 | G72: 0 | H72: 0 | I72: 0 | K72: 0
A73: ='Org structure'!E23 -> 06.5 - Sport | C73: 0 | D73: 0 | E73: 0 | F73: 0 | G73: 0 | H73: 0 | I73: 0 | K73: 0
A74: ='Org structure'!E24 -> 06.6 - Cemetery | C74: 0 | D74: 0 | E74: 0 | F74: 0 | G74: 0 | H74: 0 | I74: 0 | K74: 0
A75: ='Org structure'!E25 -> 06.7 - Refuse | C75: 0 | D75: 0 | E75: 0 | F75: 0 | G75: 0 | H75: 0 | I75: 0 | K75: 0
A76: ='Org structure'!E26 -> 06.8 - Pound Services | C76: 0 | D76: 0 | E76: 0 | F76: 0 | G76: 0 | H76: 0 | I76: 0 | K76: 0
A77: ='Org structure'!E27 -> 06.9 - Pound Services | C77: 0 | D77: 0 | E77: 0 | F77: 0 | G77: 0 | H77: 0 | I77: 0 | K77: 0
A78: ='Org structure'!E28 -> 06.10 - Satellite Offices | C78: 0 | D78: 0 | E78: 0 | F78: 0 | G78: 0 | H78: 0 | K78: 0
A79: ='Org structure'!E29 -> 06.11 - Alldays Offices | C79: 0 | D79: 0 | E79: 0 | F79: 0 | G79: 0 | H79: 0 | K79: 0
A80: ='Org structure'!E30 -> 06.12 - Eldorado Offices | C80: 0 | D80: 0 | E80: 0 | F80: 0 | G80: 0 | H80: 0 | K80: 0
A81: ='Org structure'!E31 -> 06.13 - Tolwe Offices | C81: 0 | D81: 0 | E81: 0 | F81: 0 | G81: 0 | H81: 0 | K81: 0
A82: ='Org structure'!E32 -> 06.14 - Senwabarwarna Offices | C82: 0 | D82: 0 | E82: 0 | F82: 0 | G82: 0 | H82: 0 | K82: 0
A83: ='Org structure'!A8 -> Vote 07 - Econominc Development And Planning | C83: =SUM(C84:C84) -> 0 | D83: 0 | E83: 0 | F83: 0 | G83: 0 | H83: 0 | I83: 0 | K83: =SUM(K84:K84) -> 0
A84: ='Org structure'!E34 -> 07.1 - Economic Development And Planning | C84: 0 | D84: 0 | E84: 0 | F84: 0 | G84: 0 | H84: 0 | I84: 0 | K84: 0
A85: ='Org structure'!A9 -> Vote 08 - | C85: 0 | D85: 0 | E85: 0 | F85: 0 | G85: 0 | H85: 0 | I85: 0 | K85: 0
A86: ='Org structure'!A10 -> Vote 09 - | C86: 0 | D86: 0 | E86: 0 | F86: 0 | G86: 0 | H86: 0 | I86: =G86-H86 -> 0 | J86: =IF(I86=0,"",I86/H86) ->  | K86: 0
A87: ='Org structure'!A11 -> Vote 10 - | C87: 0 | D87: 0 | E87: 0 | F87: 0 | G87: 0 | H87: 0 | I87: 0 | K87: 0
A88: ='Org structure'!A12 -> Vote 11 - | C88: 0 | D88: 0 | E88: 0 | F88: 0 | G88: 0 | H88: 0 | I88: 0 | K88: 0
A89: ='Org structure'!A13 -> Vote 12 - | C89: 0 | D89: 0 | E89: 0 | F89: 0 | G89: 0 | H89: 0 | I89: 0 | K89: 0
A90: ='Org structure'!A14 -> Vote 13 - | C90: 0 | D90: 0 | E90: 0 | F90: 0 | G90: 0 | H90: 0 | I90: 0 | K90: 0
A91: ='Org structure'!A15 -> Vote 14 - | C91: 0 | D91: 0 | E91: 0 | F91: 0 | G91: 0 | H91: 0 | I91: 0 | K91: 0
A92: ='Org structure'!A16 -> Vote 15 - Other | C92: 0 | D92: 0 | E92: 0 | F92: 0 | G92: 0 | H92: 0 | I92: =G92-H92 -> 0 | J92: =IF(I92=0,"",I92/H92) ->  | K92: 0
A93: Total single-year capital expenditure | C93: =C52+C54+C56+C58+C60+C68+C83+C85+C86+C87+C88+C89+C90+C91+C92 -> 2241908.92 | D93: 69432500 | E93: 64328217 | F93: 3741612.3 | G93: 38112117.07 | H93: 59563151.6 | I93: -21451034.53 | J93: -0.3601393471 | K93: =K52+K54+K56+K58+K60+K68+K83+K85+K86+K87+K88+K89+K90+K91+K92 -> 64328217
A94: Total Capital Expenditure | C94: =C48+C93 -> 2241908.92 | D94: 69532500 | E94: 64385147 | F94: 3741612.3 | G94: 38169047.07 | H94: 59620369.6 | I94: -21451322.53 | J94: -0.35979855 | K94: =K48+K93 -> 64385147
A95: =head27a -> References
A96: 1. Insert 'Vote'; e.g. Department, if different to standard structure

Sheet C6-FinPos
A1: =muni& " - "&S71E& " - "&date -> LIM351 Blouberg - Table C6 Monthly Budget Statement - Financial Position - M11 May
A2: =desc -> Description | B2: =head27 -> Ref | C2: =Head1 -> 2018/19 | D2: =Head2 -> Budget Year 2019/20
C3: =Head5 -> Audited Outcome | D3: =Head6 -> Original Budget | E3: =Head7 -> Adjusted Budget | F3: =Head39 -> YearTD actual | G3: =Head8 -> Full Year Forecast
A4: R thousands | B4: 1
A5: ASSETS
A6: Current assets
A7: Cash | C7: 7563567.5 | D7: 51591707 | E7: 9523308 | F7: 28561041.78 | G7: 9523308
A8: Call investment deposits | C8: 3090652.11 | D8: 3097326 | E8: 3097326 | F8: 8090652.11 | G8: 3097326
A9: Consumer debtors | C9: 100806670.9 | D9: 15456686 | E9: 120569210 | F9: 128034448.6 | G9: 120569210
A10: Other debtors | C10: 14087640.58 | D10: 1011486 | E10: 8693757 | F10: 14742500.94 | G10: 8693757
A11: Current portion of long-term receivables
A12: Inventory | C12: 3281383.45 | D12: 0 | E12: 4171383 | F12: 3281383.45 | G12: 4171383
A13: Total current assets | C13: =SUM(C7:C12) -> 128829914.6 | D13: =SUM(D7:D12) -> 71157205 | E13: =SUM(E7:E12) -> 146054984 | F13: =SUM(F7:F12) -> 182710026.9 | G13: =SUM(G7:G12) -> 146054984
A15: Non current assets
A16: Long-term receivables
A17: Investments
A18: Investment property | C18: 3010000 | D18: 205000 | E18: 3010000 | F18: 3010000 | G18: 3010000
A19: Investments in Associate
A20: Property, plant and equipment | C20: 916082651.2 | D20: 327782775 | E20: 938794069 | F20: 954251698.2 | G20: 938794069
A22: Biological
A23: Intangible | C23: 543961.1 | D23: 390077 | E23: 543961 | F23: 543961.1 | G23: 543961
A24: Other non-current assets | C24: 0 | D24: 0 | E24: 0 | F24: 0 | G24: 0
A25: Total non current assets | C25: =SUM(C16:C20)+SUM(C22:C24) -> 919636612.3 | D25: =SUM(D16:D20)+SUM(D22:D24) -> 328377852 | E25: =SUM(E16:E20)+SUM(E22:E24) -> 942348030 | F25: =SUM(F16:F20)+SUM(F22:F24) -> 957805659.3 | G25: =SUM(G16:G20)+SUM(G22:G24) -> 942348030
A26: TOTAL ASSETS | C26: =C13+C25 -> 1048466527 | D26: =D13+D25 -> 399535057 | E26: =E13+E25 -> 1088403014 | F26: =F13+F25 -> 1140515686 | G26: =G13+G25 -> 1088403014
A28: LIABILITIES
A29: Current liabilities
A30: Bank overdraft | C30: 0 | D30: 0 | E30: 0 | F30: 0 | G30: 0
A31: Borrowing | C31: 0 | D31: 0 | E31: 0 | F31: 0 | G31: 0
A32: Consumer deposits | C32: -8680.44 | D32: 0 | E32: 0 | F32: -8680.44 | G32: 0
A33: Trade and other payables | C33: 60192501.75 | D33: -3114879 | E33: 61930222 | F33: 48614258.71 | G33: 61930222
A34: Provisions | C34: 0 | D34: 0 | E34: 0 | F34: 0 | G34: 0
A35: Total current liabilities | C35: =SUM(C30:C34) -> 60183821.31 | D35: =SUM(D30:D34) -> -3114879 | E35: =SUM(E30:E34) -> 61930222 | F35: =SUM(F30:F34) -> 48605578.27 | G35: =SUM(G30:G34) -> 61930222
A37: Non current liabilities
A38: Borrowing | C38: 821059.88 | D38: 0 | E38: 721060 | F38: 821059.88 | G38: 721060
A39: Provisions | C39: 16755265.04 | D39: 0 | E39: 18555265 | F39: 16755265.04 | G39: 18555265
A40: Total non current liabilities | C40: =SUM(C38:C39) -> 17576324.92 | D40: =SUM(D38:D39) -> 0 | E40: =SUM(E38:E39) -> 19276325 | F40: =SUM(F38:F39) -> 17576324.92 | G40: =SUM(G38:G39) -> 19276325
A41: TOTAL LIABILITIES | C41: =C35+C40 -> 77760146.23 | D41: =D35+D40 -> -3114879 | E41: =E35+E40 -> 81206547 | F41: =F35+F40 -> 66181903.19 | G41: =G35+G40 -> 81206547
A43: NET ASSETS | B43: 2 | C43: =C26-C41 -> 970706380.6 | D43: =D26-D41 -> 402649936 | E43: =E26-E41 -> 1007196467 | F43: =F26-F41 -> 1074333783 | G43: =G26-G41 -> 1007196467
A45: COMMUNITY WEALTH/EQUITY
A46: Accumulated Surplus/(Deficit) | C46: 1025693077 | D46: 366947379 | E46: 976641264 | F46: 1058285247 | G46: 976641264
A47: Reserves | C47: 0 | D47: 0 | E47: 0 | F47: 0 | G47: 0
A48: TOTAL COMMUNITY WEALTH/EQUITY | B48: 2 | C48: =SUM(C46:C47) -> 1025693077 | D48: =SUM(D46:D47) -> 366947379 | E48: =SUM(E46:E47) -> 976641264 | F48: =SUM(F46:F47) -> 1058285247 | G48: =SUM(G46:G47) -> 976641264
A49: =head27a -> References
A50: 1. Material variances to be explained in Table SC1
A51: 2. Net assets must balance with Total Community Wealth/Equity
A54: check balance | C54: =C43-C48 -> -54986696.61 | D54: =D43-D48 -> 35702557 | E54: =E43-E48 -> 30555203 | F54: =F43-F48 -> 16048536.09 | G54: =G43-G48 -> 30555203

Sheet C7-CFlow
A1: =muni& " - "&S71F& " - "&date -> LIM351 Blouberg - Table C7 Monthly Budget Statement - Cash Flow - M11 May
A2: =desc -> Description | B2: =head27 -> Ref | C2: =Head1 -> 2018/19 | D2: =Head2 -> Budget Year 2019/20
C3: =Head5 -> Audited Outcome | D3: =Head6 -> Original Budget | E3: =Head7 -> Adjusted Budget | F3: =Head38 -> Monthly actual | G3: =Head39 -> YearTD actual | H3: =Head40 -> YearTD budget | I3: =Head41 -> YTD variance | J3: =Head41 -> YTD variance | K3: =Head8 -> Full Year Forecast
A4: R thousands | B4: 1 | J4: %
A5: CASH FLOW FROM OPERATING ACTIVITIES
A6: Receipts
A7: Property rates | C7: 6584225 | D7: 25090000 | E7: 29775400 | F7: 316159.98 | G7: 25251250.8 | H7: 25251250.8 | I7: =G7-H7 -> 0 | J7: =IF(I7=0,"",I7/H7) -> 
A8: Service charges | C8: 20750943 | D8: 23851938 | E8: 32302400 | F8: 2300539.99 | G8: 25086446.4 | H8: 7215953.6 | I8: 17870492.8 | J8: =IF(I8=0,"",I8/H8) -> 2.476525459
A9: Other revenue | C9: 5476315 | D9: 12228436.84 | E9: 26989253.85 | F9: -3714635.2 | G9: 271422004.8 | H9: 0 | I9: 271422004.8 | J9: =IF(I9=0,"",I9/H9) -> 
A10: Transfers and Subsidies - Operational | C10: 177514826 | D10: 193215000 | E10: 1999829000 | F10: 365000 | G10: 189584478.3 | H10: 688521.74 | I10: 188895956.5 | J10: =IF(I10=0,"",I10/H10) -> 274.3500249
A11: Transfers and Subsidies - Capital | C11: 47250201 | D11: 69532500 | E11: 62078170 | F11: 2000000 | G11: 61350000 | H11: 728170 | I11: 60621830 | J11: =IF(I11=0,"",I11/H11) -> 83.25230372
A12: Interest | C12: 13109931 | D12: 1700000 | E12: 2455829.2 | F12: 206705.83 | G12: 2756163.15 | H12: 0 | I12: 2756163.15
A13: Dividends | I13: 0
A14: Payments
A15: Suppliers and employees | C15: -242498457.2 | D15: -262409104 | E15: -265148640 | F15: 15722164.76 | G15: 211898450.8 | H15: 242411361.3 | I15: =H15-G15 -> 30512910.55 | J15: 0.1258724442 | K15: 265148640
A16: Finance charges | I16: =H16-G16 -> 0
A17: Transfers and Grants | C17: -73220 | D17: 0 | E17: 0 | F17: 0 | G17: 0 | H17: 0 | I17: =H17-G17 -> 0 | K17: 0
A18: NET CASH FROM/(USED) OPERATING ACTIVITIES | C18: =SUM(C7:C13)+SUM(C15:C17) -> 28114763.77 | D18: 63208770.84 | E18: 1888281413 | F18: 17195935.36 | G18: 787348794.2 | H18: 276295257.5 | I18: =H18-G18 -> -511053536.7 | J18: -1.849664527 | K18: =SUM(K7:K13)+SUM(K15:K17) -> 265148640
A20: CASH FLOWS FROM INVESTING ACTIVITIES
A21: Receipts
A22: Proceeds on disposal of PPE | I22: =G22-H22 -> 0 | J22: =IF(I22=0,"",I22/H22) -> 
A24: Decrease (increase) in non-current receivables | I24: =G24-H24 -> 0
A25: Decrease (increase) in non-current investments | I25: =G25-H25 -> 0
A26: Payments
A27: Capital assets | I27: =H27-G27 -> 0
A28: NET CASH FROM/(USED) INVESTING ACTIVITIES | C28: =SUM(C22:C25)+C27 -> 0 | D28: =SUM(D22:D25)+D27 -> 0 | E28: 0 | F28: 0 | G28: 0 | H28: 0 | I28: =H28-G28 -> 0 | K28: =SUM(K22:K25)+K27 -> 0
A30: CASH FLOWS FROM FINANCING ACTIVITIES
A31: Receipts
A32: Short term loans | I32: =G32-H32 -> 0 | J32: =IF(I32=0,"",I32/H32) -> 
A33: Borrowing long term/refinancing | I33: =G33-H33 -> 0
A34: Increase (decrease) in consumer deposits | C34: 0 | D34: -8680.44 | E34: 0 | F34: 0 | G34: 8680.44 | H34: 0 | I34: =G34-H34 -> 8680.44 | K34: 0
A35: Payments
A36: Repayment of borrowing | I36: =H36-G36 -> 0
A37: NET CASH FROM/(USED) FINANCING ACTIVITIES | C37: =SUM(C32:C34)+C36 -> 0 | D37: -8680.44 | E37: 0 | F37: 0 | G37: 8680.44 | H37: 0 | I37: =H37-G37 -> -8680.44 | K37: =SUM(K32:K34)+K36 -> 0
A39: NET INCREASE/ (DECREASE) IN CASH HELD | C39: =C18+C28+C37 -> 28114763.77 | D39: 63200090.4 | E39: 1888281413 | F39: 17195935.36 | G39: 787357474.6 | H39: 276295257.5 | K39: =K18+K28+K37 -> 265148640
A40: Cash/cash equivalents at beginning: | C40: 18672302.47 | D40: 54689033 | E40: 12618991 | G40: 10652576.61
A41: Cash/cash equivalents at month/year end: | C41: =C39+C40 -> 46787066.24 | D41: =D39+D40 -> 117889123.4 | E41: =E39+E40 -> 1900900404 | G41: =G39+G40 -> 798010051.2 | H41: =H39+H40 -> 276295257.5 | K41: =K39+K40 -> 265148640
A42: References
A43: 1. Material variances to be explained in Table SC1

Sheet SC1
A1: =muni& " - "&S71G& " - "&date -> LIM351 Blouberg - Supporting Table SC1 Material variance explanations - M11 May
A2: =head27 -> Ref | B2: =desc -> Description
C3: Variance | D3: Reasons for material deviations | E3: Remedial or corrective steps/remarks
B4: R thousands
A5: 1 | B5: ='C4-FinPerf RE'!A5 -> Revenue By Source
B6: Client elected not to populate this sheet
A10: 2 | B10: ='C4-FinPerf RE'!A24 -> Expenditure By Type
B11: Client elected not to populate this sheet
A15: 3 | B15: =RIGHT('C5-Capex'!A40,19) -> Capital Expenditure
B16: Client elected not to populate this sheet
A20: 4 | B20: Financial Position
B21: Client elected not to populate this sheet
A25: 5 | B25: Cash Flow
B26: Client elected not to populate this sheet
A30: 6 | B30: Measureable performance
B31: Client elected not to populate this sheet
A35: 7 | B35: Municipal Entities
B36: Client elected not to populate this sheet
A41: =head27a -> References
A42: 1. Revenue for each source, vote and standard classification
A43: 2. Expenditure for each type, vote and standard classification
A44: 3. Capital expenditure for each vote and standard classification
A45: 4. Explain any material variances between the annual budget and the expected financial position based on current trends
A46: 5. Cash receipts by source and cash payments by type where not explained under revenue and expenditure
A47: 6. For Sept, Dec, Mar and Jun statements explain any material variances in achievement of measurable performance objectives

Sheet SC2
A1: =muni& " - "&S71H& " - "&Head57 -> LIM351 Blouberg - Supporting Table SC2 Monthly Budget Statement - performance indicators - M11 May
A2: Description of financial indicator | B2: Basis of calculation | C2: =head27 -> Ref | D2: =Head1 -> 2018/19 | E2: =Head2 -> Budget Year 2019/20
D3: =Head5 -> Audited Outcome | E3: =Head6 -> Original Budget | F3: =Head7 -> Adjusted Budget | G3: =Head39 -> YearTD actual | H3: =Head8 -> Full Year Forecast
A5: Borrowing Management
A7: Capital Charges to Operating Expenditure | B7: Interest & principal paid/Operating Expenditure | D7: =IF(ISERROR((D42-D43)/D45),0,((D42-D43)/D45)) -> 0 | E7: =IF(ISERROR((E42+E44)/E45),0,((E42+E44)/E45)) -> 0.1333929725 | F7: =IF(ISERROR((F42+F44)/F45),0,((F42+F44)/F45)) -> 0.1306997511 | G7: =IF(ISERROR((G42+G44)/G45),0,((G42+G44)/G45)) -> 0 | H7: =IF(ISERROR((H42+H44)/H45),0,((H42+H44)/H45)) -> 0.05432646755
A8: Borrowed funding of 'own' capital expenditure | B8: Borrowings/Capital expenditure excl. transfers and grants | D8: =IF(ISERROR(D47/D46),0,(D47/D46)) -> 0 | E8: =IF(ISERROR(E47/E46),0,(E47/E46)) -> 0.002876352785 | F8: =IF(ISERROR(F47/F46),0,(F47/F46)) -> 0.001221306523 | G8: =IF(ISERROR(G47/G46),0,(G47/G46)) -> 0 | H8: =IF(ISERROR(H47/H46),0,(H47/H46)) -> 0.001221306523
A9: Safety of Capital
A10: Debt to Equity | B10: Loans, Accounts Payable, Overdraft & Tax Provision/ Funds & Reserves | D10: =IF(ISERROR(D48/D49),0,(D48/D49)) -> 0.0594852037 | E10: =IF(ISERROR(E48/E49),0,(E48/E49)) -> -0.008488625831 | F10: =IF(ISERROR(F48/F49),0,(F48/F49)) -> 0.06414973881 | G10: =IF(ISERROR(G48/G49),0,(G48/G49)) -> 0.04671265969 | H10: =IF(ISERROR(H48/H49),0,(H48/H49)) -> 0.06414973881
A11: Gearing | B11: Long Term Borrowing/ Funds & Reserves | D11: =IF(ISERROR(D51/D50),0,(D51/D50)) -> 0 | E11: =IF(ISERROR(E51/E50),0,(E51/E50)) -> 0 | F11: =IF(ISERROR(F51/F50),0,(F51/F50)) -> 0 | G11: =IF(ISERROR(G51/G50),0,(G51/G50)) -> 0 | H11: =IF(ISERROR(H51/H50),0,(H51/H50)) -> 0
A12: Liquidity
A13: Current Ratio | B13: Current assets/current liabilities | C13: 1 | D13: =IF(ISERROR(D52/D53),0,(D52/D53)) -> 2.14060709 | E13: =IF(ISERROR(E52/E53),0,(E52/E53)) -> -22.84429186 | F13: =IF(ISERROR(F52/F53),0,(F52/F53)) -> 2.358379791 | G13: =IF(ISERROR(G52/G53),0,(G52/G53)) -> 3.759034115 | H13: =IF(ISERROR(H52/H53),0,(H52/H53)) -> 2.358379791
A14: Liquidity Ratio | B14: Monetary Assets/Current Liabilities | D14: =IF(ISERROR(D54/D53),0,(D54/D53)) -> 0.1770279683 | E14: =IF(ISERROR(E54/E53),0,(E54/E53)) -> -17.55735391 | F14: =IF(ISERROR(F54/F53),0,(F54/F53)) -> 0.2037879664 | G14: =IF(ISERROR(G54/G53),0,(G54/G53)) -> 0.7540635292 | H14: =IF(ISERROR(H54/H53),0,(H54/H53)) -> 0.2037879664
A15: Revenue Management
A16: Annual Debtors Collection Rate (Payment Level %) | B16: Last 12 Mths Receipts/ Last 12 Mths Billing
A17: Outstanding Debtors to Revenue | B17: Total Outstanding Debtors to Annual Revenue | D17: =IF(ISERROR(D59/D55),0,(D59/D55)) -> 0.4802354403 | E17: =IF(ISERROR(E59/E55),0,(E59/E55)) -> 0.05702918663 | F17: =IF(ISERROR(F59/F55),0,(F59/F55)) -> 0.4821887784 | G17: =IF(ISERROR(G59/G55),0,(G59/G55)) -> 0.5617055147 | H17: =IF(ISERROR(H59/H55),0,(H59/H55)) -> 0.4821887784
A18: Longstanding Debtors Recovered | B18: Debtors > 12 Mths Recovered/Total Debtors > 12 Months Old | D18: =IF(ISERROR(D64/D63),0,(D64/D63)) -> 0 | E18: =IF(ISERROR(E64/E63),0,(E64/E63)) -> 0 | F18: =IF(ISERROR(F64/F63),0,(F64/F63)) -> 0 | G18: =IF(ISERROR(G64/G63),0,(G64/G63)) -> 0 | H18: =IF(ISERROR(H64/H63),0,(H64/H63)) -> 0
A19: Creditors Management
A20: Creditors System Efficiency | B20: % of Creditors Paid Within Terms (within MFMA s 65(e))
A21: Funding of Provisions
A22: Percentage Of Provisions Not Funded | B22: Unfunded Provisions/Total Provisions
A23: Other Indicators
A24: Electricity Distribution Losses | B24: % Volume (units purchased and generated less units sold)/units purchased and generated | C24: 2
A25: Water Distribution Losses | B25: % Volume (units purchased and own source less units sold)/Total units purchased and own source | C25: 2
A26: Employee costs | B26: Employee costs/Total Revenue - capital revenue | D26: =IF(ISERROR(D40/D55),0,(D40/D55)) -> 0.4330801695 | E26: =IF(ISERROR(E40/E55),0,(E40/E55)) -> 0.4289097092 | F26: =IF(ISERROR(F40/F55),0,(F40/F55)) -> 0.4499772072 | G26: =IF(ISERROR(G40/G55),0,(G40/G55)) -> 0.3889955695 | H26: =IF(ISERROR(H40/H55),0,(H40/H55)) -> 0.4499772072
A27: Repairs & Maintenance | B27: R&M/Total Revenue - capital revenue | D27: =IF(ISERROR(D41/D55),0,(D41/D55)) -> 0.007744357473 | E27: =IF(ISERROR(E41/E55),0,(E41/E55)) -> 0.01162810131 | F27: =IF(ISERROR(F41/F55),0,(F41/F55)) -> 0.01836631164 | G27: =IF(ISERROR(G41/G55),0,(G41/G55)) -> 0.01021716959 | H27: =IF(ISERROR(H41/H55),0,(H41/H55)) -> 0.01836631164
A28: Interest & Depreciation | B28: I&D/Total Revenue - capital revenue | D28: =IF(ISERROR((D42+D44)/D55),0,((D42+D44)/D55)) -> 0.1473658239 | E28: =IF(ISERROR((E42+E44)/E55),0,((E42+E44)/E55)) -> 0.1443158951 | F28: =IF(ISERROR((F42+F44)/F55),0,((F42+F44)/F55)) -> 0.1533811513 | G28: =IF(ISERROR((G42+G44)/G55),0,((G42+G44)/G55)) -> 0 | H28: =IF(ISERROR((H42+H44)/H55),0,((H42+H44)/H55)) -> 0.06375418522
A29: IDP regulation financial viability indicators
A30: i. Debt coverage | B30: (Total Operating Revenue - Operating Grants)/Debt service payments due within financial year)
A31: ii. O/S Service Debtors to Revenue | B31: Total outstanding service debtors/annual revenue received for services
A32: iii. Cost coverage | B32: (Available cash + Investments)/monthly fixed operational expenditure
A33: References
A34: 1. Consumer debtors > 12 months old are excluded from current assets.
A35: 2. Material variances to be explained.
A37: Calculations
A38: ='C6-FinPos'!A38 -> Borrowing | D38: ='C6-FinPos'!C38 -> 821059.88 | E38: ='C6-FinPos'!D38 -> 0 | F38: ='C6-FinPos'!E38 -> 721060 | G38: ='C6-FinPos'!F38 -> 821059.88 | H38: 0
A39: Total Assets | D39: ='C6-FinPos'!C26 -> 1048466527 | E39: ='C6-FinPos'!D26 -> 399535057 | F39: ='C6-FinPos'!E26 -> 1088403014 | G39: ='C6-FinPos'!F26 -> 1140515686 | H39: ='C6-FinPos'!G26 -> 1088403014
A40: ='C4-FinPerf RE'!A25 -> Employee related costs | D40: ='C4-FinPerf RE'!C25 -> 103612611.1 | E40: ='C4-FinPerf RE'!D25 -> 123855157 | F40: ='C4-FinPerf RE'!E25 -> 120627836 | G40: ='C4-FinPerf RE'!G25 -> 98876723.37 | H40: ='C4-FinPerf RE'!K25 -> 120627836
A41: =A27 -> Repairs & Maintenance | D41: 1852804.99 | E41: 3357817 | F41: 4923557 | G41: 2597048.22 | H41: 4923557
A42: Interest (finance charges) | D42: ='C4-FinPerf RE'!C29 -> 0 | E42: ='C4-FinPerf RE'!D29 -> 0 | F42: ='C4-FinPerf RE'!E29 -> 0 | G42: ='C4-FinPerf RE'!G29 -> 0 | H42: ='C4-FinPerf RE'!K29 -> 0
A43: Principal paid | D43: =-'C7-CFlow'!C36 -> 0 | E43: =-'C7-CFlow'!D36 -> 0 | F43: =-'C7-CFlow'!E36 -> 0 | G43: =-'C7-CFlow'!G36 -> 0 | H43: =-'C7-CFlow'!K36 -> 0
A44: Depreciation | D44: ='C4-FinPerf RE'!C28 -> 35256654.26 | E44: ='C4-FinPerf RE'!D28 -> 41673731 | F44: ='C4-FinPerf RE'!E28 -> 41117719 | H44: ='C4-FinPerf RE'!K26 -> 17090931
A45: Operating expenditure | D45: ='C4-FinPerf RE'!C36 -> 275634159.3 | E45: ='C4-FinPerf RE'!D36 -> 312413242 | F45: ='C4-FinPerf RE'!E36 -> 314596766 | G45: ='C4-FinPerf RE'!G36 -> 211898450.8 | H45: ='C4-FinPerf RE'!K36 -> 314596766
A46: ='C5-Capex'!A40 -> Total Capital Expenditure | D46: ='C5-Capex'!C40 -> 2241908.92 | E46: ='C5-Capex'!D40 -> 69532500 | F46: ='C5-Capex'!E40 -> 64385147 | G46: ='C5-Capex'!G40 -> 38169047.07 | H46: ='C5-Capex'!K40 -> 64385147
A47: Borrowed funding for capital | D47: ='C5-Capex'!C72 -> 0 | E47: ='C5-Capex'!D72 -> 200000 | F47: ='C5-Capex'!E72 -> 78634 | G47: ='C5-Capex'!G72 -> 0 | H47: ='C5-Capex'!K72 -> 78634
A48: Debt | D48: ='C6-FinPos'!C30+'C6-FinPos'!C31+'C6-FinPos'!C33+'C6-FinPos'!C38 -> 61013561.63 | E48: ='C6-FinPos'!D30+'C6-FinPos'!D31+'C6-FinPos'!D33+'C6-FinPos'!D38 -> -3114879 | F48: ='C6-FinPos'!E30+'C6-FinPos'!E31+'C6-FinPos'!E33+'C6-FinPos'!E38 -> 62651282 | G48: ='C6-FinPos'!F30+'C6-FinPos'!F31+'C6-FinPos'!F33+'C6-FinPos'!F38 -> 49435318.59 | H48: ='C6-FinPos'!G30+'C6-FinPos'!G31+'C6-FinPos'!G33+'C6-FinPos'!G38 -> 62651282
A49: Equity | D49: ='C6-FinPos'!C48 -> 1025693077 | E49: ='C6-FinPos'!D48 -> 366947379 | F49: ='C6-FinPos'!E48 -> 976641264 | G49: ='C6-FinPos'!F48 -> 1058285247 | H49: ='C6-FinPos'!G48 -> 976641264
A50: ='C6-FinPos'!A47 -> Reserves | D50: ='C6-FinPos'!C47 -> 0 | E50: ='C6-FinPos'!D47 -> 0 | F50: ='C6-FinPos'!E47 -> 0 | G50: ='C6-FinPos'!F47 -> 0 | H50: ='C6-FinPos'!G47 -> 0
A51: ='C6-FinPos'!A38 -> Borrowing | D51: ='C6-FinPos'!C38 -> 821059.88 | E51: ='C6-FinPos'!D38 -> 0 | F51: ='C6-FinPos'!E38 -> 721060 | G51: ='C6-FinPos'!F38 -> 821059.88 | H51: ='C6-FinPos'!G38 -> 721060
A52: ='C6-FinPos'!A6 -> Current assets | D52: ='C6-FinPos'!C13 -> 128829914.6 | E52: ='C6-FinPos'!D13 -> 71157205 | F52: ='C6-FinPos'!E13 -> 146054984 | G52: ='C6-FinPos'!F13 -> 182710026.9 | H52: ='C6-FinPos'!G13 -> 146054984
A53: ='C6-FinPos'!A29 -> Current liabilities | D53: ='C6-FinPos'!C35 -> 60183821.31 | E53: ='C6-FinPos'!D35 -> -3114879 | F53: ='C6-FinPos'!E35 -> 61930222 | G53: ='C6-FinPos'!F35 -> 48605578.27 | H53: ='C6-FinPos'!G35 -> 61930222
A54: Monetary assets | D54: ='C6-FinPos'!C7+'C6-FinPos'!C8 -> 10654219.61 | E54: ='C6-FinPos'!D7+'C6-FinPos'!D8 -> 54689033 | F54: ='C6-FinPos'!E7+'C6-FinPos'!E8 -> 12620634 | G54: ='C6-FinPos'!F7+'C6-FinPos'!F8 -> 36651693.89 | H54: ='C6-FinPos'!G7+'C6-FinPos'!G8 -> 12620634
A55: ='C4-FinPerf RE'!A22 -> Total Revenue (excluding capital transfers and contributions) | D55: ='C4-FinPerf RE'!C22 -> 239245798.8 | E55: ='C4-FinPerf RE'!D22 -> 288767436 | F55: ='C4-FinPerf RE'!E22 -> 268075436 | G55: ='C4-FinPerf RE'!G22 -> 254184703.2 | H55: ='C4-FinPerf RE'!K22 -> 268075436
A56: ='C4-FinPerf RE'!A19 -> Transfers and subsidies | D56: ='C4-FinPerf RE'!C19 -> 182423931.8 | E56: ='C4-FinPerf RE'!D19 -> 210915000 | F56: ='C4-FinPerf RE'!E19 -> 193273000 | G56: ='C4-FinPerf RE'!G19 -> 191084478.3 | H56: ='C4-FinPerf RE'!K19 -> 193273000
A57: ='C4-FinPerf RE'!A39 -> Transfers and subsidies - capital (monetary allocations) (National / Provincial and District) | D57: ='C4-FinPerf RE'!C39 -> 51875091.49 | E57: ='C4-FinPerf RE'!D39 -> 44350000 | F57: ='C4-FinPerf RE'!E39 -> 62078170 | G57: ='C4-FinPerf RE'!G39 -> 61350000 | H57: ='C4-FinPerf RE'!K39 -> 62078170
A58: Debt service payments | D58: ='C7-CFlow'!C12+'C7-CFlow'!C36 -> 13109931 | E58: ='C7-CFlow'!D12+'C7-CFlow'!D36 -> 1700000 | F58: ='C7-CFlow'!E12+'C7-CFlow'!E36 -> 2455829.2 | G58: ='C7-CFlow'!G16+'C7-CFlow'!G36 -> 0 | H58: ='C7-CFlow'!K16+'C7-CFlow'!K36 -> 0
A59: Outstanding debtors (receivables) | D59: ='C6-FinPos'!C9+'C6-FinPos'!C10+'C6-FinPos'!C11+'C6-FinPos'!C16 -> 114894311.5 | E59: ='C6-FinPos'!D9+'C6-FinPos'!D10+'C6-FinPos'!D11+'C6-FinPos'!D16 -> 16468172 | F59: ='C6-FinPos'!E9+'C6-FinPos'!E10+'C6-FinPos'!E11+'C6-FinPos'!E16 -> 129262967 | G59: ='C6-FinPos'!F9+'C6-FinPos'!F10+'C6-FinPos'!F11+'C6-FinPos'!F16 -> 142776949.5 | H59: ='C6-FinPos'!G9+'C6-FinPos'!G10+'C6-FinPos'!G11+'C6-FinPos'!G16 -> 129262967
A60: Annual services revenue | D60: =SUM('C4-FinPerf RE'!C7:C11) -> 22984084.94 | E60: =SUM('C4-FinPerf RE'!D7:D11) -> 32836400 | F60: =SUM('C4-FinPerf RE'!E7:E11) -> 33086400 | G60: =SUM('C4-FinPerf RE'!G7:G11) -> 31065064.58
A61: Cash + investments | B61: Including LT investments | D61: ='C6-FinPos'!C7+'C6-FinPos'!C8+'C6-FinPos'!C17-'C6-FinPos'!C30 -> 10654219.61 | E61: ='C6-FinPos'!D7+'C6-FinPos'!D8+'C6-FinPos'!D17-'C6-FinPos'!D30 -> 54689033 | F61: ='C6-FinPos'!E7+'C6-FinPos'!E8+'C6-FinPos'!E17-'C6-FinPos'!E30 -> 12620634 | G61: ='C6-FinPos'!F7+'C6-FinPos'!F8+'C6-FinPos'!F17-'C6-FinPos'!F30 -> 36651693.89 | H61: ='C6-FinPos'!G7+'C6-FinPos'!G8+'C6-FinPos'!G17-'C6-FinPos'!G30 -> 12620634
A62: Fixed operational expend. (monthly)
A63: Longstanding debtors outstanding | D63: ='C6-FinPos'!C16 -> 0 | E63: ='C6-FinPos'!D16 -> 0 | F63: ='C6-FinPos'!E16 -> 0 | G63: ='C6-FinPos'!F16 -> 0 | H63: ='C6-FinPos'!G16 -> 0
A64: Longstanding debtors recovered
A65: Attorney collections

Sheet SC3
A1: =muni& " - "&S71I& " - "&Head57 -> LIM351 Blouberg - Supporting Table SC3 Monthly Budget Statement - aged debtors - M11 May
A2: =desc -> Description | C2: =Head2 -> Budget Year 2019/20
A3: R thousands | B3: NT Code | C3: 0-30 Days | D3: 31-60 Days | E3: 61-90 Days | F3: 91-120 Days | G3: 121-150 Dys | H3: 151-180 Dys | I3: 181 Dys-1 Yr | J3: Over 1Yr | K3: Total | L3: Total over 90 days | M3: Actual Bad Debts Written Off against Debtors | N3: Impairment - Bad Debts i.t.o Council Policy
A4: Debtors Age Analysis By Income Source
A5: Trade and Other Receivables from Exchange Transactions - Water | B5: 1200 | C5: 710139.88 | D5: 244324.7 | E5: 209842.72 | F5: 2410848.08 | G5: 215684.08 | H5: 285582.49 | I5: 1137916.99 | J5: 4538857.58 | K5: =SUM(C5:J5) -> 9753196.52 | L5: =SUM(F5:J5) -> 8588889.22 | M5: 0 | N5: 0
A6: Trade and Other Receivables from Exchange Transactions - Electricity | B6: 1300 | C6: 1553549.08 | D6: 384774.83 | E6: 1175159.9 | F6: 365771.33 | G6: 321430.21 | H6: 280603.27 | I6: 1836755.98 | J6: 8691794.78 | K6: =SUM(C6:J6) -> 14609839.38 | L6: =SUM(F6:J6) -> 11496355.57 | M6: 0 | N6: 0
A7: Receivables from Non-exchange Transactions - Property Rates | B7: 1400 | C7: 596943.27 | D7: 202553.67 | E7: 205586.36 | F7: 193109.1 | G7: 188482.48 | H7: 186895.43 | I7: 20450211.71 | J7: 92075941.34 | K7: =SUM(C7:J7) -> 114099723.4 | L7: 113094640.1 | M7: 0 | N7: 0
A8: Receivables from Exchange Transactions - Waste Water Management | B8: 1500 | C8: 137987.06 | D8: 66014.67 | E8: 63204.1 | F8: 63822.56 | G8: 61177.03 | H8: 59853.25 | I8: 321901.78 | J8: 1132588.91 | K8: 1906549.36 | L8: 1639343.53 | M8: 0 | N8: 0
A9: Receivables from Exchange Transactions - Waste Management | B9: 1600 | C9: 262912.86 | D9: 124013.35 | E9: 119949.14 | F9: 119142.9 | G9: 117966.44 | H9: 114257.21 | I9: 290646.6 | J9: 806247.36 | K9: 1955135.86 | L9: =SUM(F9:J9) -> 1448260.51 | M9: 0 | N9: 0
A10: Receivables from Exchange Transactions - Property Rental Debtors | B10: 1700 | C10: 0 | D10: 0 | E10: 0 | F10: 0 | G10: 0 | H10: 0 | I10: 0 | J10: 0 | K10: 0 | L10: =SUM(F10:J10) -> 0 | M10: 0 | N10: 0
A11: Interest on Arrear Debtor Accounts | B11: 1810 | C11: 566392.2 | D11: 132977.94 | E11: 162959.7 | F11: 162542.23 | G11: 160634.32 | H11: 158183.29 | I11: 821376.9 | J11: 3044034.89 | K11: 5209101.47 | L11: 4346771.63 | M11: 0 | N11: 0
A12: Recoverable unauthorised, irregular, fruitless and wasteful expenditure | B12: 1820 | K12: 0 | L12: 0
A13: Other | B13: 1900 | C13: 38037.77 | D13: 18933.68 | E13: 18933.68 | F13: 22963.68 | G13: 18819.4 | H13: 18692.51 | I13: 111902.33 | J13: 1666608.46 | K13: 1914891.51 | L13: =SUM(F13:J13) -> 1838986.38 | M13: 0 | N13: 0
A14: Total By Income Source | B14: 2000 | C14: =SUM(C5:C13) -> 3865962.12 | D14: 1173592.84 | E14: 1955635.6 | F14: 3338199.88 | G14: 1084193.96 | H14: 1104067.45 | I14: 24970712.29 | J14: 111956073.3 | K14: 149448437.5 | L14: =SUM(L5:L13) -> 142453246.9 | M14: 0 | N14: 0
A15: =Head1&" - totals only" -> 2018/19 - totals only | K15: =SUM(C15:J15) -> 0 | L15: =SUM(F15:J15) -> 0
A16: Debtors Age Analysis By Customer Group
A17: Organs of State | B17: 2200 | C17: 0 | D17: 0 | E17: 0 | F17: 0 | G17: 0 | H17: 0 | I17: 0 | J17: 0 | K17: =SUM(C17:J17) -> 0 | L17: =SUM(F17:J17) -> 0 | M17: 0 | N17: 0
A18: Commercial | B18: 2300 | C18: 0 | D18: 0 | E18: 0 | F18: 0 | G18: 0 | H18: 0 | I18: 0 | J18: 0 | K18: =SUM(C18:J18) -> 0 | L18: =SUM(F18:J18) -> 0 | M18: 0 | N18: 0
A19: Households | B19: 2400 | C19: 0 | D19: 0 | E19: 0 | F19: 0 | G19: 0 | H19: 0 | I19: 0 | J19: 0 | K19: =SUM(C19:J19) -> 0 | L19: =SUM(F19:J19) -> 0 | M19: 0 | N19: 0
A20: Other | B20: 2500 | C20: 3865962.12 | D20: 1173592.84 | E20: 1955635.6 | F20: 3338199.88 | G20: 1084193.96 | H20: 1104067.45 | I20: 24970712.29 | J20: 111956073.3 | K20: =SUM(C20:J20) -> 149448437.5 | L20: =SUM(F20:J20) -> 142453246.9 | M20: 0 | N20: 0
A21: Total By Customer Group | B21: 2600 | C21: =SUM(C17:C20) -> 3865962.12 | D21: 1173592.84 | E21: 1955635.6 | F21: 3338199.88 | G21: 1084193.96 | H21: 1104067.45 | I21: 24970712.29 | J21: =SUM(J17:J20) -> 111956073.3 | K21: =SUM(K17:K20) -> 149448437.5 | L21: =SUM(L17:L20) -> 142453246.9 | M21: =SUM(M17:M20) -> 0 | N21: =SUM(N17:N20) -> 0
A22: Notes
A23: Material increases in value of debtors' categories compared to previous month to be explained
A24: Bad debts = amounts actually written off in the month
A25: Total by Income Source must reconcile with Total by Customer Group
C26: =C14-C21 -> 0 | D26: =D14-D21 -> 0 | E26: =E14-E21 -> 0 | F26: 0 | G26: 0 | H26: 0 | I26: 0 | J26: =J14-J21 -> 0 | K26: 0
C27: =IF(C26=0,"","MUST AGREE") ->  | D27: =IF(D26=0,"","MUST AGREE") -> 

Sheet SC4
A1: =muni& " - "&S71J& " - "&Head57 -> LIM351 Blouberg - Supporting Table SC4 Monthly Budget Statement - aged creditors - M11 May
A2: =desc -> Description | B2: NT Code | C2: =Head2 -> Budget Year 2019/20 | L2: Prior year totals for chart (same period)
C3: 0 - 30 Days | D3: 31 - 60 Days | E3: 61 - 90 Days | F3: 91 - 120 Days | G3: 121 - 150 Days | H3: 151 - 180 Days | I3: 181 Days - 1 Year | J3: Over 1 Year | K3: Total
A4: R thousands
A5: Creditors Age Analysis By Customer Type
A6: Bulk Electricity | B6: 0100 | K6: =SUM(C6:J6) -> 0
A7: Bulk Water | B7: 0200 | K7: =SUM(C7:J7) -> 0
A8: PAYE deductions | B8: 0300 | K8: 0
A9: VAT (output less input) | B9: 0400 | K9: 0
A10: Pensions / Retirement deductions | B10: 0500 | K10: 0
A11: Loan repayments | B11: 0600 | K11: 0
A12: Trade Creditors | B12: 0700 | K12: 0
A13: Auditor General | B13: 0800 | K13: 0
A14: Other | B14: 0900 | K14: =SUM(C14:J14) -> 0
A15: Total By Customer Type | B15: 1000 | C15: =SUM(C6:C14) -> 0 | D15: =SUM(D6:D14) -> 0 | E15: 0 | F15: 0 | G15: 0 | H15: 0 | I15: 0 | J15: 0 | K15: =SUM(K6:K14) -> 0 | L15: =SUM(L6:L14) -> 0
A16: Notes
A17: Material increases in value of creditors' categories compared to previous month to be explained

Sheet SC5
A1: =muni& " - "&S71K& " - "&Head57 -> LIM351 Blouberg - Supporting Table SC5 Monthly Budget Statement - investment portfolio - M11 May
A2: Investments by maturity Name of institution & investment ID | B2: Ref | C2: Period of Investment | D2: Type of Investment | E2: Capital Guarantee (Yes/ No) | F2: Variable or Fixed interest rate | G2: Interest Rate ᶟ | H2: Commission Paid (Rands) | I2: Commission Recipient | J2: Expiry date of investment | K2: Opening balance | L2: Interest to be realised | M2: Partial / Premature Withdrawal (4) | N2: Investment Top Up | O2: Closing Balance
A3: R thousands | C3: Yrs/Months
A4: Municipality
O5: =SUM(K5:N5) -> 0
A6: Municipality sub-total | K6: =SUM(K5:K5) -> 0 | M6: =SUM(M5:M5) -> 0 | N6: =SUM(N5:N5) -> 0 | O6: =SUM(O5:O5) -> 0
A8: Entities
O9: =SUM(K9:N9) -> 0
O10: 0
O11: 0
O12: 0
O13: 0
O14: 0
O15: 0
A16: Entities sub-total | K16: =SUM(K9:K15) -> 0 | M16: =SUM(M9:M15) -> 0 | N16: =SUM(N9:N15) -> 0 | O16: =SUM(O9:O15) -> 0
A18: TOTAL INVESTMENTS AND INTEREST | B18: 2 | K18: =K6+K16 -> 0 | M18: =M6+M16 -> 0 | N18: =N6+N16 -> 0 | O18: =O6+O16 -> 0
A19: =head27a -> References
A20: 2. List investments in expiry date order
A21: 3. If 'variable' is selected in column F, input interest rate range
A22: 4. Withdrawals to be entered as negative

Sheet SC6
A1: =muni& " - "&S71L& " - "&Head57 -> LIM351 Blouberg - Supporting Table SC6 Monthly Budget Statement - transfers and grant receipts - M11 May
A2: =desc -> Description | B2: =head27 -> Ref | C2: =Head1 -> 2018/19 | D2: =Head2 -> Budget Year 2019/20
C3: =Head5 -> Audited Outcome | D3: =Head6 -> Original Budget | E3: =Head7 -> Adjusted Budget | F3: =Head38 -> Monthly actual | G3: =Head39 -> YearTD actual | H3: =Head40 -> YearTD budget | I3: =Head41 -> YTD variance | J3: =Head41 -> YTD variance | K3: =Head8 -> Full Year Forecast
A4: R thousands | J4: %
A5: RECEIPTS: | B5: 1,2
A7: Operating Transfers and Grants
A8: National Government: | C8: =SUM(C9:C15) -> 172408000 | D8: 210915000 | E8: 211273000 | F8: -3650000 | G8: 189584478.3 | H8: 177317739 | I8: =G8-H8 -> 12266739.26 | J8: =IF(H8=0,"",I8/H8) -> 0.06917942519 | K8: =SUM(K9:K15) -> 211273000
A9: Energy Efficiency and Demand Side Management Grant | C9: 0 | D9: 21000000 | E9: 21000000 | F9: -2000000 | G9: 0 | H9: 3050000 | I9: -3050000 | J9: -1 | K9: 21000000
A10: Equitable Share | C10: 167730000 | D10: 186309000 | E10: 186309000 | F10: 0 | G10: 186309000 | H10: 170783250 | I10: 15525750 | J10: 0.09090909091 | K10: 186309000
A11: Expanded Public Works Programme Integrated Grant | C11: 1089000 | D11: 1072000 | E11: 1072000 | F11: -1650000 | G11: 1072000 | H11: 982663 | I11: 89337 | J11: 0.09091316148 | K11: 1072000
A12: Integrated National Electrification Programme Grant | C12: 0 | D12: 0 | E12: 0 | F12: 0 | G12: 0 | H12: 0 | I12: 0 | K12: 0
A13: Local Government Financial Management Grant | C13: 2534000 | D13: 2534000 | E13: 2534000 | F13: 0 | G13: 2203478.26 | H13: 2322826 | I13: -119347.74 | J13: -0.05138040473 | K13: 2534000
A14: Municipal Demarcation Transition Grant | C14: 1055000 | D14: 0 | E14: 0 | F14: 0 | G14: 0 | H14: 0 | I14: 0 | K14: 0
A15: Municipal Disaster Relief Grant | C15: 0 | D15: 0 | E15: 358000 | F15: 0 | G15: 0 | H15: 179000 | I15: -179000 | J15: -1 | K15: 358000
A16: Other transfers and grants [insert description] | I16: =G16-H16 -> 0 | J16: =IF(I16=0,"",I16/H16) -> 
A17: Provincial Government: | C17: =SUM(C18:C19) -> 0 | D17: 0 | E17: 0 | F17: 0 | G17: 0 | H17: 0 | I17: 0 | K17: =SUM(K18:K19) -> 0
I18: =G18-H18 -> 0
A19: Other transfers and grants [insert description] | I19: 0
A20: District Municipality: | C20: =SUM(C21:C22) -> 0 | D20: 0 | E20: 3000000 | F20: 1500000 | G20: 1500000 | H20: 1500000 | I20: =G20-H20 -> 0 | J20: =IF(H20=0,"",I20/H20) -> 0 | K20: =SUM(K21:K22) -> 3000000
A21: Environmental Protection | C21: 0 | D21: 0 | E21: 0 | F21: 0 | G21: 0 | H21: 0 | I21: 0 | K21: 0
A22: Specify (Add grant description) | C22: 0 | D22: 0 | E22: 3000000 | F22: 1500000 | G22: 1500000 | H22: 1500000 | I22: 0 | J22: 0 | K22: 3000000
A23: Other grant providers: | C23: =SUM(C24:C25) -> 6783826.47 | D23: 0 | E23: 0 | F23: 0 | G23: 0 | H23: 0 | I23: 0 | K23: =SUM(K24:K25) -> 0
A24: Mayors' Charity Fund | C24: 0 | D24: 0 | E24: 0 | F24: 0 | G24: 0 | H24: 0 | I24: 0 | K24: 0
A25: National Skills Fund | C25: 6783826.47 | D25: 0 | E25: 0 | F25: 0 | G25: 0 | H25: 0 | I25: 0 | K25: 0
A26: Total Operating Transfers and Grants | B26: 5 | C26: =C8+C17+C20+C23 -> 179191826.5 | D26: 210915000 | E26: 214273000 | F26: -2150000 | G26: 191084478.3 | H26: 178817739 | I26: 12266739.26 | J26: 0.06859911846 | K26: =K8+K17+K20+K23 -> 214273000
A28: Capital Transfers and Grants
A29: =A8 -> National Government: | C29: =SUM(C30:C33) -> 48356247 | D29: 44350000 | E29: 62078170 | F29: 2000000 | G29: 61350000 | H29: 54018248 | I29: =G29-H29 -> 7331752 | J29: =IF(H29=0,"",I29/H29) -> 0.1357273194 | K29: =SUM(K30:K33) -> 62078170
A30: Energy Efficiency and Demand Side Management Grant | C30: 0 | D30: 0 | E30: 2000000 | F30: 2000000 | G30: 2000000 | H30: 1000000 | I30: =G30-H30 -> 1000000 | J30: =IF(H30=0,"",I30/H30) -> 1 | K30: 2000000
A31: Integrated National Electrification Programme Grant | C31: 0 | D31: 0 | E31: 15728170 | F31: 0 | G31: 15000000 | H31: 12364085 | I31: =G31-H31 -> 2635915 | J31: =IF(H31=0,"",I31/H31) -> 0.2131912713 | K31: 15728170
A32: Municipal Infrastructure Grant | C32: 48356247 | D32: 44350000 | E32: 44350000 | F32: 0 | G32: 44350000 | H32: 40654163 | I32: =G32-H32 -> 3695837 | J32: =IF(H32=0,"",I32/H32) -> 0.0909091893 | K32: 44350000
A33: Municipal Rehabilitation Grant | C33: 0 | D33: 0 | E33: 0 | F33: 0 | G33: 0 | H33: 0 | I33: =G33-H33 -> 0 | J33: =IF(H33=0,"",I33/H33) ->  | K33: 0
A34: =A17 -> Provincial Government: | C34: =SUM(C35:C35) -> 0 | D34: 0 | E34: 0 | F34: 0 | G34: 0 | H34: 0 | I34: =G34-H34 -> 0 | J34: =IF(I34=0,"",I34/H34) ->  | K34: =SUM(K35:K35) -> 0
A35: [insert description] | I35: 0 | J35: =IF(I35=0,"",I35/H35) -> 
A36: =A20 -> District Municipality: | C36: =SUM(C37:C37) -> 0 | D36: 0 | E36: 0 | F36: 0 | G36: 0 | H36: 0 | I36: 0 | J36: =IF(I36=0,"",I36/H36) ->  | K36: =SUM(K37:K37) -> 0
A37: [insert description] | I37: 0
A38: =A23 -> Other grant providers: | C38: =SUM(C39:C39) -> 0 | D38: 0 | E38: 0 | F38: 0 | G38: 0 | H38: 0 | I38: 0 | K38: =SUM(K39:K39) -> 0
A39: [insert description] | I39: 0 | J39: =IF(I39=0,"",I39/H39) -> 
A40: Total Capital Transfers and Grants | B40: 5 | C40: =C29+C34+C36+C38 -> 48356247 | D40: 44350000 | E40: 62078170 | F40: 2000000 | G40: 61350000 | H40: 54018248 | I40: 7331752 | J40: 0.1357273194 | K40: =K29+K34+K36+K38 -> 62078170
A42: TOTAL RECEIPTS OF TRANSFERS & GRANTS | B42: 5 | C42: =C26+C40 -> 227548073.5 | D42: 255265000 | E42: 276351170 | F42: -150000 | G42: 252434478.3 | H42: 232835987 | I42: 19598491.26 | J42: 0.08417294729 | K42: =K26+K40 -> 276351170
A43: =head27a -> References
A44: 1. Each grant is listed by name as gazetted together with the name of the transferring department or municipality, donor or other organisation
A45: 2. Grant expenditure must be separately listed for each grant received
A46: 3. Replacement of RSC levies
A47: 4. Housing subsidies for housing where ownership transferred
A48: 5. Total recurrent/capital grants and subsidies must reconcile to the 'Financial Performance' Statement

Sheet SC7(1)
A1: =muni& " - "&S71M& " - "&Head57 -> LIM351 Blouberg - Supporting Table SC7(1) Monthly Budget Statement - transfers and grant expenditure - M11 May
A2: =desc -> Description | B2: =head27 -> Ref | C2: =Head1 -> 2018/19 | D2: =Head2 -> Budget Year 2019/20
C3: =Head5 -> Audited Outcome | D3: =Head6 -> Original Budget | E3: =Head7 -> Adjusted Budget | F3: =Head38 -> Monthly actual | G3: =Head39 -> YearTD actual | H3: =Head40 -> YearTD budget | I3: =Head41 -> YTD variance | J3: =Head41 -> YTD variance | K3: =Head8 -> Full Year Forecast
A4: R thousands | J4: %
A5: EXPENDITURE
A7: Operating expenditure of Transfers and Grants
A8: ='SC6'!A8 -> National Government: | C8: =SUM(C9:C16) -> 125141916.8 | D8: 149515844 | E8: 153078225 | F8: 9670772.24 | G8: 116207620.8 | H8: 138389530.5 | I8: -22181909.74 | J8: =IF(I8=0,"",I8/H8) -> -0.1602860394 | K8: =SUM(K9:K16) -> 153078225
I9: =G9-H9 -> 0
A10: Equitable Share | C10: 114936935.9 | D10: 141971051 | E10: 147166725 | F10: 10210874.85 | G10: 111186576 | H10: 132656091 | I10: =G10-H10 -> -21469515.05 | J10: =IF(H10=0,"",I10/H10) -> -0.1618434169 | K10: 147166725
A11: Expanded Public Works Programme Integrated Grant | C11: 3310234.58 | D11: 3337040 | E11: 1072000 | F11: -1734403.85 | G11: 1071877.05 | H11: 1889796.96 | I11: -817919.91 | J11: -0.4328083531 | K11: 1072000
A12: Integrated National Electrification Programme Grant | C12: 0 | D12: 0 | E12: 0 | F12: 0 | G12: 0 | H12: 0 | I12: 0 | K12: 0
A13: Local Government Financial Management Grant | C13: 6894746.32 | D13: 4207753 | E13: 2534000 | F13: -753198.76 | G13: 2001667.72 | H13: 2690892.5 | I13: -689224.78 | J13: -0.2561324096 | K13: 2534000
A14: Municipal Demarcation Transition Grant | C14: 0 | D14: 0 | E14: 0 | F14: 0 | G14: 0 | H14: 0 | I14: 0 | K14: 0
A15: Municipal Disaster Relief Grant | C15: 0 | D15: 0 | E15: 358000 | F15: 0 | G15: 0 | H15: 179000 | I15: -179000 | J15: -1 | K15: 358000
A16: Municipal Infrastructure Grant | C16: 0 | D16: 0 | E16: 1947500 | F16: 1947500 | G16: 1947500 | H16: 973750 | I16: 973750 | J16: 1 | K16: 1947500
A17: ='SC6'!A17 -> Provincial Government: | C17: =SUM(C18:C18) -> 0 | D17: 0 | E17: 0 | F17: 0 | G17: 0 | H17: 0 | I17: 0 | K17: =SUM(K18:K18) -> 0
I18: =G18-H18 -> 0
A19: ='SC6'!A20 -> District Municipality: | C19: =SUM(C20:C20) -> 0 | D19: 0 | E19: 0 | F19: 0 | G19: 0 | H19: 0 | I19: 0 | K19: =SUM(K20:K20) -> 0
I20: 0
A21: Environmental Protection | C21: 0 | D21: 0 | E21: 0 | F21: 0 | G21: 0 | H21: 0 | I21: =G21-H21 -> 0 | J21: =IF(H21=0,"",I21/H21) ->  | K21: 0
A22: Specify (Add grant description) | C22: 0 | D22: 0 | E22: 3000000 | F22: 0 | G22: 0 | H22: 1500000 | I22: =G22-H22 -> -1500000 | J22: =IF(H22=0,"",I22/H22) -> -1 | K22: 3000000
A23: ='SC6'!A23 -> Other grant providers: | C23: =SUM(C24:C24) -> 0 | D23: 0 | E23: 0 | F23: 0 | G23: 0 | H23: 0 | I23: 0 | K23: =SUM(K24:K24) -> 0
I24: 0
A25: National Skills Fund | C25: 0 | D25: 0 | E25: 0 | F25: 0 | G25: 0 | H25: 0 | I25: =G25-H25 -> 0 | J25: =IF(H25=0,"",I25/H25) ->  | K25: 0
A26: Skill Development and Training | C26: 2810526.36 | D26: 3300000 | E26: 0 | F26: 425000 | G26: 2125000 | H26: 1375000 | I26: =G26-H26 -> 750000 | J26: =IF(H26=0,"",I26/H26) -> 0.5454545455 | K26: 0
A27: Total operating expenditure of Transfers and Grants: | C27: =C8+C17+C19+C23 -> 125141916.8 | D27: 149515844 | E27: 153078225 | F27: 9670772.24 | G27: 116207620.8 | H27: 138389530.5 | I27: -22181909.74 | J27: -0.1602860394 | K27: =K8+K17+K19+K23 -> 153078225
A29: Capital expenditure of Transfers and Grants
A30: ='SC6'!A29 -> National Government: | C30: =SUM(C31:C33) -> 0 | D30: 57482500 | E30: 59402500 | F30: 4073805.56 | G30: 35287872.45 | H30: 53628376 | I30: -18340503.55 | J30: =IF(I30=0,"",I30/H30) -> -0.3419925218 | K30: =SUM(K31:K33) -> 59402500
A31: Energy Efficiency and Demand Side Management Grant | C31: 0 | D31: 0 | E31: 2000000 | F31: 945266.96 | G31: 945266.96 | H31: 1000000 | I31: =G31-H31 -> -54733.04 | J31: =IF(H31=0,"",I31/H31) -> -0.05473304 | K31: 2000000
A32: Integrated National Electrification Programme Grant | C32: 0 | D32: 15000000 | E32: 15000000 | F32: 576533.98 | G32: 4790754.12 | H32: 13750055 | I32: =G32-H32 -> -8959300.88 | J32: =IF(H32=0,"",I32/H32) -> -0.6515829122 | K32: 15000000
A33: Municipal Infrastructure Grant | C33: 0 | D33: 42482500 | E33: 42402500 | F33: 2552004.62 | G33: 29551851.37 | H33: 38878321 | I33: =G33-H33 -> -9326469.63 | J33: =IF(H33=0,"",I33/H33) -> -0.2398886935 | K33: 42402500
A34: ='SC6'!A34 -> Provincial Government: | C34: =SUM(C35:C35) -> 0 | D34: 0 | E34: 0 | F34: 0 | G34: 0 | H34: 0 | I34: =G34-H34 -> 0 | K34: =SUM(K35:K35) -> 0
I35: 0
A36: ='SC6'!A36 -> District Municipality: | C36: =SUM(C37:C37) -> 0 | D36: 0 | E36: 0 | F36: 0 | G36: 0 | H36: 0 | I36: 0 | K36: =SUM(K37:K37) -> 0
I37: 0
A38: ='SC6'!A38 -> Other grant providers: | C38: =SUM(C39:C39) -> 0 | D38: 6000000 | E38: 728171 | F38: -462070.19 | G38: 962948.03 | H38: 1882509.8 | I38: -919561.77 | J38: -0.488476485 | K38: =SUM(K39:K39) -> 728171
A39: Discount Benefit Scheme (Housing | C39: 0 | D39: 6000000 | E39: 728171 | F39: -462070.19 | G39: 962948.03 | H39: 1882509.8 | I39: =G39-H39 -> -919561.77 | J39: =IF(H39=0,"",I39/H39) -> -0.488476485 | K39: 728171
A40: Total capital expenditure of Transfers and Grants | C40: =C30+C34+C36+C38 -> 0 | D40: 63482500 | E40: 60130671 | F40: 3611735.37 | G40: 36250820.48 | H40: 55510885.8 | I40: -19260065.32 | J40: =IF(I40=0,"",I40/H40) -> -0.346960151 | K40: =K30+K34+K36+K38 -> 60130671
A42: TOTAL EXPENDITURE OF TRANSFERS AND GRANTS | C42: =C27+C40 -> 125141916.8 | D42: 212998344 | E42: 213208896 | F42: 13282507.61 | G42: 152458441.2 | H42: 193900416.3 | I42: -41441975.06 | J42: =IF(I42=0,"",I42/H42) -> -0.2137281387 | K42: =K27+K40 -> 213208896
A43: =head27a -> References

Sheet SC7(2)
A1: =muni& " - "&S71T& " - "&Head57 -> LIM351 Blouberg - Supporting Table SC7(2) Monthly Budget Statement - Expenditure against approved rollovers - M11 May
A2: =desc -> Description | B2: =head27 -> Ref | C2: =Head2 -> Budget Year 2019/20
C3: ="Approved Rollover " &Head1 -> Approved Rollover 2018/19 | D3: =Head38 -> Monthly actual | E3: =Head39 -> YearTD actual | F3: =Head41 -> YTD variance | G3: =Head41 -> YTD variance
A4: R thousands | G4: %
A5: EXPENDITURE
A7: Operating expenditure of Approved Roll-overs
A8: ='SC6'!A8 -> National Government: | C8: =SUM(C9:C9) -> 0 | D8: =SUM(D9:D9) -> 0 | E8: =SUM(E9:E9) -> 0 | F8: =SUM(F9:F9) -> 0 | G8: =IF(F8=0,"",F8/C8) -> 
F9: =E9-C9 -> 0 | G9: =IF(F9=0,"",F9/C9) -> 
A10: ='SC6'!A17 -> Provincial Government: | C10: =SUM(C11:C11) -> 0 | D10: =SUM(D11:D11) -> 0 | E10: =SUM(E11:E11) -> 0 | F10: =SUM(F11:F11) -> 0
F11: =C11-E11 -> 0
A12: ='SC6'!A20 -> District Municipality: | C12: =SUM(C13:C13) -> 0 | D12: =SUM(D13:D13) -> 0 | E12: =SUM(E13:E13) -> 0 | F12: =SUM(F13:F13) -> 0
F13: =C13-E13 -> 0
A14: ='SC6'!A23 -> Other grant providers: | C14: =SUM(C15:C15) -> 0 | D14: =SUM(D15:D15) -> 0 | E14: =SUM(E15:E15) -> 0 | F14: =SUM(F15:F15) -> 0
F15: =C15-E15 -> 0
A16: Total operating expenditure of Approved Roll-overs | C16: =C8+C10+C12+C14 -> 0 | D16: =D8+D10+D12+D14 -> 0 | E16: =E8+E10+E12+E14 -> 0 | F16: =F8+F10+F12+F14 -> 0
A18: Capital expenditure of Approved Roll-overs
A19: ='SC6'!A29 -> National Government: | C19: =SUM(C20:C20) -> 0 | D19: =SUM(D20:D20) -> 0 | E19: =SUM(E20:E20) -> 0 | F19: =SUM(F20:F20) -> 0
F20: =C20-E20 -> 0
A21: ='SC6'!A34 -> Provincial Government: | C21: =SUM(C22:C22) -> 0 | D21: =SUM(D22:D22) -> 0 | E21: =SUM(E22:E22) -> 0 | F21: =SUM(F22:F22) -> 0
F22: =C22-E22 -> 0
A23: ='SC6'!A36 -> District Municipality: | C23: =SUM(C24:C24) -> 0 | D23: =SUM(D24:D24) -> 0 | E23: =SUM(E24:E24) -> 0 | F23: =SUM(F24:F24) -> 0
F24: =C24-E24 -> 0
A25: ='SC6'!A38 -> Other grant providers: | C25: =SUM(C26:C26) -> 0 | D25: =SUM(D26:D26) -> 0 | E25: =SUM(E26:E26) -> 0 | F25: =SUM(F26:F26) -> 0
F26: =C26-E26 -> 0
A27: Total capital expenditure of Approved Roll-overs | C27: =C19+C21+C23+C25 -> 0 | D27: =D19+D21+D23+D25 -> 0 | E27: =E19+E21+E23+E25 -> 0 | F27: =F19+F21+F23+F25 -> 0
A29: TOTAL EXPENDITURE OF APPROVED ROLL-OVERS | C29: =C16+C27 -> 0 | D29: =D16+D27 -> 0 | E29: =E16+E27 -> 0 | F29: =F16+F27 -> 0
A30: =head27a -> References

Sheet SC8
A1: =muni& " - "&S71N& " - "&Head57 -> LIM351 Blouberg - Supporting Table SC8 Monthly Budget Statement - councillor and staff benefits - M11 May
A2: Summary of Employee and Councillor remuneration | B2: =head27 -> Ref | C2: =Head1 -> 2018/19 | D2: =Head2 -> Budget Year 2019/20
C3: =Head5 -> Audited Outcome | D3: =Head6 -> Original Budget | E3: =Head7 -> Adjusted Budget | F3: =Head38 -> Monthly actual | G3: =Head39 -> YearTD actual | H3: =Head40 -> YearTD budget | I3: =Head41 -> YTD variance | J3: =Head41 -> YTD variance | K3: =Head8 -> Full Year Forecast
A4: R thousands | J4: %
B5: 1 | C5: A | D5: B | E5: C | K5: D
A6: Councillors (Political Office Bearers plus Other)
A7: Basic Salaries and Wages | C7: 7670530.9 | D7: 10685143 | E7: 10158292 | F7: 934510.86 | G7: 9982298.4 | H7: 9373260.2 | I7: =G7-H7 -> 609038.2 | J7: =IF(I7=0,"",I7/H7) -> 0.06497613285 | K7: 10158292
A8: Pension and UIF Contributions | C8: 3032642.28 | D8: 1112963 | E8: 1157484 | F8: 1413.1 | G8: 15544.1 | H8: 1055855.8 | I8: -1040311.7 | J8: -0.985278198 | K8: 1157484
A9: Medical Aid Contributions | I9: 0
A10: Motor Vehicle Allowance | I10: =G10-H10 -> 0 | J10: =IF(I10=0,"",I10/H10) -> 
A11: Cellphone Allowance | C11: 1953600 | D11: 1326637 | E11: 2189018 | F11: 162800 | G11: 1790800 | H11: 1906009.8 | I11: =G11-H11 -> -115209.8 | J11: =IF(I11=0,"",I11/H11) -> -0.0604455444 | K11: 2189018
A12: Housing Allowances | I12: =G12-H12 -> 0 | J12: =IF(I12=0,"",I12/H12) -> 
A13: Other benefits and allowances | C13: 3530218.83 | D13: 2308834 | E13: 3586137 | F13: 306873.37 | G13: 3313328.87 | H13: 3138297.4 | I13: 175031.47 | J13: 0.05577274799 | K13: 3586137
A14: Sub Total - Councillors | C14: =SUM(C7:C13) -> 16186992.01 | D14: 15433577 | E14: 17090931 | F14: 1405597.33 | G14: 15101971.37 | H14: 15473423.2 | I14: -371451.83 | J14: -0.0240057953 | K14: 17090931
A15: % increase | B15: 4 | D15: =IF(D14=0,"",(D14/C14)-1) -> -0.04654447284 | E15: =IF(E14=0,"",(E14/C14)-1) -> 0.05584354335 | K15: =IF(K14=0,"",(K14/C14)-1) -> 0.05584354335
A17: Senior Managers of the Municipality | B17: 3
A18: Basic Salaries and Wages | C18: 3463102.1 | D18: 4400432 | E18: 3800432 | F18: 311404.99 | G18: 3159546.35 | H18: 3553755 | I18: =G18-H18 -> -394208.65 | J18: =IF(I18=0,"",I18/H18) -> -0.1109273571 | K18: 3800432
A19: Pension and UIF Contributions | C19: 560142.36 | D19: 641231 | E19: 651231 | F19: 45728.84 | G19: 595627.17 | H19: 592895 | I19: 2732.17 | J19: 0.00460818526 | K19: 651231
A20: Medical Aid Contributions | C20: 0 | D20: 0 | E20: 0 | F20: 0 | G20: 0 | H20: 0 | I20: 0 | K20: 0
A21: Overtime | C21: 0 | D21: 0 | E21: 0 | F21: 0 | G21: 0 | H21: 0 | I21: 0 | K21: 0
A22: Performance Bonus | C22: 55943.72 | D22: 250000 | E22: 261810 | F22: 0 | G22: 211935.65 | H22: 238633 | I22: =G22-H22 -> -26697.35 | J22: =IF(I22=0,"",I22/H22) -> -0.1118761864 | K22: 261810
A23: Motor Vehicle Allowance | C23: 1017642.46 | D23: 1293085 | E23: 1293085 | F23: 63051.59 | G23: 830603.51 | H23: 1185360 | I23: =G23-H23 -> -354756.49 | J23: =IF(I23=0,"",I23/H23) -> -0.2992816444 | K23: 1293085
A24: Cellphone Allowance | C24: 114176.52 | D24: 171201 | E24: 171201 | F24: 8196.24 | G24: 108101.76 | H24: 156970 | I24: =G24-H24 -> -48868.24 | J24: =IF(I24=0,"",I24/H24) -> -0.3113221635 | K24: 171201
A25: Housing Allowances | C25: 0 | D25: 0 | E25: 0 | F25: 0 | G25: 0 | H25: 0 | I25: =G25-H25 -> 0 | J25: =IF(I25=0,"",I25/H25) ->  | K25: 0
A26: Other benefits and allowances | C26: 57163.23 | D26: 134222 | E26: 320619 | F26: 19257.8 | G26: 203615.28 | H26: 275229.6 | I26: -71614.32 | J26: -0.260198467 | K26: 320619
A27: Payments in lieu of leave | C27: 0 | D27: 0 | E27: 0 | F27: 0 | G27: 0 | H27: 0 | I27: 0 | K27: 0
A28: Long service awards | C28: 0 | D28: 0 | E28: 0 | F28: 0 | G28: 0 | H28: 0 | I28: 0 | K28: 0
A29: Post-retirement benefit obligations | B29: 2 | C29: 0 | D29: 0 | E29: 0 | F29: 0 | G29: 0 | H29: 0 | I29: 0 | K29: 0
A30: Sub Total - Senior Managers of Municipality | C30: =SUM(C18:C29) -> 5268170.39 | D30: 6890171 | E30: 6498378 | F30: =SUM(F18:F29) -> 447639.46 | G30: =SUM(G18:G29) -> 5109429.72 | H30: =SUM(H18:H29) -> 6002842.6 | I30: -893412.88 | J30: =IF(I30=0,"",I30/H30) -> -0.1488316352 | K30: 6498378
A31: % increase | B31: 4 | D31: =IF(D30=0,"",(D30/C30)-1) -> 0.3078868924 | E31: =IF(E30=0,"",(E30/C30)-1) -> 0.2335170503 | K31: =IF(K30=0,"",(K30/C30)-1) -> 0.2335170503
A33: Other Municipal Staff
A34: Basic Salaries and Wages | C34: 56513029.79 | D34: 64761415 | E34: 63861415 | F34: 4891228.26 | G34: 54112574.21 | H34: 58914701 | I34: =G34-H34 -> -4802126.79 | J34: =IF(I34=0,"",I34/H34) -> -0.08150982197 | K34: 63861415
A35: Pension and UIF Contributions | C35: 12840127.91 | D35: 16860177 | E35: 16610177 | F35: 1145122.54 | G35: 12687809.51 | H35: 15330242 | I35: -2642432.49 | J35: -0.1723673044 | K35: 16610177
A36: Medical Aid Contributions | C36: 3881926.8 | D36: 3746955 | E36: 4349783 | F36: 362065.1 | G36: 3822115.5 | H36: 3752001.4 | I36: 70114.1 | J36: 0.01868711989 | K36: 4349783
A37: Overtime | C37: 2393117.46 | D37: 2339510 | E37: 2636806 | F37: 50648.51 | G37: 1820024.06 | H37: 2292429.8 | I37: -472405.74 | J37: -0.2060720638 | K37: 2636806
A38: Performance Bonus | C38: 4617743.95 | D38: 6009519 | E38: 6009519 | F38: 441515.56 | G38: 4691664.72 | H38: 5508767 | I38: -817102.28 | J38: -0.1483276167 | K38: 6009519
A39: Motor Vehicle Allowance | C39: 13319968.09 | D39: 14684614 | E39: 15184614 | F39: 1181284.66 | G39: 12955938.83 | H39: 13710931 | I39: =G39-H39 -> -754992.17 | J39: =IF(I39=0,"",I39/H39) -> -0.05506498209 | K39: 15184614
A40: Cellphone Allowance | C40: 1881118.17 | D40: 1810729 | E40: 1914906 | F40: 219095.47 | G40: 1881364.31 | H40: 1743230.6 | I40: =G40-H40 -> 138133.71 | J40: =IF(I40=0,"",I40/H40) -> 0.07924006726 | K40: 1914906
A41: Housing Allowances | C41: 156015.65 | D41: 198754 | E41: 228408 | F41: 14524.32 | G41: 162490.83 | H41: 205949.2 | I41: =G41-H41 -> -43458.37 | J41: =IF(I41=0,"",I41/H41) -> -0.2110149979 | K41: 228408
A42: Other benefits and allowances | C42: 935217.9 | D42: 713964 | E42: 784194 | F42: 78070.38 | G42: 875399.32 | H42: 740717 | I42: 134682.32 | J42: 0.1818269596 | K42: 784194
A43: Payments in lieu of leave | C43: 596589.99 | D43: 5130647 | E43: 1940934 | F43: -4254.54 | G43: 757912.36 | H43: 2151367.6 | I43: -1393455.24 | J43: -0.6477067146 | K43: 1940934
A44: Long service awards | C44: 0 | D44: 0 | E44: 0 | F44: 0 | G44: 0 | H44: 0 | I44: 0 | K44: 0
A45: Post-retirement benefit obligations | B45: 2 | C45: 1209585 | D45: 708702 | E45: 608702 | F45: 0 | G45: 0 | H45: 599660 | I45: -599660 | J45: -1 | K45: 608702
A46: Sub Total - Other Municipal Staff | C46: =SUM(C34:C45) -> 98344440.71 | D46: 116964986 | E46: 114129458 | F46: =SUM(F34:F45) -> 8379300.26 | G46: =SUM(G34:G45) -> 93767293.65 | H46: =SUM(H34:H45) -> 104949996.6 | I46: -11182702.95 | J46: =IF(I46=0,"",I46/H46) -> -0.1065526757 | K46: 114129458
A47: % increase | B47: 4 | D47: =IF(D46=0,"",(D46/C46)-1) -> 0.1893400904 | E47: =IF(E46=0,"",(E46/C46)-1) -> 0.1605074692 | K47: =IF(K46=0,"",(K46/C46)-1) -> 0.1605074692
A49: Total Parent Municipality | C49: =C14+C30+C46 -> 119799603.1 | D49: =D14+D30+D46 -> 139288734 | E49: 137718767 | F49: 10232537.05 | G49: 113978694.7 | H49: 126426262.4 | I49: =G49-H49 -> -12447567.66 | J49: =IF(I49=0,"",I49/H49) -> -0.0984571356 | K49: 137718767
D50: =IF(D49=0,"",(D49/C49)-1) -> 0.1626810973 | E50: =IF(E49=0,"",(E49/C49)-1) -> 0.1495761541 | K50: =IF(K49=0,"",(K49/C49)-1) -> 0.1495761541
A51: Unpaid salary, allowances & benefits in arrears:
A53: Board Members of Entities
A54: Basic Salaries and Wages | I54: =G54-H54 -> 0 | J54: =IF(I54=0,"",I54/H54) -> 
A55: Pension and UIF Contributions | I55: 0
A56: Medical Aid Contributions | I56: 0
A57: Overtime | I57: =G57-H57 -> 0 | J57: =IF(I57=0,"",I57/H57) -> 
A58: Performance Bonus | I58: =G58-H58 -> 0 | J58: =IF(I58=0,"",I58/H58) -> 
A59: Motor Vehicle Allowance | I59: =G59-H59 -> 0 | J59: =IF(I59=0,"",I59/H59) -> 
A60: Cellphone Allowance | I60: =G60-H60 -> 0 | J60: =IF(I60=0,"",I60/H60) -> 
A61: Housing Allowances | I61: =G61-H61 -> 0 | J61: =IF(I61=0,"",I61/H61) -> 
A62: Other benefits and allowances | I62: 0
A63: Board Fees | I63: =G63-H63 -> 0 | J63: =IF(I63=0,"",I63/H63) -> 
A64: Payments in lieu of leave | I64: 0
A65: Long service awards | I65: 0
A66: Post-retirement benefit obligations | I66: 0
A67: Sub Total - Board Members of Entities | B67: 2 | C67: =SUM(C54:C66) -> 0 | D67: 0 | E67: 0 | F67: =SUM(F54:F66) -> 0 | G67: =SUM(G54:G66) -> 0 | H67: =SUM(H54:H66) -> 0 | I67: 0 | J67: =IF(I67=0,"",I67/H67) ->  | K67: 0
A68: % increase | B68: 4 | D68: =IF(D67=0,"",(D67/C67)-1) ->  | E68: =IF(E67=0,"",(E67/C67)-1) ->  | K68: =IF(K67=0,"",(K67/C67)-1) -> 
A70: Senior Managers of Entities
A71: Basic Salaries and Wages | I71: =G71-H71 -> 0 | J71: =IF(I71=0,"",I71/H71) -> 
A72: Pension and UIF Contributions | I72: 0
A73: Medical Aid Contributions | I73: 0
A74: Overtime | I74: 0
A75: Performance Bonus | I75: =G75-H75 -> 0 | J75: =IF(I75=0,"",I75/H75) -> 
A76: Motor Vehicle Allowance | I76: =G76-H76 -> 0 | J76: =IF(I76=0,"",I76/H76) -> 
A77: Cellphone Allowance | I77: =G77-H77 -> 0 | J77: =IF(I77=0,"",I77/H77) -> 
A78: Housing Allowances | I78: =G78-H78 -> 0 | J78: =IF(I78=0,"",I78/H78) -> 
A79: Other benefits and allowances | I79: 0
A80: Payments in lieu of leave | I80: 0
A81: Long service awards | I81: 0
A82: Post-retirement benefit obligations | B82: 2 | I82: 0
A83: Sub Total - Senior Managers of Entities | C83: =SUM(C71:C82) -> 0 | D83: 0 | E83: 0 | F83: =SUM(F71:F82) -> 0 | G83: =SUM(G71:G82) -> 0 | H83: =SUM(H71:H82) -> 0 | I83: 0 | J83: =IF(I83=0,"",I83/H83) ->  | K83: 0
A84: % increase | B84: 4 | D84: =IF(D83=0,"",(D83/C83)-1) ->  | E84: =IF(E83=0,"",(E83/C83)-1) ->  | K84: =IF(K83=0,"",(K83/C83)-1) -> 
A86: Other Staff of Entities
A87: Basic Salaries and Wages | I87: =G87-H87 -> 0 | J87: =IF(I87=0,"",I87/H87) -> 
A88: Pension and UIF Contributions | I88: 0
A89: Medical Aid Contributions | I89: =G89-H89 -> 0 | J89: =IF(I89=0,"",I89/H89) -> 
A90: Overtime | I90: =G90-H90 -> 0 | J90: =IF(I90=0,"",I90/H90) -> 
A91: Performance Bonus | I91: =G91-H91 -> 0 | J91: =IF(I91=0,"",I91/H91) -> 
A92: Motor Vehicle Allowance | I92: =G92-H92 -> 0 | J92: =IF(I92=0,"",I92/H92) -> 
A93: Cellphone Allowance | I93: 0
A94: Housing Allowances | I94: 0
A95: Other benefits and allowances | I95: 0
A96: Payments in lieu of leave | I96: 0
A97: Long service awards | I97: 0
A98: Post-retirement benefit obligations | I98: 0
A99: Sub Total - Other Staff of Entities | C99: =SUM(C87:C98) -> 0 | D99: 0 | E99: 0 | F99: 0 | G99: 0 | H99: 0 | I99: 0 | J99: =IF(I99=0,"",I99/H99) ->  | K99: =SUM(K87:K98) -> 0
A100: % increase | B100: 4 | D100: =IF(D99=0,"",(D99/C99)-1) ->  | E100: =IF(E99=0,"",(E99/C99)-1) ->  | K100: =IF(K99=0,"",(K99/C99)-1) -> 
A102: Total Municipal Entities | C102: =C67+C83+C99 -> 0 | D102: 0 | E102: 0 | F102: 0 | G102: 0 | H102: 0 | I102: =G102-H102 -> 0 | J102: =IF(I102=0,"",I102/H102) ->  | K102: =K67+K83+K99 -> 0
A104: TOTAL SALARY, ALLOWANCES & BENEFITS | C104: =C49+C102 -> 119799603.1 | D104: 139288734 | E104: 137718767 | F104: 10232537.05 | G104: 113978694.7 | H104: 126426262.4 | I104: =G104-H104 -> -12447567.66 | J104: =IF(I104=0,"",I104/H104) -> -0.0984571356 | K104: =K49+K102 -> 137718767
A105: % increase | B105: 4 | D105: =IF(D104=0,"",(D104/C104)-1) -> 0.1626810973 | E105: =IF(E104=0,"",(E104/C104)-1) -> 0.1495761541 | K105: =IF(K104=0,"",(K104/C104)-1) -> 0.1495761541
A106: TOTAL MANAGERS AND STAFF | C106: =C30+C46+C83+C99 -> 103612611.1 | D106: 123855157 | E106: 120627836 | F106: 8826939.72 | G106: 98876723.37 | H106: 110952839.2 | I106: -12076115.83 | J106: =IF(I106=0,"",I106/H106) -> -0.1088400794 | K106: =K30+K46+K83+K99 -> 120627836
A107: =head27a -> References
A108: 1. Include 'Loans and advances' where applicable if any reportable amounts until phased compliance with s164 of MFMA achieved
A109: 2. If benefits in kind are provided (e.g. provision of living quarters) the full market value must be shown as the cost to the municipality
A110: 3. s57 of the Systems Act
A111: 4. B/A, C/A, D/A
A112: Column Definitions:
A113: A. Audited actual 2005/06 (audited financial statements). If audited amounts unavailable, unaudited amounts must be provided with a note stating these are unaudited
A114: B. The original budget approved by council for the 2006/07 budget year.
A115: C. The budget for 2006/07 budget year as adjusted by council resolution in terms of section 28 of the MFMA.
A116: D. An estimate of final actual amounts (pre audit - 2006/07 budget year) at the time of preparing the budget for the 2007/08 budget year. This may differ from C.

Sheet SC9
A1: =muni& " - "&S71O& " - "&Head57 -> LIM351 Blouberg - Supporting Table SC9 Monthly Budget Statement - actuals and revised targets for cash receipts - M11 May
A2: =desc -> Description | B2: =head27 -> Ref | C2: =Head2 -> Budget Year 2019/20 | O2: ='Template names'!B5 -> 2019/20 Medium Term Revenue & Expenditure Framework
C3: July | D3: August | E3: Sept | F3: October | G3: Nov | H3: Dec | I3: January | J3: Feb | K3: March | L3: April | M3: May | N3: June | O3: =Head9 -> Budget Year 2019/20 | P3: =Head10 -> Budget Year +1 2020/21 | Q3: =Head11 -> Budget Year +2 2021/22
A4: R thousands | B4: 1 | C4: Outcome | D4: Outcome | E4: Outcome | F4: Outcome | G4: Outcome | H4: Outcome | I4: Outcome | J4: Outcome | K4: Outcome | L4: Outcome | M4: Outcome | N4: Budget
A5: Cash Receipts By Source
A6: Property rates | N6: =O6-SUM(C6:M6) -> 0
A7: Service charges - electricity revenue | N7: 0
A8: Service charges - water revenue | N8: 0
A9: Service charges - sanitation revenue | N9: 0
A10: Service charges - refuse | N10: 0
A12: Rental of facilities and equipment | N12: 0
A13: Interest earned - external investments | N13: 0
A14: Interest earned - outstanding debtors | N14: 0
A15: Dividends received | N15: 0
A16: Fines, penalties and forfeits | N16: 0
A17: Licences and permits | N17: 0
A18: Agency services | N18: 0
A19: Transfers and Subsidies - Operational | N19: 0
A20: Other revenue | N20: 0
A21: Cash Receipts by Source | C21: =SUM(C6:C10)+SUM(C12:C20) -> 0 | D21: =SUM(D6:D10)+SUM(D12:D20) -> 0 | E21: 0 | F21: 0 | G21: 0 | H21: 0 | I21: 0 | J21: 0 | K21: 0 | L21: 0 | M21: 0 | N21: 0 | O21: 0 | P21: 0 | Q21: 0
N22: =O22-SUM(C22:M22) -> 0
A23: Other Cash Flows by Source | N23: 0
A24: ='C4-FinPerf RE'!A39 -> Transfers and subsidies - capital (monetary allocations) (National / Provincial and District) | N24: 0
A25: ='C4-FinPerf RE'!A40 -> Transfers and subsidies - capital (monetary allocations) (National / Provincial Departmental Agencies, Households, Non-profit Institutions, Private Enterprises, Public Corporatons, Higher Educational Institutions) | N25: 0
A26: Proceeds on Disposal of Fixed and Intangible Assets | N26: 0
A27: Short term loans | N27: 0
A28: Borrowing long term/refinancing | N28: 0
A29: Increase (decrease) in consumer deposits | C29: 0 | D29: 0 | E29: 0 | F29: 0 | G29: 0 | H29: 0 | I29: 0 | J29: 0 | K29: 0 | L29: 0 | M29: 0 | N29: 0 | O29: 0 | P29: 0 | Q29: 0
A31: Decrease (increase) in non-current receivables | N31: 0
A32: Decrease (increase) in non-current investments | N32: 0
A33: Total Cash Receipts by Source | C33: =SUM(C21:C29)+SUM(C31:C32) -> 0 | D33: =SUM(D21:D29)+SUM(D31:D32) -> 0 | E33: 0 | F33: 0 | G33: 0 | H33: 0 | I33: 0 | J33: 0 | K33: 0 | L33: 0 | M33: 0 | N33: 0 | O33: 0 | P33: 0 | Q33: 0
N34: =O34-SUM(C34:M34) -> 0
A35: Cash Payments by Type | N35: 0
A36: Employee related costs | C36: 8941967.46 | D36: 8886657.69 | E36: 9150756.93 | F36: 9002722.16 | G36: 8758267.4 | H36: 8785725.02 | I36: 9066346.39 | J36: 9254943.72 | K36: 9029805.53 | L36: 9172591.35 | M36: 8826939.72 | N36: 21751112.63 | O36: 120627836 | P36: 129158870 | Q36: 138095312
A37: Remuneration of councillors | C37: 1367679.68 | D37: 1387135.08 | E37: 1367679.68 | F37: 1367679.68 | G37: 1367679.68 | H37: 1367679.68 | I37: 1367679.68 | J37: 1367679.68 | K37: 1367740.6 | L37: 1367740.6 | M37: 1405597.33 | N37: 1988959.63 | O37: 17090931 | P37: 18116396 | Q37: 19203378
A38: Interest paid | N38: 0
A39: Bulk purchases - Electricity | C39: 993803.05 | D39: 1114761.78 | E39: 6451657.39 | F39: 2914458.95 | G39: 11477.3 | H39: 5903345.62 | I39: 3006694.42 | J39: 102730.46 | K39: 5777652.08 | L39: 2879321.04 | M39: 99308.96 | N39: 5744788.95 | O39: 35000000 | P39: 37100000 | Q39: 39326000
A40: Bulk purchases - Water & Sewer | C40: 0 | D40: -310.7 | E40: 0 | F40: 0 | G40: 0 | H40: 0 | I40: 0 | J40: 310.7 | K40: 0 | L40: 0 | M40: 0 | N40: 0 | O40: 0 | P40: 0 | Q40: 0
A41: Other materials | C41: 26000 | D41: 114580.02 | E41: 201680.82 | F41: 412860.64 | G41: 1518 | H41: 180350 | I41: 5600 | J41: 109435.47 | K41: 41671.83 | L41: 0 | M41: 206515 | N41: 395238.22 | O41: 1695450 | P41: 2926200 | Q41: 2995772
A42: Contracted services | C42: 3972268.57 | D42: 2273494.54 | E42: 3078234.33 | F42: 3113452.23 | G42: 3166374.36 | H42: 2055556.42 | I42: 5519555.12 | J42: 2225588.21 | K42: 2892158.44 | L42: 1386636.8 | M42: 2886252 | N42: 14089524.98 | O42: 46659096 | P42: 54025962 | Q42: 58061419
A43: Grants and subsidies paid - other municipalities | C43: 0 | D43: 0 | E43: 0 | F43: 0 | G43: 0 | H43: 0 | I43: 0 | J43: 0 | K43: 0 | L43: 0 | M43: 0 | N43: 0 | O43: 0 | P43: 0 | Q43: 0
A44: Grants and subsidies paid - other | C44: 0 | D44: 0 | E44: 0 | F44: 0 | G44: 0 | H44: 0 | I44: 0 | J44: 0 | K44: 0 | L44: 0 | M44: 0 | N44: 0 | O44: 0 | P44: 0 | Q44: 0
A45: General expenses | C45: 2078526.79 | D45: 4756562.9 | E45: 5682856.27 | F45: 4753056.7 | G45: 2584351.09 | H45: 3290875.03 | I45: 1367893.61 | J45: 3255860.95 | K45: 3476190.59 | L45: 1251036.51 | M45: 2297551.75 | N45: 9280564.81 | O45: 44075327 | P45: 41809099 | Q45: 45789910
A46: Cash Payments by Type | B46: =SUM(B36:B45) -> 0 | C46: =SUM(C36:C45) -> 17380245.55 | D46: =SUM(D36:D45) -> 18532881.31 | E46: 25932865.42 | F46: 21564230.36 | G46: 15889667.83 | H46: 21583531.77 | I46: 20333769.22 | J46: 16316549.19 | K46: 22585219.07 | L46: 16057326.3 | M46: 15722164.76 | N46: 53250189.22 | O46: 265148640 | P46: 283136527 | Q46: 303471791
N47: =O47-SUM(C47:M47) -> 0
A48: Other Cash Flows/Payments by Type
A49: Capital assets | N49: =O49-SUM(C49:M49) -> 0
A50: Repayment of borrowing | N50: =O50-SUM(C50:M50) -> 0
A51: Other Cash Flows/Payments | N51: =O51-SUM(C51:M51) -> 0
A52: Total Cash Payments by Type | B52: =SUM(B46:B51) -> 0 | C52: 17380245.55 | D52: 18532881.31 | E52: 25932865.42 | F52: 21564230.36 | G52: 15889667.83 | H52: 21583531.77 | I52: 20333769.22 | J52: 16316549.19 | K52: 22585219.07 | L52: 16057326.3 | M52: 15722164.76 | N52: 53250189.22 | O52: 265148640 | P52: 283136527 | Q52: 303471791
N53: =O53-SUM(C53:M53) -> 0
A54: NET INCREASE/(DECREASE) IN CASH HELD | B54: =B33-B52 -> 0 | C54: -17380245.55 | D54: -18532881.31 | E54: -25932865.42 | F54: -21564230.36 | G54: -15889667.83 | H54: -21583531.77 | I54: -20333769.22 | J54: -16316549.19 | K54: -22585219.07 | L54: -16057326.3 | M54: -15722164.76 | N54: -53250189.22 | O54: -265148640 | P54: -283136527 | Q54: -303471791
A55: Cash/cash equivalents at the month/year beginning: | C55: 0 | D55: 0 | E55: 0 | F55: 0 | G55: 0 | H55: 0 | I55: 0 | J55: 0 | K55: 0 | L55: 0 | M55: 0 | N55: =M56 -> -15722164.76 | O55: 12618991 | P55: 12773857 | Q55: 16407418
A56: Cash/cash equivalents at the month/year end: | C56: =C54+C55 -> -17380245.55 | D56: =D54+D55 -> -18532881.31 | E56: =E54+E55 -> -25932865.42 | F56: -21564230.36 | G56: -15889667.83 | H56: -21583531.77 | I56: -20333769.22 | J56: -16316549.19 | K56: -22585219.07 | L56: -16057326.3 | M56: -15722164.76 | N56: -68972353.98 | O56: =O54+O55 -> -252529649 | P56: =P54+P55 -> -270362670 | Q56: =Q54+Q55 -> -287064373
A57: =head27a -> References
A58: 1. Replace 'budget' heading with adjusted budget, or 'outcome' only for month/s complete
A59: 2. Total of monthly amounts must always agree to the approved or adjusted budget
A60: 3. Amend 'cash-at-beginning' when prior year actual known (as part of the adjustments budget)
E65: =E46+E64 -> 25932865.42 | F65: 21564230.36 | G65: 15889667.83 | H65: 21583531.77 | I65: 20333769.22 | J65: 16316549.19 | K65: 22585219.07 | L65: 16057326.3 | N65: =N46+N64 -> 53250189.22 | O65: 265148640 | P65: 283136527
E66: =E54-E64 -> -25932865.42 | F66: -21564230.36 | G66: -15889667.83 | H66: -21583531.77 | I66: -20333769.22 | J66: -16316549.19 | K66: -22585219.07 | L66: -16057326.3 | M66: =M54-M64 -> -15722164.76 | N66: =N54-N64 -> -53250189.22 | O66: -265148640 | P66: -283136527

Sheet SC10
A1: =muni& " - "&S71P& " - "&Head57 -> LIM351 Blouberg - NOT REQUIRED - municipality does not have entities or this is the parent municipality's budget - M11 May
A2: =desc -> Description | B2: =head27 -> Ref | C2: =Head1 -> 2018/19 | D2: =Head2 -> Budget Year 2019/20
C3: =Head5 -> Audited Outcome | D3: =Head6 -> Original Budget | E3: =Head7 -> Adjusted Budget | F3: =Head38 -> Monthly actual | G3: =Head39 -> YearTD actual | H3: =Head40 -> YearTD budget | I3: =Head41 -> YTD variance | J3: =Head41 -> YTD variance | K3: =Head8 -> Full Year Forecast
A4: R thousands | B4: 1 | J4: %
A5: ='C4-FinPerf RE'!A5 -> Revenue By Source
A6: ='C4-FinPerf RE'!A6 -> Property rates | I6: =G6-H6 -> 0 | J6: =IF(I6=0,"",I6/H6) -> 
A7: ='C4-FinPerf RE'!A7 -> Service charges - electricity revenue | I7: 0 | J7: =IF(I7=0,"",I7/H7) -> 
A8: ='C4-FinPerf RE'!A8 -> Service charges - water revenue | I8: 0
A9: ='C4-FinPerf RE'!A9 -> Service charges - sanitation revenue | I9: 0
A10: ='C4-FinPerf RE'!A10 -> Service charges - refuse revenue | I10: 0
A12: ='C4-FinPerf RE'!A12 -> Rental of facilities and equipment | I12: 0
A13: ='C4-FinPerf RE'!A13 -> Interest earned - external investments | I13: 0
A14: ='C4-FinPerf RE'!A14 -> Interest earned - outstanding debtors | I14: 0
A15: ='C4-FinPerf RE'!A15 -> Dividends received | I15: 0
A16: ='C4-FinPerf RE'!A16 -> Fines, penalties and forfeits | I16: 0
A17: ='C4-FinPerf RE'!A17 -> Licences and permits | I17: 0
A18: ='C4-FinPerf RE'!A18 -> Agency services | I18: 0
A19: ='C4-FinPerf RE'!A19 -> Transfers and subsidies | I19: 0
A20: ='C4-FinPerf RE'!A20 -> Other revenue | I20: 0
A21: ='C4-FinPerf RE'!A21 -> Gains | I21: 0
A22: Total Revenue (excluding capital transfers and contributions) | C22: =SUM(C6:C10)+SUM(C12:C21) -> 0 | D22: 0 | E22: 0 | F22: 0 | G22: 0 | H22: 0 | I22: =G22-H22 -> 0 | K22: =SUM(K6:K10)+SUM(K12:K21) -> 0
A24: Expenditure By Type
A25: ='C4-FinPerf RE'!A25 -> Employee related costs | I25: =G25-H25 -> 0 | J25: =IF(I25=0,"",I25/H25) -> 
A26: ='C4-FinPerf RE'!A26 -> Remuneration of councillors | I26: 0
A27: ='C4-FinPerf RE'!A27 -> Debt impairment | I27: 0
A28: ='C4-FinPerf RE'!A28 -> Depreciation & asset impairment | I28: 0
A29: ='C4-FinPerf RE'!A29 -> Finance charges | I29: 0
A30: ='C4-FinPerf RE'!A30 -> Bulk purchases | I30: 0
A31: ='C4-FinPerf RE'!A31 -> Other materials | I31: 0
A32: ='C4-FinPerf RE'!A32 -> Contracted services | I32: 0
A33: ='C4-FinPerf RE'!A33 -> Transfers and subsidies | I33: 0
A34: ='C4-FinPerf RE'!A34 -> Other expenditure | I34: 0
A35: ='C4-FinPerf RE'!A35 -> Losses | I35: 0
A36: Total Expenditure | C36: =SUM(C25:C35) -> 0 | D36: 0 | E36: 0 | F36: 0 | G36: 0 | H36: 0 | I36: 0 | K36: =SUM(K25:K35) -> 0
I37: 0
A38: ='C4-FinPerf RE'!A38 -> Surplus/(Deficit) | C38: =C22-C36 -> 0 | D38: 0 | E38: 0 | F38: 0 | G38: 0 | H38: 0 | I38: 0 | K38: =K22-K36 -> 0
A39: ='C4-FinPerf RE'!A39 -> Transfers and subsidies - capital (monetary allocations) (National / Provincial and District) | I39: 0
A40: ='C4-FinPerf RE'!A40 -> Transfers and subsidies - capital (monetary allocations) (National / Provincial Departmental Agencies, Households, Non-profit Institutions, Private Enterprises, Public Corporatons, Higher Educational Institutions) | I40: 0
A41: ='C4-FinPerf RE'!A41 -> Transfers and subsidies - capital (in-kind - all) | I41: 0
A42: ='C4-FinPerf RE'!A42 -> Surplus/(Deficit) after capital transfers & contributions | C42: =C38+SUM(C39:C41) -> 0 | D42: =D38+SUM(D39:D41) -> 0 | E42: 0 | F42: 0 | G42: 0 | H42: 0 | I42: 0 | K42: 0
A43: ='C4-FinPerf RE'!A43 -> Taxation | I43: 0
A44: ='C4-FinPerf RE'!A44 -> Surplus/(Deficit) after taxation | C44: =C42-C43 -> 0 | D44: 0 | E44: 0 | F44: 0 | G44: 0 | H44: 0 | I44: 0 | K44: =K42-K43 -> 0
A45: =head27a -> References
A46: 1. Votes (consolidated) are revenue sources and expenditure type

Sheet SC11
A1: =muni& " - "&S71Q& " - "&Head57 -> LIM351 Blouberg - NOT REQUIRED - municipality does not have entities or this is the parent municipality's budget - M11 May
A2: =desc -> Description | B2: =head27 -> Ref | C2: =Head1 -> 2018/19 | D2: =Head2 -> Budget Year 2019/20
C3: =Head5 -> Audited Outcome | D3: =Head6 -> Original Budget | E3: =Head7 -> Adjusted Budget | F3: =Head38 -> Monthly actual | G3: =Head39 -> YearTD actual | H3: =Head40 -> YearTD budget | I3: =Head41 -> YTD variance | J3: =Head41 -> YTD variance | K3: =Head8 -> Full Year Forecast
A4: R thousands | J4: %
A5: Revenue By Municipal Entity
A6: Insert name of municipal entity | I6: =G6-H6 -> 0 | J6: =IF(I6=0,"",I6/H6) -> 
I7: 0 | J7: =IF(I7=0,"",I7/H7) -> 
I8: 0
I9: 0
I10: 0
I11: 0
I12: 0
I13: 0
I14: 0
I15: 0
A16: Total Operating Revenue | B16: 1 | C16: =SUM(C6:C15) -> 0 | D16: 0 | E16: 0 | F16: 0 | G16: 0 | H16: 0 | I16: 0 | K16: =SUM(K6:K15) -> 0
A18: Expenditure By Municipal Entity
A19: =A6 -> Insert name of municipal entity | I19: 0 | J19: =IF(I19=0,"",I19/H19) -> 
A20: =IF(A7="","",A7) ->  | I20: 0
A21: =IF(A8="","",A8) ->  | I21: 0
I22: 0
I23: 0
I24: 0
I25: 0
I26: 0
I27: 0
I28: 0
A29: Total Operating Expenditure | B29: 2 | C29: =SUM(C19:C28) -> 0 | D29: 0 | E29: 0 | F29: 0 | G29: 0 | H29: 0 | I29: 0 | K29: =SUM(K19:K28) -> 0
A31: =Head42 -> Surplus/ (Deficit) for the yr/period | C31: =C16-C29 -> 0 | D31: =D16-D29 -> 0 | E31: 0 | F31: 0 | G31: 0 | H31: 0 | I31: =I16+I29 -> 0 | K31: 0
A32: Capital Expenditure By Municipal Entity
A33: =$A$6 -> Insert name of municipal entity | I33: 0
A34: =IF(A7="","",A7) ->  | I34: 0
A35: =IF(A8="","",A8) ->  | I35: 0
I36: 0
I37: 0
I38: 0
I39: 0
I40: 0
I41: 0
A43: Total Capital Expenditure | B43: 3 | C43: =SUM(C32:C42) -> 0 | D43: =SUM(D32:D42) -> 0 | E43: 0 | F43: 0 | G43: 0 | H43: =SUM(H32:H42) -> 0 | I43: =G43-H43 -> 0 | K43: 0
A44: =head27a -> References
A45: 1. Must reconcile to the sum of all municipal entity monthly revenue reports
A46: 2. Must reconcile to the sum of all municipal entity monthly expenditure reports
A47: 3. YTD = Year to date; FAV - favourable variance or unfavourable variance
A48: 4. Material variances to be explained
A49: 5. Insert additional 'Adjustment' Budget column for each Adjustment made by an entity

Sheet SC12
A1: =muni& " - "&S71R& " - "&Head57 -> LIM351 Blouberg - Supporting Table SC12 Monthly Budget Statement - capital expenditure trend - M11 May
A2: Month | B2: =Head1 -> 2018/19 | C2: =Head2 -> Budget Year 2019/20
B3: =Head5 -> Audited Outcome | C3: =Head6 -> Original Budget | D3: =Head7 -> Adjusted Budget | E3: =Head38 -> Monthly actual | F3: =Head39 -> YearTD actual | G3: =Head40 -> YearTD budget | H3: =Head41 -> YTD variance | I3: =Head41 -> YTD variance | J3: % spend of Original Budget
A4: R thousands | I4: %
A5: Monthly expenditure performance trend
A6: July | B6: 0 | C6: 5794375.01 | D6: 5794389 | E6: 0 | F6: =IF(E6>0,E6,"") ->  | G6: =IF(D6>0,D6,C6) -> 5794389 | H6: =IF(F6="",0,G6-F6) -> 0 | I6: =IF(F6="","",IF(H6=0,"",H6/G6)) ->  | J6: =IF(F6="","",F6/$C$18) -> 
A7: August | B7: 1837781.32 | C7: 5794375.01 | D7: 5794389 | E7: 3454909.02 | F7: =IF(E7>0,E7+F6,"") ->  | G7: =IF(D7>0,D7+D6,C7+C6) -> 11588778
A8: September | B8: 264770.25 | C8: 5794375.01 | D8: 5794389 | E8: 1457147.62 | F8: =IF(E8>0,E8+F7,"") ->  | G8: =IF(D8>0,D8+G7,C8+G7) -> 17383167
A9: October | B9: 3149816.38 | C9: 5794375.01 | D9: 5794389 | E9: 1675222.85 | G9: =IF(D9>0,D9+G8,C9+G8) -> 23177556
A10: November | B10: 6140112.07 | C10: 5794375.01 | D10: 5794389 | E10: 6987092.09 | G10: 28971945
A11: December | B11: 11421362.5 | C11: 5794375.01 | D11: 5794389 | E11: 9646688.86 | G11: 34766334
A12: January | B12: 282272.1 | C12: 5794375.01 | D12: 5794389 | E12: 2825088.86 | G12: 40560723
A13: February | B13: 5167313.69 | C13: 5794375.01 | D13: 4764900.4 | E13: 4036826.85 | G13: 45325623.4
A14: March | B14: 4147390.33 | C14: 5794375.01 | D14: 4764900.4 | E14: 4260353.62 | G14: 50090523.8
A15: April | B15: 3370047.28 | C15: 5794375.01 | D15: 4764900.4 | E15: 84105 | G15: 54855424.2
A16: May | B16: 5401848.48 | C16: 5794375.01 | D16: 4764945.4 | E16: 3741612.3 | G16: 59620369.6
A17: June | B17: 1337397.11 | C17: 5794374.89 | D17: 4764777.4 | E17: 0 | G17: 64385147 | H17: =IF(F17="",0,G17-F17) -> 0 | I17: =IF(F17="","",IF(H17=0,"",H17/G17)) ->  | J17: =IF(F17="","",F17/$C$18) -> 
A18: Total Capital expenditure | B18: =SUM(B6:B17) -> 42520111.51 | C18: =SUM(C6:C17) -> 69532500 | D18: =SUM(D6:D17) -> 64385147 | E18: =SUM(E6:E17) -> 38169047.07

Sheet SC13a
A1: =muni& " - "&S71Sa& " - "&Head57 -> LIM351 Blouberg - Supporting Table SC13a Monthly Budget Statement - capital expenditure on new assets by asset class - M11 May
A2: =desc -> Description | B2: =head27 -> Ref | C2: =Head1 -> 2018/19 | D2: =Head2 -> Budget Year 2019/20
C3: =Head5 -> Audited Outcome | D3: =Head6 -> Original Budget | E3: =Head7 -> Adjusted Budget | F3: =Head38 -> Monthly actual | G3: =Head39 -> YearTD actual | H3: =Head40 -> YearTD budget | I3: =Head41 -> YTD variance | J3: =Head41 -> YTD variance | K3: =Head8 -> Full Year Forecast
A4: R thousands | B4: 1 | J4: %
A5: Capital expenditure on new assets by Asset Class/Sub-class
A7: Infrastructure | C7: =C8+C13+C17+C27+C38+C45+C53+C63+C69 -> 708928.26 | D7: 54256883 | E7: 36215481 | F7: 882268.75 | G7: 22061166.03 | H7: 33211761.57 | I7: =H7-G7 -> 11150595.54 | J7: =IF(I7=0,"",I7/H7) -> 0.33574237 | K7: =K8+K13+K17+K27+K38+K45+K53+K63+K69 -> 36215481
A8: Roads Infrastructure | C8: =SUM(C9:C12) -> 0 | D8: 38556883 | E8: 20636847 | F8: 175857.84 | G8: 16831529.1 | H8: 18917125.37 | I8: 2085596.27 | J8: 0.1102491118 | K8: =SUM(K9:K12) -> 20636847
A9: Roads | C9: 0 | D9: 0 | E9: 0 | F9: 0 | G9: 0 | H9: 0 | I9: 0 | K9: 0
A10: Road Structures | C10: 0 | D10: 38556883 | E10: 20636847 | F10: 175857.84 | G10: 16831529.1 | H10: 18917125.37 | I10: 2085596.27 | J10: 0.1102491118 | K10: 20636847
A11: Road Furniture | C11: 0 | D11: 0 | E11: 0 | F11: 0 | G11: 0 | H11: 0 | I11: 0 | K11: 0
A12: Capital Spares | I12: 0
A13: Storm water Infrastructure | C13: =SUM(C14:C16) -> 0 | D13: 0 | E13: 0 | F13: 0 | G13: 0 | H13: 0 | I13: 0 | K13: =SUM(K14:K16) -> 0
A14: Drainage Collection | I14: 0
A15: Storm water Conveyance | C15: 0 | D15: 0 | E15: 0 | F15: 0 | G15: 0 | H15: 0 | I15: 0 | K15: 0
A16: Attenuation | I16: 0
A17: Electrical Infrastructure | C17: =SUM(C18:C26) -> 708928.26 | D17: 15700000 | E17: 15578634 | F17: 706410.91 | G17: 5229636.93 | H17: 14294636.2 | I17: 9064999.27 | J17: 0.6341538982 | K17: =SUM(K18:K26) -> 15578634
A18: Power Plants | I18: 0
A19: HV Substations | C19: 0 | D19: 10000000 | E19: 10000000 | F19: 576533.98 | G19: 3688964.02 | H19: 9166674 | I19: 5477709.98 | J19: 0.5975678834 | K19: 10000000
A20: HV Switching Station | I20: 0
A21: HV Transmission Conductors | I21: 0
A22: MV Substations | C22: 0 | D22: 0 | E22: 0 | F22: 0 | G22: 0 | H22: 0 | I22: 0 | K22: 0
A23: MV Switching Stations | I23: 0
A24: MV Networks | I24: 0
A25: LV Networks | C25: 708928.26 | D25: 5500000 | E25: 5500000 | F25: 129876.93 | G25: 1540672.91 | H25: 5041718 | I25: 3501045.09 | J25: 0.6944150962 | K25: 5500000
A26: Capital Spares | C26: 0 | D26: 200000 | E26: 78634 | F26: 0 | G26: 0 | H26: 86244.2 | I26: 86244.2 | J26: 1 | K26: 78634
A27: Water Supply Infrastructure | C27: =SUM(C28:C37) -> 0 | D27: 0 | E27: 0 | F27: 0 | G27: 0 | H27: 0 | I27: 0 | K27: =SUM(K28:K37) -> 0
A28: Dams and Weirs | I28: 0
A29: Boreholes | I29: 0
A30: Reservoirs | I30: 0
A31: Pump Stations | I31: 0
A32: Water Treatment Works | I32: 0
A33: Bulk Mains | I33: 0
A34: Distribution | I34: 0
A35: Distribution Points | I35: 0
A36: PRV Stations | I36: 0
A37: Capital Spares | I37: 0
A38: Sanitation Infrastructure | C38: =SUM(C39:C44) -> 0 | D38: 0 | E38: 0 | F38: 0 | G38: 0 | H38: 0 | I38: =H38-G38 -> 0 | J38: =IF(I38=0,"",I38/H38) ->  | K38: =SUM(K39:K44) -> 0
A39: Pump Station | I39: 0
A40: Reticulation | I40: =H40-G40 -> 0 | J40: =IF(I40=0,"",I40/H40) -> 
A41: Waste Water Treatment Works | I41: =H41-G41 -> 0 | J41: =IF(I41=0,"",I41/H41) -> 
A42: Outfall Sewers | I42: =H42-G42 -> 0 | J42: =IF(I42=0,"",I42/H42) -> 
A43: Toilet Facilities | I43: 0
A44: Capital Spares | I44: 0
A45: Solid Waste Infrastructure | C45: =SUM(C46:C52) -> 0 | D45: 0 | E45: 0 | F45: 0 | G45: 0 | H45: 0 | I45: =H45-G45 -> 0 | J45: =IF(I45=0,"",I45/H45) ->  | K45: =SUM(K46:K52) -> 0
A46: Landfill Sites | C46: 0 | D46: 0 | E46: 0 | F46: 0 | G46: 0 | H46: 0 | I46: 0 | K46: 0
A47: Waste Transfer Stations | I47: 0
A48: Waste Processing Facilities | I48: =H48-G48 -> 0 | J48: =IF(I48=0,"",I48/H48) -> 
A49: Waste Drop-off Points | I49: 0
A50: Waste Separation Facilities | I50: 0
A51: Electricity Generation Facilities | I51: 0
A52: Capital Spares | I52: 0
A53: Rail Infrastructure | C53: =SUM(C54:C62) -> 0 | D53: 0 | E53: 0 | F53: 0 | G53: 0 | H53: 0 | I53: 0 | K53: =SUM(K54:K62) -> 0
A54: Rail Lines | I54: 0
A55: Rail Structures | I55: 0
A56: Rail Furniture | I56: 0
A57: Drainage Collection | I57: 0
A58: Storm water Conveyance | I58: 0
A59: Attenuation | I59: 0
A60: MV Substations | I60: 0
A61: LV Networks | I61: 0
A62: Capital Spares | I62: 0
A63: Coastal Infrastructure | C63: =SUM(C64:C68) -> 0 | D63: 0 | E63: 0 | F63: 0 | G63: 0 | H63: 0 | I63: 0 | K63: =SUM(K64:K68) -> 0
A64: Sand Pumps | I64: 0
A65: Piers | I65: 0
A66: Revetments | I66: 0
A67: Promenades | I67: 0
A68: Capital Spares | I68: 0
A69: Information and Communication Infrastructure | C69: =SUM(C70:C73) -> 0 | D69: 0 | E69: 0 | F69: 0 | G69: 0 | H69: 0 | I69: =H69-G69 -> 0 | J69: =IF(I69=0,"",I69/H69) ->  | K69: =SUM(K70:K73) -> 0
A70: Data Centres | I70: =H70-G70 -> 0
A71: Core Layers | I71: =H71-G71 -> 0
A72: Distribution Layers | I72: =H72-G72 -> 0
A73: Capital Spares | I73: =H73-G73 -> 0
A75: Community Assets | C75: =+C76+C99 -> 0 | D75: 2295000 | E75: 2083312 | F75: 0 | G75: 516197.13 | H75: 1934410.6 | I75: =H75-G75 -> 1418213.47 | J75: 0.733150175 | K75: =+K76+K99 -> 2083312
A76: Community Facilities | C76: =SUM(C77:C98) -> 0 | D76: 275000 | E76: 200000 | F76: 0 | G76: 191724.96 | H76: 192087 | I76: =H76-G76 -> 362.04 | J76: =IF(I76=0,"",I76/H76) -> 0.001884770963 | K76: =SUM(K77:K98) -> 200000
A77: Halls | C77: 0 | D77: 0 | E77: 0 | F77: 0 | G77: 0 | H77: 0 | I77: 0 | K77: 0
A78: Centres | C78: 0 | D78: 0 | E78: 0 | F78: 0 | G78: 0 | H78: 0 | I78: 0 | K78: 0
A79: Crèches | C79: 0 | D79: 0 | E79: 0 | F79: 0 | G79: 0 | H79: 0 | I79: 0 | K79: 0
A80: Clinics/Care Centres | I80: 0
A81: Fire/Ambulance Stations | I81: 0
A82: Testing Stations | I82: 0
A83: Museums | I83: 0
A84: Galleries | I84: 0
A85: Theatres | I85: 0
A86: Libraries | I86: 0
A87: Cemeteries/Crematoria | I87: 0
A88: Police | I88: =H88-G88 -> 0 | J88: =IF(I88=0,"",I88/H88) -> 
A89: Purls | C89: 0 | D89: 275000 | E89: 200000 | F89: 0 | G89: 191724.96 | H89: 192087 | I89: 362.04 | J89: 0.001884770963 | K89: 200000
A90: Public Open Space | I90: 0
A91: Nature Reserves | I91: 0
A92: Public Ablution Facilities | I92: 0
A93: Markets | I93: 0
A94: Stalls | I94: 0
A95: Abattoirs | I95: 0
A96: Airports | I96: 0
A97: Taxi Ranks/Bus Terminals | I97: 0
A98: Capital Spares | C98: 0 | D98: 0 | E98: 0 | F98: 0 | G98: 0 | H98: 0 | I98: 0 | K98: 0
A99: Sport and Recreation Facilities | C99: =SUM(C100:C102) -> 0 | D99: 2020000 | E99: 1883312 | F99: 0 | G99: 324472.17 | H99: 1742323.6 | I99: 1417851.43 | J99: 0.8137704328 | K99: =SUM(K100:K102) -> 1883312
A100: Indoor Facilities | I100: 0
A101: Outdoor Facilities | C101: 0 | D101: 2020000 | E101: 1883312 | F101: 0 | G101: 324472.17 | H101: 1742323.6 | I101: 1417851.43 | J101: 0.8137704328 | K101: 1883312
A102: Capital Spares | I102: 0
A103: Heritage assets | C103: =SUM(C104:C108) -> 0 | D103: 0 | E103: 0 | F103: 0 | G103: 0 | H103: 0 | I103: 0 | K103: =SUM(K104:K108) -> 0
A104: Monuments | I104: 0
A105: Historic Buildings | I105: 0
A106: Works of Art | I106: 0
A107: Conservation Areas | C107: 0 | D107: 0 | E107: 0 | F107: 0 | G107: 0 | H107: 0 | I107: 0 | K107: 0
A108: Other Heritage | I108: 0
I109: 0
A110: Investment properties | C110: =+C111+C114 -> 0 | D110: 0 | E110: 0 | F110: 0 | G110: 0 | H110: 0 | I110: 0 | K110: =+K111+K114 -> 0
A111: Revenue Generating | C111: =SUM(C112:C113) -> 0 | D111: 0 | E111: 0 | F111: 0 | G111: 0 | H111: 0 | I111: 0 | K111: =SUM(K112:K113) -> 0
A112: Improved Property | I112: 0
A113: Unimproved Property | I113: 0
A114: Non-revenue Generating | C114: =SUM(C115:C116) -> 0 | D114: 0 | E114: 0 | F114: 0 | G114: 0 | H114: 0 | I114: 0 | K114: =SUM(K115:K116) -> 0
A115: Improved Property | I115: 0
A116: Unimproved Property | I116: 0
A117: Other assets | C117: =+C118+C130 -> 0 | D117: 0 | E117: 0 | F117: 0 | G117: 0 | H117: 0 | I117: 0 | K117: =+K118+K130 -> 0
A118: Operational Buildings | C118: =SUM(C119:C129) -> 0 | D118: 0 | E118: 0 | F118: 0 | G118: 0 | H118: 0 | I118: 0 | K118: =SUM(K119:K129) -> 0
A119: Municipal Offices | C119: 0 | D119: 0 | E119: 0 | F119: 0 | G119: 0 | H119: 0 | I119: 0 | K119: 0
A120: Pay/Enquiry Points | I120: 0 | J120: =IF(I120=0,"",I120/H120) -> 
A121: Building Plan Offices | I121: 0
A122: Workshops | I122: 0
A123: Yards | C123: 0 | D123: 0 | E123: 0 | F123: 0 | G123: 0 | H123: 0 | I123: 0 | K123: 0
A124: Stores | I124: 0
A125: Laboratories | I125: 0
A126: Training Centres | I126: 0
A127: Manufacturing Plant | I127: 0
A128: Depots | I128: 0
A129: Capital Spares | I129: 0
A130: Housing | C130: =SUM(C131:C133) -> 0 | D130: 0 | E130: 0 | F130: 0 | G130: 0 | H130: 0 | I130: 0 | K130: =SUM(K131:K133) -> 0
A131: Staff Housing | I131: 0
A132: Social Housing | I132: 0
A133: Capital Spares | I133: 0
A135: Biological or Cultivated Assets | C135: =SUM(C136:C136) -> 0 | D135: 0 | E135: 0 | F135: 0 | G135: 0 | H135: 0 | I135: =H135-G135 -> 0 | K135: =SUM(K136) -> 0
A136: Biological or Cultivated Assets | I136: =H136-G136 -> 0
A138: Intangible Assets | C138: =SUM(C139:C140) -> 457940.88 | D138: 0 | E138: 0 | F138: 0 | G138: 0 | H138: 0 | I138: =H138-G138 -> 0 | K138: =SUM(K139:K140) -> 0
A139: Servitudes | I139: 0
A140: Licences and Rights | C140: =SUM(C141:C146) -> 457940.88 | D140: 0 | E140: 0 | F140: 0 | G140: 0 | H140: 0 | I140: 0 | K140: =SUM(K141:K146) -> 0
A141: Water Rights | I141: 0
A142: Effluent Licenses | I142: 0
A143: Solid Waste Licenses | I143: 0
A144: Computer Software and Applications | C144: 457940.88 | D144: 0 | E144: 0 | F144: 0 | G144: 0 | H144: 0 | I144: 0 | K144: 0
A145: Load Settlement Software Applications | I145: 0
A146: Unspecified | I146: 0
A148: Computer Equipment | C148: =SUM(C149:C149) -> 575818.87 | D148: 500000 | E148: 500000 | F148: 0 | G148: 186254.68 | H148: 458337 | I148: =H148-G148 -> 272082.32 | J148: =IF(I148=0,"",I148/H148) -> 0.5936294037 | K148: =SUM(K149) -> 500000
A149: Computer Equipment | C149: 575818.87 | D149: 500000 | E149: 500000 | F149: 0 | G149: 186254.68 | H149: 458337 | I149: =H149-G149 -> 272082.32 | J149: =IF(I149=0,"",I149/H149) -> 0.5936294037 | K149: 500000
A151: Furniture and Office Equipment | C151: =SUM(C152:C152) -> 0 | D151: 0 | E151: 0 | F151: 0 | G151: 0 | H151: 0 | I151: =H151-G151 -> 0 | J151: =IF(I151=0,"",I151/H151) ->  | K151: =SUM(K152) -> 0
A152: Furniture and Office Equipment | C152: 0 | D152: 0 | E152: 0 | F152: 0 | G152: 0 | H152: 0 | I152: =H152-G152 -> 0 | J152: =IF(I152=0,"",I152/H152) ->  | K152: 0
J153: =IF(I153=0,"",I153/H153) -> 
A154: Machinery and Equipment | C154: =SUM(C155:C155) -> 0 | D154: 375000 | E154: 226930 | F154: 0 | G154: 56930 | H154: 225327 | I154: =H154-G154 -> 168397 | J154: =IF(I154=0,"",I154/H154) -> 0.7473449698 | K154: =SUM(K155) -> 226930
A155: Machinery and Equipment | C155: 0 | D155: 375000 | E155: 226930 | F155: 0 | G155: 56930 | H155: 225327 | I155: =H155-G155 -> 168397 | J155: =IF(I155=0,"",I155/H155) -> 0.7473449698 | K155: 226930
A157: Transport Assets | C157: =SUM(C158:C158) -> 0 | D157: 0 | E157: 0 | F157: 0 | G157: 0 | H157: 0 | I157: =H157-G157 -> 0 | J157: =IF(I157=0,"",I157/H157) ->  | K157: =SUM(K158) -> 0
A158: Transport Assets | C158: 0 | D158: 0 | E158: 0 | F158: 0 | G158: 0 | H158: 0 | I158: =H158-G158 -> 0 | J158: =IF(I158=0,"",I158/H158) ->  | K158: 0
A160: Land | C160: =SUM(C161:C161) -> 0 | D160: 0 | E160: 0 | F160: 0 | G160: 0 | H160: 0 | I160: =H160-G160 -> 0 | J160: =IF(I160=0,"",I160/H160) ->  | K160: =SUM(K161) -> 0
A161: Land | C161: 0 | D161: 0 | E161: 0 | F161: 0 | G161: 0 | H161: 0 | I161: =H161-G161 -> 0 | J161: =IF(I161=0,"",I161/H161) ->  | K161: 0
A163: Zoo's, Marine and Non-biological Animals | C163: =SUM(C164:C164) -> 0 | D163: 0 | E163: 0 | F163: 0 | G163: 0 | H163: 0 | I163: =H163-G163 -> 0 | J163: =IF(I163=0,"",I163/H163) ->  | K163: =SUM(K164) -> 0
A164: Zoo's, Marine and Non-biological Animals | I164: =H164-G164 -> 0 | J164: =IF(I164=0,"",I164/H164) -> 
J165: =IF(I165=0,"",I165/H165) -> 
A166: Total Capital Expenditure on new assets | B166: 1 | C166: =C7+C75+C103+C110+C117+C135+C138+C148+C151+C154+C157+C160+C163 -> 1742688.01 | D166: 57426883 | E166: 39025723 | F166: 882268.75 | G166: 22820547.84 | H166: 35829836.17 | I166: =H166-G166 -> 13009288.33 | J166: =IF(I166=0,"",I166/H166) -> 0.3630853423 | K166: =K7+K75+K103+K110+K117+K135+K138+K148+K151+K154+K157+K160+K163 -> 39025723
A168: =head27a -> References
A169: 1. Total Capital Expenditure on new assets (SC13a) plus Total Capital Expenditure on renewal of existing assets (SC13b) plus Total Capital Expenditure on upgrading of existing assets (SC13e) must reconcile to total capital expenditure in Table C5
A171: check balance | C171: =C166+SC13b!C166+SC13e!C166-'C5-Capex'!C40 -> 0 | D171: =D166+SC13b!D166+SC13e!D166-'C5-Capex'!D40 -> 0 | E171: =E166+SC13b!E166+SC13e!E166-'C5-Capex'!E40 -> 0 | F171: =F166+SC13b!F166+SC13e!F166-'C5-Capex'!F40 -> 0 | G171: =G166+SC13b!G166+SC13e!G166-'C5-Capex'!G40 -> 0 | H171: =H166+SC13b!H166+SC13e!H166-'C5-Capex'!H40 -> 0 | K171: =K166+SC13b!K166+SC13e!K166-'C5-Capex'!K40 -> 0

Sheet SC13b
A1: =muni& " - "&S71Sb& " - "&Head57 -> LIM351 Blouberg - Supporting Table SC13b Monthly Budget Statement - capital expenditure on renewal of existing assets by asset class - M11 May
A2: =desc -> Description | B2: =head27 -> Ref | C2: =Head1 -> 2018/19 | D2: =Head2 -> Budget Year 2019/20
C3: =Head5 -> Audited Outcome | D3: =Head6 -> Original Budget | E3: =Head7 -> Adjusted Budget | F3: =Head38 -> Monthly actual | G3: =Head39 -> YearTD actual | H3: =Head40 -> YearTD budget | I3: =Head41 -> YTD variance | J3: =Head41 -> YTD variance | K3: =Head8 -> Full Year Forecast
A4: R thousands | B4: 1 | J4: %
A5: Capital expenditure on renewal of existing assets by Asset Class/Sub-class
A7: Infrastructure | C7: =C8+C13+C17+C27+C38+C45+C53+C63+C69 -> 0 | D7: 6080000 | E7: 20725807 | F7: 2184608.17 | G7: 13947296.88 | H7: 19380626.43 | I7: =H7-G7 -> 5433329.55 | J7: =IF(I7=0,"",I7/H7) -> 0.2803485001 | K7: =K8+K13+K17+K27+K38+K45+K53+K63+K69 -> 20725807
A8: Roads Infrastructure | C8: =SUM(C9:C12) -> 0 | D8: 0 | E8: 17920036 | F8: 1701411.4 | G8: 11961481.89 | H8: 16426699.63 | I8: 4465217.74 | J8: 0.2718268332 | K8: =SUM(K9:K12) -> 17920036
A9: Roads | C9: 0 | D9: 0 | E9: 17920036 | F9: 1701411.4 | G9: 11961481.89 | H9: 16426699.63 | I9: 4465217.74 | J9: 0.2718268332 | K9: 17920036
A10: Road Structures | I10: 0
A11: Road Furniture | I11: 0
A12: Capital Spares | I12: 0
A13: Storm water Infrastructure | C13: =SUM(C14:C16) -> 0 | D13: 0 | E13: 0 | F13: 0 | G13: 0 | H13: 0 | I13: 0 | K13: =SUM(K14:K16) -> 0
A14: Drainage Collection | I14: 0
A15: Storm water Conveyance | I15: 0
A16: Attenuation | I16: 0
A17: Electrical Infrastructure | C17: =SUM(C18:C26) -> 0 | D17: 6000000 | E17: 2728171 | F17: 483196.77 | G17: 1908214.99 | H17: 2882509.8 | I17: 974294.81 | J17: 0.3380022541 | K17: =SUM(K18:K26) -> 2728171
A18: Power Plants | I18: 0
A19: HV Substations | I19: 0
A20: HV Switching Station | I20: 0
A21: HV Transmission Conductors | C21: 0 | D21: 0 | E21: 2000000 | F21: 945266.96 | G21: 945266.96 | H21: 1000000 | I21: 54733.04 | J21: 0.05473304 | K21: 2000000
A22: MV Substations | I22: 0
A23: MV Switching Stations | I23: 0
A24: MV Networks | I24: 0
A25: LV Networks | C25: 0 | D25: 6000000 | E25: 728171 | F25: -462070.19 | G25: 962948.03 | H25: 1882509.8 | I25: 919561.77 | J25: 0.488476485 | K25: 728171
A26: Capital Spares | C26: 0 | D26: 0 | E26: 0 | F26: 0 | G26: 0 | H26: 0 | I26: 0 | K26: 0
A27: Water Supply Infrastructure | C27: =SUM(C28:C37) -> 0 | D27: 80000 | E27: 77600 | F27: 0 | G27: 77600 | H27: 71417 | I27: -6183 | J27: -0.08657602532 | K27: =SUM(K28:K37) -> 77600
A28: Dams and Weirs | I28: 0
A29: Boreholes | C29: 0 | D29: 80000 | E29: 77600 | F29: 0 | G29: 77600 | H29: 71417 | I29: -6183 | J29: -0.08657602532 | K29: 77600
A30: Reservoirs | I30: 0
A31: Pump Stations | I31: 0
A32: Water Treatment Works | I32: 0
A33: Bulk Mains | I33: 0
A34: Distribution | I34: 0
A35: Distribution Points | I35: 0
A36: PRV Stations | I36: 0
A37: Capital Spares | I37: 0
A38: Sanitation Infrastructure | C38: =SUM(C39:C44) -> 0 | D38: 0 | E38: 0 | F38: 0 | G38: 0 | H38: 0 | I38: 0 | K38: =SUM(K39:K44) -> 0
A39: Pump Station | I39: 0
A40: Reticulation | I40: 0
A41: Waste Water Treatment Works | I41: 0
A42: Outfall Sewers | I42: 0
A43: Toilet Facilities | I43: 0
A44: Capital Spares | I44: 0
A45: Solid Waste Infrastructure | C45: =SUM(C46:C52) -> 0 | D45: 0 | E45: 0 | F45: 0 | G45: 0 | H45: 0 | I45: 0 | K45: =SUM(K46:K52) -> 0
A46: Landfill Sites | C46: 0 | D46: 0 | E46: 0 | F46: 0 | G46: 0 | H46: 0 | I46: 0 | K46: 0
A47: Waste Transfer Stations | I47: 0
A48: Waste Processing Facilities | I48: 0
A49: Waste Drop-off Points | I49: 0
A50: Waste Separation Facilities | I50: 0
A51: Electricity Generation Facilities | I51: 0
A52: Capital Spares | I52: 0
A53: Rail Infrastructure | C53: =SUM(C54:C62) -> 0 | D53: 0 | E53: 0 | F53: 0 | G53: 0 | H53: 0 | I53: 0 | K53: =SUM(K54:K62) -> 0
A54: Rail Lines | I54: 0
A55: Rail Structures | I55: 0
A56: Rail Furniture | I56: 0
A57: Drainage Collection | I57: 0
A58: Storm water Conveyance | I58: 0
A59: Attenuation | I59: 0
A60: MV Substations | I60: 0
A61: LV Networks | I61: 0
A62: Capital Spares | I62: 0
A63: Coastal Infrastructure | C63: =SUM(C64:C68) -> 0 | D63: 0 | E63: 0 | F63: 0 | G63: 0 | H63: 0 | I63: 0 | K63: =SUM(K64:K68) -> 0
A64: Sand Pumps | I64: 0
A65: Piers | I65: 0
A66: Revetments | I66: 0
A67: Promenades | I67: 0
A68: Capital Spares | I68: 0
A69: Information and Communication Infrastructure | C69: =SUM(C70:C73) -> 0 | D69: 0 | E69: 0 | F69: 0 | G69: 0 | H69: 0 | I69: 0 | K69: =SUM(K70:K73) -> 0
A70: Data Centres | I70: 0
A71: Core Layers | I71: 0
A72: Distribution Layers | I72: 0
A73: Capital Spares | I73: 0
A75: Community Assets | C75: =+C76+C99 -> 0 | D75: 350000 | E75: 270000 | F75: 234400 | G75: 234400 | H75: 256837 | I75: 22437 | J75: 0.08735890857 | K75: =+K76+K99 -> 270000
A76: Community Facilities | C76: =SUM(C77:C98) -> 0 | D76: 350000 | E76: 270000 | F76: 234400 | G76: 234400 | H76: 256837 | I76: 22437 | J76: 0.08735890857 | K76: =SUM(K77:K98) -> 270000
A77: Halls | I77: 0
A78: Centres | I78: 0
A79: Crèches | I79: 0
A80: Clinics/Care Centres | I80: 0
A81: Fire/Ambulance Stations | I81: 0
A82: Testing Stations | I82: 0
A83: Museums | I83: 0
A84: Galleries | I84: 0
A85: Theatres | I85: 0
A86: Libraries | I86: 0
A87: Cemeteries/Crematoria | C87: 0 | D87: 350000 | E87: 270000 | F87: 234400 | G87: 234400 | H87: 256837 | I87: 22437 | J87: 0.08735890857 | K87: 270000
A88: Police | I88: 0
A89: Purls | I89: 0
A90: Public Open Space | I90: 0
A91: Nature Reserves | I91: 0
A92: Public Ablution Facilities | I92: 0
A93: Markets | I93: 0
A94: Stalls | I94: 0
A95: Abattoirs | I95: 0
A96: Airports | I96: 0
A97: Taxi Ranks/Bus Terminals | I97: 0
A98: Capital Spares | I98: 0
A99: Sport and Recreation Facilities | C99: =SUM(C100:C102) -> 0 | D99: 0 | E99: 0 | F99: 0 | G99: 0 | H99: 0 | I99: 0 | K99: =SUM(K100:K102) -> 0
A100: Indoor Facilities | I100: 0
A101: Outdoor Facilities | C101: 0 | D101: 0 | E101: 0 | F101: 0 | G101: 0 | H101: 0 | I101: =H101-G101 -> 0 | J101: =IF(I101=0,"",I101/H101) ->  | K101: 0
A102: Capital Spares | I102: 0
A103: Heritage assets | C103: =SUM(C104:C108) -> 0 | D103: 0 | E103: 0 | F103: 0 | G103: 0 | H103: 0 | I103: 0 | K103: =SUM(K104:K108) -> 0
A104: Monuments | I104: 0
A105: Historic Buildings | I105: 0
A106: Works of Art | I106: 0
A107: Conservation Areas | I107: 0
A108: Other Heritage | I108: 0
I109: 0
A110: Investment properties | C110: =+C111+C114 -> 0 | D110: 0 | E110: 0 | F110: 0 | G110: 0 | H110: 0 | I110: 0 | K110: =+K111+K114 -> 0
A111: Revenue Generating | C111: =SUM(C112:C113) -> 0 | D111: 0 | E111: 0 | F111: 0 | G111: 0 | H111: 0 | I111: 0 | K111: =SUM(K112:K113) -> 0
A112: Improved Property | I112: 0
A113: Unimproved Property | I113: 0
A114: Non-revenue Generating | C114: =SUM(C115:C116) -> 0 | D114: 0 | E114: 0 | F114: 0 | G114: 0 | H114: 0 | I114: 0 | K114: =SUM(K115:K116) -> 0
A115: Improved Property | I115: 0
A116: Unimproved Property | I116: =H116-G116 -> 0 | J116: =IF(I116=0,"",I116/H116) -> 
A117: Other assets | C117: =+C118+C130 -> 0 | D117: 0 | E117: 0 | F117: 0 | G117: 0 | H117: 0 | I117: 0 | K117: =+K118+K130 -> 0
A118: Operational Buildings | C118: =SUM(C119:C129) -> 0 | D118: 0 | E118: 0 | F118: 0 | G118: 0 | H118: 0 | I118: 0 | K118: =SUM(K119:K129) -> 0
A119: Municipal Offices | I119: 0
A120: Pay/Enquiry Points | I120: 0
A121: Building Plan Offices | I121: 0
A122: Workshops | I122: 0
A123: Yards | I123: 0
A124: Stores | I124: 0
A125: Laboratories | I125: 0
A126: Training Centres | I126: 0
A127: Manufacturing Plant | I127: 0
A128: Depots | I128: 0
A129: Capital Spares | I129: 0
A130: Housing | C130: =SUM(C131:C133) -> 0 | D130: 0 | E130: 0 | F130: 0 | G130: 0 | H130: 0 | I130: 0 | K130: =SUM(K131:K133) -> 0
A131: Staff Housing | I131: 0
A132: Social Housing | I132: 0
A133: Capital Spares | I133: 0
A135: Biological or Cultivated Assets | C135: =SUM(C136:C136) -> 0 | D135: 0 | E135: 0 | F135: 0 | G135: 0 | H135: 0 | I135: =H135-G135 -> 0 | K135: =SUM(K136) -> 0
A136: Biological or Cultivated Assets | I136: =H136-G136 -> 0
J137: =IF(I137=0,"",I137/H137) -> 
A138: Intangible Assets | C138: =SUM(C139:C140) -> 0 | D138: 0 | E138: 0 | F138: 0 | G138: 0 | H138: 0 | I138: =H138-G138 -> 0 | K138: =SUM(K139:K140) -> 0
A139: Servitudes | I139: 0
A140: Licences and Rights | C140: =SUM(C141:C146) -> 0 | D140: 0 | E140: 0 | F140: 0 | G140: 0 | H140: 0 | I140: 0 | K140: =SUM(K141:K146) -> 0
A141: Water Rights | I141: 0
A142: Effluent Licenses | I142: 0
A143: Solid Waste Licenses | I143: 0
A144: Computer Software and Applications | I144: 0
A145: Load Settlement Software Applications | I145: 0
A146: Unspecified | I146: 0
A148: Computer Equipment | C148: =SUM(C149:C149) -> 0 | D148: 0 | E148: 0 | F148: 0 | G148: 0 | H148: 0 | I148: =H148-G148 -> 0 | J148: =IF(I148=0,"",I148/H148) ->  | K148: =SUM(K149) -> 0
A149: Computer Equipment | I149: =H149-G149 -> 0 | J149: =IF(I149=0,"",I149/H149) -> 
A151: Furniture and Office Equipment | C151: =SUM(C152:C152) -> 244079.6 | D151: 150000 | E151: 150000 | F151: 0 | G151: 65921.2 | H151: 137500 | I151: =H151-G151 -> 71578.8 | J151: =IF(I151=0,"",I151/H151) -> 0.5205730909 | K151: =SUM(K152) -> 150000
A152: Furniture and Office Equipment | C152: 244079.6 | D152: 150000 | E152: 150000 | F152: 0 | G152: 65921.2 | H152: 137500 | I152: =H152-G152 -> 71578.8 | J152: =IF(I152=0,"",I152/H152) -> 0.5205730909 | K152: 150000
J153: =IF(I153=0,"",I153/H153) -> 
A154: Machinery and Equipment | C154: =SUM(C155:C155) -> 0 | D154: 0 | E154: 0 | F154: 0 | G154: 0 | H154: 0 | I154: =H154-G154 -> 0 | J154: =IF(I154=0,"",I154/H154) ->  | K154: =SUM(K155) -> 0
A155: Machinery and Equipment | I155: =H155-G155 -> 0 | J155: =IF(I155=0,"",I155/H155) -> 
A157: Transport Assets | C157: =SUM(C158:C158) -> 0 | D157: 0 | E157: 0 | F157: 0 | G157: 0 | H157: 0 | I157: =H157-G157 -> 0 | J157: =IF(I157=0,"",I157/H157) ->  | K157: =SUM(K158) -> 0
A158: Transport Assets | I158: =H158-G158 -> 0 | J158: =IF(I158=0,"",I158/H158) -> 
A160: Land | C160: =SUM(C161:C161) -> 0 | D160: 0 | E160: 0 | F160: 0 | G160: 0 | H160: 0 | I160: =H160-G160 -> 0 | J160: =IF(I160=0,"",I160/H160) ->  | K160: =SUM(K161) -> 0
A161: Land | I161: =H161-G161 -> 0 | J161: =IF(I161=0,"",I161/H161) -> 
J162: .
A163: Zoo's, Marine and Non-biological Animals | C163: =SUM(C164:C164) -> 0 | D163: 0 | E163: 0 | F163: 0 | G163: 0 | H163: 0 | I163: =H163-G163 -> 0 | J163: =IF(I163=0,"",I163/H163) ->  | K163: =SUM(K164) -> 0
A164: Zoo's, Marine and Non-biological Animals | I164: =H164-G164 -> 0 | J164: =IF(I164=0,"",I164/H164) -> 
J165: =IF(I165=0,"",I165/H165) -> 
A166: Total Capital Expenditure on renewal of existing assets | B166: 1 | C166: =C7+C75+C103+C110+C117+C135+C138+C148+C151+C154+C157+C160+C163 -> 244079.6 | D166: 6580000 | E166: 21145807 | F166: 2419008.17 | G166: 14247618.08 | H166: 19774963.43 | I166: =H166-G166 -> 5527345.35 | J166: =IF(I166=0,"",I166/H166) -> 0.2795122919 | K166: =K7+K75+K103+K110+K117+K135+K138+K148+K151+K154+K157+K160+K163 -> 21145807
A168: =head27a -> References
A169: 1. Total Capital Expenditure on new assets (SC13a) plus Total Capital Expenditure on renewal of existing assets (SC13b) plus Total Capital Expenditure on upgrading of existing assets (SC13e) must reconcile to total capital expenditure in Table C5
A171: check balance | C171: =C166+SC13a!C166+SC13e!C166-'C5-Capex'!C40 -> 0 | D171: =D166+SC13a!D166+SC13e!D166-'C5-Capex'!D40 -> 0 | E171: =E166+SC13a!E166+SC13e!E166-'C5-Capex'!E40 -> 0 | F171: =F166+SC13a!F166+SC13e!F166-'C5-Capex'!F40 -> 0 | G171: =G166+SC13a!G166+SC13e!G166-'C5-Capex'!G40 -> 0 | H171: =H166+SC13a!H166+SC13e!H166-'C5-Capex'!H40 -> 0 | K171: =K166+SC13a!K166+SC13e!K166-'C5-Capex'!K40 -> 0

Sheet SC13c
A1: =muni& " - "&S71Sc& " - "&Head57 -> LIM351 Blouberg - Supporting Table SC13c Monthly Budget Statement - expenditure on repairs and maintenance by asset class - M11 May
A2: =desc -> Description | B2: =head27 -> Ref | C2: =Head1 -> 2018/19 | D2: =Head2 -> Budget Year 2019/20
C3: =Head5 -> Audited Outcome | D3: =Head6 -> Original Budget | E3: =Head7 -> Adjusted Budget | F3: =Head38 -> Monthly actual | G3: =Head39 -> YearTD actual | H3: =Head40 -> YearTD budget | I3: =Head41 -> YTD variance | J3: =Head41 -> YTD variance | K3: =Head8 -> Full Year Forecast
A4: R thousands | B4: 1 | J4: %
A5: Repairs and maintenance expenditure by Asset Class/Sub-class
A7: Infrastructure | C7: =C8+C13+C17+C27+C38+C45+C53+C63+C69 -> 1147711.15 | D7: 1637817 | E7: 1513557 | F7: 31205 | G7: 1217787.61 | H7: 1439216 | I7: =H7-G7 -> 221428.39 | J7: =IF(I7=0,"",I7/H7) -> 0.15385348 | K7: =K8+K13+K17+K27+K38+K45+K53+K63+K69 -> 1513557
A8: Roads Infrastructure | C8: =SUM(C9:C12) -> 214273.75 | D8: 350000 | E8: 400000 | F8: 31205 | G8: 303293.61 | H8: 405837 | I8: 102543.39 | J8: 0.2526713681 | K8: =SUM(K9:K12) -> 400000
A9: Roads | C9: 214273.75 | D9: 350000 | E9: 400000 | F9: 31205 | G9: 303293.61 | H9: 405837 | I9: 102543.39 | J9: 0.2526713681 | K9: 400000
A10: Road Structures | I10: 0
A11: Road Furniture | C11: 0 | D11: 0 | E11: 0 | F11: 0 | G11: 0 | H11: 0 | I11: 0 | K11: 0
A12: Capital Spares | I12: 0
A13: Storm water Infrastructure | C13: =SUM(C14:C16) -> 0 | D13: 0 | E13: 0 | F13: 0 | G13: 0 | H13: 0 | I13: 0 | K13: =SUM(K14:K16) -> 0
A14: Drainage Collection | C14: 0 | D14: 0 | E14: 0 | F14: 0 | G14: 0 | H14: 0 | I14: 0 | K14: 0
A15: Storm water Conveyance | I15: 0
A16: Attenuation | I16: 0
A17: Electrical Infrastructure | C17: =SUM(C18:C26) -> 933437.4 | D17: 987817 | E17: 1113557 | F17: 0 | G17: 914494 | H17: 998379 | I17: 83885 | J17: 0.08402119836 | K17: =SUM(K18:K26) -> 1113557
A18: Power Plants | C18: 0 | D18: 0 | E18: 0 | F18: 0 | G18: 0 | H18: 0 | I18: 0 | K18: 0
A19: HV Substations | I19: 0
A20: HV Switching Station | I20: 0
A21: HV Transmission Conductors | I21: 0
A22: MV Substations | I22: 0
A23: MV Switching Stations | I23: 0
A24: MV Networks | C24: 933437.4 | D24: 987817 | E24: 1113557 | F24: 0 | G24: 914494 | H24: 998379 | I24: 83885 | J24: 0.08402119836 | K24: 1113557
A25: LV Networks | C25: 0 | D25: 0 | E25: 0 | F25: 0 | G25: 0 | H25: 0 | I25: 0 | K25: 0
A26: Capital Spares | I26: 0
A27: Water Supply Infrastructure | C27: =SUM(C28:C37) -> 0 | D27: 0 | E27: 0 | F27: 0 | G27: 0 | H27: 0 | I27: 0 | K27: =SUM(K28:K37) -> 0
A28: Dams and Weirs | I28: 0
A29: Boreholes | I29: 0
A30: Reservoirs | I30: 0
A31: Pump Stations | I31: 0
A32: Water Treatment Works | I32: 0
A33: Bulk Mains | I33: 0
A34: Distribution | I34: 0
A35: Distribution Points | I35: 0
A36: PRV Stations | I36: 0
A37: Capital Spares | I37: 0
A38: Sanitation Infrastructure | C38: =SUM(C39:C44) -> 0 | D38: 0 | E38: 0 | F38: 0 | G38: 0 | H38: 0 | I38: 0 | K38: =SUM(K39:K44) -> 0
A39: Pump Station | I39: 0
A40: Reticulation | I40: 0
A41: Waste Water Treatment Works | I41: 0
A42: Outfall Sewers | I42: 0
A43: Toilet Facilities | I43: 0
A44: Capital Spares | I44: 0
A45: Solid Waste Infrastructure | C45: =SUM(C46:C52) -> 0 | D45: 0 | E45: 0 | F45: 0 | G45: 0 | H45: 0 | I45: 0 | K45: =SUM(K46:K52) -> 0
A46: Landfill Sites | I46: 0
A47: Waste Transfer Stations | I47: 0
A48: Waste Processing Facilities | I48: 0
A49: Waste Drop-off Points | I49: 0
A50: Waste Separation Facilities | I50: 0
A51: Electricity Generation Facilities | I51: 0
A52: Capital Spares | I52: 0
A53: Rail Infrastructure | C53: =SUM(C54:C62) -> 0 | D53: 0 | E53: 0 | F53: 0 | G53: 0 | H53: 0 | I53: 0 | K53: =SUM(K54:K62) -> 0
A54: Rail Lines | I54: 0
A55: Rail Structures | I55: 0
A56: Rail Furniture | I56: 0
A57: Drainage Collection | I57: 0
A58: Storm water Conveyance | I58: 0
A59: Attenuation | I59: 0
A60: MV Substations | I60: 0
A61: LV Networks | I61: 0
A62: Capital Spares | I62: 0
A63: Coastal Infrastructure | C63: =SUM(C64:C68) -> 0 | D63: 0 | E63: 0 | F63: 0 | G63: 0 | H63: 0 | I63: 0 | K63: =SUM(K64:K68) -> 0
A64: Sand Pumps | I64: 0
A65: Piers | I65: 0
A66: Revetments | I66: 0
A67: Promenades | I67: 0
A68: Capital Spares | I68: 0
A69: Information and Communication Infrastructure | C69: =SUM(C70:C73) -> 0 | D69: 300000 | E69: 0 | F69: 0 | G69: 0 | H69: 35000 | I69: 35000 | J69: 1 | K69: =SUM(K70:K73) -> 0
A70: Data Centres | C70: 0 | D70: 300000 | E70: 0 | F70: 0 | G70: 0 | H70: 35000 | I70: 35000 | J70: 1 | K70: 0
A71: Core Layers | I71: 0
A72: Distribution Layers | I72: 0
A73: Capital Spares | I73: 0
A75: Community Assets | C75: =+C76+C99 -> 23440 | D75: 240000 | E75: 180000 | F75: 0 | G75: 113774.23 | H75: 172000 | I75: 58225.77 | J75: 0.3385219186 | K75: =+K76+K99 -> 180000
A76: Community Facilities | C76: =SUM(C77:C98) -> 23440 | D76: 120000 | E76: 60000 | F76: 0 | G76: 0 | H76: 62000 | I76: 62000 | J76: 1 | K76: =SUM(K77:K98) -> 60000
A77: Halls | C77: 0 | D77: 0 | E77: 0 | F77: 0 | G77: 0 | H77: 0 | I77: 0 | K77: 0
A78: Centres | I78: 0
A79: Crèches | I79: 0
A80: Clinics/Care Centres | C80: 23440 | D80: 120000 | E80: 60000 | F80: 0 | G80: 0 | H80: 62000 | I80: 62000 | J80: 1 | K80: 60000
A81: Fire/Ambulance Stations | I81: 0
A82: Testing Stations | I82: 0
A83: Museums | I83: 0
A84: Galleries | I84: 0
A85: Theatres | I85: 0
A86: Libraries | I86: 0
A87: Cemeteries/Crematoria | I87: 0
A88: Police | I88: 0
A89: Purls | I89: 0
A90: Public Open Space | I90: 0
A91: Nature Reserves | I91: 0
A92: Public Ablution Facilities | C92: 0 | D92: 0 | E92: 0 | F92: 0 | G92: 0 | H92: 0 | I92: 0 | K92: 0
A93: Markets | I93: 0
A94: Stalls | I94: 0
A95: Abattoirs | I95: 0
A96: Airports | I96: 0
A97: Taxi Ranks/Bus Terminals | I97: 0
A98: Capital Spares | I98: 0
A99: Sport and Recreation Facilities | C99: =SUM(C100:C102) -> 0 | D99: 120000 | E99: 120000 | F99: 0 | G99: 113774.23 | H99: 110000 | I99: -3774.23 | J99: -0.03431118182 | K99: =SUM(K100:K102) -> 120000
A100: Indoor Facilities | I100: 0
A101: Outdoor Facilities | C101: 0 | D101: 120000 | E101: 120000 | F101: 0 | G101: 113774.23 | H101: 110000 | I101: =H101-G101 -> -3774.23 | J101: =IF(I101=0,"",I101/H101) -> -0.03431118182 | K101: 120000
A102: Capital Spares | I102: 0
A103: Heritage assets | C103: =SUM(C104:C108) -> 0 | D103: 0 | E103: 0 | F103: 0 | G103: 0 | H103: 0 | I103: 0 | K103: =SUM(K104:K108) -> 0
A104: Monuments | I104: 0
A105: Historic Buildings | I105: 0
A106: Works of Art | I106: 0
A107: Conservation Areas | I107: 0
A108: Other Heritage | I108: 0
I109: 0
A110: Investment properties | C110: =+C111+C114 -> 0 | D110: 0 | E110: 0 | F110: 0 | G110: 0 | H110: 0 | I110: 0 | K110: =+K111+K114 -> 0
A111: Revenue Generating | C111: =SUM(C112:C113) -> 0 | D111: 0 | E111: 0 | F111: 0 | G111: 0 | H111: 0 | I111: 0 | K111: =SUM(K112:K113) -> 0
A112: Improved Property | I112: 0
A113: Unimproved Property | I113: 0
A114: Non-revenue Generating | C114: =SUM(C115:C116) -> 0 | D114: 0 | E114: 0 | F114: 0 | G114: 0 | H114: 0 | I114: 0 | K114: =SUM(K115:K116) -> 0
A115: Improved Property | I115: 0
A116: Unimproved Property | I116: =H116-G116 -> 0 | J116: =IF(I116=0,"",I116/H116) -> 
A117: Other assets | C117: =+C118+C130 -> 9378.26 | D117: 120000 | E117: 20000 | F117: 0 | G117: 16821.91 | H117: 60000 | I117: 43178.09 | J117: 0.7196348333 | K117: =+K118+K130 -> 20000
A118: Operational Buildings | C118: =SUM(C119:C129) -> 9378.26 | D118: 120000 | E118: 20000 | F118: 0 | G118: 16821.91 | H118: 60000 | I118: 43178.09 | J118: 0.7196348333 | K118: =SUM(K119:K129) -> 20000
A119: Municipal Offices | C119: 9378.26 | D119: 120000 | E119: 20000 | F119: 0 | G119: 16821.91 | H119: 60000 | I119: 43178.09 | J119: 0.7196348333 | K119: 20000
A120: Pay/Enquiry Points | I120: 0
A121: Building Plan Offices | I121: 0
A122: Workshops | I122: 0
A123: Yards | C123: 0 | D123: 0 | E123: 0 | F123: 0 | G123: 0 | H123: 0 | I123: 0 | K123: 0
A124: Stores | I124: 0
A125: Laboratories | I125: 0
A126: Training Centres | I126: 0
A127: Manufacturing Plant | I127: 0
A128: Depots | I128: 0
A129: Capital Spares | I129: 0
A130: Housing | C130: =SUM(C131:C133) -> 0 | D130: 0 | E130: 0 | F130: 0 | G130: 0 | H130: 0 | I130: 0 | K130: =SUM(K131:K133) -> 0
A131: Staff Housing | I131: 0
A132: Social Housing | I132: 0
A133: Capital Spares | I133: 0
A135: Biological or Cultivated Assets | C135: =SUM(C136:C136) -> 0 | D135: 0 | E135: 0 | F135: 0 | G135: 0 | H135: 0 | I135: =H135-G135 -> 0 | K135: =SUM(K136) -> 0
A136: Biological or Cultivated Assets | I136: =H136-G136 -> 0
J137: =IF(I137=0,"",I137/H137) -> 
A138: Intangible Assets | C138: =SUM(C139:C140) -> 0 | D138: 0 | E138: 0 | F138: 0 | G138: 0 | H138: 0 | I138: =H138-G138 -> 0 | K138: =SUM(K139:K140) -> 0
A139: Servitudes | I139: 0
A140: Licences and Rights | C140: =SUM(C141:C146) -> 0 | D140: 0 | E140: 0 | F140: 0 | G140: 0 | H140: 0 | I140: 0 | K140: =SUM(K141:K146) -> 0
A141: Water Rights | I141: 0
A142: Effluent Licenses | I142: 0
A143: Solid Waste Licenses | I143: 0
A144: Computer Software and Applications | I144: 0
A145: Load Settlement Software Applications | I145: 0
A146: Unspecified | I146: 0
A148: Computer Equipment | C148: =SUM(C149:C149) -> 0 | D148: 0 | E148: 0 | F148: 0 | G148: 0 | H148: 0 | I148: =H148-G148 -> 0 | J148: =IF(I148=0,"",I148/H148) ->  | K148: =SUM(K149) -> 0
A149: Computer Equipment | C149: 0 | D149: 0 | E149: 0 | F149: 0 | G149: 0 | H149: 0 | I149: =H149-G149 -> 0 | J149: =IF(I149=0,"",I149/H149) ->  | K149: 0
A151: Furniture and Office Equipment | C151: =SUM(C152:C152) -> 19382.75 | D151: 200000 | E151: 2000000 | F151: 0 | G151: 138750.98 | H151: 1623337 | I151: =H151-G151 -> 1484586.02 | J151: =IF(I151=0,"",I151/H151) -> 0.9145273101 | K151: =SUM(K152) -> 2000000
A152: Furniture and Office Equipment | C152: 19382.75 | D152: 200000 | E152: 2000000 | F152: 0 | G152: 138750.98 | H152: 1623337 | I152: =H152-G152 -> 1484586.02 | J152: =IF(I152=0,"",I152/H152) -> 0.9145273101 | K152: 2000000
J153: =IF(I153=0,"",I153/H153) -> 
A154: Machinery and Equipment | C154: =SUM(C155:C155) -> 351886.49 | D154: 1060000 | E154: 1110000 | F154: 326469.85 | G154: 1018413.49 | H154: 1116674 | I154: =H154-G154 -> 98260.51 | J154: =IF(I154=0,"",I154/H154) -> 0.0879939087 | K154: =SUM(K155) -> 1110000
A155: Machinery and Equipment | C155: 351886.49 | D155: 1060000 | E155: 1110000 | F155: 326469.85 | G155: 1018413.49 | H155: 1116674 | I155: =H155-G155 -> 98260.51 | J155: =IF(I155=0,"",I155/H155) -> 0.0879939087 | K155: 1110000
A157: Transport Assets | C157: =SUM(C158:C158) -> 301006.34 | D157: 100000 | E157: 100000 | F157: 0 | G157: 91500 | H157: 91674 | I157: =H157-G157 -> 174 | J157: =IF(I157=0,"",I157/H157) -> 0.001898029976 | K157: =SUM(K158) -> 100000
A158: Transport Assets | C158: 301006.34 | D158: 100000 | E158: 100000 | F158: 0 | G158: 91500 | H158: 91674 | I158: =H158-G158 -> 174 | J158: =IF(I158=0,"",I158/H158) -> 0.001898029976 | K158: 100000
A160: Land | C160: =SUM(C161:C161) -> 0 | D160: 0 | E160: 0 | F160: 0 | G160: 0 | H160: 0 | I160: =H160-G160 -> 0 | J160: =IF(I160=0,"",I160/H160) ->  | K160: =SUM(K161) -> 0
A161: Land | I161: =H161-G161 -> 0 | J161: =IF(I161=0,"",I161/H161) -> 
A163: Zoo's, Marine and Non-biological Animals | C163: =SUM(C164:C164) -> 0 | D163: 0 | E163: 0 | F163: 0 | G163: 0 | H163: 0 | I163: =H163-G163 -> 0 | J163: =IF(I163=0,"",I163/H163) ->  | K163: =SUM(K164) -> 0
A164: Zoo's, Marine and Non-biological Animals | I164: =H164-G164 -> 0 | J164: =IF(I164=0,"",I164/H164) -> 
J165: =IF(I165=0,"",I165/H165) -> 
A166: Total Repairs and Maintenance Expenditure | B166: 1 | C166: =C7+C75+C103+C110+C117+C135+C138+C148+C151+C154+C157+C160+C163 -> 1852804.99 | D166: 3357817 | E166: 4923557 | F166: 357674.85 | G166: 2597048.22 | H166: 4502901 | I166: 1905852.78 | J166: 0.4232499848 | K166: =K7+K75+K103+K110+K117+K135+K138+K148+K151+K154+K157+K160+K163 -> 4923557

Sheet SC13d
A1: =muni& " - "&S71Sd& " - "&Head57 -> LIM351 Blouberg - Supporting Table SC13d Monthly Budget Statement - depreciation by asset class - M11 May
A2: =desc -> Description | B2: =head27 -> Ref | C2: =Head1 -> 2018/19 | D2: =Head2 -> Budget Year 2019/20
C3: =Head5 -> Audited Outcome | D3: =Head6 -> Original Budget | E3: =Head7 -> Adjusted Budget | F3: =Head38 -> Monthly actual | G3: =Head39 -> YearTD actual | H3: =Head40 -> YearTD budget | I3: =Head41 -> YTD variance | J3: =Head41 -> YTD variance | K3: =Head8 -> Full Year Forecast
A4: R thousands | B4: 1 | J4: %
A5: Depreciation by Asset Class/Sub-class
A7: Infrastructure | C7: =C8+C13+C17+C27+C38+C45+C53+C63+C69 -> 22880920.22 | D7: 22801732 | E7: 22245720 | F7: 0 | G7: 0 | H7: 20456785.4 | I7: =H7-G7 -> 20456785.4 | J7: =IF(I7=0,"",I7/H7) -> 1 | K7: =K8+K13+K17+K27+K38+K45+K53+K63+K69 -> 22245720
A8: Roads Infrastructure | C8: =SUM(C9:C12) -> 5461315 | D8: 11324315 | E8: 10768303 | F8: 0 | G8: 0 | H8: 9935813.4 | I8: 9935813.4 | J8: 1 | K8: =SUM(K9:K12) -> 10768303
A9: Roads | C9: 5461315 | D9: 11324315 | E9: 10768303 | F9: 0 | G9: 0 | H9: 9935813.4 | I9: 9935813.4 | J9: 1 | K9: 10768303
A10: Road Structures | C10: 0 | D10: 0 | E10: 0 | F10: 0 | G10: 0 | H10: 0 | I10: 0 | K10: 0
A11: Road Furniture | C11: 0 | D11: 0 | E11: 0 | F11: 0 | G11: 0 | H11: 0 | I11: 0 | K11: 0
A12: Capital Spares | C12: 0 | D12: 0 | E12: 0 | F12: 0 | G12: 0 | H12: 0 | I12: 0 | K12: 0
A13: Storm water Infrastructure | C13: =SUM(C14:C16) -> 0 | D13: 0 | E13: 0 | F13: 0 | G13: 0 | H13: 0 | I13: 0 | K13: =SUM(K14:K16) -> 0
A14: Drainage Collection | C14: 0 | D14: 0 | E14: 0 | F14: 0 | G14: 0 | H14: 0 | I14: 0 | K14: 0
A15: Storm water Conveyance | C15: 0 | D15: 0 | E15: 0 | F15: 0 | G15: 0 | H15: 0 | I15: 0 | K15: 0
A16: Attenuation | C16: 0 | D16: 0 | E16: 0 | F16: 0 | G16: 0 | H16: 0 | I16: 0 | K16: 0
A17: Electrical Infrastructure | C17: =SUM(C18:C26) -> 17419605.22 | D17: 11477417 | E17: 11477417 | F17: 0 | G17: 0 | H17: 10520972 | I17: 10520972 | J17: 1 | K17: =SUM(K18:K26) -> 11477417
A18: Power Plants | C18: 0 | D18: 0 | E18: 0 | F18: 0 | G18: 0 | H18: 0 | I18: 0 | K18: 0
A19: HV Substations | C19: 0 | D19: 0 | E19: 0 | F19: 0 | G19: 0 | H19: 0 | I19: 0 | K19: 0
A20: HV Switching Station | C20: 0 | D20: 0 | E20: 0 | F20: 0 | G20: 0 | H20: 0 | I20: 0 | K20: 0
A21: HV Transmission Conductors | C21: 0 | D21: 0 | E21: 0 | F21: 0 | G21: 0 | H21: 0 | I21: 0 | K21: 0
A22: MV Substations | C22: 0 | D22: 0 | E22: 0 | F22: 0 | G22: 0 | H22: 0 | I22: 0 | K22: 0
A23: MV Switching Stations | C23: 0 | D23: 0 | E23: 0 | F23: 0 | G23: 0 | H23: 0 | I23: 0 | K23: 0
A24: MV Networks | C24: 0 | D24: 0 | E24: 0 | F24: 0 | G24: 0 | H24: 0 | I24: 0 | K24: 0
A25: LV Networks | C25: 17419605.22 | D25: 11477417 | E25: 11477417 | F25: 0 | G25: 0 | H25: 10520972 | I25: 10520972 | J25: 1 | K25: 11477417
A26: Capital Spares | C26: 0 | D26: 0 | E26: 0 | F26: 0 | G26: 0 | H26: 0 | I26: 0 | K26: 0
A27: Water Supply Infrastructure | C27: =SUM(C28:C37) -> 0 | D27: 0 | E27: 0 | F27: 0 | G27: 0 | H27: 0 | I27: 0 | K27: =SUM(K28:K37) -> 0
A28: Dams and Weirs | C28: 0 | D28: 0 | E28: 0 | F28: 0 | G28: 0 | H28: 0 | I28: 0 | K28: 0
A29: Boreholes | C29: 0 | D29: 0 | E29: 0 | F29: 0 | G29: 0 | H29: 0 | I29: 0 | K29: 0
A30: Reservoirs | I30: 0
A31: Pump Stations | I31: 0
A32: Water Treatment Works | I32: 0
A33: Bulk Mains | I33: 0
A34: Distribution | I34: 0
A35: Distribution Points | I35: 0
A36: PRV Stations | I36: 0
A37: Capital Spares | I37: 0
A38: Sanitation Infrastructure | C38: =SUM(C39:C44) -> 0 | D38: 0 | E38: 0 | F38: 0 | G38: 0 | H38: 0 | I38: 0 | K38: =SUM(K39:K44) -> 0
A39: Pump Station | I39: 0
A40: Reticulation | I40: 0
A41: Waste Water Treatment Works | I41: 0
A42: Outfall Sewers | I42: 0
A43: Toilet Facilities | I43: 0
A44: Capital Spares | I44: 0
A45: Solid Waste Infrastructure | C45: =SUM(C46:C52) -> 0 | D45: 0 | E45: 0 | F45: 0 | G45: 0 | H45: 0 | I45: 0 | K45: =SUM(K46:K52) -> 0
A46: Landfill Sites | C46: 0 | D46: 0 | E46: 0 | F46: 0 | G46: 0 | H46: 0 | I46: 0 | K46: 0
A47: Waste Transfer Stations | C47: 0 | D47: 0 | E47: 0 | F47: 0 | G47: 0 | H47: 0 | I47: 0 | K47: 0
A48: Waste Processing Facilities | C48: 0 | D48: 0 | E48: 0 | F48: 0 | G48: 0 | H48: 0 | I48: 0 | K48: 0
A49: Waste Drop-off Points | C49: 0 | D49: 0 | E49: 0 | F49: 0 | G49: 0 | H49: 0 | I49: 0 | K49: 0
A50: Waste Separation Facilities | C50: 0 | D50: 0 | E50: 0 | F50: 0 | G50: 0 | H50: 0 | I50: 0 | K50: 0
A51: Electricity Generation Facilities | C51: 0 | D51: 0 | E51: 0 | F51: 0 | G51: 0 | H51: 0 | I51: 0 | K51: 0
A52: Capital Spares | C52: 0 | D52: 0 | E52: 0 | F52: 0 | G52: 0 | H52: 0 | I52: 0 | K52: 0
A53: Rail Infrastructure | C53: =SUM(C54:C62) -> 0 | D53: 0 | E53: 0 | F53: 0 | G53: 0 | H53: 0 | I53: 0 | K53: =SUM(K54:K62) -> 0
A54: Rail Lines | I54: 0
A55: Rail Structures | I55: 0
A56: Rail Furniture | I56: 0
A57: Drainage Collection | I57: 0
A58: Storm water Conveyance | I58: 0
A59: Attenuation | I59: 0
A60: MV Substations | I60: 0
A61: LV Networks | I61: 0
A62: Capital Spares | I62: 0
A63: Coastal Infrastructure | C63: =SUM(C64:C68) -> 0 | D63: 0 | E63: 0 | F63: 0 | G63: 0 | H63: 0 | I63: 0 | K63: =SUM(K64:K68) -> 0
A64: Sand Pumps | I64: 0
A65: Piers | I65: 0
A66: Revetments | I66: 0
A67: Promenades | I67: 0
A68: Capital Spares | I68: 0
A69: Information and Communication Infrastructure | C69: =SUM(C70:C73) -> 0 | D69: 0 | E69: 0 | F69: 0 | G69: 0 | H69: 0 | I69: 0 | K69: =SUM(K70:K73) -> 0
A70: Data Centres | I70: 0
A71: Core Layers | I71: 0
A72: Distribution Layers | I72: 0
A73: Capital Spares | I73: 0
A75: Community Assets | C75: =+C76+C99 -> 9140854.65 | D75: 15872618 | E75: 15872618 | F75: 0 | G75: 0 | H75: 14549920 | I75: 14549920 | J75: 1 | K75: =+K76+K99 -> 15872618
A76: Community Facilities | C76: =SUM(C77:C98) -> 9140854.65 | D76: 15872618 | E76: 15872618 | F76: 0 | G76: 0 | H76: 14549920 | I76: 14549920 | J76: 1 | K76: =SUM(K77:K98) -> 15872618
A77: Halls | C77: 7557816.65 | D77: 0 | E77: 0 | F77: 0 | G77: 0 | H77: 0 | I77: 0 | K77: 0
A78: Centres | C78: 1583038 | D78: 4624206 | E78: 4624206 | F78: 0 | G78: 0 | H78: 4238861 | I78: 4238861 | J78: 1 | K78: 4624206
A79: Crèches | C79: 0 | D79: 6624206 | E79: 6624206 | F79: 0 | G79: 0 | H79: 6072198 | I79: 6072198 | J79: 1 | K79: 6624206
A80: Clinics/Care Centres | C80: 0 | D80: 0 | E80: 0 | F80: 0 | G80: 0 | H80: 0 | I80: 0 | K80: 0
A81: Fire/Ambulance Stations | C81: 0 | D81: 0 | E81: 0 | F81: 0 | G81: 0 | H81: 0 | I81: 0 | K81: 0
A82: Testing Stations | C82: 0 | D82: 0 | E82: 0 | F82: 0 | G82: 0 | H82: 0 | I82: 0 | K82: 0
A83: Museums | C83: 0 | D83: 0 | E83: 0 | F83: 0 | G83: 0 | H83: 0 | I83: 0 | K83: 0
A84: Galleries | C84: 0 | D84: 0 | E84: 0 | F84: 0 | G84: 0 | H84: 0 | I84: 0 | K84: 0
A85: Theatres | C85: 0 | D85: 0 | E85: 0 | F85: 0 | G85: 0 | H85: 0 | I85: 0 | K85: 0
A86: Libraries | C86: 0 | D86: 0 | E86: 0 | F86: 0 | G86: 0 | H86: 0 | I86: 0 | K86: 0
A87: Cemeteries/Crematoria | C87: 0 | D87: 4624206 | E87: 4624206 | F87: 0 | G87: 0 | H87: 4238861 | I87: 4238861 | J87: 1 | K87: 4624206
A88: Police | C88: 0 | D88: 0 | E88: 0 | F88: 0 | G88: 0 | H88: 0 | I88: 0 | K88: 0
A89: Purls | C89: 0 | D89: 0 | E89: 0 | F89: 0 | G89: 0 | H89: 0 | I89: 0 | K89: 0
A90: Public Open Space | C90: 0 | D90: 0 | E90: 0 | F90: 0 | G90: 0 | H90: 0 | I90: 0 | K90: 0
A91: Nature Reserves | C91: 0 | D91: 0 | E91: 0 | F91: 0 | G91: 0 | H91: 0 | I91: 0 | K91: 0
A92: Public Ablution Facilities | C92: 0 | D92: 0 | E92: 0 | F92: 0 | G92: 0 | H92: 0 | I92: 0 | K92: 0
A93: Markets | C93: 0 | D93: 0 | E93: 0 | F93: 0 | G93: 0 | H93: 0 | I93: 0 | K93: 0
A94: Stalls | C94: 0 | D94: 0 | E94: 0 | F94: 0 | G94: 0 | H94: 0 | I94: 0 | K94: 0
A95: Abattoirs | C95: 0 | D95: 0 | E95: 0 | F95: 0 | G95: 0 | H95: 0 | I95: 0 | K95: 0
A96: Airports | C96: 0 | D96: 0 | E96: 0 | F96: 0 | G96: 0 | H96: 0 | I96: 0 | K96: 0
A97: Taxi Ranks/Bus Terminals | C97: 0 | D97: 0 | E97: 0 | F97: 0 | G97: 0 | H97: 0 | I97: 0 | K97: 0
A98: Capital Spares | I98: 0
A99: Sport and Recreation Facilities | C99: =SUM(C100:C102) -> 0 | D99: 0 | E99: 0 | F99: 0 | G99: 0 | H99: 0 | I99: 0 | K99: =SUM(K100:K102) -> 0
A100: Indoor Facilities | I100: 0
A101: Outdoor Facilities | I101: =H101-G101 -> 0 | J101: =IF(I101=0,"",I101/H101) -> 
A102: Capital Spares | I102: 0
A103: Heritage assets | C103: =SUM(C104:C108) -> 0 | D103: 0 | E103: 0 | F103: 0 | G103: 0 | H103: 0 | I103: 0 | K103: =SUM(K104:K108) -> 0
A104: Monuments | I104: 0
A105: Historic Buildings | I105: 0
A106: Works of Art | I106: 0
A107: Conservation Areas | I107: 0
A108: Other Heritage | C108: 0 | D108: 0 | E108: 0 | F108: 0 | G108: 0 | H108: 0 | I108: 0 | K108: 0
I109: 0
A110: Investment properties | C110: =+C111+C114 -> 0 | D110: 0 | E110: 0 | F110: 0 | G110: 0 | H110: 0 | I110: 0 | K110: =+K111+K114 -> 0
A111: Revenue Generating | C111: =SUM(C112:C113) -> 0 | D111: 0 | E111: 0 | F111: 0 | G111: 0 | H111: 0 | I111: 0 | K111: =SUM(K112:K113) -> 0
A112: Improved Property | C112: 0 | D112: 0 | E112: 0 | F112: 0 | G112: 0 | H112: 0 | I112: 0 | K112: 0
A113: Unimproved Property | C113: 0 | D113: 0 | E113: 0 | F113: 0 | G113: 0 | H113: 0 | I113: 0 | K113: 0
A114: Non-revenue Generating | C114: =SUM(C115:C116) -> 0 | D114: 0 | E114: 0 | F114: 0 | G114: 0 | H114: 0 | I114: 0 | K114: =SUM(K115:K116) -> 0
A115: Improved Property | I115: 0
A116: Unimproved Property | I116: =H116-G116 -> 0 | J116: =IF(I116=0,"",I116/H116) -> 
A117: Other assets | C117: =+C118+C130 -> 0 | D117: 0 | E117: 0 | F117: 0 | G117: 0 | H117: 0 | I117: 0 | K117: =+K118+K130 -> 0
A118: Operational Buildings | C118: =SUM(C119:C129) -> 0 | D118: 0 | E118: 0 | F118: 0 | G118: 0 | H118: 0 | I118: 0 | K118: =SUM(K119:K129) -> 0
A119: Municipal Offices | C119: 0 | D119: 0 | E119: 0 | F119: 0 | G119: 0 | H119: 0 | I119: 0 | K119: 0
A120: Pay/Enquiry Points | C120: 0 | D120: 0 | E120: 0 | F120: 0 | G120: 0 | H120: 0 | I120: 0 | K120: 0
A121: Building Plan Offices | C121: 0 | D121: 0 | E121: 0 | F121: 0 | G121: 0 | H121: 0 | I121: 0 | K121: 0
A122: Workshops | C122: 0 | D122: 0 | E122: 0 | F122: 0 | G122: 0 | H122: 0 | I122: 0 | K122: 0
A123: Yards | C123: 0 | D123: 0 | E123: 0 | F123: 0 | G123: 0 | H123: 0 | I123: 0 | K123: 0
A124: Stores | C124: 0 | D124: 0 | E124: 0 | F124: 0 | G124: 0 | H124: 0 | I124: 0 | K124: 0
A125: Laboratories | C125: 0 | D125: 0 | E125: 0 | F125: 0 | G125: 0 | H125: 0 | I125: 0 | K125: 0
A126: Training Centres | C126: 0 | D126: 0 | E126: 0 | F126: 0 | G126: 0 | H126: 0 | I126: 0 | K126: 0
A127: Manufacturing Plant | C127: 0 | D127: 0 | E127: 0 | F127: 0 | G127: 0 | H127: 0 | I127: 0 | K127: 0
A128: Depots | C128: 0 | D128: 0 | E128: 0 | F128: 0 | G128: 0 | H128: 0 | I128: 0 | K128: 0
A129: Capital Spares | C129: 0 | D129: 0 | E129: 0 | F129: 0 | G129: 0 | H129: 0 | I129: 0 | K129: 0
A130: Housing | C130: =SUM(C131:C133) -> 0 | D130: 0 | E130: 0 | F130: 0 | G130: 0 | H130: 0 | I130: 0 | K130: =SUM(K131:K133) -> 0
A131: Staff Housing | C131: 0 | D131: 0 | E131: 0 | F131: 0 | G131: 0 | H131: 0 | I131: 0 | K131: 0
A132: Social Housing | C132: 0 | D132: 0 | E132: 0 | F132: 0 | G132: 0 | H132: 0 | I132: 0 | K132: 0
A133: Capital Spares | C133: 0 | D133: 0 | E133: 0 | F133: 0 | G133: 0 | H133: 0 | I133: 0 | K133: 0
A135: Biological or Cultivated Assets | C135: =SUM(C136:C136) -> 0 | D135: 0 | E135: 0 | F135: 0 | G135: 0 | H135: 0 | I135: =H135-G135 -> 0 | K135: =SUM(K136) -> 0
A136: Biological or Cultivated Assets | I136: =H136-G136 -> 0
J137: =IF(I137=0,"",I137/H137) -> 
A138: Intangible Assets | C138: =SUM(C139:C140) -> 145520.07 | D138: 0 | E138: 0 | F138: 0 | G138: 0 | H138: 0 | I138: =H138-G138 -> 0 | K138: =SUM(K139:K140) -> 0
A139: Servitudes | I139: 0
A140: Licences and Rights | C140: =SUM(C141:C146) -> 145520.07 | D140: 0 | E140: 0 | F140: 0 | G140: 0 | H140: 0 | I140: 0 | K140: =SUM(K141:K146) -> 0
A141: Water Rights | I141: 0
A142: Effluent Licenses | I142: 0
A143: Solid Waste Licenses | I143: 0
A144: Computer Software and Applications | C144: 145520.07 | D144: 0 | E144: 0 | F144: 0 | G144: 0 | H144: 0 | I144: 0 | K144: 0
A145: Load Settlement Software Applications | I145: 0
A146: Unspecified | C146: 0 | D146: 0 | E146: 0 | F146: 0 | G146: 0 | H146: 0 | I146: 0 | K146: 0
A148: Computer Equipment | C148: =SUM(C149:C149) -> 1864958.61 | D148: 0 | E148: 0 | F148: 0 | G148: 0 | H148: 0 | I148: =H148-G148 -> 0 | J148: =IF(I148=0,"",I148/H148) ->  | K148: =SUM(K149) -> 0
A149: Computer Equipment | C149: 1864958.61 | D149: 0 | E149: 0 | F149: 0 | G149: 0 | H149: 0 | I149: =H149-G149 -> 0 | J149: =IF(I149=0,"",I149/H149) ->  | K149: 0
A151: Furniture and Office Equipment | C151: =SUM(C152:C152) -> 1051572.06 | D151: 984024 | E151: 984024 | F151: 0 | G151: 0 | H151: 902022 | I151: =H151-G151 -> 902022 | J151: =IF(I151=0,"",I151/H151) -> 1 | K151: =SUM(K152) -> 984024
A152: Furniture and Office Equipment | C152: 1051572.06 | D152: 984024 | E152: 984024 | F152: 0 | G152: 0 | H152: 902022 | I152: =H152-G152 -> 902022 | J152: =IF(I152=0,"",I152/H152) -> 1 | K152: 984024
J153: =IF(I153=0,"",I153/H153) -> 
A154: Machinery and Equipment | C154: =SUM(C155:C155) -> 172828.65 | D154: 2015357 | E154: 2015357 | F154: 0 | G154: 0 | H154: 1847417 | I154: =H154-G154 -> 1847417 | J154: =IF(I154=0,"",I154/H154) -> 1 | K154: =SUM(K155) -> 2015357
A155: Machinery and Equipment | C155: 172828.65 | D155: 2015357 | E155: 2015357 | F155: 0 | G155: 0 | H155: 1847417 | I155: =H155-G155 -> 1847417 | J155: =IF(I155=0,"",I155/H155) -> 1 | K155: 2015357
A157: Transport Assets | C157: =SUM(C158:C158) -> 0 | D157: 0 | E157: 0 | F157: 0 | G157: 0 | H157: 0 | I157: =H157-G157 -> 0 | J157: =IF(I157=0,"",I157/H157) ->  | K157: =SUM(K158) -> 0
A158: Transport Assets | C158: 0 | D158: 0 | E158: 0 | F158: 0 | G158: 0 | H158: 0 | I158: =H158-G158 -> 0 | J158: =IF(I158=0,"",I158/H158) ->  | K158: 0
A160: Land | C160: =SUM(C161:C161) -> 0 | D160: 0 | E160: 0 | F160: 0 | G160: 0 | H160: 0 | I160: =H160-G160 -> 0 | J160: =IF(I160=0,"",I160/H160) ->  | K160: =SUM(K161) -> 0
A161: Land | I161: =H161-G161 -> 0 | J161: =IF(I161=0,"",I161/H161) -> 
A163: Zoo's, Marine and Non-biological Animals | C163: =SUM(C164:C164) -> 0 | D163: 0 | E163: 0 | F163: 0 | G163: 0 | H163: 0 | I163: =H163-G163 -> 0 | J163: =IF(I163=0,"",I163/H163) ->  | K163: =SUM(K164) -> 0
A164: Zoo's, Marine and Non-biological Animals | I164: =H164-G164 -> 0 | J164: =IF(I164=0,"",I164/H164) -> 
J165: =IF(I165=0,"",I165/H165) -> 
A166: Total Depreciation | B166: 1 | C166: =C7+C75+C103+C110+C117+C135+C138+C148+C151+C154+C157+C160+C163 -> 35256654.26 | D166: 41673731 | E166: 41117719 | F166: 0 | G166: 0 | H166: 37756144.4 | I166: 37756144.4 | J166: 1 | K166: =K7+K75+K103+K110+K117+K135+K138+K148+K151+K154+K157+K160+K163 -> 41117719

Sheet SC13e
A1: =muni& " - "&S71Se& " - "&Head57 -> LIM351 Blouberg - Supporting Table SC13e Monthly Budget Statement - capital expenditure on upgrading of existing assets by asset class - M11 May
A2: =desc -> Description | B2: =head27 -> Ref | C2: =Head1 -> 2018/19 | D2: =Head2 -> Budget Year 2019/20
C3: =Head5 -> Audited Outcome | D3: =Head6 -> Original Budget | E3: =Head7 -> Adjusted Budget | F3: =Head38 -> Monthly actual | G3: =Head39 -> YearTD actual | H3: =Head40 -> YearTD budget | I3: =Head41 -> YTD variance | J3: =Head41 -> YTD variance | K3: =Head8 -> Full Year Forecast
A4: R thousands | B4: 1 | J4: %
A5: Capital expenditure on upgrading of existing assets by Asset Class/Sub-class
A7: Infrastructure | C7: =C8+C13+C17+C27+C38+C45+C53+C63+C69 -> 0 | D7: 1500000 | E7: 1500000 | F7: 0 | G7: 0 | H7: 1375000 | I7: =H7-G7 -> 1375000 | J7: =IF(I7=0,"",I7/H7) -> 1 | K7: =K8+K13+K17+K27+K38+K45+K53+K63+K69 -> 1500000
A8: Roads Infrastructure | C8: =SUM(C9:C12) -> 0 | D8: 0 | E8: 0 | F8: 0 | G8: 0 | H8: 0 | I8: 0 | K8: =SUM(K9:K12) -> 0
A9: Roads | I9: 0
A10: Road Structures | I10: 0
A11: Road Furniture | I11: 0
A12: Capital Spares | I12: 0
A13: Storm water Infrastructure | C13: =SUM(C14:C16) -> 0 | D13: 0 | E13: 0 | F13: 0 | G13: 0 | H13: 0 | I13: 0 | K13: =SUM(K14:K16) -> 0
A14: Drainage Collection | I14: 0
A15: Storm water Conveyance | I15: 0
A16: Attenuation | I16: 0
A17: Electrical Infrastructure | C17: =SUM(C18:C26) -> 0 | D17: 0 | E17: 0 | F17: 0 | G17: 0 | H17: 0 | I17: 0 | K17: =SUM(K18:K26) -> 0
A18: Power Plants | I18: 0
A19: HV Substations | I19: 0
A20: HV Switching Station | I20: 0
A21: HV Transmission Conductors | I21: 0
A22: MV Substations | I22: 0
A23: MV Switching Stations | I23: 0
A24: MV Networks | I24: 0
A25: LV Networks | I25: 0
A26: Capital Spares | I26: 0
A27: Water Supply Infrastructure | C27: =SUM(C28:C37) -> 0 | D27: 0 | E27: 0 | F27: 0 | G27: 0 | H27: 0 | I27: 0 | K27: =SUM(K28:K37) -> 0
A28: Dams and Weirs | I28: 0
A29: Boreholes | I29: 0
A30: Reservoirs | I30: 0
A31: Pump Stations | I31: 0
A32: Water Treatment Works | I32: 0
A33: Bulk Mains | I33: 0
A34: Distribution | I34: 0
A35: Distribution Points | I35: 0
A36: PRV Stations | I36: 0
A37: Capital Spares | I37: 0
A38: Sanitation Infrastructure | C38: =SUM(C39:C44) -> 0 | D38: 0 | E38: 0 | F38: 0 | G38: 0 | H38: 0 | I38: 0 | K38: =SUM(K39:K44) -> 0
A39: Pump Station | I39: 0
A40: Reticulation | I40: 0
A41: Waste Water Treatment Works | I41: 0
A42: Outfall Sewers | I42: 0
A43: Toilet Facilities | I43: 0
A44: Capital Spares | I44: 0
A45: Solid Waste Infrastructure | C45: =SUM(C46:C52) -> 0 | D45: 1500000 | E45: 1500000 | F45: 0 | G45: 0 | H45: 1375000 | I45: 1375000 | J45: 1 | K45: =SUM(K46:K52) -> 1500000
A46: Landfill Sites | C46: 0 | D46: 1500000 | E46: 1500000 | F46: 0 | G46: 0 | H46: 1375000 | I46: 1375000 | J46: 1 | K46: 1500000
A47: Waste Transfer Stations | I47: 0
A48: Waste Processing Facilities | I48: 0
A49: Waste Drop-off Points | I49: 0
A50: Waste Separation Facilities | I50: 0
A51: Electricity Generation Facilities | I51: 0
A52: Capital Spares | I52: 0
A53: Rail Infrastructure | C53: =SUM(C54:C62) -> 0 | D53: 0 | E53: 0 | F53: 0 | G53: 0 | H53: 0 | I53: 0 | K53: =SUM(K54:K62) -> 0
A54: Rail Lines | I54: 0
A55: Rail Structures | I55: 0
A56: Rail Furniture | I56: 0
A57: Drainage Collection | I57: 0
A58: Storm water Conveyance | I58: 0
A59: Attenuation | I59: 0
A60: MV Substations | I60: 0
A61: LV Networks | I61: 0
A62: Capital Spares | I62: 0
A63: Coastal Infrastructure | C63: =SUM(C64:C68) -> 0 | D63: 0 | E63: 0 | F63: 0 | G63: 0 | H63: 0 | I63: 0 | K63: =SUM(K64:K68) -> 0
A64: Sand Pumps | I64: 0
A65: Piers | I65: 0
A66: Revetments | I66: 0
A67: Promenades | I67: 0
A68: Capital Spares | I68: 0
A69: Information and Communication Infrastructure | C69: =SUM(C70:C73) -> 0 | D69: 0 | E69: 0 | F69: 0 | G69: 0 | H69: 0 | I69: 0 | K69: =SUM(K70:K73) -> 0
A70: Data Centres | I70: 0
A71: Core Layers | I71: 0
A72: Distribution Layers | I72: 0
A73: Capital Spares | I73: 0
A75: Community Assets | C75: =+C76+C99 -> 0 | D75: 2075617 | E75: 2075617 | F75: 440335.38 | G75: 524440.38 | H75: 1902659 | I75: 1378218.62 | J75: 0.724364492 | K75: =+K76+K99 -> 2075617
A76: Community Facilities | C76: =SUM(C77:C98) -> 0 | D76: 0 | E76: 0 | F76: 0 | G76: 0 | H76: 0 | I76: 0 | K76: =SUM(K77:K98) -> 0
A77: Halls | I77: 0
A78: Centres | I78: 0
A79: Crèches | I79: 0
A80: Clinics/Care Centres | I80: 0
A81: Fire/Ambulance Stations | I81: 0
A82: Testing Stations | I82: 0
A83: Museums | I83: 0
A84: Galleries | I84: 0
A85: Theatres | I85: 0
A86: Libraries | I86: 0
A87: Cemeteries/Crematoria | I87: 0
A88: Police | I88: 0
A89: Purls | I89: 0
A90: Public Open Space | I90: 0
A91: Nature Reserves | I91: 0
A92: Public Ablution Facilities | I92: 0
A93: Markets | I93: 0
A94: Stalls | I94: 0
A95: Abattoirs | I95: 0
A96: Airports | I96: 0
A97: Taxi Ranks/Bus Terminals | I97: 0
A98: Capital Spares | I98: 0
A99: Sport and Recreation Facilities | C99: =SUM(C100:C102) -> 0 | D99: 2075617 | E99: 2075617 | F99: 440335.38 | G99: 524440.38 | H99: 1902659 | I99: 1378218.62 | J99: 0.724364492 | K99: =SUM(K100:K102) -> 2075617
A100: Indoor Facilities | I100: 0
A101: Outdoor Facilities | C101: 0 | D101: 2075617 | E101: 2075617 | F101: 440335.38 | G101: 524440.38 | H101: 1902659 | I101: =H101-G101 -> 1378218.62 | J101: =IF(I101=0,"",I101/H101) -> 0.724364492 | K101: 2075617
A102: Capital Spares | I102: 0
A103: Heritage assets | C103: =SUM(C104:C108) -> 0 | D103: 0 | E103: 0 | F103: 0 | G103: 0 | H103: 0 | I103: 0 | K103: =SUM(K104:K108) -> 0
A104: Monuments | I104: 0
A105: Historic Buildings | I105: 0
A106: Works of Art | I106: 0
A107: Conservation Areas | I107: 0
A108: Other Heritage | I108: 0
I109: 0
A110: Investment properties | C110: =+C111+C114 -> 0 | D110: 0 | E110: 0 | F110: 0 | G110: 0 | H110: 0 | I110: 0 | K110: =+K111+K114 -> 0
A111: Revenue Generating | C111: =SUM(C112:C113) -> 0 | D111: 0 | E111: 0 | F111: 0 | G111: 0 | H111: 0 | I111: 0 | K111: =SUM(K112:K113) -> 0
A112: Improved Property | I112: 0
A113: Unimproved Property | C113: 0 | D113: 0 | E113: 0 | F113: 0 | G113: 0 | H113: 0 | I113: 0 | K113: 0
A114: Non-revenue Generating | C114: =SUM(C115:C116) -> 0 | D114: 0 | E114: 0 | F114: 0 | G114: 0 | H114: 0 | I114: 0 | K114: =SUM(K115:K116) -> 0
A115: Improved Property | I115: 0
A116: Unimproved Property | I116: =H116-G116 -> 0 | J116: =IF(I116=0,"",I116/H116) -> 
A117: Other assets | C117: =+C118+C130 -> 0 | D117: 0 | E117: 0 | F117: 0 | G117: 0 | H117: 0 | I117: 0 | K117: =+K118+K130 -> 0
A118: Operational Buildings | C118: =SUM(C119:C129) -> 0 | D118: 0 | E118: 0 | F118: 0 | G118: 0 | H118: 0 | I118: 0 | K118: =SUM(K119:K129) -> 0
A119: Municipal Offices | I119: 0
A120: Pay/Enquiry Points | I120: 0
A121: Building Plan Offices | I121: 0
A122: Workshops | I122: 0
A123: Yards | I123: 0
A124: Stores | I124: 0
A125: Laboratories | I125: 0
A126: Training Centres | I126: 0
A127: Manufacturing Plant | I127: 0
A128: Depots | I128: 0
A129: Capital Spares | I129: 0
A130: Housing | C130: =SUM(C131:C133) -> 0 | D130: 0 | E130: 0 | F130: 0 | G130: 0 | H130: 0 | I130: 0 | K130: =SUM(K131:K133) -> 0
A131: Staff Housing | I131: 0
A132: Social Housing | I132: 0
A133: Capital Spares | I133: 0
A135: Biological or Cultivated Assets | C135: =SUM(C136:C136) -> 0 | D135: 0 | E135: 0 | F135: 0 | G135: 0 | H135: 0 | I135: =H135-G135 -> 0 | K135: =SUM(K136) -> 0
A136: Biological or Cultivated Assets | I136: =H136-G136 -> 0
J137: =IF(I137=0,"",I137/H137) -> 
A138: Intangible Assets | C138: =SUM(C139:C140) -> 0 | D138: 0 | E138: 0 | F138: 0 | G138: 0 | H138: 0 | I138: =H138-G138 -> 0 | K138: =SUM(K139:K140) -> 0
A139: Servitudes | I139: 0
A140: Licences and Rights | C140: =SUM(C141:C146) -> 0 | D140: 0 | E140: 0 | F140: 0 | G140: 0 | H140: 0 | I140: 0 | K140: =SUM(K141:K146) -> 0
A141: Water Rights | I141: 0
A142: Effluent Licenses | I142: 0
A143: Solid Waste Licenses | I143: 0
A144: Computer Software and Applications | I144: 0
A145: Load Settlement Software Applications | I145: 0
A146: Unspecified | I146: 0
A148: Computer Equipment | C148: =SUM(C149:C149) -> 0 | D148: 0 | E148: 0 | F148: 0 | G148: 0 | H148: 0 | I148: =H148-G148 -> 0 | J148: =IF(I148=0,"",I148/H148) ->  | K148: =SUM(K149) -> 0
A149: Computer Equipment | I149: =H149-G149 -> 0 | J149: =IF(I149=0,"",I149/H149) -> 
A151: Furniture and Office Equipment | C151: =SUM(C152:C152) -> 143141.31 | D151: 1000000 | E151: 0 | F151: 0 | G151: 0 | H151: 116674 | I151: =H151-G151 -> 116674 | J151: =IF(I151=0,"",I151/H151) -> 1 | K151: =SUM(K152) -> 0
A152: Furniture and Office Equipment | C152: 143141.31 | D152: 1000000 | E152: 0 | F152: 0 | G152: 0 | H152: 116674 | I152: =H152-G152 -> 116674 | J152: =IF(I152=0,"",I152/H152) -> 1 | K152: 0
J153: =IF(I153=0,"",I153/H153) -> 
A154: Machinery and Equipment | C154: =SUM(C155:C155) -> 112000 | D154: 950000 | E154: 638000 | F154: 0 | G154: 576440.77 | H154: 621237 | I154: =H154-G154 -> 44796.23 | J154: =IF(I154=0,"",I154/H154) -> 0.07210811655 | K154: =SUM(K155) -> 638000
A155: Machinery and Equipment | C155: 112000 | D155: 950000 | E155: 638000 | F155: 0 | G155: 576440.77 | H155: 621237 | I155: =H155-G155 -> 44796.23 | J155: =IF(I155=0,"",I155/H155) -> 0.07210811655 | K155: 638000
A157: Transport Assets | C157: =SUM(C158:C158) -> 0 | D157: 0 | E157: 0 | F157: 0 | G157: 0 | H157: 0 | I157: =H157-G157 -> 0 | J157: =IF(I157=0,"",I157/H157) ->  | K157: =SUM(K158) -> 0
A158: Transport Assets | I158: =H158-G158 -> 0 | J158: =IF(I158=0,"",I158/H158) -> 
A160: Land | C160: =SUM(C161:C161) -> 0 | D160: 0 | E160: 0 | F160: 0 | G160: 0 | H160: 0 | I160: =H160-G160 -> 0 | J160: =IF(I160=0,"",I160/H160) ->  | K160: =SUM(K161) -> 0
A161: Land | I161: =H161-G161 -> 0 | J161: =IF(I161=0,"",I161/H161) -> 
J162: .
A163: Zoo's, Marine and Non-biological Animals | C163: =SUM(C164:C164) -> 0 | D163: 0 | E163: 0 | F163: 0 | G163: 0 | H163: 0 | I163: =H163-G163 -> 0 | J163: =IF(I163=0,"",I163/H163) ->  | K163: =SUM(K164) -> 0
A164: Zoo's, Marine and Non-biological Animals | I164: =H164-G164 -> 0 | J164: =IF(I164=0,"",I164/H164) -> 
J165: =IF(I165=0,"",I165/H165) -> 
A166: Total Capital Expenditure on upgrading of existing assets | B166: 1 | C166: =C7+C75+C103+C110+C117+C135+C138+C148+C151+C154+C157+C160+C163 -> 255141.31 | D166: 5525617 | E166: 4213617 | F166: 440335.38 | G166: 1100881.15 | H166: 4015570 | I166: =H166-G166 -> 2914688.85 | J166: =IF(I166=0,"",I166/H166) -> 0.7258468536 | K166: =K7+K75+K103+K110+K117+K135+K138+K148+K151+K154+K157+K160+K163 -> 4213617
A168: =head27a -> References
A169: 1. Total Capital Expenditure on new assets (SC13a) plus Total Capital Expenditure on renewal of existing assets (SC13b) plus Total Capital Expenditure on upgrading of existing assets (SC13e) must reconcile to total capital expenditure in Table C5
A171: check balance | C171: =C166+SC13a!C166+SC13b!C166-'C5-Capex'!C40 -> 0 | D171: =D166+SC13a!D166+SC13b!D166-'C5-Capex'!D40 -> 0 | E171: =E166+SC13a!E166+SC13b!E166-'C5-Capex'!E40 -> 0 | F171: =F166+SC13a!F166+SC13b!F166-'C5-Capex'!F40 -> 0 | G171: =G166+SC13a!G166+SC13b!G166-'C5-Capex'!G40 -> 0 | H171: =H166+SC13a!H166+SC13b!H166-'C5-Capex'!H40 -> 0 | K171: =K166+SC13a!K166+SC13b!K166-'C5-Capex'!K40 -> 0

Sheet SC71charts
A1: ='Template names'!B102 -> Chart C1 2019/20 Capital Expenditure Monthly Trend: actual v target
A2: Month | B2: ='SC12'!B2 -> 2018/19 | C2: ='SC12'!C3 -> Original Budget | D2: ='SC12'!D3 -> Adjusted Budget | E2: ='SC12'!E3 -> Monthly actual
A3: =LEFT('SC12'!A6,3) -> Jul | B3: ='SC12'!B6 -> 0 | C3: ='SC12'!C6 -> 5794375.01 | D3: ='SC12'!D6 -> 5794389 | E3: ='SC12'!E6 -> 0
A4: =LEFT('SC12'!A7,3) -> Aug | B4: ='SC12'!B7 -> 1837781.32 | C4: ='SC12'!C7 -> 5794375.01 | D4: ='SC12'!D7 -> 5794389 | E4: ='SC12'!E7 -> 3454909.02
A5: =LEFT('SC12'!A8,3) -> Sep | B5: ='SC12'!B8 -> 264770.25 | C5: ='SC12'!C8 -> 5794375.01 | D5: ='SC12'!D8 -> 5794389 | E5: ='SC12'!E8 -> 1457147.62
A6: =LEFT('SC12'!A9,3) -> Oct | B6: ='SC12'!B9 -> 3149816.38 | C6: ='SC12'!C9 -> 5794375.01 | D6: ='SC12'!D9 -> 5794389 | E6: ='SC12'!E9 -> 1675222.85
A7: =LEFT('SC12'!A10,3) -> Nov | B7: ='SC12'!B10 -> 6140112.07 | C7: ='SC12'!C10 -> 5794375.01 | D7: ='SC12'!D10 -> 5794389 | E7: ='SC12'!E10 -> 6987092.09
A8: =LEFT('SC12'!A11,3) -> Dec | B8: ='SC12'!B11 -> 11421362.5 | C8: ='SC12'!C11 -> 5794375.01 | D8: ='SC12'!D11 -> 5794389 | E8: ='SC12'!E11 -> 9646688.86
A9: =LEFT('SC12'!A12,3) -> Jan | B9: ='SC12'!B12 -> 282272.1 | C9: ='SC12'!C12 -> 5794375.01 | D9: ='SC12'!D12 -> 5794389 | E9: ='SC12'!E12 -> 2825088.86
A10: =LEFT('SC12'!A13,3) -> Feb | B10: ='SC12'!B13 -> 5167313.69 | C10: ='SC12'!C13 -> 5794375.01 | D10: ='SC12'!D13 -> 4764900.4 | E10: ='SC12'!E13 -> 4036826.85
A11: =LEFT('SC12'!A14,3) -> Mar | B11: ='SC12'!B14 -> 4147390.33 | C11: ='SC12'!C14 -> 5794375.01 | D11: ='SC12'!D14 -> 4764900.4 | E11: ='SC12'!E14 -> 4260353.62
A12: =LEFT('SC12'!A15,3) -> Apr | B12: ='SC12'!B15 -> 3370047.28 | C12: ='SC12'!C15 -> 5794375.01 | D12: ='SC12'!D15 -> 4764900.4 | E12: ='SC12'!E15 -> 84105
A13: =LEFT('SC12'!A16,3) -> May | B13: ='SC12'!B16 -> 5401848.48 | C13: ='SC12'!C16 -> 5794375.01 | D13: ='SC12'!D16 -> 4764945.4 | E13: ='SC12'!E16 -> 3741612.3
A14: =LEFT('SC12'!A17,3) -> Jun | B14: ='SC12'!B17 -> 1337397.11 | C14: ='SC12'!C17 -> 5794374.89 | D14: ='SC12'!D17 -> 4764777.4 | E14: ='SC12'!E17 -> 0
A26: ='Template names'!B103 -> Chart C2 2019/20 Capital Expenditure: YTD actual v YTD target
A27: Month | B27: ='SC12'!F3 -> YearTD actual | C27: ='SC12'!G3 -> YearTD budget
A28: =LEFT('SC12'!A6,3) -> Jul | B28: ='SC12'!F6 ->  | C28: ='SC12'!G6 -> 5794389
A29: =LEFT('SC12'!A7,3) -> Aug | B29: ='SC12'!F7 ->  | C29: ='SC12'!G7 -> 11588778
A30: =LEFT('SC12'!A8,3) -> Sep | B30: ='SC12'!F8 ->  | C30: ='SC12'!G8 -> 17383167
A31: =LEFT('SC12'!A9,3) -> Oct | B31: ='SC12'!F9 ->  | C31: ='SC12'!G9 -> 23177556
A32: =LEFT('SC12'!A10,3) -> Nov | B32: ='SC12'!F10 ->  | C32: ='SC12'!G10 -> 28971945
A33: =LEFT('SC12'!A11,3) -> Dec | B33: ='SC12'!F11 ->  | C33: ='SC12'!G11 -> 34766334
A34: =LEFT('SC12'!A12,3) -> Jan | B34: ='SC12'!F12 ->  | C34: ='SC12'!G12 -> 40560723
A35: =LEFT('SC12'!A13,3) -> Feb | B35: ='SC12'!F13 ->  | C35: ='SC12'!G13 -> 45325623.4
A36: =LEFT('SC12'!A14,3) -> Mar | B36: ='SC12'!F14 ->  | C36: ='SC12'!G14 -> 50090523.8
A37: =LEFT('SC12'!A15,3) -> Apr | B37: ='SC12'!F15 ->  | C37: ='SC12'!G15 -> 54855424.2
A38: =LEFT('SC12'!A16,3) -> May | B38: ='SC12'!F16 ->  | C38: ='SC12'!G16 -> 59620369.6
A39: =LEFT('SC12'!A17,3) -> Jun | B39: ='SC12'!F17 ->  | C39: ='SC12'!G17 -> 64385147
A51: ='Template names'!B104 -> Chart C3 Aged Consumer Debtors Analysis
B52: ='SC3'!C3 -> 0-30 Days | C52: ='SC3'!D3 -> 31-60 Days | D52: ='SC3'!E3 -> 61-90 Days | E52: ='SC3'!F3 -> 91-120 Days | F52: ='SC3'!G3 -> 121-150 Dys | G52: ='SC3'!H3 -> 151-180 Dys | H52: ='SC3'!I3 -> 181 Dys-1 Yr | I52: ='SC3'!J3 -> Over 1Yr
A53: =Head2 -> Budget Year 2019/20 | B53: ='SC3'!C14 -> 3865962.12 | C53: ='SC3'!D14 -> 1173592.84 | D53: ='SC3'!E14 -> 1955635.6 | E53: ='SC3'!F14 -> 3338199.88 | F53: ='SC3'!G14 -> 1084193.96 | G53: ='SC3'!H14 -> 1104067.45 | H53: ='SC3'!I14 -> 24970712.29 | I53: ='SC3'!J14 -> 111956073.3
A54: =Head1 -> 2018/19 | B54: ='SC3'!C15 -> 0 | C54: ='SC3'!D15 -> 0 | D54: ='SC3'!E15 -> 0 | E54: ='SC3'!F15 -> 0 | F54: ='SC3'!G15 -> 0 | G54: ='SC3'!H15 -> 0 | H54: ='SC3'!I15 -> 0 | I54: ='SC3'!J15 -> 0
A76: ='Template names'!B105 -> Chart C4 Consumer Debtors (total by Debtor Customer Category)
B77: =Head1 -> 2018/19 | C77: =Head2 -> Budget Year 2019/20
A78: ='SC3'!A17 -> Organs of State | B78: =C78*0.97 -> 0 | C78: ='SC3'!K17 -> 0
A79: ='SC3'!A18 -> Commercial | B79: =C79*0.97 -> 0 | C79: ='SC3'!K18 -> 0
A80: ='SC3'!A19 -> Households | B80: =C80*0.97 -> 0 | C80: ='SC3'!K19 -> 0
A81: ='SC3'!A20 -> Other | B81: =C81*0.97 -> 144964984.3 | C81: ='SC3'!K20 -> 149448437.5
A101: ='Template names'!B106 -> Chart C5 Aged Creditors Analysis
B102: ='SC4'!A6 -> Bulk Electricity | C102: ='SC4'!A7 -> Bulk Water | D102: ='SC4'!A8 -> PAYE deductions | E102: ='SC4'!A9 -> VAT (output less input) | F102: ='SC4'!A10 -> Pensions / Retirement deductions | G102: ='SC4'!A11 -> Loan repayments | H102: ='SC4'!A12 -> Trade Creditors | I102: ='SC4'!A13 -> Auditor General | J102: ='SC4'!A14 -> Other
A103: =A54 -> 2018/19 | B103: ='SC4'!L6 -> 0 | C103: ='SC4'!L7 -> 0 | D103: ='SC4'!L8 -> 0 | E103: ='SC4'!L9 -> 0 | F103: ='SC4'!L10 -> 0 | G103: ='SC4'!L11 -> 0 | H103: ='SC4'!L12 -> 0 | I103: ='SC4'!L13 -> 0 | J103: ='SC4'!L14 -> 0
A104: =A53 -> Budget Year 2019/20 | B104: ='SC4'!K6 -> 0 | C104: ='SC4'!K7 -> 0 | D104: ='SC4'!K8 -> 0 | E104: ='SC4'!K9 -> 0 | F104: ='SC4'!K10 -> 0 | G104: ='SC4'!K11 -> 0 | H104: ='SC4'!K12 -> 0 | I104: ='SC4'!K13 -> 0 | J104: ='SC4'!K14 -> 0
